Workbook

Sheet AFRIQUE
A1: MATCHS ALLER | J1: GROUPE A | P1: MATCHS RETOUR | Z1: CLASSEMENT | AP1: CLASSEMENT
A3: Équipes | F3: Bts | G3: Bts | H3: Équipes | M3: Équipes | R3: Bts | S3: Bts | T3: Équipes | Z3: Équipes | AE3: R | AF3: Pts | AG3: J | AH3: G | AI3: N | AJ3: P | AK3: B + | AL3: B - | AM3: Diff | AP3: Équipes | AU3: R | AV3: Pts | AW3: J | AX3: G | AY3: N | AZ3: P | BA3: B + | BB3: B - | BC3: Diff | BF3: pts | BG3: pts | BH3: pts | BI3: pts | BJ3: t pts | BK3: t pts | BL3: j | BM3: j | BN3: j | BO3: j | BP3: g | BQ3: g | BR3: g | BS3: g | BT3: n | BU3: n | BV3: n | BW3: n | BX3: p | BY3: p | BZ3: p | CA3: p | CB3: b+ | CC3: b+ | CD3: b+ | CE3: b+ | CF3: b+ | CG3: b+ | CH3: b- | CI3: b- | CJ3: b- | CK3: b- | CL3: b- | CM3: b- | CN3: =AP4 -> RD CONGO | CO3: =AP5 -> TUNISIE | CP3: =AP6 -> GUINÉE | CQ3: =AP7 -> LIBYE | CR3: =CN3 -> RD CONGO | CS3: =CO3 -> TUNISIE | CT3: GUINÉE | CU3: LIBYE | CV3: =CN3 -> RD CONGO | CW3: =CO3 -> TUNISIE | CX3: GUINÉE | CY3: LIBYE | CZ3: =CN3 -> RD CONGO | DA3: =CO3 -> TUNISIE | DB3: GUINÉE | DC3: LIBYE
A4: =AP4 -> RD CONGO | F4: 2 | G4: 2 | H4: =AP5 -> TUNISIE | M4: =H4 -> TUNISIE | R4: 2 | S4: 1 | T4: =A4 -> RD CONGO | Z4: =VLOOKUP(AN13,AO13:AT16,2,0) -> TUNISIE | AE4: 1 | AF4: =VLOOKUP(Z4,AP4:BC7,7,0) -> 14 | AG4: =VLOOKUP(Z4,AP4:BC7,8,0) -> 6 | AH4: =VLOOKUP(Z4,AP4:BC7,9,0) -> 4 | AI4: =VLOOKUP(Z4,AP4:BC7,10,0) -> 2 | AJ4: =VLOOKUP(Z4,AP4:BC7,11,0) -> 0 | AK4: =VLOOKUP(Z4,AP4:BC7,12,0) -> 11 | AL4: =VLOOKUP(Z4,AP4:BC7,13,0) -> 4 | AM4: =VLOOKUP(Z4,AP4:BC7,14,0) -> 7 | AP4: RD CONGO | AU4: =RANK(AV4,AV4:AV7) -> 2 | AV4: =SUMPRODUCT((A4:E9=AP4)*(BF4:BF9))+SUMPRODUCT((H4:L9=AP4)*(BG4:BG9))+SUMPRODUCT((M4:Q9=AP4)*(BH4:BH9))+SUMPRODUCT((T4:X9=AP4)*(BI4:BI9)) -> 13 | AW4: =SUMPRODUCT((A4:E9=AP4)*(BL4:BL9))+SUMPRODUCT((H4:L9=AP4)*(BM4:BM9))+SUMPRODUCT((M4:Q9=AP4)*(BN4:BN9))+SUMPRODUCT((T4:X9=AP4)*(BO4:BO9)) -> 6 | AX4: =SUMPRODUCT((A4:E9=AP4)*(BP4:BP9))+SUMPRODUCT((H4:L9=AP4)*(BQ4:BQ9))+SUMPRODUCT((M4:Q9=AP4)*(BR4:BR9))+SUMPRODUCT((T4:X9=AP4)*(BS4:BS9)) -> 4 | AY4: =SUMPRODUCT((A4:E9=AP4)*(BT4:BT9))+SUMPRODUCT((H4:L9=AP4)*(BU4:BU9))+SUMPRODUCT((M4:Q9=AP4)*(BV4:BV9))+SUMPRODUCT((T4:X9=AP4)*(BW4:BW9)) -> 1 | AZ4: =SUMPRODUCT((A4:E9=AP4)*(BX4:BX9))+SUMPRODUCT((H4:L9=AP4)*(BY4:BY9))+SUMPRODUCT((M4:Q9=AP4)*(BZ4:BZ9))+SUMPRODUCT((T4:X9=AP4)*(CA4:CA9)) -> 1 | BA4: =SUMPRODUCT((A4:E9=AP4)*(CB4:CB9))+SUMPRODUCT((H4:L9=AP4)*(CC4:CC9))+SUMPRODUCT((M4:Q9=AP4)*(CD4:CD9))+SUMPRODUCT((T4:X9=AP4)*(CE4:CE9)) -> 14 | BB4: =SUMPRODUCT((A4:E9=AP4)*(CH4:CH9))+SUMPRODUCT((H4:L9=AP4)*(CI4:CI9))+SUMPRODUCT((M4:Q9=AP4)*(CJ4:CJ9))+SUMPRODUCT((T4:X9=AP4)*(CK4:CK9)) -> 7 | BC4: =BA4-BB4 -> 7 | BF4: =IF(F4="",0,IF(F4>G4,3,IF(F4=G4,1,IF(F4<G4,0)))) -> 1 | BG4: =IF(G4="",0,IF(G4>F4,3,IF(G4=F4,1,IF(G4<F4,0)))) -> 1 | BH4: =IF(R4="",0,IF(R4>S4,3,IF(R4=S4,1,IF(R4<S4,0)))) -> 3 | BI4: =IF(S4="",0,IF(S4>R4,3,IF(S4=R4,1,IF(S4<R4,0)))) -> 0 | BJ4: =BF4+BI4 -> 1 | BK4: =BG4+BH4 -> 4 | BL4: =IF(F4="",0,1) -> 1 | BM4: =IF(G4="",0,1) -> 1 | BN4: =IF(R4="",0,1) -> 1 | BO4: =IF(S4="",0,1) -> 1 | BP4: =IF(F4<>"",IF(F4>G4,1)) -> FALSE | BQ4: =IF(G4<>"",IF(G4>F4,1)) -> FALSE | BR4: =IF(R4<>"",IF(R4>S4,1)) -> 1 | BS4: =IF(S4<>"",IF(S4>R4,1)) -> FALSE | BT4: =IF(F4<>"",IF(F4=G4,1)) -> 1 | BU4: =IF(G4<>"",IF(G4=F4,1)) -> 1 | BV4: =IF(R4<>"",IF(R4=S4,1)) -> FALSE | BW4: =IF(S4<>"",IF(S4=R4,1)) -> FALSE | BX4: =IF(F4<>"",IF(F4<G4,1)) -> FALSE | BY4: =IF(G4<>"",IF(G4<F4,1)) -> FALSE | BZ4: =IF(R4<>"",IF(R4<S4,1)) -> FALSE | CA4: =IF(S4<>"",IF(S4<R4,1)) -> 1 | CB4: =F4 -> 2 | CC4: =G4 -> 2 | CD4: =R4 -> 2 | CE4: =S4 -> 1 | CF4: =CB4+CE4 -> 3 | CG4: =CC4+CD4 -> 4 | CH4: =G4 -> 2 | CI4: =F4 -> 2 | CJ4: =S4 -> 1 | CK4: =R4 -> 2 | CL4: =CH4+CK4 -> 4 | CM4: =CI4+CJ4 -> 3 | CN4: =IF(AU4=1,1000000) -> FALSE | CO4: =IF(AU5=1,1000000) -> 1000000 | CP4: =IF(AU6=1,1000000) -> FALSE | CQ4: =IF(AU7=1,1000000) -> FALSE | CR4: =IF(AU4=2,800000) -> 800000 | CS4: =IF(AU5=2,800000) -> FALSE | CT4: =IF(AU6=2,800000) -> FALSE | CU4: =IF(AU7=2,800000) -> FALSE | CV4: =IF(AU4=3,600000) -> FALSE | CW4: =IF(AU5=3,600000) -> FALSE | CX4: =IF(AU6=3,600000) -> FALSE | CY4: =IF(AU7=3,600000) -> 600000 | CZ4: =IF(AU4=4,400000) -> FALSE | DA4: =IF(AU5=4,400000) -> FALSE | DB4: =IF(AU6=4,400000) -> 400000 | DC4: =IF(AU7=4,400000) -> FALSE
A5: =AP4 -> RD CONGO | F5: 3 | G5: 1 | H5: =AP6 -> GUINÉE | M5: =H5 -> GUINÉE | R5: 1 | S5: 2 | T5: =A5 -> RD CONGO | Z5: =VLOOKUP(AN14,AO13:AT16,2,0) -> RD CONGO | AE5: =IF(BI14=BI13,BL13,BL14) -> 2 | AF5: =VLOOKUP(Z5,AP4:BC7,7,0) -> 13 | AG5: =VLOOKUP(Z5,AP4:BC7,8,0) -> 6 | AH5: =VLOOKUP(Z5,AP4:BC7,9,0) -> 4 | AI5: =VLOOKUP(Z5,AP4:BC7,10,0) -> 1 | AJ5: =VLOOKUP(Z5,AP4:BC7,11,0) -> 1 | AK5: =VLOOKUP(Z5,AP4:BC7,12,0) -> 14 | AL5: =VLOOKUP(Z5,AP4:BC7,13,0) -> 7 | AM5: =VLOOKUP(Z5,AP4:BC7,14,0) -> 7 | AP5: TUNISIE | AU5: =RANK(AV5,AV4:AV7) -> 1 | AV5: =SUMPRODUCT((A4:E9=AP5)*(BF4:BF9))+SUMPRODUCT((H4:L9=AP5)*(BG4:BG9))+SUMPRODUCT((M4:Q9=AP5)*(BH4:BH9))+SUMPRODUCT((T4:X9=AP5)*(BI4:BI9)) -> 14 | AW5: =SUMPRODUCT((A4:E9=AP5)*(BL4:BL9))+SUMPRODUCT((H4:L9=AP5)*(BM4:BM9))+SUMPRODUCT((M4:Q9=AP5)*(BN4:BN9))+SUMPRODUCT((T4:X9=AP5)*(BO4:BO9)) -> 6 | AX5: =SUMPRODUCT((A4:E9=AP5)*(BP4:BP9))+SUMPRODUCT((H4:L9=AP5)*(BQ4:BQ9))+SUMPRODUCT((M4:Q9=AP5)*(BR4:BR9))+SUMPRODUCT((T4:X9=AP5)*(BS4:BS9)) -> 4 | AY5: =SUMPRODUCT((A4:E9=AP5)*(BT4:BT9))+SUMPRODUCT((H4:L9=AP5)*(BU4:BU9))+SUMPRODUCT((M4:Q9=AP5)*(BV4:BV9))+SUMPRODUCT((T4:X9=AP5)*(BW4:BW9)) -> 2 | AZ5: =SUMPRODUCT((A4:E9=AP5)*(BX4:BX9))+SUMPRODUCT((H4:L9=AP5)*(BY4:BY9))+SUMPRODUCT((M4:Q9=AP5)*(BZ4:BZ9))+SUMPRODUCT((T4:X9=AP5)*(CA4:CA9)) -> 0 | BA5: =SUMPRODUCT((A4:E9=AP5)*(CB4:CB9))+SUMPRODUCT((H4:L9=AP5)*(CC4:CC9))+SUMPRODUCT((M4:Q9=AP5)*(CD4:CD9))+SUMPRODUCT((T4:X9=AP5)*(CE4:CE9)) -> 11 | BB5: =SUMPRODUCT((A4:E9=AP5)*(CH4:CH9))+SUMPRODUCT((H4:L9=AP5)*(CI4:CI9))+SUMPRODUCT((M4:Q9=AP5)*(CJ4:CJ9))+SUMPRODUCT((T4:X9=AP5)*(CK4:CK9)) -> 4 | BC5: =BA5-BB5 -> 7 | BF5: =IF(F5="",0,IF(F5>G5,3,IF(F5=G5,1,IF(F5<G5,0)))) -> 3 | BG5: =IF(G5="",0,IF(G5>F5,3,IF(G5=F5,1,IF(G5<F5,0)))) -> 0 | BH5: =IF(R5="",0,IF(R5>S5,3,IF(R5=S5,1,IF(R5<S5,0)))) -> 0 | BI5: =IF(S5="",0,IF(S5>R5,3,IF(S5=R5,1,IF(S5<R5,0)))) -> 3 | BJ5: =BF5+BI5 -> 6 | BK5: =BG5+BH5 -> 0 | BL5: =IF(F5="",0,1) -> 1 | BM5: =IF(G5="",0,1) -> 1 | BN5: =IF(R5="",0,1) -> 1 | BO5: =IF(S5="",0,1) -> 1 | BP5: =IF(F5<>"",IF(F5>G5,1)) -> 1 | BQ5: =IF(G5<>"",IF(G5>F5,1)) -> FALSE | BR5: =IF(R5<>"",IF(R5>S5,1)) -> FALSE | BS5: =IF(S5<>"",IF(S5>R5,1)) -> 1 | BT5: =IF(F5<>"",IF(F5=G5,1)) -> FALSE | BU5: =IF(G5<>"",IF(G5=F5,1)) -> FALSE | BV5: =IF(R5<>"",IF(R5=S5,1)) -> FALSE | BW5: =IF(S5<>"",IF(S5=R5,1)) -> FALSE | BX5: =IF(F5<>"",IF(F5<G5,1)) -> FALSE | BY5: =IF(G5<>"",IF(G5<F5,1)) -> 1 | BZ5: =IF(R5<>"",IF(R5<S5,1)) -> 1 | CA5: =IF(S5<>"",IF(S5<R5,1)) -> FALSE | CB5: =F5 -> 3 | CC5: =G5 -> 1 | CD5: =R5 -> 1 | CE5: =S5 -> 2 | CF5: =CB5+CE5 -> 5 | CG5: =CC5+CD5 -> 2 | CH5: =G5 -> 1 | CI5: =F5 -> 3 | CJ5: =S5 -> 2 | CK5: =R5 -> 1 | CL5: =CH5+CK5 -> 2 | CM5: =CI5+CJ5 -> 5 | CN5: =IF(AU4=1,IF(AU5=1,SUM(AV4*1000+(BC4)/10+(BA4)/100+(BJ4)/1000+((F4+S4)-(G4+R4))/10000+(F4+S4)/100000+(S4)/1000000))) -> FALSE | CO5: =IF(AU5=1,IF(AU4=1,SUM(AV5*1000+(BC5)/10+(BA5)/100+(BK4)/1000+((G4+R4)-(F4+S4))/10000+(G4+R4)/100000+(G4)/1000000))) -> FALSE | CP5: =IF(AU6=1,IF(AU4=1,SUM(AV6*1000+(BC6)/10+(BA6)/100+(BK5)/1000+((G5+R5)-(F5+S5))/10000+(G5+R5)/100000+(G5)/1000000))) -> FALSE | CQ5: =IF(AU7=1,IF(AU4=1,SUM(AV7*1000+(BC7)/10+(BA7)/100+(BK6)/1000+((G6+R6)-(F6+S6))/10000+(G6+R6)/100000+(G6)/1000000))) -> FALSE | CR5: =IF(AU4=2,IF(AU5=2,SUM(AV4*1000+(BC4)/10+(BA4)/100+(BJ4)/1000+((F4+S4)-(G4+R4))/10000+(F4+S4)/100000+(S4)/1000000))) -> FALSE | CS5: =IF(AU5=2,IF(AU4=2,SUM(AV5*1000+(BC5)/10+(BA5)/100+(BK4)/1000+((G4+R4)-(F4+S4))/10000+(G4+R4)/100000+(G4)/1000000))) -> FALSE | CT5: =IF(AU6=2,IF(AU4=2,SUM(AV6*1000+(BC6)/10+(BA6)/100+(BK5)/1000+((G5+R5)-(F5+S5))/10000+(G5+R5)/100000+(G5)/1000000))) -> FALSE | CU5: =IF(AU7=2,IF(AU4=2,SUM(AV7*1000+(BC7)/10+(BA7)/100+(BK6)/1000+((G6+R6)-(F6+S6))/10000+(G6+R6)/100000+(G6)/1000000))) -> FALSE | CV5: =IF(AU4=3,IF(AU5=3,SUM(AV4*1000+(BC4)/10+(BA4)/100+(BJ4)/1000+((F4+S4)-(G4+R4))/10000+(F4+S4)/100000+(S4)/1000000))) -> FALSE | CW5: =IF(AU5=3,IF(AU4=3,SUM(AV5*1000+(BC5)/10+(BA5)/100+(BK4)/1000+((G4+R4)-(F4+S4))/10000+(G4+R4)/100000+(G4)/1000000))) -> FALSE | CX5: =IF(AU6=3,IF(AU4=3,SUM(AV6*1000+(BC6)/10+(BA6)/100+(BK5)/1000+((G5+R5)-(F5+S5))/10000+(G5+R5)/100000+(G5)/1000000))) -> FALSE | CY5: =IF(AU7=3,IF(AU4=3,SUM(AV7*1000+(BC7)/10+(BA7)/100+(BK6)/1000+((G6+R6)-(F6+S6))/10000+(G6+R6)/100000+(G6)/1000000))) -> FALSE | CZ5: =IF(AU4=4,IF(AU5=4,SUM(AV4*1000+(BC4)/10+(BA4)/100+(BJ4)/1000+((F4+S4)-(G4+R4))/10000+(F4+S4)/100000+(S4)/1000000))) -> FALSE | DA5: =IF(AU5=4,IF(AU4=4,SUM(AV5*1000+(BC5)/10+(BA5)/100+(BK4)/1000+((G4+R4)-(F4+S4))/10000+(G4+R4)/100000+(G4)/1000000))) -> FALSE | DB5: =IF(AU6=4,IF(AU4=4,SUM(AV6*1000+(BC6)/10+(BA6)/100+(BK5)/1000+((G5+R5)-(F5+S5))/10000+(G5+R5)/100000+(G5)/1000000))) -> FALSE | DC5: =IF(AU7=4,IF(AU4=4,SUM(AV7*1000+(BC7)/10+(BA7)/100+(BK6)/1000+((G6+R6)-(F6+S6))/10000+(G6+R6)/100000+(G6)/1000000))) -> FALSE
A6: =AP4 -> RD CONGO | F6: 4 | G6: 0 | H6: =AP7 -> LIBYE | M6: LIBYE | R6: 1 | S6: 2 | T6: RD CONGO | Z6: =VLOOKUP(AN15,AO13:AT16,2,0) -> LIBYE | AE6: =IF(BI15=BI14,BL14,BL15) -> 3 | AF6: =VLOOKUP(Z6,AP4:BC7,7,0) -> 4 | AG6: =VLOOKUP(Z6,AP4:BC7,8,0) -> 6 | AH6: =VLOOKUP(Z6,AP4:BC7,9,0) -> 1 | AI6: =VLOOKUP(Z6,AP4:BC7,10,0) -> 1 | AJ6: =VLOOKUP(Z6,AP4:BC7,11,0) -> 4 | AK6: =VLOOKUP(Z6,AP4:BC7,12,0) -> 4 | AL6: =VLOOKUP(Z6,AP4:BC7,13,0) -> 10 | AM6: =VLOOKUP(Z6,AP4:BC7,14,0) -> -6 | AP6: GUINÉE | AU6: =RANK(AV6,AV4:AV7) -> 4 | AV6: =SUMPRODUCT((A4:E9=AP6)*(BF4:BF9))+SUMPRODUCT((H4:L9=AP6)*(BG4:BG9))+SUMPRODUCT((M4:Q9=AP6)*(BH4:BH9))+SUMPRODUCT((T4:X9=AP6)*(BI4:BI9)) -> 3 | AW6: =SUMPRODUCT((A4:E9=AP6)*(BL4:BL9))+SUMPRODUCT((H4:L9=AP6)*(BM4:BM9))+SUMPRODUCT((M4:Q9=AP6)*(BN4:BN9))+SUMPRODUCT((T4:X9=AP6)*(BO4:BO9)) -> 6 | AX6: =SUMPRODUCT((A4:E9=AP6)*(BP4:BP9))+SUMPRODUCT((H4:L9=AP6)*(BQ4:BQ9))+SUMPRODUCT((M4:Q9=AP6)*(BR4:BR9))+SUMPRODUCT((T4:X9=AP6)*(BS4:BS9)) -> 1 | AY6: =SUMPRODUCT((A4:E9=AP6)*(BT4:BT9))+SUMPRODUCT((H4:L9=AP6)*(BU4:BU9))+SUMPRODUCT((M4:Q9=AP6)*(BV4:BV9))+SUMPRODUCT((T4:X9=AP6)*(BW4:BW9)) -> 0 | AZ6: =SUMPRODUCT((A4:E9=AP6)*(BX4:BX9))+SUMPRODUCT((H4:L9=AP6)*(BY4:BY9))+SUMPRODUCT((M4:Q9=AP6)*(BZ4:BZ9))+SUMPRODUCT((T4:X9=AP6)*(CA4:CA9)) -> 5 | BA6: =SUMPRODUCT((A4:E9=AP6)*(CB4:CB9))+SUMPRODUCT((H4:L9=AP6)*(CC4:CC9))+SUMPRODUCT((M4:Q9=AP6)*(CD4:CD9))+SUMPRODUCT((T4:X9=AP6)*(CE4:CE9)) -> 6 | BB6: =SUMPRODUCT((A4:E9=AP6)*(CH4:CH9))+SUMPRODUCT((H4:L9=AP6)*(CI4:CI9))+SUMPRODUCT((M4:Q9=AP6)*(CJ4:CJ9))+SUMPRODUCT((T4:X9=AP6)*(CK4:CK9)) -> 14 | BC6: -8 | BF6: 3 | BG6: 0 | BH6: 0 | BI6: 3 | BJ6: 6 | BK6: 0 | BL6: 1 | BM6: 1 | BN6: 1 | BO6: 1 | BP6: 1 | BQ6: FALSE | BR6: FALSE | BS6: 1 | BT6: FALSE | BU6: FALSE | BV6: FALSE | BW6: FALSE | BX6: FALSE | BY6: 1 | BZ6: 1 | CA6: FALSE | CB6: 4 | CC6: 0 | CD6: 1 | CE6: 2 | CF6: 6 | CG6: 1 | CH6: 0 | CI6: 4 | CJ6: 2 | CK6: 1 | CL6: 1 | CM6: 6 | CN6: =IF(AU4=1,IF(AU7=1,SUM(AV4*1000+(BC4)/10+(BA4)/100+(BJ6)/1000+((F6+S6)-(G6+R6))/10000+(F6+S6)/100000+(S6)/1000000))) -> FALSE | CO6: =IF(AU5=1,IF(AU6=1,SUM(AV5*1000+(BC5)/10+(BA5)/100+(BJ12)/1000+((F12+S12)-(G12+R12))/10000+(F12+S12)/100000+(S12)/1000000))) -> FALSE | CP6: =IF(AU6=1,IF(AU5=1,SUM(AV6*1000+(BC6)/10+(BA6)/100+(BK12)/1000+((G12+R12)-(F12+S12))/10000+(G12+R12)/1000000+(G12)/1000000))) -> FALSE | CQ6: =IF(AU7=1,IF(AU5=1,SUM(AV7*1000+(BC7)/10+(BA7)/100+(BK8)/1000+((G8+R8)-(F8+S8))/10000+(G8-R8)/100000+(G8)/1000000))) -> FALSE | CR6: =IF(AU4=2,IF(AU7=2,SUM(AV4*1000+(BC4)/10+(BA4)/100+(BJ6)/1000+((F6+S6)-(G6+R6))/10000+(F6+S6)/100000+(S6)/1000000))) -> FALSE | CS6: =IF(AU5=2,IF(AU6=2,SUM(AV5*1000+(BC5)/10+(BA5)/100+(BJ12)/1000+((F12+S12)-(G12+R12))/10000+(F12+S12)/100000+(S12)/1000000))) -> FALSE | CT6: =IF(AU6=2,IF(AU5=2,SUM(AV6*1000+(BC6)/10+(BA6)/100+(BK12)/1000+((G12+R12)-(F12+S12))/10000+(G12+R12)/1000000+(G12)/1000000))) -> FALSE | CU6: =IF(AU7=2,IF(AU5=2,SUM(AV7*1000+(BC7)/10+(BA7)/100+(BK8)/1000+((G8+R8)-(F8+S8))/10000+(G8-R8)/100000+(G8)/1000000))) -> FALSE | CV6: =IF(AU4=3,IF(AU7=3,SUM(AV4*1000+(BC4)/10+(BA4)/100+(BJ6)/1000+((F6+S6)-(G6+R6))/10000+(F6+S6)/100000+(S6)/1000000))) -> FALSE | CW6: =IF(AU5=3,IF(AU6=3,SUM(AV5*1000+(BC5)/10+(BA5)/100+(BJ12)/1000+((F12+S12)-(G12+R12))/10000+(F12+S12)/100000+(S12)/1000000))) -> FALSE | CX6: =IF(AU6=3,IF(AU5=3,SUM(AV6*1000+(BC6)/10+(BA6)/100+(BK12)/1000+((G12+R12)-(F12+S12))/10000+(G12+R12)/1000000+(G12)/1000000))) -> FALSE | CY6: =IF(AU7=3,IF(AU5=3,SUM(AV7*1000+(BC7)/10+(BA7)/100+(BK8)/1000+((G8+R8)-(F8+S8))/10000+(G8-R8)/100000+(G8)/1000000))) -> FALSE | CZ6: =IF(AU4=4,IF(AU7=4,SUM(AV4*1000+(BC4)/10+(BA4)/100+(BJ6)/1000+((F6+S6)-(G6+R6))/10000+(F6+S6)/100000+(S6)/1000000))) -> FALSE | DA6: =IF(AU5=4,IF(AU6=4,SUM(AV5*1000+(BC5)/10+(BA5)/100+(BJ12)/1000+((F12+S12)-(G12+R12))/10000+(F12+S12)/100000+(S12)/1000000))) -> FALSE | DB6: =IF(AU6=4,IF(AU5=4,SUM(AV6*1000+(BC6)/10+(BA6)/100+(BK12)/1000+((G12+R12)-(F12+S12))/10000+(G12+R12)/1000000+(G12)/1000000))) -> FALSE | DC6: =IF(AU7=4,IF(AU5=4,SUM(AV7*1000+(BC7)/10+(BA7)/100+(BK8)/1000+((G8+R8)-(F8+S8))/10000+(G8-R8)/100000+(G8)/1000000))) -> FALSE
A7: =AP5 -> TUNISIE | F7: 2 | G7: 0 | H7: =AP6 -> GUINÉE | M7: GUINÉE | R7: 1 | S7: 4 | T7: TUNISIE | Z7: =VLOOKUP(AN16,AO13:AT16,2,0) -> GUINÉE | AE7: 4 | AF7: =VLOOKUP(Z7,AP4:BC7,7,0) -> 3 | AG7: =VLOOKUP(Z7,AP4:BC7,8,0) -> 6 | AH7: =VLOOKUP(Z7,AP4:BC7,9,0) -> 1 | AI7: =VLOOKUP(Z7,AP4:BC7,10,0) -> 0 | AJ7: =VLOOKUP(Z7,AP4:BC7,11,0) -> 5 | AK7: =VLOOKUP(Z7,AP4:BC7,12,0) -> 6 | AL7: =VLOOKUP(Z7,AP4:BC7,13,0) -> 14 | AM7: =VLOOKUP(Z7,AP4:BC7,14,0) -> -8 | AP7: LIBYE | AU7: =RANK(AV7,AV4:AV7) -> 3 | AV7: =SUMPRODUCT((A4:E9=AP7)*(BF4:BF9))+SUMPRODUCT((H4:L9=AP7)*(BG4:BG9))+SUMPRODUCT((M4:Q9=AP7)*(BH4:BH9))+SUMPRODUCT((T4:X9=AP7)*(BI4:BI9)) -> 4 | AW7: =SUMPRODUCT((A4:E9=AP7)*(BL4:BL9))+SUMPRODUCT((H4:L9=AP7)*(BM4:BM9))+SUMPRODUCT((M4:Q9=AP7)*(BN4:BN9))+SUMPRODUCT((T4:X9=AP7)*(BO4:BO9)) -> 6 | AX7: =SUMPRODUCT((A4:E9=AP7)*(BP4:BP9))+SUMPRODUCT((H4:L9=AP7)*(BQ4:BQ9))+SUMPRODUCT((M4:Q9=AP7)*(BR4:BR9))+SUMPRODUCT((T4:X9=AP7)*(BS4:BS9)) -> 1 | AY7: =SUMPRODUCT((A4:E9=AP7)*(BT4:BT9))+SUMPRODUCT((H4:L9=AP7)*(BU4:BU9))+SUMPRODUCT((M4:Q9=AP7)*(BV4:BV9))+SUMPRODUCT((T4:X9=AP7)*(BW4:BW9)) -> 1 | AZ7: =SUMPRODUCT((A4:E9=AP7)*(BX4:BX9))+SUMPRODUCT((H4:L9=AP7)*(BY4:BY9))+SUMPRODUCT((M4:Q9=AP7)*(BZ4:BZ9))+SUMPRODUCT((T4:X9=AP7)*(CA4:CA9)) -> 4 | BA7: =SUMPRODUCT((A4:E9=AP7)*(CB4:CB9))+SUMPRODUCT((H4:L9=AP7)*(CC4:CC9))+SUMPRODUCT((M4:Q9=AP7)*(CD4:CD9))+SUMPRODUCT((T4:X9=AP7)*(CE4:CE9)) -> 4 | BB7: =SUMPRODUCT((A4:E9=AP7)*(CH4:CH9))+SUMPRODUCT((H4:L9=AP7)*(CI4:CI9))+SUMPRODUCT((M4:Q9=AP7)*(CJ4:CJ9))+SUMPRODUCT((T4:X9=AP7)*(CK4:CK9)) -> 10 | BC7: -6 | BF7: 3 | BG7: 0 | BH7: 0 | BI7: 3 | BJ7: 6 | BK7: 0 | BL7: 1 | BM7: 1 | BN7: 1 | BO7: 1 | BP7: 1 | BQ7: FALSE | BR7: FALSE | BS7: 1 | BT7: FALSE | BU7: FALSE | BV7: FALSE | BW7: FALSE | BX7: FALSE | BY7: 1 | BZ7: 1 | CA7: FALSE | CB7: 2 | CC7: 0 | CD7: 1 | CE7: 4 | CF7: 6 | CG7: 1 | CH7: 0 | CI7: 2 | CJ7: 4 | CK7: 1 | CL7: 1 | CM7: 6 | CN7: =IF(AU4=1,IF(AU7=1,SUM(AV4*1000+(BC4)/10+(BA4)/100+(BJ6)/1000+((F6+S6)-(G6+R6))/10000+(F6+S6)/100000+(S6)/1000000))) -> FALSE | CO7: =IF(AU5=1,IF(AU7=1,SUM(AV5*1000+(BC5)/10+(BA5)/100+(BJ8)/1000+((F8+S8)-(G8+R8))/10000+(F8+S8)/100000+(S8)/1000000))) -> FALSE | CP7: =IF(AU6=1,IF(AU7=1,SUM(AV6*1000+(BC6)/10+(BA6)/100+(BJ9)/1000+((F9+S9)-(G9+R9))/10000+(F9+S9)/100000+(S9)/1000000))) -> FALSE | CQ7: =IF(AU7=1,IF(AU6=1,SUM(AV7*1000+(BC7)/10+(BA7)/100+(BK9)/1000+((G9+R9)-(F9+S9))/10000+(G9+R9)/100000+(G9)/1000000))) -> FALSE | CR7: =IF(AU4=2,IF(AU7=2,SUM(AV4*1000+(BC4)/10+(BA4)/100+(BJ6)/1000+((F6+S6)-(G6+R6))/10000+(F6+S6)/100000+(S6)/1000000))) -> FALSE | CS7: =IF(AU5=2,IF(AU7=2,SUM(AV5*1000+(BC5)/10+(BA5)/100+(BJ8)/1000+((F8+S8)-(G8+R8))/10000+(F8+S8)/100000+(S8)/1000000))) -> FALSE | CT7: =IF(AU6=2,IF(AU7=2,SUM(AV6*1000+(BC6)/10+(BA6)/100+(BJ9)/1000+((F9+S9)-(G9+R9))/10000+(F9+S9)/100000+(S9)/1000000))) -> FALSE | CU7: =IF(AU7=2,IF(AU6=2,SUM(AV7*1000+(BC7)/10+(BA7)/100+(BK9)/1000+((G9+R9)-(F9+S9))/10000+(G9+R9)/100000+(G9)/1000000))) -> FALSE | CV7: =IF(AU4=3,IF(AU7=3,SUM(AV4*1000+(BC4)/10+(BA4)/100+(BJ6)/1000+((F6+S6)-(G6+R6))/10000+(F6+S6)/100000+(S6)/1000000))) -> FALSE | CW7: =IF(AU5=3,IF(AU7=3,SUM(AV5*1000+(BC5)/10+(BA5)/100+(BJ8)/1000+((F8+S8)-(G8+R8))/10000+(F8+S8)/100000+(S8)/1000000))) -> FALSE | CX7: =IF(AU6=3,IF(AU7=3,SUM(AV6*1000+(BC6)/10+(BA6)/100+(BJ9)/1000+((F9+S9)-(G9+R9))/10000+(F9+S9)/100000+(S9)/1000000))) -> FALSE | CY7: =IF(AU7=3,IF(AU6=3,SUM(AV7*1000+(BC7)/10+(BA7)/100+(BK9)/1000+((G9+R9)-(F9+S9))/10000+(G9+R9)/100000+(G9)/1000000))) -> FALSE | CZ7: =IF(AU4=4,IF(AU7=4,SUM(AV4*1000+(BC4)/10+(BA4)/100+(BJ6)/1000+((F6+S6)-(G6+R6))/10000+(F6+S6)/100000+(S6)/1000000))) -> FALSE | DA7: =IF(AU5=4,IF(AU7=4,SUM(AV5*1000+(BC5)/10+(BA5)/100+(BJ8)/1000+((F8+S8)-(G8+R8))/10000+(F8+S8)/100000+(S8)/1000000))) -> FALSE | DB7: =IF(AU6=4,IF(AU7=4,SUM(AV6*1000+(BC6)/10+(BA6)/100+(BJ9)/1000+((F9+S9)-(G9+R9))/10000+(F9+S9)/100000+(S9)/1000000))) -> FALSE | DC7: =IF(AU7=4,IF(AU6=4,SUM(AV7*1000+(BC7)/10+(BA7)/100+(BK9)/1000+((G9+R9)-(F9+S9))/10000+(G9+R9)/100000+(G9)/1000000))) -> FALSE
A8: =AP5 -> TUNISIE | F8: 0 | G8: 0 | H8: =AP7 -> LIBYE | M8: LIBYE | R8: 0 | S8: 1 | T8: TUNISIE | AC8: GROUPE A | BF8: 1 | BG8: 1 | BH8: 0 | BI8: 3 | BJ8: 4 | BK8: 1 | BL8: 1 | BM8: 1 | BN8: 1 | BO8: 1 | BP8: FALSE | BQ8: FALSE | BR8: FALSE | BS8: 1 | BT8: 1 | BU8: 1 | BV8: FALSE | BW8: FALSE | BX8: FALSE | BY8: FALSE | BZ8: 1 | CA8: FALSE | CB8: 0 | CC8: 0 | CD8: 0 | CE8: 1 | CF8: 1 | CG8: 0 | CH8: 0 | CI8: 0 | CJ8: 1 | CK8: 0 | CL8: 0 | CM8: 1 | CN8: =SUM(CN4:CN7) -> 0 | CO8: 1000000 | CP8: 0 | CQ8: 0 | CR8: 800000 | CS8: 0 | CT8: 0 | CU8: 0 | CV8: 0 | CW8: 0 | CX8: 0 | CY8: 600000 | CZ8: 0 | DA8: 0 | DB8: 400000 | DC8: 0
A9: =AP6 -> GUINÉE | F9: 3 | G9: 2 | H9: =AP7 -> LIBYE | M9: LIBYE | R9: 1 | S9: 0 | T9: GUINÉE | BF9: 3 | BG9: 0 | BH9: 3 | BI9: 0 | BJ9: 3 | BK9: 3 | BL9: 1 | BM9: 1 | BN9: 1 | BO9: 1 | BP9: 1 | BQ9: FALSE | BR9: 1 | BS9: FALSE | BT9: FALSE | BU9: FALSE | BV9: FALSE | BW9: FALSE | BX9: FALSE | BY9: 1 | BZ9: FALSE | CA9: 1 | CB9: 3 | CC9: 2 | CD9: 1 | CE9: 0 | CF9: 3 | CG9: 3 | CH9: 2 | CI9: 3 | CJ9: 0 | CK9: 1 | CL9: 3 | CM9: 3
A10: ÉQUIPE QUALIFIÉE | G10: =Z4 -> TUNISIE
AN13: 1 | AO13: =BA13 -> 2 | AP13: =AP4 -> RD CONGO | AU13: =SUM(CN8,CR8,CV8,CZ8) -> 800000 | AX13: =AU13+0.00000004 -> 800000 | BA13: =RANK(AX13,AX13:AZ16) -> 2 | BB13: =RANK(AU13,AU13:AW16) -> 2 | BD13: =VLOOKUP(AN13,AO13:AT16,2,0) -> TUNISIE | BI13: =VLOOKUP(BD13,AP13:AW16,6,0) -> 1000000 | BL13: =RANK(BI13,BI13:BK16) -> 1
AN14: 2 | AO14: =BA14 -> 1 | AP14: =AP5 -> TUNISIE | AU14: =SUM(CO8,CS8,CW8,DA8) -> 1000000 | AX14: =AU14+0.00000003 -> 1000000 | BA14: =RANK(AX14,AX13:AZ16) -> 1 | BB14: =RANK(AU14,AU13:AW16) -> 1 | BD14: =VLOOKUP(AN14,AO13:AT16,2,0) -> RD CONGO | BI14: =VLOOKUP(BD14,AP13:AW16,6,0) -> 800000 | BL14: =RANK(BI14,BI13:BK16) -> 2
AN15: 3 | AO15: 4 | AP15: GUINÉE | AU15: =SUM(CP8,CT8,CX8,DB8) -> 400000 | AX15: =AU15+0.00000002 -> 400000 | BA15: =RANK(AX15,AX13:AZ16) -> 4 | BB15: =RANK(AU15,AU13:AW16) -> 4 | BD15: =VLOOKUP(AN15,AO13:AT16,2,0) -> LIBYE | BI15: =VLOOKUP(BD15,AP13:AW16,6,0) -> 600000 | BL15: =RANK(BI15,BI13:BK16) -> 3
AN16: 4 | AO16: 3 | AP16: LIBYE | AU16: =SUM(CQ8,CU8,CY8,DC8) -> 600000 | AX16: =AU16+0.00000001 -> 600000 | BA16: =RANK(AX16,AX13:AZ16) -> 3 | BB16: =RANK(AU16,AU13:AW16) -> 3 | BD16: =VLOOKUP(AN16,AO13:AT16,2,0) -> GUINÉE | BI16: =VLOOKUP(BD16,AP13:AW16,6,0) -> 400000 | BL16: =RANK(BI16,BI13:BK16) -> 4
A17: MATCHS ALLER | J17: GROUPE B | P17: MATCHS RETOUR | Z17: CLASSEMENT | AP17: CLASSEMENT
A19: Équipes | F19: Bts | G19: Bts | H19: Équipes | M19: Équipes | R19: Bts | S19: Bts | T19: Équipes | Z19: Équipes | AE19: R | AF19: Pts | AG19: J | AH19: G | AI19: N | AJ19: P | AK19: B + | AL19: B - | AM19: Diff | AP19: Équipes | AU19: R | AV19: Pts | AW19: J | AX19: G | AY19: N | AZ19: P | BA19: B + | BB19: B - | BC19: Diff | BF19: pts | BG19: pts | BH19: pts | BI19: pts | BJ19: t pts | BK19: t pts | BL19: j | BM19: j | BN19: j | BO19: j | BP19: g | BQ19: g | BR19: g | BS19: g | BT19: n | BU19: n | BV19: n | BW19: n | BX19: p | BY19: p | BZ19: p | CA19: p | CB19: b+ | CC19: b+ | CD19: b+ | CE19: b+ | CF19: b+ | CG19: b+ | CH19: b- | CI19: b- | CJ19: b- | CK19: b- | CL19: b- | CM19: b- | CN19: =AP20 -> NIGERIA | CO19: =AP21 -> CAMEROUN | CP19: =AP22 -> ZAMBIE | CQ19: =AP23 -> ALGÉRIE | CR19: =CN19 -> NIGERIA | CS19: =CO19 -> CAMEROUN | CT19: =CP19 -> ZAMBIE | CU19: =CQ19 -> ALGÉRIE | CV19: =CN19 -> NIGERIA | CW19: =CO19 -> CAMEROUN | CX19: =CP19 -> ZAMBIE | CY19: =CQ19 -> ALGÉRIE | CZ19: =CN19 -> NIGERIA | DA19: =CO19 -> CAMEROUN | DB19: =CP19 -> ZAMBIE | DC19: =CQ19 -> ALGÉRIE
A20: =AP20 -> NIGERIA | F20: 4 | G20: 0 | H20: =AP21 -> CAMEROUN | M20: =H20 -> CAMEROUN | R20: 1 | S20: 1 | T20: =A20 -> NIGERIA | Z20: =VLOOKUP(AN29,AO29:AT32,2,0) -> NIGERIA | AE20: 1 | AF20: =VLOOKUP(Z20,AP20:BC23,7,0) -> 14 | AG20: =VLOOKUP(Z20,AP20:BC23,8,0) -> 6 | AH20: =VLOOKUP(Z20,AP20:BC23,9,0) -> 4 | AI20: =VLOOKUP(Z20,AP20:BC23,10,0) -> 2 | AJ20: =VLOOKUP(Z20,AP20:BC23,11,0) -> 0 | AK20: =VLOOKUP(Z20,AP20:BC23,12,0) -> 12 | AL20: =VLOOKUP(Z20,AP20:BC23,13,0) -> 4 | AM20: =VLOOKUP(Z20,AP20:BC23,14,0) -> 8 | AP20: NIGERIA | AU20: =RANK(AV20,AV20:AV23) -> 1 | AV20: =SUMPRODUCT((A20:E25=AP20)*(BF20:BF25))+SUMPRODUCT((H20:L25=AP20)*(BG20:BG25))+SUMPRODUCT((M20:Q25=AP20)*(BH20:BH25))+SUMPRODUCT((T20:X25=AP20)*(BI20:BI25)) -> 14 | AW20: =SUMPRODUCT((A20:E25=AP20)*(BL20:BL25))+SUMPRODUCT((H20:L25=AP20)*(BM20:BM25))+SUMPRODUCT((M20:Q25=AP20)*(BN20:BN25))+SUMPRODUCT((T20:X25=AP20)*(BO20:BO25)) -> 6 | AX20: =SUMPRODUCT((A20:E25=AP20)*(BP20:BP25))+SUMPRODUCT((H20:L25=AP20)*(BQ20:BQ25))+SUMPRODUCT((M20:Q25=AP20)*(BR20:BR25))+SUMPRODUCT((T20:X25=AP20)*(BS20:BS25)) -> 4 | AY20: =SUMPRODUCT((A20:E25=AP20)*(BT20:BT25))+SUMPRODUCT((H20:L25=AP20)*(BU20:BU25))+SUMPRODUCT((M20:Q25=AP20)*(BV20:BV25))+SUMPRODUCT((T20:X25=AP20)*(BW20:BW25)) -> 2 | AZ20: =SUMPRODUCT((A20:E25=AP20)*(BX20:BX25))+SUMPRODUCT((H20:L25=AP20)*(BY20:BY25))+SUMPRODUCT((M20:Q25=AP20)*(BZ20:BZ25))+SUMPRODUCT((T20:X25=AP20)*(CA20:CA25)) -> 0 | BA20: =SUMPRODUCT((A20:E25=AP20)*(CB20:CB25))+SUMPRODUCT((H20:L25=AP20)*(CC20:CC25))+SUMPRODUCT((M20:Q25=AP20)*(CD20:CD25))+SUMPRODUCT((T20:X25=AP20)*(CE20:CE25)) -> 12 | BB20: =SUMPRODUCT((A20:E25=AP20)*(CH20:CH25))+SUMPRODUCT((H20:L25=AP20)*(CI20:CI25))+SUMPRODUCT((M20:Q25=AP20)*(CJ20:CJ25))+SUMPRODUCT((T20:X25=AP20)*(CK20:CK25)) -> 4 | BC20: =BA20-BB20 -> 8 | BF20: =IF(F20="",0,IF(F20>G20,3,IF(F20=G20,1,IF(F20<G20,0)))) -> 3 | BG20: =IF(G20="",0,IF(G20>F20,3,IF(G20=F20,1,IF(G20<F20,0)))) -> 0 | BH20: =IF(R20="",0,IF(R20>S20,3,IF(R20=S20,1,IF(R20<S20,0)))) -> 1 | BI20: =IF(S20="",0,IF(S20>R20,3,IF(S20=R20,1,IF(S20<R20,0)))) -> 1 | BJ20: =BF20+BI20 -> 4 | BK20: =BG20+BH20 -> 1 | BL20: =IF(F20="",0,1) -> 1 | BM20: =IF(G20="",0,1) -> 1 | BN20: =IF(R20="",0,1) -> 1 | BO20: =IF(S20="",0,1) -> 1 | BP20: =IF(F20<>"",IF(F20>G20,1)) -> 1 | BQ20: =IF(G20<>"",IF(G20>F20,1)) -> FALSE | BR20: =IF(R20<>"",IF(R20>S20,1)) -> FALSE | BS20: =IF(S20<>"",IF(S20>R20,1)) -> FALSE | BT20: =IF(F20<>"",IF(F20=G20,1)) -> FALSE | BU20: =IF(G20<>"",IF(G20=F20,1)) -> FALSE | BV20: =IF(R20<>"",IF(R20=S20,1)) -> 1 | BW20: =IF(S20<>"",IF(S20=R20,1)) -> 1 | BX20: =IF(F20<>"",IF(F20<G20,1)) -> FALSE | BY20: =IF(G20<>"",IF(G20<F20,1)) -> 1 | BZ20: =IF(R20<>"",IF(R20<S20,1)) -> FALSE | CA20: =IF(S20<>"",IF(S20<R20,1)) -> FALSE | CB20: =F20 -> 4 | CC20: =G20 -> 0 | CD20: =R20 -> 1 | CE20: =S20 -> 1 | CF20: =CB20+CE20 -> 5 | CG20: =CC20+CD20 -> 1 | CH20: =G20 -> 0 | CI20: =F20 -> 4 | CJ20: =S20 -> 1 | CK20: =R20 -> 1 | CL20: =CH20+CK20 -> 1 | CM20: =CI20+CJ20 -> 5 | CN20: =IF(AU20=1,1000000) -> 1000000 | CO20: =IF(AU21=1,1000000) -> FALSE | CP20: =IF(AU22=1,1000000) -> FALSE | CQ20: =IF(AU23=1,1000000) -> FALSE | CR20: =IF(AU20=2,800000) -> FALSE | CS20: =IF(AU21=2,800000) -> FALSE | CT20: =IF(AU22=2,800000) -> 800000 | CU20: =IF(AU23=2,800000) -> FALSE | CV20: =IF(AU20=3,600000) -> FALSE | CW20: =IF(AU21=3,600000) -> 600000 | CX20: =IF(AU22=3,600000) -> FALSE | CY20: =IF(AU23=3,600000) -> FALSE | CZ20: =IF(AU20=4,400000) -> FALSE | DA20: =IF(AU21=4,400000) -> FALSE | DB20: =IF(AU22=4,400000) -> FALSE | DC20: =IF(AU23=4,400000) -> 400000
A21: =AP20 -> NIGERIA | F21: 1 | G21: 0 | H21: =AP22 -> ZAMBIE | M21: =H21 -> ZAMBIE | R21: 1 | S21: 2 | T21: =A21 -> NIGERIA | Z21: =VLOOKUP(AN30,AO29:AT32,2,0) -> ZAMBIE | AE21: =IF(BI30=BI29,BL29,BL30) -> 2 | AF21: =VLOOKUP(Z21,AP20:BC23,7,0) -> 8 | AG21: =VLOOKUP(Z21,AP20:BC23,8,0) -> 6 | AH21: =VLOOKUP(Z21,AP20:BC23,9,0) -> 2 | AI21: =VLOOKUP(Z21,AP20:BC23,10,0) -> 2 | AJ21: =VLOOKUP(Z21,AP20:BC23,11,0) -> 2 | AK21: =VLOOKUP(Z21,AP20:BC23,12,0) -> 8 | AL21: =VLOOKUP(Z21,AP20:BC23,13,0) -> 7 | AM21: =VLOOKUP(Z21,AP20:BC23,14,0) -> 1 | AP21: CAMEROUN | AU21: =RANK(AV21,AV20:AV23) -> 3 | AV21: =SUMPRODUCT((A20:E25=AP21)*(BF20:BF25))+SUMPRODUCT((H20:L25=AP21)*(BG20:BG25))+SUMPRODUCT((M20:Q25=AP21)*(BH20:BH25))+SUMPRODUCT((T20:X25=AP21)*(BI20:BI25)) -> 7 | AW21: =SUMPRODUCT((A20:E25=AP21)*(BL20:BL25))+SUMPRODUCT((H20:L25=AP21)*(BM20:BM25))+SUMPRODUCT((M20:Q25=AP21)*(BN20:BN25))+SUMPRODUCT((T20:X25=AP21)*(BO20:BO25)) -> 6 | AX21: =SUMPRODUCT((A20:E25=AP21)*(BP20:BP25))+SUMPRODUCT((H20:L25=AP21)*(BQ20:BQ25))+SUMPRODUCT((M20:Q25=AP21)*(BR20:BR25))+SUMPRODUCT((T20:X25=AP21)*(BS20:BS25)) -> 1 | AY21: =SUMPRODUCT((A20:E25=AP21)*(BT20:BT25))+SUMPRODUCT((H20:L25=AP21)*(BU20:BU25))+SUMPRODUCT((M20:Q25=AP21)*(BV20:BV25))+SUMPRODUCT((T20:X25=AP21)*(BW20:BW25)) -> 4 | AZ21: =SUMPRODUCT((A20:E25=AP21)*(BX20:BX25))+SUMPRODUCT((H20:L25=AP21)*(BY20:BY25))+SUMPRODUCT((M20:Q25=AP21)*(BZ20:BZ25))+SUMPRODUCT((T20:X25=AP21)*(CA20:CA25)) -> 1 | BA21: =SUMPRODUCT((A20:E25=AP21)*(CB20:CB25))+SUMPRODUCT((H20:L25=AP21)*(CC20:CC25))+SUMPRODUCT((M20:Q25=AP21)*(CD20:CD25))+SUMPRODUCT((T20:X25=AP21)*(CE20:CE25)) -> 7 | BB21: =SUMPRODUCT((A20:E25=AP21)*(CH20:CH25))+SUMPRODUCT((H20:L25=AP21)*(CI20:CI25))+SUMPRODUCT((M20:Q25=AP21)*(CJ20:CJ25))+SUMPRODUCT((T20:X25=AP21)*(CK20:CK25)) -> 9 | BC21: =BA21-BB21 -> -2 | BF21: =IF(F21="",0,IF(F21>G21,3,IF(F21=G21,1,IF(F21<G21,0)))) -> 3 | BG21: =IF(G21="",0,IF(G21>F21,3,IF(G21=F21,1,IF(G21<F21,0)))) -> 0 | BH21: =IF(R21="",0,IF(R21>S21,3,IF(R21=S21,1,IF(R21<S21,0)))) -> 0 | BI21: =IF(S21="",0,IF(S21>R21,3,IF(S21=R21,1,IF(S21<R21,0)))) -> 3 | BJ21: =BF21+BI21 -> 6 | BK21: =BG21+BH21 -> 0 | BL21: =IF(F21="",0,1) -> 1 | BM21: =IF(G21="",0,1) -> 1 | BN21: =IF(R21="",0,1) -> 1 | BO21: =IF(S21="",0,1) -> 1 | BP21: =IF(F21<>"",IF(F21>G21,1)) -> 1 | BQ21: =IF(G21<>"",IF(G21>F21,1)) -> FALSE | BR21: =IF(R21<>"",IF(R21>S21,1)) -> FALSE | BS21: =IF(S21<>"",IF(S21>R21,1)) -> 1 | BT21: =IF(F21<>"",IF(F21=G21,1)) -> FALSE | BU21: =IF(G21<>"",IF(G21=F21,1)) -> FALSE | BV21: =IF(R21<>"",IF(R21=S21,1)) -> FALSE | BW21: =IF(S21<>"",IF(S21=R21,1)) -> FALSE | BX21: =IF(F21<>"",IF(F21<G21,1)) -> FALSE | BY21: =IF(G21<>"",IF(G21<F21,1)) -> 1 | BZ21: =IF(R21<>"",IF(R21<S21,1)) -> 1 | CA21: =IF(S21<>"",IF(S21<R21,1)) -> FALSE | CB21: =F21 -> 1 | CC21: =G21 -> 0 | CD21: =R21 -> 1 | CE21: =S21 -> 2 | CF21: =CB21+CE21 -> 3 | CG21: =CC21+CD21 -> 1 | CH21: =G21 -> 0 | CI21: =F21 -> 1 | CJ21: =S21 -> 2 | CK21: =R21 -> 1 | CL21: =CH21+CK21 -> 1 | CM21: =CI21+CJ21 -> 3 | CN21: =IF(AU20=1,IF(AU21=1,SUM(AV20*1000+(BC20)/10+(BA20)/100+(BJ20)/1000+((F20+S20)-(G20+R20))/10000+(F20+S20)/100000+(S20)/1000000))) -> FALSE | CO21: =IF(AU21=1,IF(AU20=1,SUM(AV21*1000+(BC21)/10+(BA21)/100+(BK20)/1000+((G20+R20)-(F20+S20))/10000+(G20+R20)/100000+(G20)/1000000))) -> FALSE | CP21: =IF(AU22=1,IF(AU20=1,SUM(AV22*1000+(BC22)/10+(BA22)/100+(BK21)/1000+((G21+R21)-(F21+S21))/10000+(G21+R21)/100000+(G21)/1000000))) -> FALSE | CQ21: =IF(AU23=1,IF(AU20=1,SUM(AV23*1000+(BC23)/10+(BA23)/100+(BK22)/1000+((G22+R22)-(F22+S22))/10000+(G22+R22)/100000+(G22)/1000000))) -> FALSE | CR21: =IF(AU20=2,IF(AU21=2,SUM(AV20*1000+(BC20)/10+(BA20)/100+(BJ20)/1000+((F20+S20)-(G20+R20))/10000+(F20+S20)/100000+(S20)/1000000))) -> FALSE | CS21: =IF(AU21=2,IF(AU20=2,SUM(AV21*1000+(BC21)/10+(BA21)/100+(BK20)/1000+((G20+R20)-(F20+S20))/10000+(G20+R20)/100000+(G20)/1000000))) -> FALSE | CT21: =IF(AU22=2,IF(AU20=2,SUM(AV22*1000+(BC22)/10+(BA22)/100+(BK21)/1000+((G21+R21)-(F21+S21))/10000+(G21+R21)/100000+(G21)/1000000))) -> FALSE | CU21: =IF(AU23=2,IF(AU20=2,SUM(AV23*1000+(BC23)/10+(BA23)/100+(BK22)/1000+((G22+R22)-(F22+S22))/10000+(G22+R22)/100000+(G22)/1000000))) -> FALSE | CV21: =IF(AU20=3,IF(AU21=3,SUM(AV20*1000+(BC20)/10+(BA20)/100+(BJ20)/1000+((F20+S20)-(G20+R20))/10000+(F20+S20)/100000+(S20)/1000000))) -> FALSE | CW21: =IF(AU21=3,IF(AU20=3,SUM(AV21*1000+(BC21)/10+(BA21)/100+(BK20)/1000+((G20+R20)-(F20+S20))/10000+(G20+R20)/100000+(G20)/1000000))) -> FALSE | CX21: =IF(AU22=3,IF(AU20=3,SUM(AV22*1000+(BC22)/10+(BA22)/100+(BK21)/1000+((G21+R21)-(F21+S21))/10000+(G21+R21)/100000+(G21)/1000000))) -> FALSE | CY21: =IF(AU23=3,IF(AU20=3,SUM(AV23*1000+(BC23)/10+(BA23)/100+(BK22)/1000+((G22+R22)-(F22+S22))/10000+(G22+R22)/100000+(G22)/1000000))) -> FALSE | CZ21: =IF(AU20=4,IF(AU21=4,SUM(AV20*1000+(BC20)/10+(BA20)/100+(BJ20)/1000+((F20+S20)-(G20+R20))/10000+(F20+S20)/100000+(S20)/1000000))) -> FALSE | DA21: =IF(AU21=4,IF(AU20=4,SUM(AV21*1000+(BC21)/10+(BA21)/100+(BK20)/1000+((G20+R20)-(F20+S20))/10000+(G20+R20)/100000+(G20)/1000000))) -> FALSE | DB21: =IF(AU22=4,IF(AU20=4,SUM(AV22*1000+(BC22)/10+(BA22)/100+(BK21)/1000+((G21+R21)-(F21+S21))/10000+(G21+R21)/100000+(G21)/1000000))) -> FALSE | DC21: =IF(AU23=4,IF(AU20=4,SUM(AV23*1000+(BC23)/10+(BA23)/100+(BK22)/1000+((G22+R22)-(F22+S22))/10000+(G22+R22)/100000+(G22)/1000000))) -> FALSE
A22: =AP20 -> NIGERIA | F22: 3 | G22: 1 | H22: =AP23 -> ALGÉRIE | M22: ALGÉRIE | R22: 1 | S22: 1 | T22: NIGERIA | Z22: =VLOOKUP(AN31,AO29:AT32,2,0) -> CAMEROUN | AE22: =IF(BI31=BI30,BL30,BL31) -> 3 | AF22: =VLOOKUP(Z22,AP20:BC23,7,0) -> 7 | AG22: =VLOOKUP(Z22,AP20:BC23,8,0) -> 6 | AH22: =VLOOKUP(Z22,AP20:BC23,9,0) -> 1 | AI22: =VLOOKUP(Z22,AP20:BC23,10,0) -> 4 | AJ22: =VLOOKUP(Z22,AP20:BC23,11,0) -> 1 | AK22: =VLOOKUP(Z22,AP20:BC23,12,0) -> 7 | AL22: =VLOOKUP(Z22,AP20:BC23,13,0) -> 9 | AM22: =VLOOKUP(Z22,AP20:BC23,14,0) -> -2 | AP22: ZAMBIE | AU22: =RANK(AV22,AV20:AV23) -> 2 | AV22: =SUMPRODUCT((A20:E25=AP22)*(BF20:BF25))+SUMPRODUCT((H20:L25=AP22)*(BG20:BG25))+SUMPRODUCT((M20:Q25=AP22)*(BH20:BH25))+SUMPRODUCT((T20:X25=AP22)*(BI20:BI25)) -> 8 | AW22: =SUMPRODUCT((A20:E25=AP22)*(BL20:BL25))+SUMPRODUCT((H20:L25=AP22)*(BM20:BM25))+SUMPRODUCT((M20:Q25=AP22)*(BN20:BN25))+SUMPRODUCT((T20:X25=AP22)*(BO20:BO25)) -> 6 | AX22: =SUMPRODUCT((A20:E25=AP22)*(BP20:BP25))+SUMPRODUCT((H20:L25=AP22)*(BQ20:BQ25))+SUMPRODUCT((M20:Q25=AP22)*(BR20:BR25))+SUMPRODUCT((T20:X25=AP22)*(BS20:BS25)) -> 2 | AY22: =SUMPRODUCT((A20:E25=AP22)*(BT20:BT25))+SUMPRODUCT((H20:L25=AP22)*(BU20:BU25))+SUMPRODUCT((M20:Q25=AP22)*(BV20:BV25))+SUMPRODUCT((T20:X25=AP22)*(BW20:BW25)) -> 2 | AZ22: =SUMPRODUCT((A20:E25=AP22)*(BX20:BX25))+SUMPRODUCT((H20:L25=AP22)*(BY20:BY25))+SUMPRODUCT((M20:Q25=AP22)*(BZ20:BZ25))+SUMPRODUCT((T20:X25=AP22)*(CA20:CA25)) -> 2 | BA22: =SUMPRODUCT((A20:E25=AP22)*(CB20:CB25))+SUMPRODUCT((H20:L25=AP22)*(CC20:CC25))+SUMPRODUCT((M20:Q25=AP22)*(CD20:CD25))+SUMPRODUCT((T20:X25=AP22)*(CE20:CE25)) -> 8 | BB22: =SUMPRODUCT((A20:E25=AP22)*(CH20:CH25))+SUMPRODUCT((H20:L25=AP22)*(CI20:CI25))+SUMPRODUCT((M20:Q25=AP22)*(CJ20:CJ25))+SUMPRODUCT((T20:X25=AP22)*(CK20:CK25)) -> 7 | BC22: 1 | BF22: 3 | BG22: 0 | BH22: 1 | BI22: 1 | BJ22: 4 | BK22: 1 | BL22: 1 | BM22: 1 | BN22: 1 | BO22: 1 | BP22: 1 | BQ22: FALSE | BR22: FALSE | BS22: FALSE | BT22: FALSE | BU22: FALSE | BV22: 1 | BW22: 1 | BX22: FALSE | BY22: 1 | BZ22: FALSE | CA22: FALSE | CB22: 3 | CC22: 1 | CD22: 1 | CE22: 1 | CF22: 4 | CG22: 2 | CH22: 1 | CI22: 3 | CJ22: 1 | CK22: 1 | CL22: 2 | CM22: 4 | CN22: =IF(AU20=1,IF(AU23=1,SUM(AV20*1000+(BC20)/10+(BA20)/100+(BJ22)/1000+((F22+S22)-(G22+R22))/10000+(F22+S22)/100000+(S22)/1000000))) -> FALSE | CO22: =IF(AU21=1,IF(AU22=1,SUM(AV21*1000+(BC21)/10+(BA21)/100+(BJ28)/1000+((F28+S28)-(G28+R28))/10000+(F28+S28)/100000+(S28)/1000000))) -> FALSE | CP22: =IF(AU22=1,IF(AU21=1,SUM(AV22*1000+(BC22)/10+(BA22)/100+(BK28)/1000+((G28+R28)-(F28+S28))/10000+(G28+R28)/1000000+(G28)/1000000))) -> FALSE | CQ22: =IF(AU23=1,IF(AU21=1,SUM(AV23*1000+(BC23)/10+(BA23)/100+(BK24)/1000+((G24+R24)-(F24+S24))/10000+(G24-R24)/100000+(G24)/1000000))) -> FALSE | CR22: =IF(AU20=2,IF(AU23=2,SUM(AV20*1000+(BC20)/10+(BA20)/100+(BJ22)/1000+((F22+S22)-(G22+R22))/10000+(F22+S22)/100000+(S22)/1000000))) -> FALSE | CS22: =IF(AU21=2,IF(AU22=2,SUM(AV21*1000+(BC21)/10+(BA21)/100+(BJ28)/1000+((F28+S28)-(G28+R28))/10000+(F28+S28)/100000+(S28)/1000000))) -> FALSE | CT22: =IF(AU22=2,IF(AU21=2,SUM(AV22*1000+(BC22)/10+(BA22)/100+(BK28)/1000+((G28+R28)-(F28+S28))/10000+(G28+R28)/1000000+(G28)/1000000))) -> FALSE | CU22: =IF(AU23=2,IF(AU21=2,SUM(AV23*1000+(BC23)/10+(BA23)/100+(BK24)/1000+((G24+R24)-(F24+S24))/10000+(G24-R24)/100000+(G24)/1000000))) -> FALSE | CV22: =IF(AU20=3,IF(AU23=3,SUM(AV20*1000+(BC20)/10+(BA20)/100+(BJ22)/1000+((F22+S22)-(G22+R22))/10000+(F22+S22)/100000+(S22)/1000000))) -> FALSE | CW22: =IF(AU21=3,IF(AU22=3,SUM(AV21*1000+(BC21)/10+(BA21)/100+(BJ28)/1000+((F28+S28)-(G28+R28))/10000+(F28+S28)/100000+(S28)/1000000))) -> FALSE | CX22: =IF(AU22=3,IF(AU21=3,SUM(AV22*1000+(BC22)/10+(BA22)/100+(BK28)/1000+((G28+R28)-(F28+S28))/10000+(G28+R28)/1000000+(G28)/1000000))) -> FALSE | CY22: =IF(AU23=3,IF(AU21=3,SUM(AV23*1000+(BC23)/10+(BA23)/100+(BK24)/1000+((G24+R24)-(F24+S24))/10000+(G24-R24)/100000+(G24)/1000000))) -> FALSE | CZ22: =IF(AU20=4,IF(AU23=4,SUM(AV20*1000+(BC20)/10+(BA20)/100+(BJ22)/1000+((F22+S22)-(G22+R22))/10000+(F22+S22)/100000+(S22)/1000000))) -> FALSE | DA22: =IF(AU21=4,IF(AU22=4,SUM(AV21*1000+(BC21)/10+(BA21)/100+(BJ28)/1000+((F28+S28)-(G28+R28))/10000+(F28+S28)/100000+(S28)/1000000))) -> FALSE | DB22: =IF(AU22=4,IF(AU21=4,SUM(AV22*1000+(BC22)/10+(BA22)/100+(BK28)/1000+((G28+R28)-(F28+S28))/10000+(G28+R28)/1000000+(G28)/1000000))) -> FALSE | DC22: =IF(AU23=4,IF(AU21=4,SUM(AV23*1000+(BC23)/10+(BA23)/100+(BK24)/1000+((G24+R24)-(F24+S24))/10000+(G24-R24)/100000+(G24)/1000000))) -> FALSE
A23: =AP21 -> CAMEROUN | F23: 1 | G23: 1 | H23: =AP22 -> ZAMBIE | M23: ZAMBIE | R23: 2 | S23: 2 | T23: CAMEROUN | Z23: =VLOOKUP(AN32,AO29:AT32,2,0) -> ALGÉRIE | AE23: 4 | AF23: =VLOOKUP(Z23,AP20:BC23,7,0) -> 2 | AG23: =VLOOKUP(Z23,AP20:BC23,8,0) -> 6 | AH23: =VLOOKUP(Z23,AP20:BC23,9,0) -> 0 | AI23: =VLOOKUP(Z23,AP20:BC23,10,0) -> 2 | AJ23: =VLOOKUP(Z23,AP20:BC23,11,0) -> 4 | AK23: =VLOOKUP(Z23,AP20:BC23,12,0) -> 4 | AL23: =VLOOKUP(Z23,AP20:BC23,13,0) -> 11 | AM23: =VLOOKUP(Z23,AP20:BC23,14,0) -> -7 | AP23: ALGÉRIE | AU23: =RANK(AV23,AV20:AV23) -> 4 | AV23: =SUMPRODUCT((A20:E25=AP23)*(BF20:BF25))+SUMPRODUCT((H20:L25=AP23)*(BG20:BG25))+SUMPRODUCT((M20:Q25=AP23)*(BH20:BH25))+SUMPRODUCT((T20:X25=AP23)*(BI20:BI25)) -> 2 | AW23: =SUMPRODUCT((A20:E25=AP23)*(BL20:BL25))+SUMPRODUCT((H20:L25=AP23)*(BM20:BM25))+SUMPRODUCT((M20:Q25=AP23)*(BN20:BN25))+SUMPRODUCT((T20:X25=AP23)*(BO20:BO25)) -> 6 | AX23: =SUMPRODUCT((A20:E25=AP23)*(BP20:BP25))+SUMPRODUCT((H20:L25=AP23)*(BQ20:BQ25))+SUMPRODUCT((M20:Q25=AP23)*(BR20:BR25))+SUMPRODUCT((T20:X25=AP23)*(BS20:BS25)) -> 0 | AY23: =SUMPRODUCT((A20:E25=AP23)*(BT20:BT25))+SUMPRODUCT((H20:L25=AP23)*(BU20:BU25))+SUMPRODUCT((M20:Q25=AP23)*(BV20:BV25))+SUMPRODUCT((T20:X25=AP23)*(BW20:BW25)) -> 2 | AZ23: =SUMPRODUCT((A20:E25=AP23)*(BX20:BX25))+SUMPRODUCT((H20:L25=AP23)*(BY20:BY25))+SUMPRODUCT((M20:Q25=AP23)*(BZ20:BZ25))+SUMPRODUCT((T20:X25=AP23)*(CA20:CA25)) -> 4 | BA23: =SUMPRODUCT((A20:E25=AP23)*(CB20:CB25))+SUMPRODUCT((H20:L25=AP23)*(CC20:CC25))+SUMPRODUCT((M20:Q25=AP23)*(CD20:CD25))+SUMPRODUCT((T20:X25=AP23)*(CE20:CE25)) -> 4 | BB23: =SUMPRODUCT((A20:E25=AP23)*(CH20:CH25))+SUMPRODUCT((H20:L25=AP23)*(CI20:CI25))+SUMPRODUCT((M20:Q25=AP23)*(CJ20:CJ25))+SUMPRODUCT((T20:X25=AP23)*(CK20:CK25)) -> 11 | BC23: -7 | BF23: 1 | BG23: 1 | BH23: 1 | BI23: 1 | BJ23: 2 | BK23: 2 | BL23: 1 | BM23: 1 | BN23: 1 | BO23: 1 | BP23: FALSE | BQ23: FALSE | BR23: FALSE | BS23: FALSE | BT23: 1 | BU23: 1 | BV23: 1 | BW23: 1 | BX23: FALSE | BY23: FALSE | BZ23: FALSE | CA23: FALSE | CB23: 1 | CC23: 1 | CD23: 2 | CE23: 2 | CF23: 3 | CG23: 3 | CH23: 1 | CI23: 1 | CJ23: 2 | CK23: 2 | CL23: 3 | CM23: 3 | CN23: =IF(AU20=1,IF(AU23=1,SUM(AV20*1000+(BC20)/10+(BA20)/100+(BJ22)/1000+((F22+S22)-(G22+R22))/10000+(F22+S22)/100000+(S22)/1000000))) -> FALSE | CO23: =IF(AU21=1,IF(AU23=1,SUM(AV21*1000+(BC21)/10+(BA21)/100+(BJ24)/1000+((F24+S24)-(G24+R24))/10000+(F24+S24)/100000+(S24)/1000000))) -> FALSE | CP23: =IF(AU22=1,IF(AU23=1,SUM(AV22*1000+(BC22)/10+(BA22)/100+(BJ25)/1000+((F25+S25)-(G25+R25))/10000+(F25+S25)/100000+(S25)/1000000))) -> FALSE | CQ23: =IF(AU23=1,IF(AU22=1,SUM(AV23*1000+(BC23)/10+(BA23)/100+(BK25)/1000+((G25+R25)-(F25+S25))/10000+(G25+R25)/100000+(G25)/1000000))) -> FALSE | CR23: =IF(AU20=2,IF(AU23=2,SUM(AV20*1000+(BC20)/10+(BA20)/100+(BJ22)/1000+((F22+S22)-(G22+R22))/10000+(F22+S22)/100000+(S22)/1000000))) -> FALSE | CS23: =IF(AU21=2,IF(AU23=2,SUM(AV21*1000+(BC21)/10+(BA21)/100+(BJ24)/1000+((F24+S24)-(G24+R24))/10000+(F24+S24)/100000+(S24)/1000000))) -> FALSE | CT23: =IF(AU22=2,IF(AU23=2,SUM(AV22*1000+(BC22)/10+(BA22)/100+(BJ25)/1000+((F25+S25)-(G25+R25))/10000+(F25+S25)/100000+(S25)/1000000))) -> FALSE | CU23: =IF(AU23=2,IF(AU22=2,SUM(AV23*1000+(BC23)/10+(BA23)/100+(BK25)/1000+((G25+R25)-(F25+S25))/10000+(G25+R25)/100000+(G25)/1000000))) -> FALSE | CV23: =IF(AU20=3,IF(AU23=3,SUM(AV20*1000+(BC20)/10+(BA20)/100+(BJ22)/1000+((F22+S22)-(G22+R22))/10000+(F22+S22)/100000+(S22)/1000000))) -> FALSE | CW23: =IF(AU21=3,IF(AU23=3,SUM(AV21*1000+(BC21)/10+(BA21)/100+(BJ24)/1000+((F24+S24)-(G24+R24))/10000+(F24+S24)/100000+(S24)/1000000))) -> FALSE | CX23: =IF(AU22=3,IF(AU23=3,SUM(AV22*1000+(BC22)/10+(BA22)/100+(BJ25)/1000+((F25+S25)-(G25+R25))/10000+(F25+S25)/100000+(S25)/1000000))) -> FALSE | CY23: =IF(AU23=3,IF(AU22=3,SUM(AV23*1000+(BC23)/10+(BA23)/100+(BK25)/1000+((G25+R25)-(F25+S25))/10000+(G25+R25)/100000+(G25)/1000000))) -> FALSE | CZ23: =IF(AU20=4,IF(AU23=4,SUM(AV20*1000+(BC20)/10+(BA20)/100+(BJ22)/1000+((F22+S22)-(G22+R22))/10000+(F22+S22)/100000+(S22)/1000000))) -> FALSE | DA23: =IF(AU21=4,IF(AU23=4,SUM(AV21*1000+(BC21)/10+(BA21)/100+(BJ24)/1000+((F24+S24)-(G24+R24))/10000+(F24+S24)/100000+(S24)/1000000))) -> FALSE | DB23: =IF(AU22=4,IF(AU23=4,SUM(AV22*1000+(BC22)/10+(BA22)/100+(BJ25)/1000+((F25+S25)-(G25+R25))/10000+(F25+S25)/100000+(S25)/1000000))) -> FALSE | DC23: =IF(AU23=4,IF(AU22=4,SUM(AV23*1000+(BC23)/10+(BA23)/100+(BK25)/1000+((G25+R25)-(F25+S25))/10000+(G25+R25)/100000+(G25)/1000000))) -> FALSE
A24: =AP21 -> CAMEROUN | F24: 2 | G24: 0 | H24: =AP23 -> ALGÉRIE | M24: ALGÉRIE | R24: 1 | S24: 1 | T24: CAMEROUN | AC24: GROUPE B | BF24: 3 | BG24: 0 | BH24: 1 | BI24: 1 | BJ24: 4 | BK24: 1 | BL24: 1 | BM24: 1 | BN24: 1 | BO24: 1 | BP24: 1 | BQ24: FALSE | BR24: FALSE | BS24: FALSE | BT24: FALSE | BU24: FALSE | BV24: 1 | BW24: 1 | BX24: FALSE | BY24: 1 | BZ24: FALSE | CA24: FALSE | CB24: 2 | CC24: 0 | CD24: 1 | CE24: 1 | CF24: 3 | CG24: 1 | CH24: 0 | CI24: 2 | CJ24: 1 | CK24: 1 | CL24: 1 | CM24: 3 | CN24: =SUM(CN20:CN23) -> 1000000 | CO24: 0 | CP24: 0 | CQ24: 0 | CR24: 0 | CS24: 0 | CT24: 800000 | CU24: 0 | CV24: 0 | CW24: 600000 | CX24: 0 | CY24: 0 | CZ24: 0 | DA24: 0 | DB24: 0 | DC24: 400000
A25: =AP22 -> ZAMBIE | F25: 3 | G25: 1 | H25: =AP23 -> ALGÉRIE | M25: ALGÉRIE | R25: 0 | S25: 1 | T25: ZAMBIE | BF25: 3 | BG25: 0 | BH25: 0 | BI25: 3 | BJ25: 6 | BK25: 0 | BL25: 1 | BM25: 1 | BN25: 1 | BO25: 1 | BP25: 1 | BQ25: FALSE | BR25: FALSE | BS25: 1 | BT25: FALSE | BU25: FALSE | BV25: FALSE | BW25: FALSE | BX25: FALSE | BY25: 1 | BZ25: 1 | CA25: FALSE | CB25: 3 | CC25: 1 | CD25: 0 | CE25: 1 | CF25: 4 | CG25: 1 | CH25: 1 | CI25: 3 | CJ25: 1 | CK25: 0 | CL25: 1 | CM25: 4
A26: ÉQUIPE QUALIFIÉE | G26: =Z20 -> NIGERIA
AN29: 1 | AO29: =BA29 -> 1 | AP29: =AP20 -> NIGERIA | AU29: =SUM(CN24,CR24,CV24,CZ24) -> 1000000 | AX29: =AU29+0.00000004 -> 1000000 | BA29: =RANK(AX29,AX29:AZ32) -> 1 | BB29: =RANK(AU29,AU29:AW32) -> 1 | BD29: =VLOOKUP(AN29,AO29:AT32,2,0) -> NIGERIA | BI29: =VLOOKUP(BD29,AP29:AW32,6,0) -> 1000000 | BL29: =RANK(BI29,BI29:BK32) -> 1
AN30: 2 | AO30: =BA30 -> 3 | AP30: =AP21 -> CAMEROUN | AU30: =SUM(CO24,CS24,CW24,DA24) -> 600000 | AX30: =AU30+0.00000003 -> 600000 | BA30: =RANK(AX30,AX29:AZ32) -> 3 | BB30: =RANK(AU30,AU29:AW32) -> 3 | BD30: =VLOOKUP(AN30,AO29:AT32,2,0) -> ZAMBIE | BI30: =VLOOKUP(BD30,AP29:AW32,6,0) -> 800000 | BL30: =RANK(BI30,BI29:BK32) -> 2
AN31: 3 | AO31: 2 | AP31: ZAMBIE | AU31: =SUM(CP24,CT24,CX24,DB24) -> 800000 | AX31: =AU31+0.00000002 -> 800000 | BA31: =RANK(AX31,AX29:AZ32) -> 2 | BB31: =RANK(AU31,AU29:AW32) -> 2 | BD31: =VLOOKUP(AN31,AO29:AT32,2,0) -> CAMEROUN | BI31: =VLOOKUP(BD31,AP29:AW32,6,0) -> 600000 | BL31: =RANK(BI31,BI29:BK32) -> 3
AN32: 4 | AO32: 4 | AP32: ALGÉRIE | AU32: =SUM(CQ24,CU24,CY24,DC24) -> 400000 | AX32: =AU32+0.00000001 -> 400000 | BA32: =RANK(AX32,AX29:AZ32) -> 4 | BB32: =RANK(AU32,AU29:AW32) -> 4 | BD32: =VLOOKUP(AN32,AO29:AT32,2,0) -> ALGÉRIE | BI32: =VLOOKUP(BD32,AP29:AW32,6,0) -> 400000 | BL32: =RANK(BI32,BI29:BK32) -> 4
A33: MATCHS ALLER | J33: GROUPE C | P33: MATCHS RETOUR | Z33: CLASSEMENT | AP33: CLASSEMENT
A35: Équipes | F35: Bts | G35: Bts | H35: Équipes | M35: Équipes | R35: Bts | S35: Bts | T35: Équipes | Z35: Équipes | AE35: R | AF35: Pts | AG35: J | AH35: G | AI35: N | AJ35: P | AK35: B + | AL35: B - | AM35: Diff | AP35: Équipes | AU35: R | AV35: Pts | AW35: J | AX35: G | AY35: N | AZ35: P | BA35: B + | BB35: B - | BC35: Diff | BF35: pts | BG35: pts | BH35: pts | BI35: pts | BJ35: t pts | BK35: t pts | BL35: j | BM35: j | BN35: j | BO35: j | BP35: g | BQ35: g | BR35: g | BS35: g | BT35: n | BU35: n | BV35: n | BW35: n | BX35: p | BY35: p | BZ35: p | CA35: p | CB35: b+ | CC35: b+ | CD35: b+ | CE35: b+ | CF35: b+ | CG35: b+ | CH35: b- | CI35: b- | CJ35: b- | CK35: b- | CL35: b- | CM35: b- | CN35: =AP36 -> CÔTE D'IVOIRE | CO35: =AP37 -> MAROC | CP35: =AP38 -> GABON | CQ35: =AP39 -> MALI | CR35: =CN35 -> CÔTE D'IVOIRE | CS35: =CO35 -> MAROC | CT35: =CP35 -> GABON | CU35: =CQ35 -> MALI | CV35: =CN35 -> CÔTE D'IVOIRE | CW35: =CO35 -> MAROC | CX35: =CP35 -> GABON | CY35: =CQ35 -> MALI | CZ35: =CN35 -> CÔTE D'IVOIRE | DA35: =CO35 -> MAROC | DB35: =CP35 -> GABON | DC35: =CQ35 -> MALI
A36: =AP36 -> CÔTE D'IVOIRE | F36: 0 | G36: 2 | H36: =AP37 -> MAROC | M36: =H36 -> MAROC | R36: 0 | S36: 0 | T36: =A36 -> CÔTE D'IVOIRE | Z36: =VLOOKUP(AN45,AO45:AT48,2,0) -> MAROC | AE36: 1 | AF36: =VLOOKUP(Z36,AP36:BC39,7,0) -> 12 | AG36: =VLOOKUP(Z36,AP36:BC39,8,0) -> 6 | AH36: =VLOOKUP(Z36,AP36:BC39,9,0) -> 3 | AI36: =VLOOKUP(Z36,AP36:BC39,10,0) -> 3 | AJ36: =VLOOKUP(Z36,AP36:BC39,11,0) -> 0 | AK36: =VLOOKUP(Z36,AP36:BC39,12,0) -> 11 | AL36: =VLOOKUP(Z36,AP36:BC39,13,0) -> 0 | AM36: =VLOOKUP(Z36,AP36:BC39,14,0) -> 11 | AP36: CÔTE D'IVOIRE | AU36: =RANK(AV36,AV36:AV39) -> 2 | AV36: =SUMPRODUCT((A36:E41=AP36)*(BF36:BF41))+SUMPRODUCT((H36:L41=AP36)*(BG36:BG41))+SUMPRODUCT((M36:Q41=AP36)*(BH36:BH41))+SUMPRODUCT((T36:X41=AP36)*(BI36:BI41)) -> 8 | AW36: =SUMPRODUCT((A36:E41=AP36)*(BL36:BL41))+SUMPRODUCT((H36:L41=AP36)*(BM36:BM41))+SUMPRODUCT((M36:Q41=AP36)*(BN36:BN41))+SUMPRODUCT((T36:X41=AP36)*(BO36:BO41)) -> 6 | AX36: =SUMPRODUCT((A36:E41=AP36)*(BP36:BP41))+SUMPRODUCT((H36:L41=AP36)*(BQ36:BQ41))+SUMPRODUCT((M36:Q41=AP36)*(BR36:BR41))+SUMPRODUCT((T36:X41=AP36)*(BS36:BS41)) -> 2 | AY36: =SUMPRODUCT((A36:E41=AP36)*(BT36:BT41))+SUMPRODUCT((H36:L41=AP36)*(BU36:BU41))+SUMPRODUCT((M36:Q41=AP36)*(BV36:BV41))+SUMPRODUCT((T36:X41=AP36)*(BW36:BW41)) -> 2 | AZ36: =SUMPRODUCT((A36:E41=AP36)*(BX36:BX41))+SUMPRODUCT((H36:L41=AP36)*(BY36:BY41))+SUMPRODUCT((M36:Q41=AP36)*(BZ36:BZ41))+SUMPRODUCT((T36:X41=AP36)*(CA36:CA41)) -> 2 | BA36: =SUMPRODUCT((A36:E41=AP36)*(CB36:CB41))+SUMPRODUCT((H36:L41=AP36)*(CC36:CC41))+SUMPRODUCT((M36:Q41=AP36)*(CD36:CD41))+SUMPRODUCT((T36:X41=AP36)*(CE36:CE41)) -> 7 | BB36: =SUMPRODUCT((A36:E41=AP36)*(CH36:CH41))+SUMPRODUCT((H36:L41=AP36)*(CI36:CI41))+SUMPRODUCT((M36:Q41=AP36)*(CJ36:CJ41))+SUMPRODUCT((T36:X41=AP36)*(CK36:CK41)) -> 5 | BC36: =BA36-BB36 -> 2 | BF36: =IF(F36="",0,IF(F36>G36,3,IF(F36=G36,1,IF(F36<G36,0)))) -> 0 | BG36: =IF(G36="",0,IF(G36>F36,3,IF(G36=F36,1,IF(G36<F36,0)))) -> 3 | BH36: =IF(R36="",0,IF(R36>S36,3,IF(R36=S36,1,IF(R36<S36,0)))) -> 1 | BI36: =IF(S36="",0,IF(S36>R36,3,IF(S36=R36,1,IF(S36<R36,0)))) -> 1 | BJ36: =BF36+BI36 -> 1 | BK36: =BG36+BH36 -> 4 | BL36: =IF(F36="",0,1) -> 1 | BM36: =IF(G36="",0,1) -> 1 | BN36: =IF(R36="",0,1) -> 1 | BO36: =IF(S36="",0,1) -> 1 | BP36: =IF(F36<>"",IF(F36>G36,1)) -> FALSE | BQ36: =IF(G36<>"",IF(G36>F36,1)) -> 1 | BR36: =IF(R36<>"",IF(R36>S36,1)) -> FALSE | BS36: =IF(S36<>"",IF(S36>R36,1)) -> FALSE | BT36: =IF(F36<>"",IF(F36=G36,1)) -> FALSE | BU36: =IF(G36<>"",IF(G36=F36,1)) -> FALSE | BV36: =IF(R36<>"",IF(R36=S36,1)) -> 1 | BW36: =IF(S36<>"",IF(S36=R36,1)) -> 1 | BX36: =IF(F36<>"",IF(F36<G36,1)) -> 1 | BY36: =IF(G36<>"",IF(G36<F36,1)) -> FALSE | BZ36: =IF(R36<>"",IF(R36<S36,1)) -> FALSE | CA36: =IF(S36<>"",IF(S36<R36,1)) -> FALSE | CB36: =F36 -> 0 | CC36: =G36 -> 2 | CD36: =R36 -> 0 | CE36: =S36 -> 0 | CF36: =CB36+CE36 -> 0 | CG36: =CC36+CD36 -> 2 | CH36: =G36 -> 2 | CI36: =F36 -> 0 | CJ36: =S36 -> 0 | CK36: =R36 -> 0 | CL36: =CH36+CK36 -> 2 | CM36: =CI36+CJ36 -> 0 | CN36: =IF(AU36=1,1000000) -> FALSE | CO36: =IF(AU37=1,1000000) -> 1000000 | CP36: =IF(AU38=1,1000000) -> FALSE | CQ36: =IF(AU39=1,1000000) -> FALSE | CR36: =IF(AU36=2,800000) -> 800000 | CS36: =IF(AU37=2,800000) -> FALSE | CT36: =IF(AU38=2,800000) -> FALSE | CU36: =IF(AU39=2,800000) -> FALSE | CV36: =IF(AU36=3,600000) -> FALSE | CW36: =IF(AU37=3,600000) -> FALSE | CX36: =IF(AU38=3,600000) -> 600000 | CY36: =IF(AU39=3,600000) -> FALSE | CZ36: =IF(AU36=4,400000) -> FALSE | DA36: =IF(AU37=4,400000) -> FALSE | DB36: =IF(AU38=4,400000) -> FALSE | DC36: =IF(AU39=4,400000) -> 400000
A37: =AP36 -> CÔTE D'IVOIRE | F37: 1 | G37: 2 | H37: =AP38 -> GABON | M37: =H37 -> GABON | R37: 0 | S37: 3 | T37: =A37 -> CÔTE D'IVOIRE | Z37: =VLOOKUP(AN46,AO45:AT48,2,0) -> CÔTE D'IVOIRE | AE37: =IF(BI46=BI45,BL45,BL46) -> 2 | AF37: =VLOOKUP(Z37,AP36:BC39,7,0) -> 8 | AG37: =VLOOKUP(Z37,AP36:BC39,8,0) -> 6 | AH37: =VLOOKUP(Z37,AP36:BC39,9,0) -> 2 | AI37: =VLOOKUP(Z37,AP36:BC39,10,0) -> 2 | AJ37: =VLOOKUP(Z37,AP36:BC39,11,0) -> 2 | AK37: =VLOOKUP(Z37,AP36:BC39,12,0) -> 7 | AL37: =VLOOKUP(Z37,AP36:BC39,13,0) -> 5 | AM37: =VLOOKUP(Z37,AP36:BC39,14,0) -> 2 | AP37: MAROC | AU37: =RANK(AV37,AV36:AV39) -> 1 | AV37: =SUMPRODUCT((A36:E41=AP37)*(BF36:BF41))+SUMPRODUCT((H36:L41=AP37)*(BG36:BG41))+SUMPRODUCT((M36:Q41=AP37)*(BH36:BH41))+SUMPRODUCT((T36:X41=AP37)*(BI36:BI41)) -> 12 | AW37: =SUMPRODUCT((A36:E41=AP37)*(BL36:BL41))+SUMPRODUCT((H36:L41=AP37)*(BM36:BM41))+SUMPRODUCT((M36:Q41=AP37)*(BN36:BN41))+SUMPRODUCT((T36:X41=AP37)*(BO36:BO41)) -> 6 | AX37: =SUMPRODUCT((A36:E41=AP37)*(BP36:BP41))+SUMPRODUCT((H36:L41=AP37)*(BQ36:BQ41))+SUMPRODUCT((M36:Q41=AP37)*(BR36:BR41))+SUMPRODUCT((T36:X41=AP37)*(BS36:BS41)) -> 3 | AY37: =SUMPRODUCT((A36:E41=AP37)*(BT36:BT41))+SUMPRODUCT((H36:L41=AP37)*(BU36:BU41))+SUMPRODUCT((M36:Q41=AP37)*(BV36:BV41))+SUMPRODUCT((T36:X41=AP37)*(BW36:BW41)) -> 3 | AZ37: =SUMPRODUCT((A36:E41=AP37)*(BX36:BX41))+SUMPRODUCT((H36:L41=AP37)*(BY36:BY41))+SUMPRODUCT((M36:Q41=AP37)*(BZ36:BZ41))+SUMPRODUCT((T36:X41=AP37)*(CA36:CA41)) -> 0 | BA37: =SUMPRODUCT((A36:E41=AP37)*(CB36:CB41))+SUMPRODUCT((H36:L41=AP37)*(CC36:CC41))+SUMPRODUCT((M36:Q41=AP37)*(CD36:CD41))+SUMPRODUCT((T36:X41=AP37)*(CE36:CE41)) -> 11 | BB37: =SUMPRODUCT((A36:E41=AP37)*(CH36:CH41))+SUMPRODUCT((H36:L41=AP37)*(CI36:CI41))+SUMPRODUCT((M36:Q41=AP37)*(CJ36:CJ41))+SUMPRODUCT((T36:X41=AP37)*(CK36:CK41)) -> 0 | BC37: =BA37-BB37 -> 11 | BF37: =IF(F37="",0,IF(F37>G37,3,IF(F37=G37,1,IF(F37<G37,0)))) -> 0 | BG37: =IF(G37="",0,IF(G37>F37,3,IF(G37=F37,1,IF(G37<F37,0)))) -> 3 | BH37: =IF(R37="",0,IF(R37>S37,3,IF(R37=S37,1,IF(R37<S37,0)))) -> 0 | BI37: =IF(S37="",0,IF(S37>R37,3,IF(S37=R37,1,IF(S37<R37,0)))) -> 3 | BJ37: =BF37+BI37 -> 3 | BK37: =BG37+BH37 -> 3 | BL37: =IF(F37="",0,1) -> 1 | BM37: =IF(G37="",0,1) -> 1 | BN37: =IF(R37="",0,1) -> 1 | BO37: =IF(S37="",0,1) -> 1 | BP37: =IF(F37<>"",IF(F37>G37,1)) -> FALSE | BQ37: =IF(G37<>"",IF(G37>F37,1)) -> 1 | BR37: =IF(R37<>"",IF(R37>S37,1)) -> FALSE | BS37: =IF(S37<>"",IF(S37>R37,1)) -> 1 | BT37: =IF(F37<>"",IF(F37=G37,1)) -> FALSE | BU37: =IF(G37<>"",IF(G37=F37,1)) -> FALSE | BV37: =IF(R37<>"",IF(R37=S37,1)) -> FALSE | BW37: =IF(S37<>"",IF(S37=R37,1)) -> FALSE | BX37: =IF(F37<>"",IF(F37<G37,1)) -> 1 | BY37: =IF(G37<>"",IF(G37<F37,1)) -> FALSE | BZ37: =IF(R37<>"",IF(R37<S37,1)) -> 1 | CA37: =IF(S37<>"",IF(S37<R37,1)) -> FALSE | CB37: =F37 -> 1 | CC37: =G37 -> 2 | CD37: =R37 -> 0 | CE37: =S37 -> 3 | CF37: =CB37+CE37 -> 4 | CG37: =CC37+CD37 -> 2 | CH37: =G37 -> 2 | CI37: =F37 -> 1 | CJ37: =S37 -> 3 | CK37: =R37 -> 0 | CL37: =CH37+CK37 -> 2 | CM37: =CI37+CJ37 -> 4 | CN37: =IF(AU36=1,IF(AU37=1,SUM(AV36*1000+(BC36)/10+(BA36)/100+(BJ36)/1000+((F36+S36)-(G36+R36))/10000+(F36+S36)/100000+(S36)/1000000))) -> FALSE | CO37: =IF(AU37=1,IF(AU36=1,SUM(AV37*1000+(BC37)/10+(BA37)/100+(BK36)/1000+((G36+R36)-(F36+S36))/10000+(G36+R36)/100000+(G36)/1000000))) -> FALSE | CP37: =IF(AU38=1,IF(AU36=1,SUM(AV38*1000+(BC38)/10+(BA38)/100+(BK37)/1000+((G37+R37)-(F37+S37))/10000+(G37+R37)/100000+(G37)/1000000))) -> FALSE | CQ37: =IF(AU39=1,IF(AU36=1,SUM(AV39*1000+(BC39)/10+(BA39)/100+(BK38)/1000+((G38+R38)-(F38+S38))/10000+(G38+R38)/100000+(G38)/1000000))) -> FALSE | CR37: =IF(AU36=2,IF(AU37=2,SUM(AV36*1000+(BC36)/10+(BA36)/100+(BJ36)/1000+((F36+S36)-(G36+R36))/10000+(F36+S36)/100000+(S36)/1000000))) -> FALSE | CS37: =IF(AU37=2,IF(AU36=2,SUM(AV37*1000+(BC37)/10+(BA37)/100+(BK36)/1000+((G36+R36)-(F36+S36))/10000+(G36+R36)/100000+(G36)/1000000))) -> FALSE | CT37: =IF(AU38=2,IF(AU36=2,SUM(AV38*1000+(BC38)/10+(BA38)/100+(BK37)/1000+((G37+R37)-(F37+S37))/10000+(G37+R37)/100000+(G37)/1000000))) -> FALSE | CU37: =IF(AU39=2,IF(AU36=2,SUM(AV39*1000+(BC39)/10+(BA39)/100+(BK38)/1000+((G38+R38)-(F38+S38))/10000+(G38+R38)/100000+(G38)/1000000))) -> FALSE | CV37: =IF(AU36=3,IF(AU37=3,SUM(AV36*1000+(BC36)/10+(BA36)/100+(BJ36)/1000+((F36+S36)-(G36+R36))/10000+(F36+S36)/100000+(S36)/1000000))) -> FALSE | CW37: =IF(AU37=3,IF(AU36=3,SUM(AV37*1000+(BC37)/10+(BA37)/100+(BK36)/1000+((G36+R36)-(F36+S36))/10000+(G36+R36)/100000+(G36)/1000000))) -> FALSE | CX37: =IF(AU38=3,IF(AU36=3,SUM(AV38*1000+(BC38)/10+(BA38)/100+(BK37)/1000+((G37+R37)-(F37+S37))/10000+(G37+R37)/100000+(G37)/1000000))) -> FALSE | CY37: =IF(AU39=3,IF(AU36=3,SUM(AV39*1000+(BC39)/10+(BA39)/100+(BK38)/1000+((G38+R38)-(F38+S38))/10000+(G38+R38)/100000+(G38)/1000000))) -> FALSE | CZ37: =IF(AU36=4,IF(AU37=4,SUM(AV36*1000+(BC36)/10+(BA36)/100+(BJ36)/1000+((F36+S36)-(G36+R36))/10000+(F36+S36)/100000+(S36)/1000000))) -> FALSE | DA37: =IF(AU37=4,IF(AU36=4,SUM(AV37*1000+(BC37)/10+(BA37)/100+(BK36)/1000+((G36+R36)-(F36+S36))/10000+(G36+R36)/100000+(G36)/1000000))) -> FALSE | DB37: =IF(AU38=4,IF(AU36=4,SUM(AV38*1000+(BC38)/10+(BA38)/100+(BK37)/1000+((G37+R37)-(F37+S37))/10000+(G37+R37)/100000+(G37)/1000000))) -> FALSE | DC37: =IF(AU39=4,IF(AU36=4,SUM(AV39*1000+(BC39)/10+(BA39)/100+(BK38)/1000+((G38+R38)-(F38+S38))/10000+(G38+R38)/100000+(G38)/1000000))) -> FALSE
A38: =AP36 -> CÔTE D'IVOIRE | F38: 3 | G38: 1 | H38: =AP39 -> MALI | M38: MALI | R38: 0 | S38: 0 | T38: CÔTE D'IVOIRE | Z38: =VLOOKUP(AN47,AO45:AT48,2,0) -> GABON | AE38: =IF(BI47=BI46,BL46,BL47) -> 3 | AF38: =VLOOKUP(Z38,AP36:BC39,7,0) -> 5 | AG38: =VLOOKUP(Z38,AP36:BC39,8,0) -> 5 | AH38: =VLOOKUP(Z38,AP36:BC39,9,0) -> 1 | AI38: =VLOOKUP(Z38,AP36:BC39,10,0) -> 2 | AJ38: =VLOOKUP(Z38,AP36:BC39,11,0) -> 2 | AK38: =VLOOKUP(Z38,AP36:BC39,12,0) -> 2 | AL38: =VLOOKUP(Z38,AP36:BC39,13,0) -> 7 | AM38: =VLOOKUP(Z38,AP36:BC39,14,0) -> -5 | AP38: GABON | AU38: =RANK(AV38,AV36:AV39) -> 3 | AV38: =SUMPRODUCT((A36:E41=AP38)*(BF36:BF41))+SUMPRODUCT((H36:L41=AP38)*(BG36:BG41))+SUMPRODUCT((M36:Q41=AP38)*(BH36:BH41))+SUMPRODUCT((T36:X41=AP38)*(BI36:BI41)) -> 5 | AW38: =SUMPRODUCT((A36:E41=AP38)*(BL36:BL41))+SUMPRODUCT((H36:L41=AP38)*(BM36:BM41))+SUMPRODUCT((M36:Q41=AP38)*(BN36:BN41))+SUMPRODUCT((T36:X41=AP38)*(BO36:BO41)) -> 5 | AX38: =SUMPRODUCT((A36:E41=AP38)*(BP36:BP41))+SUMPRODUCT((H36:L41=AP38)*(BQ36:BQ41))+SUMPRODUCT((M36:Q41=AP38)*(BR36:BR41))+SUMPRODUCT((T36:X41=AP38)*(BS36:BS41)) -> 1 | AY38: =SUMPRODUCT((A36:E41=AP38)*(BT36:BT41))+SUMPRODUCT((H36:L41=AP38)*(BU36:BU41))+SUMPRODUCT((M36:Q41=AP38)*(BV36:BV41))+SUMPRODUCT((T36:X41=AP38)*(BW36:BW41)) -> 2 | AZ38: =SUMPRODUCT((A36:E41=AP38)*(BX36:BX41))+SUMPRODUCT((H36:L41=AP38)*(BY36:BY41))+SUMPRODUCT((M36:Q41=AP38)*(BZ36:BZ41))+SUMPRODUCT((T36:X41=AP38)*(CA36:CA41)) -> 2 | BA38: =SUMPRODUCT((A36:E41=AP38)*(CB36:CB41))+SUMPRODUCT((H36:L41=AP38)*(CC36:CC41))+SUMPRODUCT((M36:Q41=AP38)*(CD36:CD41))+SUMPRODUCT((T36:X41=AP38)*(CE36:CE41)) -> 2 | BB38: =SUMPRODUCT((A36:E41=AP38)*(CH36:CH41))+SUMPRODUCT((H36:L41=AP38)*(CI36:CI41))+SUMPRODUCT((M36:Q41=AP38)*(CJ36:CJ41))+SUMPRODUCT((T36:X41=AP38)*(CK36:CK41)) -> 7 | BC38: -5 | BF38: 3 | BG38: 0 | BH38: 1 | BI38: 1 | BJ38: 4 | BK38: 1 | BL38: 1 | BM38: 1 | BN38: 1 | BO38: 1 | BP38: 1 | BQ38: FALSE | BR38: FALSE | BS38: FALSE | BT38: FALSE | BU38: FALSE | BV38: 1 | BW38: 1 | BX38: FALSE | BY38: 1 | BZ38: FALSE | CA38: FALSE | CB38: 3 | CC38: 1 | CD38: 0 | CE38: 0 | CF38: 3 | CG38: 1 | CH38: 1 | CI38: 3 | CJ38: 0 | CK38: 0 | CL38: 1 | CM38: 3 | CN38: =IF(AU36=1,IF(AU39=1,SUM(AV36*1000+(BC36)/10+(BA36)/100+(BJ38)/1000+((F38+S38)-(G38+R38))/10000+(F38+S38)/100000+(S38)/1000000))) -> FALSE | CO38: =IF(AU37=1,IF(AU38=1,SUM(AV37*1000+(BC37)/10+(BA37)/100+(BJ44)/1000+((F44+S44)-(G44+R44))/10000+(F44+S44)/100000+(S44)/1000000))) -> FALSE | CP38: =IF(AU38=1,IF(AU37=1,SUM(AV38*1000+(BC38)/10+(BA38)/100+(BK44)/1000+((G44+R44)-(F44+S44))/10000+(G44+R44)/1000000+(G44)/1000000))) -> FALSE | CQ38: =IF(AU39=1,IF(AU37=1,SUM(AV39*1000+(BC39)/10+(BA39)/100+(BK40)/1000+((G40+R40)-(F40+S40))/10000+(G40-R40)/100000+(G40)/1000000))) -> FALSE | CR38: =IF(AU36=2,IF(AU39=2,SUM(AV36*1000+(BC36)/10+(BA36)/100+(BJ38)/1000+((F38+S38)-(G38+R38))/10000+(F38+S38)/100000+(S38)/1000000))) -> FALSE | CS38: =IF(AU37=2,IF(AU38=2,SUM(AV37*1000+(BC37)/10+(BA37)/100+(BJ44)/1000+((F44+S44)-(G44+R44))/10000+(F44+S44)/100000+(S44)/1000000))) -> FALSE | CT38: =IF(AU38=2,IF(AU37=2,SUM(AV38*1000+(BC38)/10+(BA38)/100+(BK44)/1000+((G44+R44)-(F44+S44))/10000+(G44+R44)/1000000+(G44)/1000000))) -> FALSE | CU38: =IF(AU39=2,IF(AU37=2,SUM(AV39*1000+(BC39)/10+(BA39)/100+(BK40)/1000+((G40+R40)-(F40+S40))/10000+(G40-R40)/100000+(G40)/1000000))) -> FALSE | CV38: =IF(AU36=3,IF(AU39=3,SUM(AV36*1000+(BC36)/10+(BA36)/100+(BJ38)/1000+((F38+S38)-(G38+R38))/10000+(F38+S38)/100000+(S38)/1000000))) -> FALSE | CW38: =IF(AU37=3,IF(AU38=3,SUM(AV37*1000+(BC37)/10+(BA37)/100+(BJ44)/1000+((F44+S44)-(G44+R44))/10000+(F44+S44)/100000+(S44)/1000000))) -> FALSE | CX38: =IF(AU38=3,IF(AU37=3,SUM(AV38*1000+(BC38)/10+(BA38)/100+(BK44)/1000+((G44+R44)-(F44+S44))/10000+(G44+R44)/1000000+(G44)/1000000))) -> FALSE | CY38: =IF(AU39=3,IF(AU37=3,SUM(AV39*1000+(BC39)/10+(BA39)/100+(BK40)/1000+((G40+R40)-(F40+S40))/10000+(G40-R40)/100000+(G40)/1000000))) -> FALSE | CZ38: =IF(AU36=4,IF(AU39=4,SUM(AV36*1000+(BC36)/10+(BA36)/100+(BJ38)/1000+((F38+S38)-(G38+R38))/10000+(F38+S38)/100000+(S38)/1000000))) -> FALSE | DA38: =IF(AU37=4,IF(AU38=4,SUM(AV37*1000+(BC37)/10+(BA37)/100+(BJ44)/1000+((F44+S44)-(G44+R44))/10000+(F44+S44)/100000+(S44)/1000000))) -> FALSE | DB38: =IF(AU38=4,IF(AU37=4,SUM(AV38*1000+(BC38)/10+(BA38)/100+(BK44)/1000+((G44+R44)-(F44+S44))/10000+(G44+R44)/1000000+(G44)/1000000))) -> FALSE | DC38: =IF(AU39=4,IF(AU37=4,SUM(AV39*1000+(BC39)/10+(BA39)/100+(BK40)/1000+((G40+R40)-(F40+S40))/10000+(G40-R40)/100000+(G40)/1000000))) -> FALSE
A39: =AP37 -> MAROC | F39: 3 | G39: 0 | H39: =AP38 -> GABON | M39: GABON | R39: 0 | S39: 0 | T39: MAROC | Z39: =VLOOKUP(AN48,AO45:AT48,2,0) -> MALI | AE39: 4 | AF39: =VLOOKUP(Z39,AP36:BC39,7,0) -> 3 | AG39: =VLOOKUP(Z39,AP36:BC39,8,0) -> 5 | AH39: =VLOOKUP(Z39,AP36:BC39,9,0) -> 0 | AI39: =VLOOKUP(Z39,AP36:BC39,10,0) -> 3 | AJ39: =VLOOKUP(Z39,AP36:BC39,11,0) -> 2 | AK39: =VLOOKUP(Z39,AP36:BC39,12,0) -> 1 | AL39: =VLOOKUP(Z39,AP36:BC39,13,0) -> 9 | AM39: =VLOOKUP(Z39,AP36:BC39,14,0) -> -8 | AP39: MALI | AU39: =RANK(AV39,AV36:AV39) -> 4 | AV39: =SUMPRODUCT((A36:E41=AP39)*(BF36:BF41))+SUMPRODUCT((H36:L41=AP39)*(BG36:BG41))+SUMPRODUCT((M36:Q41=AP39)*(BH36:BH41))+SUMPRODUCT((T36:X41=AP39)*(BI36:BI41)) -> 3 | AW39: =SUMPRODUCT((A36:E41=AP39)*(BL36:BL41))+SUMPRODUCT((H36:L41=AP39)*(BM36:BM41))+SUMPRODUCT((M36:Q41=AP39)*(BN36:BN41))+SUMPRODUCT((T36:X41=AP39)*(BO36:BO41)) -> 5 | AX39: =SUMPRODUCT((A36:E41=AP39)*(BP36:BP41))+SUMPRODUCT((H36:L41=AP39)*(BQ36:BQ41))+SUMPRODUCT((M36:Q41=AP39)*(BR36:BR41))+SUMPRODUCT((T36:X41=AP39)*(BS36:BS41)) -> 0 | AY39: =SUMPRODUCT((A36:E41=AP39)*(BT36:BT41))+SUMPRODUCT((H36:L41=AP39)*(BU36:BU41))+SUMPRODUCT((M36:Q41=AP39)*(BV36:BV41))+SUMPRODUCT((T36:X41=AP39)*(BW36:BW41)) -> 3 | AZ39: =SUMPRODUCT((A36:E41=AP39)*(BX36:BX41))+SUMPRODUCT((H36:L41=AP39)*(BY36:BY41))+SUMPRODUCT((M36:Q41=AP39)*(BZ36:BZ41))+SUMPRODUCT((T36:X41=AP39)*(CA36:CA41)) -> 2 | BA39: =SUMPRODUCT((A36:E41=AP39)*(CB36:CB41))+SUMPRODUCT((H36:L41=AP39)*(CC36:CC41))+SUMPRODUCT((M36:Q41=AP39)*(CD36:CD41))+SUMPRODUCT((T36:X41=AP39)*(CE36:CE41)) -> 1 | BB39: =SUMPRODUCT((A36:E41=AP39)*(CH36:CH41))+SUMPRODUCT((H36:L41=AP39)*(CI36:CI41))+SUMPRODUCT((M36:Q41=AP39)*(CJ36:CJ41))+SUMPRODUCT((T36:X41=AP39)*(CK36:CK41)) -> 9 | BC39: -8 | BF39: 3 | BG39: 0 | BH39: 1 | BI39: 1 | BJ39: 4 | BK39: 1 | BL39: 1 | BM39: 1 | BN39: 1 | BO39: 1 | BP39: 1 | BQ39: FALSE | BR39: FALSE | BS39: FALSE | BT39: FALSE | BU39: FALSE | BV39: 1 | BW39: 1 | BX39: FALSE | BY39: 1 | BZ39: FALSE | CA39: FALSE | CB39: 3 | CC39: 0 | CD39: 0 | CE39: 0 | CF39: 3 | CG39: 0 | CH39: 0 | CI39: 3 | CJ39: 0 | CK39: 0 | CL39: 0 | CM39: 3 | CN39: =IF(AU36=1,IF(AU39=1,SUM(AV36*1000+(BC36)/10+(BA36)/100+(BJ38)/1000+((F38+S38)-(G38+R38))/10000+(F38+S38)/100000+(S38)/1000000))) -> FALSE | CO39: =IF(AU37=1,IF(AU39=1,SUM(AV37*1000+(BC37)/10+(BA37)/100+(BJ40)/1000+((F40+S40)-(G40+R40))/10000+(F40+S40)/100000+(S40)/1000000))) -> FALSE | CP39: =IF(AU38=1,IF(AU39=1,SUM(AV38*1000+(BC38)/10+(BA38)/100+(BJ41)/1000+((F41+S41)-(G41+R41))/10000+(F41+S41)/100000+(S41)/1000000))) -> FALSE | CQ39: =IF(AU39=1,IF(AU38=1,SUM(AV39*1000+(BC39)/10+(BA39)/100+(BK41)/1000+((G41+R41)-(F41+S41))/10000+(G41+R41)/100000+(G41)/1000000))) -> FALSE | CR39: =IF(AU36=2,IF(AU39=2,SUM(AV36*1000+(BC36)/10+(BA36)/100+(BJ38)/1000+((F38+S38)-(G38+R38))/10000+(F38+S38)/100000+(S38)/1000000))) -> FALSE | CS39: =IF(AU37=2,IF(AU39=2,SUM(AV37*1000+(BC37)/10+(BA37)/100+(BJ40)/1000+((F40+S40)-(G40+R40))/10000+(F40+S40)/100000+(S40)/1000000))) -> FALSE | CT39: =IF(AU38=2,IF(AU39=2,SUM(AV38*1000+(BC38)/10+(BA38)/100+(BJ41)/1000+((F41+S41)-(G41+R41))/10000+(F41+S41)/100000+(S41)/1000000))) -> FALSE | CU39: =IF(AU39=2,IF(AU38=2,SUM(AV39*1000+(BC39)/10+(BA39)/100+(BK41)/1000+((G41+R41)-(F41+S41))/10000+(G41+R41)/100000+(G41)/1000000))) -> FALSE | CV39: =IF(AU36=3,IF(AU39=3,SUM(AV36*1000+(BC36)/10+(BA36)/100+(BJ38)/1000+((F38+S38)-(G38+R38))/10000+(F38+S38)/100000+(S38)/1000000))) -> FALSE | CW39: =IF(AU37=3,IF(AU39=3,SUM(AV37*1000+(BC37)/10+(BA37)/100+(BJ40)/1000+((F40+S40)-(G40+R40))/10000+(F40+S40)/100000+(S40)/1000000))) -> FALSE | CX39: =IF(AU38=3,IF(AU39=3,SUM(AV38*1000+(BC38)/10+(BA38)/100+(BJ41)/1000+((F41+S41)-(G41+R41))/10000+(F41+S41)/100000+(S41)/1000000))) -> FALSE | CY39: =IF(AU39=3,IF(AU38=3,SUM(AV39*1000+(BC39)/10+(BA39)/100+(BK41)/1000+((G41+R41)-(F41+S41))/10000+(G41+R41)/100000+(G41)/1000000))) -> FALSE | CZ39: =IF(AU36=4,IF(AU39=4,SUM(AV36*1000+(BC36)/10+(BA36)/100+(BJ38)/1000+((F38+S38)-(G38+R38))/10000+(F38+S38)/100000+(S38)/1000000))) -> FALSE | DA39: =IF(AU37=4,IF(AU39=4,SUM(AV37*1000+(BC37)/10+(BA37)/100+(BJ40)/1000+((F40+S40)-(G40+R40))/10000+(F40+S40)/100000+(S40)/1000000))) -> FALSE | DB39: =IF(AU38=4,IF(AU39=4,SUM(AV38*1000+(BC38)/10+(BA38)/100+(BJ41)/1000+((F41+S41)-(G41+R41))/10000+(F41+S41)/100000+(S41)/1000000))) -> FALSE | DC39: =IF(AU39=4,IF(AU38=4,SUM(AV39*1000+(BC39)/10+(BA39)/100+(BK41)/1000+((G41+R41)-(F41+S41))/10000+(G41+R41)/100000+(G41)/1000000))) -> FALSE
A40: =AP37 -> MAROC | F40: 6 | G40: 0 | H40: =AP39 -> MALI | M40: MALI | R40: 0 | S40: 0 | T40: MAROC | AC40: GROUPE C | BF40: 3 | BG40: 0 | BH40: 1 | BI40: 1 | BJ40: 4 | BK40: 1 | BL40: 1 | BM40: 1 | BN40: 1 | BO40: 1 | BP40: 1 | BQ40: FALSE | BR40: FALSE | BS40: FALSE | BT40: FALSE | BU40: FALSE | BV40: 1 | BW40: 1 | BX40: FALSE | BY40: 1 | BZ40: FALSE | CA40: FALSE | CB40: 6 | CC40: 0 | CD40: 0 | CE40: 0 | CF40: 6 | CG40: 0 | CH40: 0 | CI40: 6 | CJ40: 0 | CK40: 0 | CL40: 0 | CM40: 6 | CN40: =SUM(CN36:CN39) -> 0 | CO40: 1000000 | CP40: 0 | CQ40: 0 | CR40: 800000 | CS40: 0 | CT40: 0 | CU40: 0 | CV40: 0 | CW40: 0 | CX40: 600000 | CY40: 0 | CZ40: 0 | DA40: 0 | DB40: 0 | DC40: 400000
A41: =AP38 -> GABON | H41: =AP39 -> MALI | M41: MALI | R41: 0 | S41: 0 | T41: GABON | BF41: 0 | BG41: 0 | BH41: 1 | BI41: 1 | BJ41: 1 | BK41: 1 | BL41: 0 | BM41: 0 | BN41: 1 | BO41: 1 | BP41: FALSE | BQ41: FALSE | BR41: FALSE | BS41: FALSE | BT41: FALSE | BU41: FALSE | BV41: 1 | BW41: 1 | BX41: FALSE | BY41: FALSE | BZ41: FALSE | CA41: FALSE | CB41: 0 | CC41: 0 | CD41: 0 | CE41: 0 | CF41: 0 | CG41: 0 | CH41: 0 | CI41: 0 | CJ41: 0 | CK41: 0 | CL41: 0 | CM41: 0
A42: ÉQUIPE QUALIFIÉE | G42: =Z36 -> MAROC
AN45: 1 | AO45: =BA45 -> 2 | AP45: =AP36 -> CÔTE D'IVOIRE | AU45: =SUM(CN40,CR40,CV40,CZ40) -> 800000 | AX45: =AU45+0.00000004 -> 800000 | BA45: =RANK(AX45,AX45:AZ48) -> 2 | BB45: =RANK(AU45,AU45:AW48) -> 2 | BD45: =VLOOKUP(AN45,AO45:AT48,2,0) -> MAROC | BI45: =VLOOKUP(BD45,AP45:AW48,6,0) -> 1000000 | BL45: =RANK(BI45,BI45:BK48) -> 1
AN46: 2 | AO46: =BA46 -> 1 | AP46: =AP37 -> MAROC | AU46: =SUM(CO40,CS40,CW40,DA40) -> 1000000 | AX46: =AU46+0.00000003 -> 1000000 | BA46: =RANK(AX46,AX45:AZ48) -> 1 | BB46: =RANK(AU46,AU45:AW48) -> 1 | BD46: =VLOOKUP(AN46,AO45:AT48,2,0) -> CÔTE D'IVOIRE | BI46: =VLOOKUP(BD46,AP45:AW48,6,0) -> 800000 | BL46: =RANK(BI46,BI45:BK48) -> 2
AN47: 3 | AO47: 3 | AP47: GABON | AU47: =SUM(CP40,CT40,CX40,DB40) -> 600000 | AX47: =AU47+0.00000002 -> 600000 | BA47: =RANK(AX47,AX45:AZ48) -> 3 | BB47: =RANK(AU47,AU45:AW48) -> 3 | BD47: =VLOOKUP(AN47,AO45:AT48,2,0) -> GABON | BI47: =VLOOKUP(BD47,AP45:AW48,6,0) -> 600000 | BL47: =RANK(BI47,BI45:BK48) -> 3
AN48: 4 | AO48: 4 | AP48: MALI | AU48: =SUM(CQ40,CU40,CY40,DC40) -> 400000 | AX48: =AU48+0.00000001 -> 400000 | BA48: =RANK(AX48,AX45:AZ48) -> 4 | BB48: =RANK(AU48,AU45:AW48) -> 4 | BD48: =VLOOKUP(AN48,AO45:AT48,2,0) -> MALI | BI48: =VLOOKUP(BD48,AP45:AW48,6,0) -> 400000 | BL48: =RANK(BI48,BI45:BK48) -> 4
A49: MATCHS ALLER | J49: GROUPE D | P49: MATCHS RETOUR | Z49: CLASSEMENT | AP49: CLASSEMENT
A51: Équipes | F51: Bts | G51: Bts | H51: Équipes | M51: Équipes | R51: Bts | S51: Bts | T51: Équipes | Z51: Équipes | AE51: R | AF51: Pts | AG51: J | AH51: G | AI51: N | AJ51: P | AK51: B + | AL51: B - | AM51: Diff | AP51: Équipes | AU51: R | AV51: Pts | AW51: J | AX51: G | AY51: N | AZ51: P | BA51: B + | BB51: B - | BC51: Diff | BF51: pts | BG51: pts | BH51: pts | BI51: pts | BJ51: t pts | BK51: t pts | BL51: j | BM51: j | BN51: j | BO51: j | BP51: g | BQ51: g | BR51: g | BS51: g | BT51: n | BU51: n | BV51: n | BW51: n | BX51: p | BY51: p | BZ51: p | CA51: p | CB51: b+ | CC51: b+ | CD51: b+ | CE51: b+ | CF51: b+ | CG51: b+ | CH51: b- | CI51: b- | CJ51: b- | CK51: b- | CL51: b- | CM51: b- | CN51: =AP52 -> BURKINA FASO | CO51: =AP53 -> AFRIQUE DU SUD | CP51: =AP54 -> SÉNÉGAL | CQ51: =AP55 -> CAP VERT | CR51: =CN51 -> BURKINA FASO | CS51: =CO51 -> AFRIQUE DU SUD | CT51: =CP51 -> SÉNÉGAL | CU51: =CQ51 -> CAP VERT | CV51: =CN51 -> BURKINA FASO | CW51: =CO51 -> AFRIQUE DU SUD | CX51: =CP51 -> SÉNÉGAL | CY51: =CQ51 -> CAP VERT | CZ51: =CN51 -> BURKINA FASO | DA51: =CO51 -> AFRIQUE DU SUD | DB51: =CP51 -> SÉNÉGAL | DC51: =CQ51 -> CAP VERT
A52: =AP52 -> BURKINA FASO | F52: 1 | G52: 1 | H52: =AP53 -> AFRIQUE DU SUD | M52: =H52 -> AFRIQUE DU SUD | R52: 3 | S52: 1 | T52: =A52 -> BURKINA FASO | Z52: =VLOOKUP(AN61,AO61:AT64,2,0) -> SÉNÉGAL | AE52: 1 | AF52: =VLOOKUP(Z52,AP52:BC55,7,0) -> 11 | AG52: =VLOOKUP(Z52,AP52:BC55,8,0) -> 6 | AH52: =VLOOKUP(Z52,AP52:BC55,9,0) -> 3 | AI52: =VLOOKUP(Z52,AP52:BC55,10,0) -> 2 | AJ52: =VLOOKUP(Z52,AP52:BC55,11,0) -> 1 | AK52: =VLOOKUP(Z52,AP52:BC55,12,0) -> 9 | AL52: =VLOOKUP(Z52,AP52:BC55,13,0) -> 5 | AM52: =VLOOKUP(Z52,AP52:BC55,14,0) -> 4 | AP52: BURKINA FASO | AU52: =RANK(AV52,AV52:AV55) -> 2 | AV52: =SUMPRODUCT((A52:E57=AP52)*(BF52:BF57))+SUMPRODUCT((H52:L57=AP52)*(BG52:BG57))+SUMPRODUCT((M52:Q57=AP52)*(BH52:BH57))+SUMPRODUCT((T52:X57=AP52)*(BI52:BI57)) -> 9 | AW52: =SUMPRODUCT((A52:E57=AP52)*(BL52:BL57))+SUMPRODUCT((H52:L57=AP52)*(BM52:BM57))+SUMPRODUCT((M52:Q57=AP52)*(BN52:BN57))+SUMPRODUCT((T52:X57=AP52)*(BO52:BO57)) -> 6 | AX52: =SUMPRODUCT((A52:E57=AP52)*(BP52:BP57))+SUMPRODUCT((H52:L57=AP52)*(BQ52:BQ57))+SUMPRODUCT((M52:Q57=AP52)*(BR52:BR57))+SUMPRODUCT((T52:X57=AP52)*(BS52:BS57)) -> 2 | AY52: =SUMPRODUCT((A52:E57=AP52)*(BT52:BT57))+SUMPRODUCT((H52:L57=AP52)*(BU52:BU57))+SUMPRODUCT((M52:Q57=AP52)*(BV52:BV57))+SUMPRODUCT((T52:X57=AP52)*(BW52:BW57)) -> 3 | AZ52: =SUMPRODUCT((A52:E57=AP52)*(BX52:BX57))+SUMPRODUCT((H52:L57=AP52)*(BY52:BY57))+SUMPRODUCT((M52:Q57=AP52)*(BZ52:BZ57))+SUMPRODUCT((T52:X57=AP52)*(CA52:CA57)) -> 1 | BA52: =SUMPRODUCT((A52:E57=AP52)*(CB52:CB57))+SUMPRODUCT((H52:L57=AP52)*(CC52:CC57))+SUMPRODUCT((M52:Q57=AP52)*(CD52:CD57))+SUMPRODUCT((T52:X57=AP52)*(CE52:CE57)) -> 10 | BB52: =SUMPRODUCT((A52:E57=AP52)*(CH52:CH57))+SUMPRODUCT((H52:L57=AP52)*(CI52:CI57))+SUMPRODUCT((M52:Q57=AP52)*(CJ52:CJ57))+SUMPRODUCT((T52:X57=AP52)*(CK52:CK57)) -> 6 | BC52: =BA52-BB52 -> 4 | BF52: =IF(F52="",0,IF(F52>G52,3,IF(F52=G52,1,IF(F52<G52,0)))) -> 1 | BG52: =IF(G52="",0,IF(G52>F52,3,IF(G52=F52,1,IF(G52<F52,0)))) -> 1 | BH52: =IF(R52="",0,IF(R52>S52,3,IF(R52=S52,1,IF(R52<S52,0)))) -> 3 | BI52: =IF(S52="",0,IF(S52>R52,3,IF(S52=R52,1,IF(S52<R52,0)))) -> 0 | BJ52: =BF52+BI52 -> 1 | BK52: =BG52+BH52 -> 4 | BL52: =IF(F52="",0,1) -> 1 | BM52: =IF(G52="",0,1) -> 1 | BN52: =IF(R52="",0,1) -> 1 | BO52: =IF(S52="",0,1) -> 1 | BP52: =IF(F52<>"",IF(F52>G52,1)) -> FALSE | BQ52: =IF(G52<>"",IF(G52>F52,1)) -> FALSE | BR52: =IF(R52<>"",IF(R52>S52,1)) -> 1 | BS52: =IF(S52<>"",IF(S52>R52,1)) -> FALSE | BT52: =IF(F52<>"",IF(F52=G52,1)) -> 1 | BU52: =IF(G52<>"",IF(G52=F52,1)) -> 1 | BV52: =IF(R52<>"",IF(R52=S52,1)) -> FALSE | BW52: =IF(S52<>"",IF(S52=R52,1)) -> FALSE | BX52: =IF(F52<>"",IF(F52<G52,1)) -> FALSE | BY52: =IF(G52<>"",IF(G52<F52,1)) -> FALSE | BZ52: =IF(R52<>"",IF(R52<S52,1)) -> FALSE | CA52: =IF(S52<>"",IF(S52<R52,1)) -> 1 | CB52: =F52 -> 1 | CC52: =G52 -> 1 | CD52: =R52 -> 3 | CE52: =S52 -> 1 | CF52: =CB52+CE52 -> 2 | CG52: =CC52+CD52 -> 4 | CH52: =G52 -> 1 | CI52: =F52 -> 1 | CJ52: =S52 -> 1 | CK52: =R52 -> 3 | CL52: =CH52+CK52 -> 4 | CM52: =CI52+CJ52 -> 2 | CN52: =IF(AU52=1,1000000) -> FALSE | CO52: =IF(AU53=1,1000000) -> FALSE | CP52: =IF(AU54=1,1000000) -> 1000000 | CQ52: =IF(AU55=1,1000000) -> FALSE | CR52: =IF(AU52=2,800000) -> 800000 | CS52: =IF(AU53=2,800000) -> FALSE | CT52: =IF(AU54=2,800000) -> FALSE | CU52: =IF(AU55=2,800000) -> FALSE | CV52: =IF(AU52=3,600000) -> FALSE | CW52: =IF(AU53=3,600000) -> 600000 | CX52: =IF(AU54=3,600000) -> FALSE | CY52: =IF(AU55=3,600000) -> FALSE | CZ52: =IF(AU52=4,400000) -> FALSE | DA52: =IF(AU53=4,400000) -> FALSE | DB52: =IF(AU54=4,400000) -> FALSE | DC52: =IF(AU55=4,400000) -> 400000
A53: =AP52 -> BURKINA FASO | F53: 2 | G53: 2 | H53: =AP54 -> SÉNÉGAL | M53: =H53 -> SÉNÉGAL | R53: 0 | S53: 0 | T53: =A53 -> BURKINA FASO | Z53: =VLOOKUP(AN62,AO61:AT64,2,0) -> BURKINA FASO | AE53: =IF(BI62=BI61,BL61,BL62) -> 2 | AF53: =VLOOKUP(Z53,AP52:BC55,7,0) -> 9 | AG53: =VLOOKUP(Z53,AP52:BC55,8,0) -> 6 | AH53: =VLOOKUP(Z53,AP52:BC55,9,0) -> 2 | AI53: =VLOOKUP(Z53,AP52:BC55,10,0) -> 3 | AJ53: =VLOOKUP(Z53,AP52:BC55,11,0) -> 1 | AK53: =VLOOKUP(Z53,AP52:BC55,12,0) -> 10 | AL53: =VLOOKUP(Z53,AP52:BC55,13,0) -> 6 | AM53: =VLOOKUP(Z53,AP52:BC55,14,0) -> 4 | AP53: AFRIQUE DU SUD | AU53: =RANK(AV53,AV52:AV55) -> 3 | AV53: =SUMPRODUCT((A52:E57=AP53)*(BF52:BF57))+SUMPRODUCT((H52:L57=AP53)*(BG52:BG57))+SUMPRODUCT((M52:Q57=AP53)*(BH52:BH57))+SUMPRODUCT((T52:X57=AP53)*(BI52:BI57)) -> 7 | AW53: =SUMPRODUCT((A52:E57=AP53)*(BL52:BL57))+SUMPRODUCT((H52:L57=AP53)*(BM52:BM57))+SUMPRODUCT((M52:Q57=AP53)*(BN52:BN57))+SUMPRODUCT((T52:X57=AP53)*(BO52:BO57)) -> 6 | AX53: =SUMPRODUCT((A52:E57=AP53)*(BP52:BP57))+SUMPRODUCT((H52:L57=AP53)*(BQ52:BQ57))+SUMPRODUCT((M52:Q57=AP53)*(BR52:BR57))+SUMPRODUCT((T52:X57=AP53)*(BS52:BS57)) -> 2 | AY53: =SUMPRODUCT((A52:E57=AP53)*(BT52:BT57))+SUMPRODUCT((H52:L57=AP53)*(BU52:BU57))+SUMPRODUCT((M52:Q57=AP53)*(BV52:BV57))+SUMPRODUCT((T52:X57=AP53)*(BW52:BW57)) -> 1 | AZ53: =SUMPRODUCT((A52:E57=AP53)*(BX52:BX57))+SUMPRODUCT((H52:L57=AP53)*(BY52:BY57))+SUMPRODUCT((M52:Q57=AP53)*(BZ52:BZ57))+SUMPRODUCT((T52:X57=AP53)*(CA52:CA57)) -> 3 | BA53: =SUMPRODUCT((A52:E57=AP53)*(CB52:CB57))+SUMPRODUCT((H52:L57=AP53)*(CC52:CC57))+SUMPRODUCT((M52:Q57=AP53)*(CD52:CD57))+SUMPRODUCT((T52:X57=AP53)*(CE52:CE57)) -> 9 | BB53: =SUMPRODUCT((A52:E57=AP53)*(CH52:CH57))+SUMPRODUCT((H52:L57=AP53)*(CI52:CI57))+SUMPRODUCT((M52:Q57=AP53)*(CJ52:CJ57))+SUMPRODUCT((T52:X57=AP53)*(CK52:CK57)) -> 9 | BC53: =BA53-BB53 -> 0 | BF53: =IF(F53="",0,IF(F53>G53,3,IF(F53=G53,1,IF(F53<G53,0)))) -> 1 | BG53: =IF(G53="",0,IF(G53>F53,3,IF(G53=F53,1,IF(G53<F53,0)))) -> 1 | BH53: =IF(R53="",0,IF(R53>S53,3,IF(R53=S53,1,IF(R53<S53,0)))) -> 1 | BI53: =IF(S53="",0,IF(S53>R53,3,IF(S53=R53,1,IF(S53<R53,0)))) -> 1 | BJ53: =BF53+BI53 -> 2 | BK53: =BG53+BH53 -> 2 | BL53: =IF(F53="",0,1) -> 1 | BM53: =IF(G53="",0,1) -> 1 | BN53: =IF(R53="",0,1) -> 1 | BO53: =IF(S53="",0,1) -> 1 | BP53: =IF(F53<>"",IF(F53>G53,1)) -> FALSE | BQ53: =IF(G53<>"",IF(G53>F53,1)) -> FALSE | BR53: =IF(R53<>"",IF(R53>S53,1)) -> FALSE | BS53: =IF(S53<>"",IF(S53>R53,1)) -> FALSE | BT53: =IF(F53<>"",IF(F53=G53,1)) -> 1 | BU53: =IF(G53<>"",IF(G53=F53,1)) -> 1 | BV53: =IF(R53<>"",IF(R53=S53,1)) -> 1 | BW53: =IF(S53<>"",IF(S53=R53,1)) -> 1 | BX53: =IF(F53<>"",IF(F53<G53,1)) -> FALSE | BY53: =IF(G53<>"",IF(G53<F53,1)) -> FALSE | BZ53: =IF(R53<>"",IF(R53<S53,1)) -> FALSE | CA53: =IF(S53<>"",IF(S53<R53,1)) -> FALSE | CB53: =F53 -> 2 | CC53: =G53 -> 2 | CD53: =R53 -> 0 | CE53: =S53 -> 0 | CF53: =CB53+CE53 -> 2 | CG53: =CC53+CD53 -> 2 | CH53: =G53 -> 2 | CI53: =F53 -> 2 | CJ53: =S53 -> 0 | CK53: =R53 -> 0 | CL53: =CH53+CK53 -> 2 | CM53: =CI53+CJ53 -> 2 | CN53: =IF(AU52=1,IF(AU53=1,SUM(AV52*1000+(BC52)/10+(BA52)/100+(BJ52)/1000+((F52+S52)-(G52+R52))/10000+(F52+S52)/100000+(S52)/1000000))) -> FALSE | CO53: =IF(AU53=1,IF(AU52=1,SUM(AV53*1000+(BC53)/10+(BA53)/100+(BK52)/1000+((G52+R52)-(F52+S52))/10000+(G52+R52)/100000+(G52)/1000000))) -> FALSE | CP53: =IF(AU54=1,IF(AU52=1,SUM(AV54*1000+(BC54)/10+(BA54)/100+(BK53)/1000+((G53+R53)-(F53+S53))/10000+(G53+R53)/100000+(G53)/1000000))) -> FALSE | CQ53: =IF(AU55=1,IF(AU52=1,SUM(AV55*1000+(BC55)/10+(BA55)/100+(BK54)/1000+((G54+R54)-(F54+S54))/10000+(G54+R54)/100000+(G54)/1000000))) -> FALSE | CR53: =IF(AU52=2,IF(AU53=2,SUM(AV52*1000+(BC52)/10+(BA52)/100+(BJ52)/1000+((F52+S52)-(G52+R52))/10000+(F52+S52)/100000+(S52)/1000000))) -> FALSE | CS53: =IF(AU53=2,IF(AU52=2,SUM(AV53*1000+(BC53)/10+(BA53)/100+(BK52)/1000+((G52+R52)-(F52+S52))/10000+(G52+R52)/100000+(G52)/1000000))) -> FALSE | CT53: =IF(AU54=2,IF(AU52=2,SUM(AV54*1000+(BC54)/10+(BA54)/100+(BK53)/1000+((G53+R53)-(F53+S53))/10000+(G53+R53)/100000+(G53)/1000000))) -> FALSE | CU53: =IF(AU55=2,IF(AU52=2,SUM(AV55*1000+(BC55)/10+(BA55)/100+(BK54)/1000+((G54+R54)-(F54+S54))/10000+(G54+R54)/100000+(G54)/1000000))) -> FALSE | CV53: =IF(AU52=3,IF(AU53=3,SUM(AV52*1000+(BC52)/10+(BA52)/100+(BJ52)/1000+((F52+S52)-(G52+R52))/10000+(F52+S52)/100000+(S52)/1000000))) -> FALSE | CW53: =IF(AU53=3,IF(AU52=3,SUM(AV53*1000+(BC53)/10+(BA53)/100+(BK52)/1000+((G52+R52)-(F52+S52))/10000+(G52+R52)/100000+(G52)/1000000))) -> FALSE | CX53: =IF(AU54=3,IF(AU52=3,SUM(AV54*1000+(BC54)/10+(BA54)/100+(BK53)/1000+((G53+R53)-(F53+S53))/10000+(G53+R53)/100000+(G53)/1000000))) -> FALSE | CY53: =IF(AU55=3,IF(AU52=3,SUM(AV55*1000+(BC55)/10+(BA55)/100+(BK54)/1000+((G54+R54)-(F54+S54))/10000+(G54+R54)/100000+(G54)/1000000))) -> FALSE | CZ53: =IF(AU52=4,IF(AU53=4,SUM(AV52*1000+(BC52)/10+(BA52)/100+(BJ52)/1000+((F52+S52)-(G52+R52))/10000+(F52+S52)/100000+(S52)/1000000))) -> FALSE | DA53: =IF(AU53=4,IF(AU52=4,SUM(AV53*1000+(BC53)/10+(BA53)/100+(BK52)/1000+((G52+R52)-(F52+S52))/10000+(G52+R52)/100000+(G52)/1000000))) -> FALSE | DB53: =IF(AU54=4,IF(AU52=4,SUM(AV54*1000+(BC54)/10+(BA54)/100+(BK53)/1000+((G53+R53)-(F53+S53))/10000+(G53+R53)/100000+(G53)/1000000))) -> FALSE | DC53: =IF(AU55=4,IF(AU52=4,SUM(AV55*1000+(BC55)/10+(BA55)/100+(BK54)/1000+((G54+R54)-(F54+S54))/10000+(G54+R54)/100000+(G54)/1000000))) -> FALSE
A54: =AP52 -> BURKINA FASO | F54: 4 | G54: 0 | H54: =AP55 -> CAP VERT | M54: CAP VERT | R54: 0 | S54: 2 | T54: BURKINA FASO | Z54: =VLOOKUP(AN63,AO61:AT64,2,0) -> AFRIQUE DU SUD | AE54: =IF(BI63=BI62,BL62,BL63) -> 3 | AF54: =VLOOKUP(Z54,AP52:BC55,7,0) -> 7 | AG54: =VLOOKUP(Z54,AP52:BC55,8,0) -> 6 | AH54: =VLOOKUP(Z54,AP52:BC55,9,0) -> 2 | AI54: =VLOOKUP(Z54,AP52:BC55,10,0) -> 1 | AJ54: =VLOOKUP(Z54,AP52:BC55,11,0) -> 3 | AK54: =VLOOKUP(Z54,AP52:BC55,12,0) -> 9 | AL54: =VLOOKUP(Z54,AP52:BC55,13,0) -> 9 | AM54: =VLOOKUP(Z54,AP52:BC55,14,0) -> 0 | AP54: SÉNÉGAL | AU54: =RANK(AV54,AV52:AV55) -> 1 | AV54: =SUMPRODUCT((A52:E57=AP54)*(BF52:BF57))+SUMPRODUCT((H52:L57=AP54)*(BG52:BG57))+SUMPRODUCT((M52:Q57=AP54)*(BH52:BH57))+SUMPRODUCT((T52:X57=AP54)*(BI52:BI57)) -> 11 | AW54: =SUMPRODUCT((A52:E57=AP54)*(BL52:BL57))+SUMPRODUCT((H52:L57=AP54)*(BM52:BM57))+SUMPRODUCT((M52:Q57=AP54)*(BN52:BN57))+SUMPRODUCT((T52:X57=AP54)*(BO52:BO57)) -> 6 | AX54: =SUMPRODUCT((A52:E57=AP54)*(BP52:BP57))+SUMPRODUCT((H52:L57=AP54)*(BQ52:BQ57))+SUMPRODUCT((M52:Q57=AP54)*(BR52:BR57))+SUMPRODUCT((T52:X57=AP54)*(BS52:BS57)) -> 3 | AY54: =SUMPRODUCT((A52:E57=AP54)*(BT52:BT57))+SUMPRODUCT((H52:L57=AP54)*(BU52:BU57))+SUMPRODUCT((M52:Q57=AP54)*(BV52:BV57))+SUMPRODUCT((T52:X57=AP54)*(BW52:BW57)) -> 2 | AZ54: =SUMPRODUCT((A52:E57=AP54)*(BX52:BX57))+SUMPRODUCT((H52:L57=AP54)*(BY52:BY57))+SUMPRODUCT((M52:Q57=AP54)*(BZ52:BZ57))+SUMPRODUCT((T52:X57=AP54)*(CA52:CA57)) -> 1 | BA54: =SUMPRODUCT((A52:E57=AP54)*(CB52:CB57))+SUMPRODUCT((H52:L57=AP54)*(CC52:CC57))+SUMPRODUCT((M52:Q57=AP54)*(CD52:CD57))+SUMPRODUCT((T52:X57=AP54)*(CE52:CE57)) -> 9 | BB54: =SUMPRODUCT((A52:E57=AP54)*(CH52:CH57))+SUMPRODUCT((H52:L57=AP54)*(CI52:CI57))+SUMPRODUCT((M52:Q57=AP54)*(CJ52:CJ57))+SUMPRODUCT((T52:X57=AP54)*(CK52:CK57)) -> 5 | BC54: 4 | BF54: 3 | BG54: 0 | BH54: 0 | BI54: 3 | BJ54: 6 | BK54: 0 | BL54: 1 | BM54: 1 | BN54: 1 | BO54: 1 | BP54: 1 | BQ54: FALSE | BR54: FALSE | BS54: 1 | BT54: FALSE | BU54: FALSE | BV54: FALSE | BW54: FALSE | BX54: FALSE | BY54: 1 | BZ54: 1 | CA54: FALSE | CB54: 4 | CC54: 0 | CD54: 0 | CE54: 2 | CF54: 6 | CG54: 0 | CH54: 0 | CI54: 4 | CJ54: 2 | CK54: 0 | CL54: 0 | CM54: 6 | CN54: =IF(AU52=1,IF(AU55=1,SUM(AV52*1000+(BC52)/10+(BA52)/100+(BJ54)/1000+((F54+S54)-(G54+R54))/10000+(F54+S54)/100000+(S54)/1000000))) -> FALSE | CO54: =IF(AU53=1,IF(AU54=1,SUM(AV53*1000+(BC53)/10+(BA53)/100+(BJ60)/1000+((F60+S60)-(G60+R60))/10000+(F60+S60)/100000+(S60)/1000000))) -> FALSE | CP54: =IF(AU54=1,IF(AU53=1,SUM(AV54*1000+(BC54)/10+(BA54)/100+(BK60)/1000+((G60+R60)-(F60+S60))/10000+(G60+R60)/1000000+(G60)/1000000))) -> FALSE | CQ54: =IF(AU55=1,IF(AU53=1,SUM(AV55*1000+(BC55)/10+(BA55)/100+(BK56)/1000+((G56+R56)-(F56+S56))/10000+(G56-R56)/100000+(G56)/1000000))) -> FALSE | CR54: =IF(AU52=2,IF(AU55=2,SUM(AV52*1000+(BC52)/10+(BA52)/100+(BJ54)/1000+((F54+S54)-(G54+R54))/10000+(F54+S54)/100000+(S54)/1000000))) -> FALSE | CS54: =IF(AU53=2,IF(AU54=2,SUM(AV53*1000+(BC53)/10+(BA53)/100+(BJ60)/1000+((F60+S60)-(G60+R60))/10000+(F60+S60)/100000+(S60)/1000000))) -> FALSE | CT54: =IF(AU54=2,IF(AU53=2,SUM(AV54*1000+(BC54)/10+(BA54)/100+(BK60)/1000+((G60+R60)-(F60+S60))/10000+(G60+R60)/1000000+(G60)/1000000))) -> FALSE | CU54: =IF(AU55=2,IF(AU53=2,SUM(AV55*1000+(BC55)/10+(BA55)/100+(BK56)/1000+((G56+R56)-(F56+S56))/10000+(G56-R56)/100000+(G56)/1000000))) -> FALSE | CV54: =IF(AU52=3,IF(AU55=3,SUM(AV52*1000+(BC52)/10+(BA52)/100+(BJ54)/1000+((F54+S54)-(G54+R54))/10000+(F54+S54)/100000+(S54)/1000000))) -> FALSE | CW54: =IF(AU53=3,IF(AU54=3,SUM(AV53*1000+(BC53)/10+(BA53)/100+(BJ60)/1000+((F60+S60)-(G60+R60))/10000+(F60+S60)/100000+(S60)/1000000))) -> FALSE | CX54: =IF(AU54=3,IF(AU53=3,SUM(AV54*1000+(BC54)/10+(BA54)/100+(BK60)/1000+((G60+R60)-(F60+S60))/10000+(G60+R60)/1000000+(G60)/1000000))) -> FALSE | CY54: =IF(AU55=3,IF(AU53=3,SUM(AV55*1000+(BC55)/10+(BA55)/100+(BK56)/1000+((G56+R56)-(F56+S56))/10000+(G56-R56)/100000+(G56)/1000000))) -> FALSE | CZ54: =IF(AU52=4,IF(AU55=4,SUM(AV52*1000+(BC52)/10+(BA52)/100+(BJ54)/1000+((F54+S54)-(G54+R54))/10000+(F54+S54)/100000+(S54)/1000000))) -> FALSE | DA54: =IF(AU53=4,IF(AU54=4,SUM(AV53*1000+(BC53)/10+(BA53)/100+(BJ60)/1000+((F60+S60)-(G60+R60))/10000+(F60+S60)/100000+(S60)/1000000))) -> FALSE | DB54: =IF(AU54=4,IF(AU53=4,SUM(AV54*1000+(BC54)/10+(BA54)/100+(BK60)/1000+((G60+R60)-(F60+S60))/10000+(G60+R60)/1000000+(G60)/1000000))) -> FALSE | DC54: =IF(AU55=4,IF(AU53=4,SUM(AV55*1000+(BC55)/10+(BA55)/100+(BK56)/1000+((G56+R56)-(F56+S56))/10000+(G56-R56)/100000+(G56)/1000000))) -> FALSE
A55: =AP53 -> AFRIQUE DU SUD | F55: 2 | G55: 1 | H55: =AP54 -> SÉNÉGAL | M55: SÉNÉGAL | R55: 2 | S55: 1 | T55: AFRIQUE DU SUD | Z55: =VLOOKUP(AN64,AO61:AT64,2,0) -> CAP VERT | AE55: 4 | AF55: =VLOOKUP(Z55,AP52:BC55,7,0) -> 6 | AG55: =VLOOKUP(Z55,AP52:BC55,8,0) -> 6 | AH55: =VLOOKUP(Z55,AP52:BC55,9,0) -> 2 | AI55: =VLOOKUP(Z55,AP52:BC55,10,0) -> 0 | AJ55: =VLOOKUP(Z55,AP52:BC55,11,0) -> 4 | AK55: =VLOOKUP(Z55,AP52:BC55,12,0) -> 4 | AL55: =VLOOKUP(Z55,AP52:BC55,13,0) -> 12 | AM55: =VLOOKUP(Z55,AP52:BC55,14,0) -> -8 | AP55: CAP VERT | AU55: =RANK(AV55,AV52:AV55) -> 4 | AV55: =SUMPRODUCT((A52:E57=AP55)*(BF52:BF57))+SUMPRODUCT((H52:L57=AP55)*(BG52:BG57))+SUMPRODUCT((M52:Q57=AP55)*(BH52:BH57))+SUMPRODUCT((T52:X57=AP55)*(BI52:BI57)) -> 6 | AW55: =SUMPRODUCT((A52:E57=AP55)*(BL52:BL57))+SUMPRODUCT((H52:L57=AP55)*(BM52:BM57))+SUMPRODUCT((M52:Q57=AP55)*(BN52:BN57))+SUMPRODUCT((T52:X57=AP55)*(BO52:BO57)) -> 6 | AX55: =SUMPRODUCT((A52:E57=AP55)*(BP52:BP57))+SUMPRODUCT((H52:L57=AP55)*(BQ52:BQ57))+SUMPRODUCT((M52:Q57=AP55)*(BR52:BR57))+SUMPRODUCT((T52:X57=AP55)*(BS52:BS57)) -> 2 | AY55: =SUMPRODUCT((A52:E57=AP55)*(BT52:BT57))+SUMPRODUCT((H52:L57=AP55)*(BU52:BU57))+SUMPRODUCT((M52:Q57=AP55)*(BV52:BV57))+SUMPRODUCT((T52:X57=AP55)*(BW52:BW57)) -> 0 | AZ55: =SUMPRODUCT((A52:E57=AP55)*(BX52:BX57))+SUMPRODUCT((H52:L57=AP55)*(BY52:BY57))+SUMPRODUCT((M52:Q57=AP55)*(BZ52:BZ57))+SUMPRODUCT((T52:X57=AP55)*(CA52:CA57)) -> 4 | BA55: =SUMPRODUCT((A52:E57=AP55)*(CB52:CB57))+SUMPRODUCT((H52:L57=AP55)*(CC52:CC57))+SUMPRODUCT((M52:Q57=AP55)*(CD52:CD57))+SUMPRODUCT((T52:X57=AP55)*(CE52:CE57)) -> 4 | BB55: =SUMPRODUCT((A52:E57=AP55)*(CH52:CH57))+SUMPRODUCT((H52:L57=AP55)*(CI52:CI57))+SUMPRODUCT((M52:Q57=AP55)*(CJ52:CJ57))+SUMPRODUCT((T52:X57=AP55)*(CK52:CK57)) -> 12 | BC55: -8 | BF55: 3 | BG55: 0 | BH55: 3 | BI55: 0 | BJ55: 3 | BK55: 3 | BL55: 1 | BM55: 1 | BN55: 1 | BO55: 1 | BP55: 1 | BQ55: FALSE | BR55: 1 | BS55: FALSE | BT55: FALSE | BU55: FALSE | BV55: FALSE | BW55: FALSE | BX55: FALSE | BY55: 1 | BZ55: FALSE | CA55: 1 | CB55: 2 | CC55: 1 | CD55: 2 | CE55: 1 | CF55: 3 | CG55: 3 | CH55: 1 | CI55: 2 | CJ55: 1 | CK55: 2 | CL55: 3 | CM55: 3 | CN55: =IF(AU52=1,IF(AU55=1,SUM(AV52*1000+(BC52)/10+(BA52)/100+(BJ54)/1000+((F54+S54)-(G54+R54))/10000+(F54+S54)/100000+(S54)/1000000))) -> FALSE | CO55: =IF(AU53=1,IF(AU55=1,SUM(AV53*1000+(BC53)/10+(BA53)/100+(BJ56)/1000+((F56+S56)-(G56+R56))/10000+(F56+S56)/100000+(S56)/1000000))) -> FALSE | CP55: =IF(AU54=1,IF(AU55=1,SUM(AV54*1000+(BC54)/10+(BA54)/100+(BJ57)/1000+((F57+S57)-(G57+R57))/10000+(F57+S57)/100000+(S57)/1000000))) -> FALSE | CQ55: =IF(AU55=1,IF(AU54=1,SUM(AV55*1000+(BC55)/10+(BA55)/100+(BK57)/1000+((G57+R57)-(F57+S57))/10000+(G57+R57)/100000+(G57)/1000000))) -> FALSE | CR55: =IF(AU52=2,IF(AU55=2,SUM(AV52*1000+(BC52)/10+(BA52)/100+(BJ54)/1000+((F54+S54)-(G54+R54))/10000+(F54+S54)/100000+(S54)/1000000))) -> FALSE | CS55: =IF(AU53=2,IF(AU55=2,SUM(AV53*1000+(BC53)/10+(BA53)/100+(BJ56)/1000+((F56+S56)-(G56+R56))/10000+(F56+S56)/100000+(S56)/1000000))) -> FALSE | CT55: =IF(AU54=2,IF(AU55=2,SUM(AV54*1000+(BC54)/10+(BA54)/100+(BJ57)/1000+((F57+S57)-(G57+R57))/10000+(F57+S57)/100000+(S57)/1000000))) -> FALSE | CU55: =IF(AU55=2,IF(AU54=2,SUM(AV55*1000+(BC55)/10+(BA55)/100+(BK57)/1000+((G57+R57)-(F57+S57))/10000+(G57+R57)/100000+(G57)/1000000))) -> FALSE | CV55: =IF(AU52=3,IF(AU55=3,SUM(AV52*1000+(BC52)/10+(BA52)/100+(BJ54)/1000+((F54+S54)-(G54+R54))/10000+(F54+S54)/100000+(S54)/1000000))) -> FALSE | CW55: =IF(AU53=3,IF(AU55=3,SUM(AV53*1000+(BC53)/10+(BA53)/100+(BJ56)/1000+((F56+S56)-(G56+R56))/10000+(F56+S56)/100000+(S56)/1000000))) -> FALSE | CX55: =IF(AU54=3,IF(AU55=3,SUM(AV54*1000+(BC54)/10+(BA54)/100+(BJ57)/1000+((F57+S57)-(G57+R57))/10000+(F57+S57)/100000+(S57)/1000000))) -> FALSE | CY55: =IF(AU55=3,IF(AU54=3,SUM(AV55*1000+(BC55)/10+(BA55)/100+(BK57)/1000+((G57+R57)-(F57+S57))/10000+(G57+R57)/100000+(G57)/1000000))) -> FALSE | CZ55: =IF(AU52=4,IF(AU55=4,SUM(AV52*1000+(BC52)/10+(BA52)/100+(BJ54)/1000+((F54+S54)-(G54+R54))/10000+(F54+S54)/100000+(S54)/1000000))) -> FALSE | DA55: =IF(AU53=4,IF(AU55=4,SUM(AV53*1000+(BC53)/10+(BA53)/100+(BJ56)/1000+((F56+S56)-(G56+R56))/10000+(F56+S56)/100000+(S56)/1000000))) -> FALSE | DB55: =IF(AU54=4,IF(AU55=4,SUM(AV54*1000+(BC54)/10+(BA54)/100+(BJ57)/1000+((F57+S57)-(G57+R57))/10000+(F57+S57)/100000+(S57)/1000000))) -> FALSE | DC55: =IF(AU55=4,IF(AU54=4,SUM(AV55*1000+(BC55)/10+(BA55)/100+(BK57)/1000+((G57+R57)-(F57+S57))/10000+(G57+R57)/100000+(G57)/1000000))) -> FALSE
A56: =AP53 -> AFRIQUE DU SUD | F56: 1 | G56: 2 | H56: =AP55 -> CAP VERT | M56: CAP VERT | R56: 2 | S56: 1 | T56: AFRIQUE DU SUD | AC56: GROUPE D | BF56: 0 | BG56: 3 | BH56: 3 | BI56: 0 | BJ56: 0 | BK56: 6 | BL56: 1 | BM56: 1 | BN56: 1 | BO56: 1 | BP56: FALSE | BQ56: 1 | BR56: 1 | BS56: FALSE | BT56: FALSE | BU56: FALSE | BV56: FALSE | BW56: FALSE | BX56: 1 | BY56: FALSE | BZ56: FALSE | CA56: 1 | CB56: 1 | CC56: 2 | CD56: 2 | CE56: 1 | CF56: 2 | CG56: 4 | CH56: 2 | CI56: 1 | CJ56: 1 | CK56: 2 | CL56: 4 | CM56: 2 | CN56: =SUM(CN52:CN55) -> 0 | CO56: 0 | CP56: 1000000 | CQ56: 0 | CR56: 800000 | CS56: 0 | CT56: 0 | CU56: 0 | CV56: 0 | CW56: 600000 | CX56: 0 | CY56: 0 | CZ56: 0 | DA56: 0 | DB56: 0 | DC56: 400000
A57: =AP54 -> SÉNÉGAL | F57: 2 | G57: 0 | H57: =AP55 -> CAP VERT | M57: CAP VERT | R57: 0 | S57: 2 | T57: SÉNÉGAL | BF57: 3 | BG57: 0 | BH57: 0 | BI57: 3 | BJ57: 6 | BK57: 0 | BL57: 1 | BM57: 1 | BN57: 1 | BO57: 1 | BP57: 1 | BQ57: FALSE | BR57: FALSE | BS57: 1 | BT57: FALSE | BU57: FALSE | BV57: FALSE | BW57: FALSE | BX57: FALSE | BY57: 1 | BZ57: 1 | CA57: FALSE | CB57: 2 | CC57: 0 | CD57: 0 | CE57: 2 | CF57: 4 | CG57: 0 | CH57: 0 | CI57: 2 | CJ57: 2 | CK57: 0 | CL57: 0 | CM57: 4
A58: ÉQUIPE QUALIFIÉE | G58: =Z52 -> SÉNÉGAL
AN61: 1 | AO61: =BA61 -> 2 | AP61: =AP52 -> BURKINA FASO | AU61: =SUM(CN56,CR56,CV56,CZ56) -> 800000 | AX61: =AU61+0.00000004 -> 800000 | BA61: =RANK(AX61,AX61:AZ64) -> 2 | BB61: =RANK(AU61,AU61:AW64) -> 2 | BD61: =VLOOKUP(AN61,AO61:AT64,2,0) -> SÉNÉGAL | BI61: =VLOOKUP(BD61,AP61:AW64,6,0) -> 1000000 | BL61: =RANK(BI61,BI61:BK64) -> 1
AN62: 2 | AO62: =BA62 -> 3 | AP62: =AP53 -> AFRIQUE DU SUD | AU62: =SUM(CO56,CS56,CW56,DA56) -> 600000 | AX62: =AU62+0.00000003 -> 600000 | BA62: =RANK(AX62,AX61:AZ64) -> 3 | BB62: =RANK(AU62,AU61:AW64) -> 3 | BD62: =VLOOKUP(AN62,AO61:AT64,2,0) -> BURKINA FASO | BI62: =VLOOKUP(BD62,AP61:AW64,6,0) -> 800000 | BL62: =RANK(BI62,BI61:BK64) -> 2
AN63: 3 | AO63: 1 | AP63: SÉNÉGAL | AU63: =SUM(CP56,CT56,CX56,DB56) -> 1000000 | AX63: =AU63+0.00000002 -> 1000000 | BA63: =RANK(AX63,AX61:AZ64) -> 1 | BB63: =RANK(AU63,AU61:AW64) -> 1 | BD63: =VLOOKUP(AN63,AO61:AT64,2,0) -> AFRIQUE DU SUD | BI63: =VLOOKUP(BD63,AP61:AW64,6,0) -> 600000 | BL63: =RANK(BI63,BI61:BK64) -> 3
AN64: 4 | AO64: 4 | AP64: CAP VERT | AU64: =SUM(CQ56,CU56,CY56,DC56) -> 400000 | AX64: =AU64+0.00000001 -> 400000 | BA64: =RANK(AX64,AX61:AZ64) -> 4 | BB64: =RANK(AU64,AU61:AW64) -> 4 | BD64: =VLOOKUP(AN64,AO61:AT64,2,0) -> CAP VERT | BI64: =VLOOKUP(BD64,AP61:AW64,6,0) -> 400000 | BL64: =RANK(BI64,BI61:BK64) -> 4
A65: MATCHS ALLER | J65: GROUPE E | P65: MATCHS RETOUR | Z65: CLASSEMENT | AP65: CLASSEMENT
A67: Équipes | F67: Bts | G67: Bts | H67: Équipes | M67: Équipes | R67: Bts | S67: Bts | T67: Équipes | Z67: Équipes | AE67: R | AF67: Pts | AG67: J | AH67: G | AI67: N | AJ67: P | AK67: B + | AL67: B - | AM67: Diff | AP67: Équipes | AU67: R | AV67: Pts | AW67: J | AX67: G | AY67: N | AZ67: P | BA67: B + | BB67: B - | BC67: Diff | BF67: pts | BG67: pts | BH67: pts | BI67: pts | BJ67: t pts | BK67: t pts | BL67: j | BM67: j | BN67: j | BO67: j | BP67: g | BQ67: g | BR67: g | BS67: g | BT67: n | BU67: n | BV67: n | BW67: n | BX67: p | BY67: p | BZ67: p | CA67: p | CB67: b+ | CC67: b+ | CD67: b+ | CE67: b+ | CF67: b+ | CG67: b+ | CH67: b- | CI67: b- | CJ67: b- | CK67: b- | CL67: b- | CM67: b- | CN67: =AP68 -> ÉGYPTE | CO67: =AP69 -> OUGANDA | CP67: =AP70 -> GHANA | CQ67: =AP71 -> CONGO | CR67: =CN67 -> ÉGYPTE | CS67: =CO67 -> OUGANDA | CT67: =CP67 -> GHANA | CU67: =CQ67 -> CONGO | CV67: =CN67 -> ÉGYPTE | CW67: =CO67 -> OUGANDA | CX67: =CP67 -> GHANA | CY67: =CQ67 -> CONGO | CZ67: =CN67 -> ÉGYPTE | DA67: =CO67 -> OUGANDA | DB67: =CP67 -> GHANA | DC67: =CQ67 -> CONGO
A68: =AP68 -> ÉGYPTE | F68: 1 | G68: 0 | H68: =AP69 -> OUGANDA | M68: =H68 -> OUGANDA | R68: 1 | S68: 0 | T68: =A68 -> ÉGYPTE | Z68: =VLOOKUP(AN77,AO77:AT80,2,0) -> ÉGYPTE | AE68: 1 | AF68: =VLOOKUP(Z68,AP68:BC71,7,0) -> 13 | AG68: =VLOOKUP(Z68,AP68:BC71,8,0) -> 6 | AH68: =VLOOKUP(Z68,AP68:BC71,9,0) -> 4 | AI68: =VLOOKUP(Z68,AP68:BC71,10,0) -> 1 | AJ68: =VLOOKUP(Z68,AP68:BC71,11,0) -> 1 | AK68: =VLOOKUP(Z68,AP68:BC71,12,0) -> 8 | AL68: =VLOOKUP(Z68,AP68:BC71,13,0) -> 4 | AM68: =VLOOKUP(Z68,AP68:BC71,14,0) -> 4 | AP68: ÉGYPTE | AU68: =RANK(AV68,AV68:AV71) -> 1 | AV68: =SUMPRODUCT((A68:E73=AP68)*(BF68:BF73))+SUMPRODUCT((H68:L73=AP68)*(BG68:BG73))+SUMPRODUCT((M68:Q73=AP68)*(BH68:BH73))+SUMPRODUCT((T68:X73=AP68)*(BI68:BI73)) -> 13 | AW68: =SUMPRODUCT((A68:E73=AP68)*(BL68:BL73))+SUMPRODUCT((H68:L73=AP68)*(BM68:BM73))+SUMPRODUCT((M68:Q73=AP68)*(BN68:BN73))+SUMPRODUCT((T68:X73=AP68)*(BO68:BO73)) -> 6 | AX68: =SUMPRODUCT((A68:E73=AP68)*(BP68:BP73))+SUMPRODUCT((H68:L73=AP68)*(BQ68:BQ73))+SUMPRODUCT((M68:Q73=AP68)*(BR68:BR73))+SUMPRODUCT((T68:X73=AP68)*(BS68:BS73)) -> 4 | AY68: =SUMPRODUCT((A68:E73=AP68)*(BT68:BT73))+SUMPRODUCT((H68:L73=AP68)*(BU68:BU73))+SUMPRODUCT((M68:Q73=AP68)*(BV68:BV73))+SUMPRODUCT((T68:X73=AP68)*(BW68:BW73)) -> 1 | AZ68: =SUMPRODUCT((A68:E73=AP68)*(BX68:BX73))+SUMPRODUCT((H68:L73=AP68)*(BY68:BY73))+SUMPRODUCT((M68:Q73=AP68)*(BZ68:BZ73))+SUMPRODUCT((T68:X73=AP68)*(CA68:CA73)) -> 1 | BA68: =SUMPRODUCT((A68:E73=AP68)*(CB68:CB73))+SUMPRODUCT((H68:L73=AP68)*(CC68:CC73))+SUMPRODUCT((M68:Q73=AP68)*(CD68:CD73))+SUMPRODUCT((T68:X73=AP68)*(CE68:CE73)) -> 8 | BB68: =SUMPRODUCT((A68:E73=AP68)*(CH68:CH73))+SUMPRODUCT((H68:L73=AP68)*(CI68:CI73))+SUMPRODUCT((M68:Q73=AP68)*(CJ68:CJ73))+SUMPRODUCT((T68:X73=AP68)*(CK68:CK73)) -> 4 | BC68: =BA68-BB68 -> 4 | BF68: =IF(F68="",0,IF(F68>G68,3,IF(F68=G68,1,IF(F68<G68,0)))) -> 3 | BG68: =IF(G68="",0,IF(G68>F68,3,IF(G68=F68,1,IF(G68<F68,0)))) -> 0 | BH68: =IF(R68="",0,IF(R68>S68,3,IF(R68=S68,1,IF(R68<S68,0)))) -> 3 | BI68: =IF(S68="",0,IF(S68>R68,3,IF(S68=R68,1,IF(S68<R68,0)))) -> 0 | BJ68: =BF68+BI68 -> 3 | BK68: =BG68+BH68 -> 3 | BL68: =IF(F68="",0,1) -> 1 | BM68: =IF(G68="",0,1) -> 1 | BN68: =IF(R68="",0,1) -> 1 | BO68: =IF(S68="",0,1) -> 1 | BP68: =IF(F68<>"",IF(F68>G68,1)) -> 1 | BQ68: =IF(G68<>"",IF(G68>F68,1)) -> FALSE | BR68: =IF(R68<>"",IF(R68>S68,1)) -> 1 | BS68: =IF(S68<>"",IF(S68>R68,1)) -> FALSE | BT68: =IF(F68<>"",IF(F68=G68,1)) -> FALSE | BU68: =IF(G68<>"",IF(G68=F68,1)) -> FALSE | BV68: =IF(R68<>"",IF(R68=S68,1)) -> FALSE | BW68: =IF(S68<>"",IF(S68=R68,1)) -> FALSE | BX68: =IF(F68<>"",IF(F68<G68,1)) -> FALSE | BY68: =IF(G68<>"",IF(G68<F68,1)) -> 1 | BZ68: =IF(R68<>"",IF(R68<S68,1)) -> FALSE | CA68: =IF(S68<>"",IF(S68<R68,1)) -> 1 | CB68: =F68 -> 1 | CC68: =G68 -> 0 | CD68: =R68 -> 1 | CE68: =S68 -> 0 | CF68: =CB68+CE68 -> 1 | CG68: =CC68+CD68 -> 1 | CH68: =G68 -> 0 | CI68: =F68 -> 1 | CJ68: =S68 -> 0 | CK68: =R68 -> 1 | CL68: =CH68+CK68 -> 1 | CM68: =CI68+CJ68 -> 1 | CN68: =IF(AU68=1,1000000) -> 1000000 | CO68: =IF(AU69=1,1000000) -> FALSE | CP68: =IF(AU70=1,1000000) -> FALSE | CQ68: =IF(AU71=1,1000000) -> FALSE | CR68: =IF(AU68=2,800000) -> FALSE | CS68: =IF(AU69=2,800000) -> 800000 | CT68: =IF(AU70=2,800000) -> FALSE | CU68: =IF(AU71=2,800000) -> FALSE | CV68: =IF(AU68=3,600000) -> FALSE | CW68: =IF(AU69=3,600000) -> FALSE | CX68: =IF(AU70=3,600000) -> 600000 | CY68: =IF(AU71=3,600000) -> FALSE | CZ68: =IF(AU68=4,400000) -> FALSE | DA68: =IF(AU69=4,400000) -> FALSE | DB68: =IF(AU70=4,400000) -> FALSE | DC68: =IF(AU71=4,400000) -> 400000
A69: =AP68 -> ÉGYPTE | F69: 2 | G69: 0 | H69: =AP70 -> GHANA | M69: =H69 -> GHANA | R69: 1 | S69: 1 | T69: =A69 -> ÉGYPTE | Z69: =VLOOKUP(AN78,AO77:AT80,2,0) -> OUGANDA | AE69: =IF(BI78=BI77,BL77,BL78) -> 2 | AF69: =VLOOKUP(Z69,AP68:BC71,7,0) -> 9 | AG69: =VLOOKUP(Z69,AP68:BC71,8,0) -> 6 | AH69: =VLOOKUP(Z69,AP68:BC71,9,0) -> 2 | AI69: =VLOOKUP(Z69,AP68:BC71,10,0) -> 3 | AJ69: =VLOOKUP(Z69,AP68:BC71,11,0) -> 1 | AK69: =VLOOKUP(Z69,AP68:BC71,12,0) -> 3 | AL69: =VLOOKUP(Z69,AP68:BC71,13,0) -> 2 | AM69: =VLOOKUP(Z69,AP68:BC71,14,0) -> 1 | AP69: OUGANDA | AU69: =RANK(AV69,AV68:AV71) -> 2 | AV69: =SUMPRODUCT((A68:E73=AP69)*(BF68:BF73))+SUMPRODUCT((H68:L73=AP69)*(BG68:BG73))+SUMPRODUCT((M68:Q73=AP69)*(BH68:BH73))+SUMPRODUCT((T68:X73=AP69)*(BI68:BI73)) -> 9 | AW69: =SUMPRODUCT((A68:E73=AP69)*(BL68:BL73))+SUMPRODUCT((H68:L73=AP69)*(BM68:BM73))+SUMPRODUCT((M68:Q73=AP69)*(BN68:BN73))+SUMPRODUCT((T68:X73=AP69)*(BO68:BO73)) -> 6 | AX69: =SUMPRODUCT((A68:E73=AP69)*(BP68:BP73))+SUMPRODUCT((H68:L73=AP69)*(BQ68:BQ73))+SUMPRODUCT((M68:Q73=AP69)*(BR68:BR73))+SUMPRODUCT((T68:X73=AP69)*(BS68:BS73)) -> 2 | AY69: =SUMPRODUCT((A68:E73=AP69)*(BT68:BT73))+SUMPRODUCT((H68:L73=AP69)*(BU68:BU73))+SUMPRODUCT((M68:Q73=AP69)*(BV68:BV73))+SUMPRODUCT((T68:X73=AP69)*(BW68:BW73)) -> 3 | AZ69: =SUMPRODUCT((A68:E73=AP69)*(BX68:BX73))+SUMPRODUCT((H68:L73=AP69)*(BY68:BY73))+SUMPRODUCT((M68:Q73=AP69)*(BZ68:BZ73))+SUMPRODUCT((T68:X73=AP69)*(CA68:CA73)) -> 1 | BA69: =SUMPRODUCT((A68:E73=AP69)*(CB68:CB73))+SUMPRODUCT((H68:L73=AP69)*(CC68:CC73))+SUMPRODUCT((M68:Q73=AP69)*(CD68:CD73))+SUMPRODUCT((T68:X73=AP69)*(CE68:CE73)) -> 3 | BB69: =SUMPRODUCT((A68:E73=AP69)*(CH68:CH73))+SUMPRODUCT((H68:L73=AP69)*(CI68:CI73))+SUMPRODUCT((M68:Q73=AP69)*(CJ68:CJ73))+SUMPRODUCT((T68:X73=AP69)*(CK68:CK73)) -> 2 | BC69: =BA69-BB69 -> 1 | BF69: =IF(F69="",0,IF(F69>G69,3,IF(F69=G69,1,IF(F69<G69,0)))) -> 3 | BG69: =IF(G69="",0,IF(G69>F69,3,IF(G69=F69,1,IF(G69<F69,0)))) -> 0 | BH69: =IF(R69="",0,IF(R69>S69,3,IF(R69=S69,1,IF(R69<S69,0)))) -> 1 | BI69: =IF(S69="",0,IF(S69>R69,3,IF(S69=R69,1,IF(S69<R69,0)))) -> 1 | BJ69: =BF69+BI69 -> 4 | BK69: =BG69+BH69 -> 1 | BL69: =IF(F69="",0,1) -> 1 | BM69: =IF(G69="",0,1) -> 1 | BN69: =IF(R69="",0,1) -> 1 | BO69: =IF(S69="",0,1) -> 1 | BP69: =IF(F69<>"",IF(F69>G69,1)) -> 1 | BQ69: =IF(G69<>"",IF(G69>F69,1)) -> FALSE | BR69: =IF(R69<>"",IF(R69>S69,1)) -> FALSE | BS69: =IF(S69<>"",IF(S69>R69,1)) -> FALSE | BT69: =IF(F69<>"",IF(F69=G69,1)) -> FALSE | BU69: =IF(G69<>"",IF(G69=F69,1)) -> FALSE | BV69: =IF(R69<>"",IF(R69=S69,1)) -> 1 | BW69: =IF(S69<>"",IF(S69=R69,1)) -> 1 | BX69: =IF(F69<>"",IF(F69<G69,1)) -> FALSE | BY69: =IF(G69<>"",IF(G69<F69,1)) -> 1 | BZ69: =IF(R69<>"",IF(R69<S69,1)) -> FALSE | CA69: =IF(S69<>"",IF(S69<R69,1)) -> FALSE | CB69: =F69 -> 2 | CC69: =G69 -> 0 | CD69: =R69 -> 1 | CE69: =S69 -> 1 | CF69: =CB69+CE69 -> 3 | CG69: =CC69+CD69 -> 1 | CH69: =G69 -> 0 | CI69: =F69 -> 2 | CJ69: =S69 -> 1 | CK69: =R69 -> 1 | CL69: =CH69+CK69 -> 1 | CM69: =CI69+CJ69 -> 3 | CN69: =IF(AU68=1,IF(AU69=1,SUM(AV68*1000+(BC68)/10+(BA68)/100+(BJ68)/1000+((F68+S68)-(G68+R68))/10000+(F68+S68)/100000+(S68)/1000000))) -> FALSE | CO69: =IF(AU69=1,IF(AU68=1,SUM(AV69*1000+(BC69)/10+(BA69)/100+(BK68)/1000+((G68+R68)-(F68+S68))/10000+(G68+R68)/100000+(G68)/1000000))) -> FALSE | CP69: =IF(AU70=1,IF(AU68=1,SUM(AV70*1000+(BC70)/10+(BA70)/100+(BK69)/1000+((G69+R69)-(F69+S69))/10000+(G69+R69)/100000+(G69)/1000000))) -> FALSE | CQ69: =IF(AU71=1,IF(AU68=1,SUM(AV71*1000+(BC71)/10+(BA71)/100+(BK70)/1000+((G70+R70)-(F70+S70))/10000+(G70+R70)/100000+(G70)/1000000))) -> FALSE | CR69: =IF(AU68=2,IF(AU69=2,SUM(AV68*1000+(BC68)/10+(BA68)/100+(BJ68)/1000+((F68+S68)-(G68+R68))/10000+(F68+S68)/100000+(S68)/1000000))) -> FALSE | CS69: =IF(AU69=2,IF(AU68=2,SUM(AV69*1000+(BC69)/10+(BA69)/100+(BK68)/1000+((G68+R68)-(F68+S68))/10000+(G68+R68)/100000+(G68)/1000000))) -> FALSE | CT69: =IF(AU70=2,IF(AU68=2,SUM(AV70*1000+(BC70)/10+(BA70)/100+(BK69)/1000+((G69+R69)-(F69+S69))/10000+(G69+R69)/100000+(G69)/1000000))) -> FALSE | CU69: =IF(AU71=2,IF(AU68=2,SUM(AV71*1000+(BC71)/10+(BA71)/100+(BK70)/1000+((G70+R70)-(F70+S70))/10000+(G70+R70)/100000+(G70)/1000000))) -> FALSE | CV69: =IF(AU68=3,IF(AU69=3,SUM(AV68*1000+(BC68)/10+(BA68)/100+(BJ68)/1000+((F68+S68)-(G68+R68))/10000+(F68+S68)/100000+(S68)/1000000))) -> FALSE | CW69: =IF(AU69=3,IF(AU68=3,SUM(AV69*1000+(BC69)/10+(BA69)/100+(BK68)/1000+((G68+R68)-(F68+S68))/10000+(G68+R68)/100000+(G68)/1000000))) -> FALSE | CX69: =IF(AU70=3,IF(AU68=3,SUM(AV70*1000+(BC70)/10+(BA70)/100+(BK69)/1000+((G69+R69)-(F69+S69))/10000+(G69+R69)/100000+(G69)/1000000))) -> FALSE | CY69: =IF(AU71=3,IF(AU68=3,SUM(AV71*1000+(BC71)/10+(BA71)/100+(BK70)/1000+((G70+R70)-(F70+S70))/10000+(G70+R70)/100000+(G70)/1000000))) -> FALSE | CZ69: =IF(AU68=4,IF(AU69=4,SUM(AV68*1000+(BC68)/10+(BA68)/100+(BJ68)/1000+((F68+S68)-(G68+R68))/10000+(F68+S68)/100000+(S68)/1000000))) -> FALSE | DA69: =IF(AU69=4,IF(AU68=4,SUM(AV69*1000+(BC69)/10+(BA69)/100+(BK68)/1000+((G68+R68)-(F68+S68))/10000+(G68+R68)/100000+(G68)/1000000))) -> FALSE | DB69: =IF(AU70=4,IF(AU68=4,SUM(AV70*1000+(BC70)/10+(BA70)/100+(BK69)/1000+((G69+R69)-(F69+S69))/10000+(G69+R69)/100000+(G69)/1000000))) -> FALSE | DC69: =IF(AU71=4,IF(AU68=4,SUM(AV71*1000+(BC71)/10+(BA71)/100+(BK70)/1000+((G70+R70)-(F70+S70))/10000+(G70+R70)/100000+(G70)/1000000))) -> FALSE
A70: =AP68 -> ÉGYPTE | F70: 2 | G70: 1 | H70: =AP71 -> CONGO | M70: CONGO | R70: 1 | S70: 2 | T70: ÉGYPTE | Z70: =VLOOKUP(AN79,AO77:AT80,2,0) -> GHANA | AE70: =IF(BI79=BI78,BL78,BL79) -> 3 | AF70: =VLOOKUP(Z70,AP68:BC71,7,0) -> 7 | AG70: =VLOOKUP(Z70,AP68:BC71,8,0) -> 6 | AH70: =VLOOKUP(Z70,AP68:BC71,9,0) -> 1 | AI70: =VLOOKUP(Z70,AP68:BC71,10,0) -> 4 | AJ70: =VLOOKUP(Z70,AP68:BC71,11,0) -> 1 | AK70: =VLOOKUP(Z70,AP68:BC71,12,0) -> 7 | AL70: =VLOOKUP(Z70,AP68:BC71,13,0) -> 5 | AM70: =VLOOKUP(Z70,AP68:BC71,14,0) -> 2 | AP70: GHANA | AU70: =RANK(AV70,AV68:AV71) -> 3 | AV70: =SUMPRODUCT((A68:E73=AP70)*(BF68:BF73))+SUMPRODUCT((H68:L73=AP70)*(BG68:BG73))+SUMPRODUCT((M68:Q73=AP70)*(BH68:BH73))+SUMPRODUCT((T68:X73=AP70)*(BI68:BI73)) -> 7 | AW70: =SUMPRODUCT((A68:E73=AP70)*(BL68:BL73))+SUMPRODUCT((H68:L73=AP70)*(BM68:BM73))+SUMPRODUCT((M68:Q73=AP70)*(BN68:BN73))+SUMPRODUCT((T68:X73=AP70)*(BO68:BO73)) -> 6 | AX70: =SUMPRODUCT((A68:E73=AP70)*(BP68:BP73))+SUMPRODUCT((H68:L73=AP70)*(BQ68:BQ73))+SUMPRODUCT((M68:Q73=AP70)*(BR68:BR73))+SUMPRODUCT((T68:X73=AP70)*(BS68:BS73)) -> 1 | AY70: =SUMPRODUCT((A68:E73=AP70)*(BT68:BT73))+SUMPRODUCT((H68:L73=AP70)*(BU68:BU73))+SUMPRODUCT((M68:Q73=AP70)*(BV68:BV73))+SUMPRODUCT((T68:X73=AP70)*(BW68:BW73)) -> 4 | AZ70: =SUMPRODUCT((A68:E73=AP70)*(BX68:BX73))+SUMPRODUCT((H68:L73=AP70)*(BY68:BY73))+SUMPRODUCT((M68:Q73=AP70)*(BZ68:BZ73))+SUMPRODUCT((T68:X73=AP70)*(CA68:CA73)) -> 1 | BA70: =SUMPRODUCT((A68:E73=AP70)*(CB68:CB73))+SUMPRODUCT((H68:L73=AP70)*(CC68:CC73))+SUMPRODUCT((M68:Q73=AP70)*(CD68:CD73))+SUMPRODUCT((T68:X73=AP70)*(CE68:CE73)) -> 7 | BB70: =SUMPRODUCT((A68:E73=AP70)*(CH68:CH73))+SUMPRODUCT((H68:L73=AP70)*(CI68:CI73))+SUMPRODUCT((M68:Q73=AP70)*(CJ68:CJ73))+SUMPRODUCT((T68:X73=AP70)*(CK68:CK73)) -> 5 | BC70: 2 | BF70: 3 | BG70: 0 | BH70: 0 | BI70: 3 | BJ70: 6 | BK70: 0 | BL70: 1 | BM70: 1 | BN70: 1 | BO70: 1 | BP70: 1 | BQ70: FALSE | BR70: FALSE | BS70: 1 | BT70: FALSE | BU70: FALSE | BV70: FALSE | BW70: FALSE | BX70: FALSE | BY70: 1 | BZ70: 1 | CA70: FALSE | CB70: 2 | CC70: 1 | CD70: 1 | CE70: 2 | CF70: 4 | CG70: 2 | CH70: 1 | CI70: 2 | CJ70: 2 | CK70: 1 | CL70: 2 | CM70: 4 | CN70: =IF(AU68=1,IF(AU71=1,SUM(AV68*1000+(BC68)/10+(BA68)/100+(BJ70)/1000+((F70+S70)-(G70+R70))/10000+(F70+S70)/100000+(S70)/1000000))) -> FALSE | CO70: =IF(AU69=1,IF(AU70=1,SUM(AV69*1000+(BC69)/10+(BA69)/100+(BJ76)/1000+((F76+S76)-(G76+R76))/10000+(F76+S76)/100000+(S76)/1000000))) -> FALSE | CP70: =IF(AU70=1,IF(AU69=1,SUM(AV70*1000+(BC70)/10+(BA70)/100+(BK76)/1000+((G76+R76)-(F76+S76))/10000+(G76+R76)/1000000+(G76)/1000000))) -> FALSE | CQ70: =IF(AU71=1,IF(AU69=1,SUM(AV71*1000+(BC71)/10+(BA71)/100+(BK72)/1000+((G72+R72)-(F72+S72))/10000+(G72-R72)/100000+(G72)/1000000))) -> FALSE | CR70: =IF(AU68=2,IF(AU71=2,SUM(AV68*1000+(BC68)/10+(BA68)/100+(BJ70)/1000+((F70+S70)-(G70+R70))/10000+(F70+S70)/100000+(S70)/1000000))) -> FALSE | CS70: =IF(AU69=2,IF(AU70=2,SUM(AV69*1000+(BC69)/10+(BA69)/100+(BJ76)/1000+((F76+S76)-(G76+R76))/10000+(F76+S76)/100000+(S76)/1000000))) -> FALSE | CT70: =IF(AU70=2,IF(AU69=2,SUM(AV70*1000+(BC70)/10+(BA70)/100+(BK76)/1000+((G76+R76)-(F76+S76))/10000+(G76+R76)/1000000+(G76)/1000000))) -> FALSE | CU70: =IF(AU71=2,IF(AU69=2,SUM(AV71*1000+(BC71)/10+(BA71)/100+(BK72)/1000+((G72+R72)-(F72+S72))/10000+(G72-R72)/100000+(G72)/1000000))) -> FALSE | CV70: =IF(AU68=3,IF(AU71=3,SUM(AV68*1000+(BC68)/10+(BA68)/100+(BJ70)/1000+((F70+S70)-(G70+R70))/10000+(F70+S70)/100000+(S70)/1000000))) -> FALSE | CW70: =IF(AU69=3,IF(AU70=3,SUM(AV69*1000+(BC69)/10+(BA69)/100+(BJ76)/1000+((F76+S76)-(G76+R76))/10000+(F76+S76)/100000+(S76)/1000000))) -> FALSE | CX70: =IF(AU70=3,IF(AU69=3,SUM(AV70*1000+(BC70)/10+(BA70)/100+(BK76)/1000+((G76+R76)-(F76+S76))/10000+(G76+R76)/1000000+(G76)/1000000))) -> FALSE | CY70: =IF(AU71=3,IF(AU69=3,SUM(AV71*1000+(BC71)/10+(BA71)/100+(BK72)/1000+((G72+R72)-(F72+S72))/10000+(G72-R72)/100000+(G72)/1000000))) -> FALSE | CZ70: =IF(AU68=4,IF(AU71=4,SUM(AV68*1000+(BC68)/10+(BA68)/100+(BJ70)/1000+((F70+S70)-(G70+R70))/10000+(F70+S70)/100000+(S70)/1000000))) -> FALSE | DA70: =IF(AU69=4,IF(AU70=4,SUM(AV69*1000+(BC69)/10+(BA69)/100+(BJ76)/1000+((F76+S76)-(G76+R76))/10000+(F76+S76)/100000+(S76)/1000000))) -> FALSE | DB70: =IF(AU70=4,IF(AU69=4,SUM(AV70*1000+(BC70)/10+(BA70)/100+(BK76)/1000+((G76+R76)-(F76+S76))/10000+(G76+R76)/1000000+(G76)/1000000))) -> FALSE | DC70: =IF(AU71=4,IF(AU69=4,SUM(AV71*1000+(BC71)/10+(BA71)/100+(BK72)/1000+((G72+R72)-(F72+S72))/10000+(G72-R72)/100000+(G72)/1000000))) -> FALSE
A71: =AP69 -> OUGANDA | F71: 0 | G71: 0 | H71: =AP70 -> GHANA | M71: GHANA | R71: 0 | S71: 0 | T71: OUGANDA | Z71: =VLOOKUP(AN80,AO77:AT80,2,0) -> CONGO | AE71: 4 | AF71: =VLOOKUP(Z71,AP68:BC71,7,0) -> 2 | AG71: =VLOOKUP(Z71,AP68:BC71,8,0) -> 6 | AH71: =VLOOKUP(Z71,AP68:BC71,9,0) -> 0 | AI71: =VLOOKUP(Z71,AP68:BC71,10,0) -> 2 | AJ71: =VLOOKUP(Z71,AP68:BC71,11,0) -> 4 | AK71: =VLOOKUP(Z71,AP68:BC71,12,0) -> 5 | AL71: =VLOOKUP(Z71,AP68:BC71,13,0) -> 12 | AM71: =VLOOKUP(Z71,AP68:BC71,14,0) -> -7 | AP71: CONGO | AU71: =RANK(AV71,AV68:AV71) -> 4 | AV71: =SUMPRODUCT((A68:E73=AP71)*(BF68:BF73))+SUMPRODUCT((H68:L73=AP71)*(BG68:BG73))+SUMPRODUCT((M68:Q73=AP71)*(BH68:BH73))+SUMPRODUCT((T68:X73=AP71)*(BI68:BI73)) -> 2 | AW71: =SUMPRODUCT((A68:E73=AP71)*(BL68:BL73))+SUMPRODUCT((H68:L73=AP71)*(BM68:BM73))+SUMPRODUCT((M68:Q73=AP71)*(BN68:BN73))+SUMPRODUCT((T68:X73=AP71)*(BO68:BO73)) -> 6 | AX71: =SUMPRODUCT((A68:E73=AP71)*(BP68:BP73))+SUMPRODUCT((H68:L73=AP71)*(BQ68:BQ73))+SUMPRODUCT((M68:Q73=AP71)*(BR68:BR73))+SUMPRODUCT((T68:X73=AP71)*(BS68:BS73)) -> 0 | AY71: =SUMPRODUCT((A68:E73=AP71)*(BT68:BT73))+SUMPRODUCT((H68:L73=AP71)*(BU68:BU73))+SUMPRODUCT((M68:Q73=AP71)*(BV68:BV73))+SUMPRODUCT((T68:X73=AP71)*(BW68:BW73)) -> 2 | AZ71: =SUMPRODUCT((A68:E73=AP71)*(BX68:BX73))+SUMPRODUCT((H68:L73=AP71)*(BY68:BY73))+SUMPRODUCT((M68:Q73=AP71)*(BZ68:BZ73))+SUMPRODUCT((T68:X73=AP71)*(CA68:CA73)) -> 4 | BA71: =SUMPRODUCT((A68:E73=AP71)*(CB68:CB73))+SUMPRODUCT((H68:L73=AP71)*(CC68:CC73))+SUMPRODUCT((M68:Q73=AP71)*(CD68:CD73))+SUMPRODUCT((T68:X73=AP71)*(CE68:CE73)) -> 5 | BB71: =SUMPRODUCT((A68:E73=AP71)*(CH68:CH73))+SUMPRODUCT((H68:L73=AP71)*(CI68:CI73))+SUMPRODUCT((M68:Q73=AP71)*(CJ68:CJ73))+SUMPRODUCT((T68:X73=AP71)*(CK68:CK73)) -> 12 | BC71: -7 | BF71: 1 | BG71: 1 | BH71: 1 | BI71: 1 | BJ71: 2 | BK71: 2 | BL71: 1 | BM71: 1 | BN71: 1 | BO71: 1 | BP71: FALSE | BQ71: FALSE | BR71: FALSE | BS71: FALSE | BT71: 1 | BU71: 1 | BV71: 1 | BW71: 1 | BX71: FALSE | BY71: FALSE | BZ71: FALSE | CA71: FALSE | CB71: 0 | CC71: 0 | CD71: 0 | CE71: 0 | CF71: 0 | CG71: 0 | CH71: 0 | CI71: 0 | CJ71: 0 | CK71: 0 | CL71: 0 | CM71: 0 | CN71: =IF(AU68=1,IF(AU71=1,SUM(AV68*1000+(BC68)/10+(BA68)/100+(BJ70)/1000+((F70+S70)-(G70+R70))/10000+(F70+S70)/100000+(S70)/1000000))) -> FALSE | CO71: =IF(AU69=1,IF(AU71=1,SUM(AV69*1000+(BC69)/10+(BA69)/100+(BJ72)/1000+((F72+S72)-(G72+R72))/10000+(F72+S72)/100000+(S72)/1000000))) -> FALSE | CP71: =IF(AU70=1,IF(AU71=1,SUM(AV70*1000+(BC70)/10+(BA70)/100+(BJ73)/1000+((F73+S73)-(G73+R73))/10000+(F73+S73)/100000+(S73)/1000000))) -> FALSE | CQ71: =IF(AU71=1,IF(AU70=1,SUM(AV71*1000+(BC71)/10+(BA71)/100+(BK73)/1000+((G73+R73)-(F73+S73))/10000+(G73+R73)/100000+(G73)/1000000))) -> FALSE | CR71: =IF(AU68=2,IF(AU71=2,SUM(AV68*1000+(BC68)/10+(BA68)/100+(BJ70)/1000+((F70+S70)-(G70+R70))/10000+(F70+S70)/100000+(S70)/1000000))) -> FALSE | CS71: =IF(AU69=2,IF(AU71=2,SUM(AV69*1000+(BC69)/10+(BA69)/100+(BJ72)/1000+((F72+S72)-(G72+R72))/10000+(F72+S72)/100000+(S72)/1000000))) -> FALSE | CT71: =IF(AU70=2,IF(AU71=2,SUM(AV70*1000+(BC70)/10+(BA70)/100+(BJ73)/1000+((F73+S73)-(G73+R73))/10000+(F73+S73)/100000+(S73)/1000000))) -> FALSE | CU71: =IF(AU71=2,IF(AU70=2,SUM(AV71*1000+(BC71)/10+(BA71)/100+(BK73)/1000+((G73+R73)-(F73+S73))/10000+(G73+R73)/100000+(G73)/1000000))) -> FALSE | CV71: =IF(AU68=3,IF(AU71=3,SUM(AV68*1000+(BC68)/10+(BA68)/100+(BJ70)/1000+((F70+S70)-(G70+R70))/10000+(F70+S70)/100000+(S70)/1000000))) -> FALSE | CW71: =IF(AU69=3,IF(AU71=3,SUM(AV69*1000+(BC69)/10+(BA69)/100+(BJ72)/1000+((F72+S72)-(G72+R72))/10000+(F72+S72)/100000+(S72)/1000000))) -> FALSE | CX71: =IF(AU70=3,IF(AU71=3,SUM(AV70*1000+(BC70)/10+(BA70)/100+(BJ73)/1000+((F73+S73)-(G73+R73))/10000+(F73+S73)/100000+(S73)/1000000))) -> FALSE | CY71: =IF(AU71=3,IF(AU70=3,SUM(AV71*1000+(BC71)/10+(BA71)/100+(BK73)/1000+((G73+R73)-(F73+S73))/10000+(G73+R73)/100000+(G73)/1000000))) -> FALSE | CZ71: =IF(AU68=4,IF(AU71=4,SUM(AV68*1000+(BC68)/10+(BA68)/100+(BJ70)/1000+((F70+S70)-(G70+R70))/10000+(F70+S70)/100000+(S70)/1000000))) -> FALSE | DA71: =IF(AU69=4,IF(AU71=4,SUM(AV69*1000+(BC69)/10+(BA69)/100+(BJ72)/1000+((F72+S72)-(G72+R72))/10000+(F72+S72)/100000+(S72)/1000000))) -> FALSE | DB71: =IF(AU70=4,IF(AU71=4,SUM(AV70*1000+(BC70)/10+(BA70)/100+(BJ73)/1000+((F73+S73)-(G73+R73))/10000+(F73+S73)/100000+(S73)/1000000))) -> FALSE | DC71: =IF(AU71=4,IF(AU70=4,SUM(AV71*1000+(BC71)/10+(BA71)/100+(BK73)/1000+((G73+R73)-(F73+S73))/10000+(G73+R73)/100000+(G73)/1000000))) -> FALSE
A72: =AP69 -> OUGANDA | F72: 1 | G72: 0 | H72: =AP71 -> CONGO | M72: CONGO | R72: 1 | S72: 1 | T72: OUGANDA | AC72: GROUPE E | BF72: 3 | BG72: 0 | BH72: 1 | BI72: 1 | BJ72: 4 | BK72: 1 | BL72: 1 | BM72: 1 | BN72: 1 | BO72: 1 | BP72: 1 | BQ72: FALSE | BR72: FALSE | BS72: FALSE | BT72: FALSE | BU72: FALSE | BV72: 1 | BW72: 1 | BX72: FALSE | BY72: 1 | BZ72: FALSE | CA72: FALSE | CB72: 1 | CC72: 0 | CD72: 1 | CE72: 1 | CF72: 2 | CG72: 1 | CH72: 0 | CI72: 1 | CJ72: 1 | CK72: 1 | CL72: 1 | CM72: 2 | CN72: =SUM(CN68:CN71) -> 1000000 | CO72: 0 | CP72: 0 | CQ72: 0 | CR72: 0 | CS72: 800000 | CT72: 0 | CU72: 0 | CV72: 0 | CW72: 0 | CX72: 600000 | CY72: 0 | CZ72: 0 | DA72: 0 | DB72: 0 | DC72: 400000
A73: =AP70 -> GHANA | F73: 1 | G73: 1 | H73: =AP71 -> CONGO | M73: CONGO | R73: 1 | S73: 5 | T73: GHANA | BF73: 1 | BG73: 1 | BH73: 0 | BI73: 3 | BJ73: 4 | BK73: 1 | BL73: 1 | BM73: 1 | BN73: 1 | BO73: 1 | BP73: FALSE | BQ73: FALSE | BR73: FALSE | BS73: 1 | BT73: 1 | BU73: 1 | BV73: FALSE | BW73: FALSE | BX73: FALSE | BY73: FALSE | BZ73: 1 | CA73: FALSE | CB73: 1 | CC73: 1 | CD73: 1 | CE73: 5 | CF73: 6 | CG73: 2 | CH73: 1 | CI73: 1 | CJ73: 5 | CK73: 1 | CL73: 2 | CM73: 6
A74: ÉQUIPE QUALIFIÉE | G74: =Z68 -> ÉGYPTE
AN77: 1 | AO77: =BA77 -> 1 | AP77: =AP68 -> ÉGYPTE | AU77: =SUM(CN72,CR72,CV72,CZ72) -> 1000000 | AX77: =AU77+0.00000004 -> 1000000 | BA77: =RANK(AX77,AX77:AZ80) -> 1 | BB77: =RANK(AU77,AU77:AW80) -> 1 | BD77: =VLOOKUP(AN77,AO77:AT80,2,0) -> ÉGYPTE | BI77: =VLOOKUP(BD77,AP77:AW80,6,0) -> 1000000 | BL77: =RANK(BI77,BI77:BK80) -> 1
AN78: 2 | AO78: =BA78 -> 2 | AP78: =AP69 -> OUGANDA | AU78: =SUM(CO72,CS72,CW72,DA72) -> 800000 | AX78: =AU78+0.00000003 -> 800000 | BA78: =RANK(AX78,AX77:AZ80) -> 2 | BB78: =RANK(AU78,AU77:AW80) -> 2 | BD78: =VLOOKUP(AN78,AO77:AT80,2,0) -> OUGANDA | BI78: =VLOOKUP(BD78,AP77:AW80,6,0) -> 800000 | BL78: =RANK(BI78,BI77:BK80) -> 2
AN79: 3 | AO79: 3 | AP79: GHANA | AU79: =SUM(CP72,CT72,CX72,DB72) -> 600000 | AX79: =AU79+0.00000002 -> 600000 | BA79: =RANK(AX79,AX77:AZ80) -> 3 | BB79: =RANK(AU79,AU77:AW80) -> 3 | BD79: =VLOOKUP(AN79,AO77:AT80,2,0) -> GHANA | BI79: =VLOOKUP(BD79,AP77:AW80,6,0) -> 600000 | BL79: =RANK(BI79,BI77:BK80) -> 3
AN80: 4 | AO80: 4 | AP80: CONGO | AU80: =SUM(CQ72,CU72,CY72,DC72) -> 400000 | AX80: =AU80+0.00000001 -> 400000 | BA80: =RANK(AX80,AX77:AZ80) -> 4 | BB80: =RANK(AU80,AU77:AW80) -> 4 | BD80: =VLOOKUP(AN80,AO77:AT80,2,0) -> CONGO | BI80: =VLOOKUP(BD80,AP77:AW80,6,0) -> 400000 | BL80: =RANK(BI80,BI77:BK80) -> 4

Sheet ASIE
A1: MATCHS ALLER | J1: GROUPE A | P1: MATCHS RETOUR | Y1: GROUPE A | Z1: CLASSEMENT | AP1: CLASSEMENT
A3: Équipes | F3: Bts | G3: Bts | H3: Équipes | M3: Équipes | R3: Bts | S3: Bts | T3: Équipes | Z3: Équipes | AE3: R | AF3: Pts | AG3: J | AH3: G | AI3: N | AJ3: P | AK3: B + | AL3: B - | AM3: Diff | AP3: Équipes | AU3: R | AV3: Pts | AW3: J | AX3: G | AY3: N | AZ3: P | BA3: B + | BB3: B - | BC3: Diff | BF3: pts | BG3: pts | BH3: pts | BI3: pts | BJ3: t pts | BK3: t pts | BL3: j | BM3: j | BN3: j | BO3: j | BP3: g | BQ3: g | BR3: g | BS3: g | BT3: n | BU3: n | BV3: n | BW3: n | BX3: p | BY3: p | BZ3: p | CA3: p | CB3: b+ | CC3: b+ | CD3: b+ | CE3: b+ | CF3: b+ | CG3: b+ | CH3: b- | CI3: b- | CJ3: b- | CK3: b- | CL3: b- | CM3: b- | CN3: =AP4 -> IRAN | CO3: =AP5 -> RÉPUBLIQUE DE CORÉE | CP3: =AP6 -> OUZBÉKISTAN | CQ3: =AP7 -> SYRIE | CR3: =AP8 -> RÉPUBLIQUE DE CHINE | CS3: =AP9 -> QATAR | CU3: =CN3 -> IRAN | CV3: =CO3 -> RÉPUBLIQUE DE CORÉE | CW3: OUZBÉKISTAN | CX3: SYRIE | CY3: RÉPUBLIQUE DE CHINE | CZ3: QATAR | DA3: =CN3 -> IRAN | DB3: =CO3 -> RÉPUBLIQUE DE CORÉE | DC3: OUZBÉKISTAN | DD3: SYRIE | DE3: RÉPUBLIQUE DE CHINE | DF3: QATAR | DG3: =CN3 -> IRAN | DH3: =CO3 -> RÉPUBLIQUE DE CORÉE | DI3: OUZBÉKISTAN | DJ3: SYRIE | DK3: RÉPUBLIQUE DE CHINE | DL3: QATAR | DM3: =CN3 -> IRAN | DN3: =CO3 -> RÉPUBLIQUE DE CORÉE | DO3: OUZBÉKISTAN | DP3: SYRIE | DQ3: RÉPUBLIQUE DE CHINE | DR3: QATAR | DS3: =CN3 -> IRAN | DT3: =CO3 -> RÉPUBLIQUE DE CORÉE | DU3: OUZBÉKISTAN | DV3: SYRIE | DW3: RÉPUBLIQUE DE CHINE | DX3: QATAR
A4: =AP4 -> IRAN | F4: 1 | G4: 0 | H4: =AP5 -> RÉPUBLIQUE DE CORÉE | M4: =H4 -> RÉPUBLIQUE DE CORÉE | R4: 0 | S4: 0 | T4: =A4 -> IRAN | Z4: =VLOOKUP(AN11,AO11:AT16,2,0) -> IRAN | AE4: 1 | AF4: =VLOOKUP(Z4,AP4:BC9,7,0) -> 22 | AG4: =VLOOKUP(Z4,AP4:BC9,8,0) -> 10 | AH4: =VLOOKUP(Z4,AP4:BC9,9,0) -> 6 | AI4: =VLOOKUP(Z4,AP4:BC9,10,0) -> 4 | AJ4: =VLOOKUP(Z4,AP4:BC9,11,0) -> 0 | AK4: =VLOOKUP(Z4,AP4:BC9,12,0) -> 10 | AL4: =VLOOKUP(Z4,AP4:BC9,13,0) -> 2 | AM4: =VLOOKUP(Z4,AP4:BC9,14,0) -> 8 | AP4: IRAN | AU4: =RANK(AV4,AV4:AV9) -> 1 | AV4: =SUMPRODUCT((A4:E18=AP4)*(BF4:BF18))+SUMPRODUCT((H4:L18=AP4)*(BG4:BG18))+SUMPRODUCT((M4:Q18=AP4)*(BH4:BH18))+SUMPRODUCT((T4:X18=AP4)*(BI4:BI18)) -> 22 | AW4: =SUMPRODUCT((A4:E18=AP4)*(BL4:BL18))+SUMPRODUCT((H4:L18=AP4)*(BM4:BM18))+SUMPRODUCT((M4:Q18=AP4)*(BN4:BN18))+SUMPRODUCT((T4:X18=AP4)*(BO4:BO18)) -> 10 | AX4: =SUMPRODUCT((A4:E18=AP4)*(BP4:BP18))+SUMPRODUCT((H4:L18=AP4)*(BQ4:BQ18))+SUMPRODUCT((M4:Q18=AP4)*(BR4:BR18))+SUMPRODUCT((T4:X18=AP4)*(BS4:BS18)) -> 6 | AY4: =SUMPRODUCT((A4:E18=AP4)*(BT4:BT18))+SUMPRODUCT((H4:L18=AP4)*(BU4:BU18))+SUMPRODUCT((M4:Q18=AP4)*(BV4:BV18))+SUMPRODUCT((T4:X18=AP4)*(BW4:BW18)) -> 4 | AZ4: =SUMPRODUCT((A4:E18=AP4)*(BX4:BX18))+SUMPRODUCT((H4:L18=AP4)*(BY4:BY18))+SUMPRODUCT((M4:Q18=AP4)*(BZ4:BZ18))+SUMPRODUCT((T4:X18=AP4)*(CA4:CA18)) -> 0 | BA4: =SUMPRODUCT((A4:E18=AP4)*(CB4:CB18))+SUMPRODUCT((H4:L18=AP4)*(CC4:CC18))+SUMPRODUCT((M4:Q18=AP4)*(CD4:CD18))+SUMPRODUCT((T4:X18=AP4)*(CE4:CE18)) -> 10 | BB4: =SUMPRODUCT((A4:E18=AP4)*(CH4:CH18))+SUMPRODUCT((H4:L18=AP4)*(CI4:CI18))+SUMPRODUCT((M4:Q18=AP4)*(CJ4:CJ18))+SUMPRODUCT((T4:X18=AP4)*(CK4:CK18)) -> 2 | BC4: =BA4-BB4 -> 8 | BF4: =IF(F4="",0,IF(F4>G4,3,IF(F4=G4,1,IF(F4<G4,0)))) -> 3 | BG4: =IF(G4="",0,IF(G4>F4,3,IF(G4=F4,1,IF(G4<F4,0)))) -> 0 | BH4: =IF(R4="",0,IF(R4>S4,3,IF(R4=S4,1,IF(R4<S4,0)))) -> 1 | BI4: =IF(S4="",0,IF(S4>R4,3,IF(S4=R4,1,IF(S4<R4,0)))) -> 1 | BJ4: =BF4+BI4 -> 4 | BK4: =BG4+BH4 -> 1 | BL4: =IF(F4="",0,1) -> 1 | BM4: =IF(G4="",0,1) -> 1 | BN4: =IF(R4="",0,1) -> 1 | BO4: =IF(S4="",0,1) -> 1 | BP4: =IF(F4<>"",IF(F4>G4,1)) -> 1 | BQ4: =IF(G4<>"",IF(G4>F4,1)) -> FALSE | BR4: =IF(R4<>"",IF(R4>S4,1)) -> FALSE | BS4: =IF(S4<>"",IF(S4>R4,1)) -> FALSE | BT4: =IF(F4<>"",IF(F4=G4,1)) -> FALSE | BU4: =IF(G4<>"",IF(G4=F4,1)) -> FALSE | BV4: =IF(R4<>"",IF(R4=S4,1)) -> 1 | BW4: =IF(S4<>"",IF(S4=R4,1)) -> 1 | BX4: =IF(F4<>"",IF(F4<G4,1)) -> FALSE | BY4: =IF(G4<>"",IF(G4<F4,1)) -> 1 | BZ4: =IF(R4<>"",IF(R4<S4,1)) -> FALSE | CA4: =IF(S4<>"",IF(S4<R4,1)) -> FALSE | CB4: =F4 -> 1 | CC4: =G4 -> 0 | CD4: =R4 -> 0 | CE4: =S4 -> 0 | CF4: =CB4+CE4 -> 1 | CG4: =CC4+CD4 -> 0 | CH4: =G4 -> 0 | CI4: =F4 -> 1 | CJ4: =S4 -> 0 | CK4: =R4 -> 0 | CL4: =CH4+CK4 -> 0 | CM4: =CI4+CJ4 -> 1 | CN4: =IF(AU4=1,1000000) -> 1000000 | CO4: =IF(AU5=1,1000000) -> FALSE | CP4: =IF(AU6=1,1000000) -> FALSE | CQ4: =IF(AU7=1,1000000) -> FALSE | CR4: =IF(AU8=1,1000000) -> FALSE | CS4: =IF(AU9=1,1000000) -> FALSE | CU4: =IF(AU4=2,800000) -> FALSE | CV4: =IF(AU5=2,800000) -> 800000 | CW4: =IF(AU6=2,800000) -> FALSE | CX4: =IF(AU7=2,800000) -> FALSE | CY4: =IF(AU8=2,800000) -> FALSE | CZ4: =IF(AU9=2,800000) -> FALSE | DA4: =IF(AU4=3,600000) -> FALSE | DB4: =IF(AU5=3,600000) -> FALSE | DC4: =IF(AU6=3,600000) -> 600000 | DD4: =IF(AU7=3,600000) -> 600000 | DE4: =IF(AU8=3,600000) -> FALSE | DF4: =IF(AU9=3,600000) -> FALSE | DG4: =IF(AU4=4,400000) -> FALSE | DH4: =IF(AU5=4,400000) -> FALSE | DI4: =IF(AU6=4,400000) -> FALSE | DJ4: =IF(AU7=4,400000) -> FALSE | DK4: =IF(AU8=4,400000) -> FALSE | DL4: =IF(AU9=4,400000) -> FALSE | DM4: =IF(AU4=5,200000) -> FALSE | DN4: =IF(AU5=5,200000) -> FALSE | DO4: =IF(AU6=5,200000) -> FALSE | DP4: =IF(AU7=5,200000) -> FALSE | DQ4: =IF(AU8=5,200000) -> 200000 | DR4: =IF(AU9=5,200000) -> FALSE | DS4: =IF(AU4=6,100000) -> FALSE | DT4: =IF(AU5=6,100000) -> FALSE | DU4: =IF(AU6=6,100000) -> FALSE | DV4: =IF(AU7=6,100000) -> FALSE | DW4: =IF(AU8=6,100000) -> FALSE | DX4: =IF(AU9=6,100000) -> 100000
A5: =AP4 -> IRAN | F5: 2 | G5: 0 | H5: =AP6 -> OUZBÉKISTAN | M5: =H5 -> OUZBÉKISTAN | R5: 0 | S5: 1 | T5: =A5 -> IRAN | Z5: =VLOOKUP(AN12,AO11:AT16,2,0) -> RÉPUBLIQUE DE CORÉE | AE5: =IF(CT13=CT12,CW12,CW13) -> 2 | AF5: =VLOOKUP(Z5,AP4:BC9,7,0) -> 15 | AG5: =VLOOKUP(Z5,AP4:BC9,8,0) -> 10 | AH5: =VLOOKUP(Z5,AP4:BC9,9,0) -> 4 | AI5: =VLOOKUP(Z5,AP4:BC9,10,0) -> 3 | AJ5: =VLOOKUP(Z5,AP4:BC9,11,0) -> 3 | AK5: =VLOOKUP(Z5,AP4:BC9,12,0) -> 11 | AL5: =VLOOKUP(Z5,AP4:BC9,13,0) -> 10 | AM5: =VLOOKUP(Z5,AP4:BC9,14,0) -> 1 | AP5: RÉPUBLIQUE DE CORÉE | AU5: =RANK(AV5,AV4:AV9) -> 2 | AV5: =SUMPRODUCT((A4:E18=AP5)*(BF4:BF18))+SUMPRODUCT((H4:L18=AP5)*(BG4:BG18))+SUMPRODUCT((M4:Q18=AP5)*(BH4:BH18))+SUMPRODUCT((T4:X18=AP5)*(BI4:BI18)) -> 15 | AW5: =SUMPRODUCT((A4:E18=AP5)*(BL4:BL18))+SUMPRODUCT((H4:L18=AP5)*(BM4:BM18))+SUMPRODUCT((M4:Q18=AP5)*(BN4:BN18))+SUMPRODUCT((T4:X18=AP5)*(BO4:BO18)) -> 10 | AX5: =SUMPRODUCT((A4:E18=AP5)*(BP4:BP18))+SUMPRODUCT((H4:L18=AP5)*(BQ4:BQ18))+SUMPRODUCT((M4:Q18=AP5)*(BR4:BR18))+SUMPRODUCT((T4:X18=AP5)*(BS4:BS18)) -> 4 | AY5: =SUMPRODUCT((A4:E18=AP5)*(BT4:BT18))+SUMPRODUCT((H4:L18=AP5)*(BU4:BU18))+SUMPRODUCT((M4:Q18=AP5)*(BV4:BV18))+SUMPRODUCT((T4:X18=AP5)*(BW4:BW18)) -> 3 | AZ5: =SUMPRODUCT((A4:E18=AP5)*(BX4:BX18))+SUMPRODUCT((H4:L18=AP5)*(BY4:BY18))+SUMPRODUCT((M4:Q18=AP5)*(BZ4:BZ18))+SUMPRODUCT((T4:X18=AP5)*(CA4:CA18)) -> 3 | BA5: =SUMPRODUCT((A4:E18=AP5)*(CB4:CB18))+SUMPRODUCT((H4:L18=AP5)*(CC4:CC18))+SUMPRODUCT((M4:Q18=AP5)*(CD4:CD18))+SUMPRODUCT((T4:X18=AP5)*(CE4:CE18)) -> 11 | BB5: =SUMPRODUCT((A4:E18=AP5)*(CH4:CH18))+SUMPRODUCT((H4:L18=AP5)*(CI4:CI18))+SUMPRODUCT((M4:Q18=AP5)*(CJ4:CJ18))+SUMPRODUCT((T4:X18=AP5)*(CK4:CK18)) -> 10 | BC5: =BA5-BB5 -> 1 | BF5: =IF(F5="",0,IF(F5>G5,3,IF(F5=G5,1,IF(F5<G5,0)))) -> 3 | BG5: =IF(G5="",0,IF(G5>F5,3,IF(G5=F5,1,IF(G5<F5,0)))) -> 0 | BH5: =IF(R5="",0,IF(R5>S5,3,IF(R5=S5,1,IF(R5<S5,0)))) -> 0 | BI5: =IF(S5="",0,IF(S5>R5,3,IF(S5=R5,1,IF(S5<R5,0)))) -> 3 | BJ5: =BF5+BI5 -> 6 | BK5: =BG5+BH5 -> 0 | BL5: =IF(F5="",0,1) -> 1 | BM5: 1 | BN5: =IF(R5="",0,1) -> 1 | BO5: 1 | BP5: =IF(F5<>"",IF(F5>G5,1)) -> 1 | BQ5: =IF(G5<>"",IF(G5>F5,1)) -> FALSE | BR5: =IF(R5<>"",IF(R5>S5,1)) -> FALSE | BS5: =IF(S5<>"",IF(S5>R5,1)) -> 1 | BT5: =IF(F5<>"",IF(F5=G5,1)) -> FALSE | BU5: =IF(G5<>"",IF(G5=F5,1)) -> FALSE | BV5: =IF(R5<>"",IF(R5=S5,1)) -> FALSE | BW5: =IF(S5<>"",IF(S5=R5,1)) -> FALSE | BX5: =IF(F5<>"",IF(F5<G5,1)) -> FALSE | BY5: =IF(G5<>"",IF(G5<F5,1)) -> 1 | BZ5: =IF(R5<>"",IF(R5<S5,1)) -> 1 | CA5: =IF(S5<>"",IF(S5<R5,1)) -> FALSE | CB5: =F5 -> 2 | CC5: 0 | CD5: =R5 -> 0 | CE5: 1 | CF5: =CB5+CE5 -> 3 | CG5: =CC5+CD5 -> 0 | CH5: =G5 -> 0 | CI5: =F5 -> 2 | CJ5: =S5 -> 1 | CK5: =R5 -> 0 | CL5: =CH5+CK5 -> 0 | CM5: =CI5+CJ5 -> 3 | CN5: =IF(AU4=1,IF(AU5=1,SUM(AV4*1000+(BC4)/10+(BA4)/100+(BJ4)/1000+((F4+S4)-(G4+R4))/10000+(F4+S4)/100000+(S4)/1000000))) -> FALSE | CO5: =IF(AU5=1,IF(AU4=1,SUM(AV5*1000+(BC5)/10+(BA5)/100+(BK4)/1000+((G4+R4)-(F4+S4))/10000+(G4+R4)/100000+(G4)/1000000))) -> FALSE | CP5: =IF(AU6=1,IF(AU4=1,SUM(AV6*1000+(BC6)/10+(BA6)/100+(BK5)/1000+((G5+R5)-(F5+S5))/10000+(G5+R5)/100000+(G5)/1000000))) -> FALSE | CQ5: =IF(AU7=1,IF(AU4=1,SUM(AV7*1000+(BC7)/10+(BA7)/100+(BK6)/1000+((G6+R6)-(F6+S6))/10000+(G6+R6)/100000+(G6)/1000000))) -> FALSE | CR5: =IF(AU8=1,IF(AU4=1,SUM(AV8*1000+(BC8)/10+(BA8)/100+(BK7)/1000+((G7+R7)-(F7+S7))/10000+(G7+R7)/100000+(G7)/1000000))) -> FALSE | CS5: =IF(AU9=1,IF(AU4=1,SUM(AV9*1000+(BC9)/10+(BA9)/100+(BK8)/1000+((G8+R8)-(F8+S8))/10000+(G8+R8)/100000+(G8)/1000000))) -> FALSE | CU5: =IF(AU4=2,IF(AU5=2,SUM(AV4*1000+(BC4)/10+(BA4)/100+(BJ4)/1000+((F4+S4)-(G4+R4))/10000+(F4+S4)/100000+(S4)/1000000))) -> FALSE | CV5: =IF(AU5=2,IF(AU4=2,SUM(AV5*1000+(BC5)/10+(BA5)/100+(BK4)/1000+((G4+R4)-(F4+S4))/10000+(G4+R4)/100000+(G4)/1000000))) -> FALSE | CW5: =IF(AU6=2,IF(AU4=2,SUM(AV6*1000+(BC6)/10+(BA6)/100+(BK5)/1000+((G5+R5)-(F5+S5))/10000+(G5+R5)/100000+(G5)/1000000))) -> FALSE | CX5: =IF(AU7=2,IF(AU4=2,SUM(AV7*1000+(BC7)/10+(BA7)/100+(BK6)/1000+((G6+R6)-(F6+S6))/10000+(G6+R6)/100000+(G6)/1000000))) -> FALSE | CY5: =IF(AU8=2,IF(AU4=2,SUM(AV8*1000+(BC8)/10+(BA8)/100+(BK7)/1000+((G7+R7)-(F7+S7))/10000+(G7+R7)/100000+(G7)/1000000))) -> FALSE | CZ5: =IF(AU9=2,IF(AU4=2,SUM(AV9*1000+(BC9)/10+(BA9)/100+(BK8)/1000+((G8+R8)-(F8+S8))/10000+(G8+R8)/100000+(G8)/1000000))) -> FALSE | DA5: =IF(AU4=3,IF(AU5=3,SUM(AV4*1000+(BC4)/10+(BA4)/100+(BJ4)/1000+((F4+S4)-(G4+R4))/10000+(F4+S4)/100000+(S4)/1000000))) -> FALSE | DB5: =IF(AU5=3,IF(AU4=3,SUM(AV5*1000+(BC5)/10+(BA5)/100+(BK4)/1000+((G4+R4)-(F4+S4))/10000+(G4+R4)/100000+(G4)/1000000))) -> FALSE | DC5: =IF(AU6=3,IF(AU4=3,SUM(AV6*1000+(BC6)/10+(BA6)/100+(BK5)/1000+((G5+R5)-(F5+S5))/10000+(G5+R5)/100000+(G5)/1000000))) -> FALSE | DD5: =IF(AU7=3,IF(AU4=3,SUM(AV7*1000+(BC7)/10+(BA7)/100+(BK6)/1000+((G6+R6)-(F6+S6))/10000+(G6+R6)/100000+(G6)/1000000))) -> FALSE | DE5: =IF(AU8=3,IF(AU4=3,SUM(AV8*1000+(BC8)/10+(BA8)/100+(BK7)/1000+((G7+R7)-(F7+S7))/10000+(G7+R7)/100000+(G7)/1000000))) -> FALSE | DF5: =IF(AU9=3,IF(AU4=3,SUM(AV9*1000+(BC9)/10+(BA9)/100+(BK8)/1000+((G8+R8)-(F8+S8))/10000+(G8+R8)/100000+(G8)/1000000))) -> FALSE | DG5: =IF(AU4=4,IF(AU5=4,SUM(AV4*1000+(BC4)/10+(BA4)/100+(BJ4)/1000+((F4+S4)-(G4+R4))/10000+(F4+S4)/100000+(S4)/1000000))) -> FALSE | DH5: =IF(AU5=4,IF(AU4=4,SUM(AV5*1000+(BC5)/10+(BA5)/100+(BK4)/1000+((G4+R4)-(F4+S4))/10000+(G4+R4)/100000+(G4)/1000000))) -> FALSE | DI5: =IF(AU6=4,IF(AU4=4,SUM(AV6*1000+(BC6)/10+(BA6)/100+(BK5)/1000+((G5+R5)-(F5+S5))/10000+(G5+R5)/100000+(G5)/1000000))) -> FALSE | DJ5: =IF(AU7=4,IF(AU4=4,SUM(AV7*1000+(BC7)/10+(BA7)/100+(BK6)/1000+((G6+R6)-(F6+S6))/10000+(G6+R6)/100000+(G6)/1000000))) -> FALSE | DK5: =IF(AU8=4,IF(AU4=4,SUM(AV8*1000+(BC8)/10+(BA8)/100+(BK7)/1000+((G7+R7)-(F7+S7))/10000+(G7+R7)/100000+(G7)/1000000))) -> FALSE | DL5: =IF(AU9=4,IF(AU4=4,SUM(AV9*1000+(BC9)/10+(BA9)/100+(BK8)/1000+((G8+R8)-(F8+S8))/10000+(G8+R8)/100000+(G8)/1000000))) -> FALSE | DM5: =IF(AU4=5,IF(AU5=5,SUM(AV4*1000+(BC4)/10+(BA4)/100+(BJ4)/1000+((F4+S4)-(G4+R4))/10000+(F4+S4)/100000+(S4)/1000000))) -> FALSE | DN5: =IF(AU5=5,IF(AU4=5,SUM(AV5*1000+(BC5)/10+(BA5)/100+(BK4)/1000+((G4+R4)-(F4+S4))/10000+(G4+R4)/100000+(G4)/1000000))) -> FALSE | DO5: =IF(AU6=5,IF(AU4=5,SUM(AV6*1000+(BC6)/10+(BA6)/100+(BK5)/1000+((G5+R5)-(F5+S5))/10000+(G5+R5)/100000+(G5)/1000000))) -> FALSE | DP5: =IF(AU7=5,IF(AU4=5,SUM(AV7*1000+(BC7)/10+(BA7)/100+(BK6)/1000+((G6+R6)-(F6+S6))/10000+(G6+R6)/100000+(G6)/1000000))) -> FALSE | DQ5: =IF(AU8=5,IF(AU4=5,SUM(AV8*1000+(BC8)/10+(BA8)/100+(BK7)/1000+((G7+R7)-(F7+S7))/10000+(G7+R7)/100000+(G7)/1000000))) -> FALSE | DR5: =IF(AU9=5,IF(AU4=5,SUM(AV9*1000+(BC9)/10+(BA9)/100+(BK8)/1000+((G8+R8)-(F8+S8))/10000+(G8+R8)/100000+(G8)/1000000))) -> FALSE | DS5: =IF(AU4=6,IF(AU5=6,SUM(AV4*1000+(BC4)/10+(BA4)/100+(BJ4)/1000+((F4+S4)-(G4+R4))/10000+(F4+S4)/100000+(S4)/1000000))) -> FALSE | DT5: =IF(AU5=6,IF(AU4=6,SUM(AV5*1000+(BC5)/10+(BA5)/100+(BK4)/1000+((G4+R4)-(F4+S4))/10000+(G4+R4)/100000+(G4)/1000000))) -> FALSE | DU5: =IF(AU6=6,IF(AU4=6,SUM(AV6*1000+(BC6)/10+(BA6)/100+(BK5)/1000+((G5+R5)-(F5+S5))/10000+(G5+R5)/100000+(G5)/1000000))) -> FALSE | DV5: =IF(AU7=6,IF(AU4=6,SUM(AV7*1000+(BC7)/10+(BA7)/100+(BK6)/1000+((G6+R6)-(F6+S6))/10000+(G6+R6)/100000+(G6)/1000000))) -> FALSE | DW5: =IF(AU8=6,IF(AU4=6,SUM(AV8*1000+(BC8)/10+(BA8)/100+(BK7)/1000+((G7+R7)-(F7+S7))/10000+(G7+R7)/100000+(G7)/1000000))) -> FALSE | DX5: =IF(AU9=6,IF(AU4=6,SUM(AV9*1000+(BC9)/10+(BA9)/100+(BK8)/1000+((G8+R8)-(F8+S8))/10000+(G8+R8)/100000+(G8)/1000000))) -> FALSE
A6: =AP4 -> IRAN | F6: 2 | G6: 2 | H6: =AP7 -> SYRIE | M6: SYRIE | R6: 0 | S6: 0 | T6: IRAN | Z6: =VLOOKUP(AN13,AO11:AT16,2,0) -> SYRIE | AE6: =IF(CT14=CT13,CW13,CW14) -> 3 | AF6: =VLOOKUP(Z6,AP4:BC9,7,0) -> 13 | AG6: =VLOOKUP(Z6,AP4:BC9,8,0) -> 10 | AH6: =VLOOKUP(Z6,AP4:BC9,9,0) -> 3 | AI6: =VLOOKUP(Z6,AP4:BC9,10,0) -> 4 | AJ6: =VLOOKUP(Z6,AP4:BC9,11,0) -> 3 | AK6: =VLOOKUP(Z6,AP4:BC9,12,0) -> 9 | AL6: =VLOOKUP(Z6,AP4:BC9,13,0) -> 8 | AM6: =VLOOKUP(Z6,AP4:BC9,14,0) -> 1 | AP6: OUZBÉKISTAN | AU6: =RANK(AV6,AV4:AV9) -> 3 | AV6: =SUMPRODUCT((A4:E18=AP6)*(BF4:BF18))+SUMPRODUCT((H4:L18=AP6)*(BG4:BG18))+SUMPRODUCT((M4:Q18=AP6)*(BH4:BH18))+SUMPRODUCT((T4:X18=AP6)*(BI4:BI18)) -> 13 | AW6: =SUMPRODUCT((A4:E18=AP6)*(BL4:BL18))+SUMPRODUCT((H4:L18=AP6)*(BM4:BM18))+SUMPRODUCT((M4:Q18=AP6)*(BN4:BN18))+SUMPRODUCT((T4:X18=AP6)*(BO4:BO18)) -> 10 | AX6: =SUMPRODUCT((A4:E18=AP6)*(BP4:BP18))+SUMPRODUCT((H4:L18=AP6)*(BQ4:BQ18))+SUMPRODUCT((M4:Q18=AP6)*(BR4:BR18))+SUMPRODUCT((T4:X18=AP6)*(BS4:BS18)) -> 4 | AY6: =SUMPRODUCT((A4:E18=AP6)*(BT4:BT18))+SUMPRODUCT((H4:L18=AP6)*(BU4:BU18))+SUMPRODUCT((M4:Q18=AP6)*(BV4:BV18))+SUMPRODUCT((T4:X18=AP6)*(BW4:BW18)) -> 1 | AZ6: =SUMPRODUCT((A4:E18=AP6)*(BX4:BX18))+SUMPRODUCT((H4:L18=AP6)*(BY4:BY18))+SUMPRODUCT((M4:Q18=AP6)*(BZ4:BZ18))+SUMPRODUCT((T4:X18=AP6)*(CA4:CA18)) -> 5 | BA6: =SUMPRODUCT((A4:E18=AP6)*(CB4:CB18))+SUMPRODUCT((H4:L18=AP6)*(CC4:CC18))+SUMPRODUCT((M4:Q18=AP6)*(CD4:CD18))+SUMPRODUCT((T4:X18=AP6)*(CE4:CE18)) -> 6 | BB6: =SUMPRODUCT((A4:E18=AP6)*(CH4:CH18))+SUMPRODUCT((H4:L18=AP6)*(CI4:CI18))+SUMPRODUCT((M4:Q18=AP6)*(CJ4:CJ18))+SUMPRODUCT((T4:X18=AP6)*(CK4:CK18)) -> 7 | BC6: -1 | BF6: 1 | BG6: 1 | BH6: 1 | BI6: 1 | BJ6: 2 | BK6: 2 | BL6: 1 | BM6: 1 | BN6: 1 | BO6: 1 | BP6: FALSE | BQ6: FALSE | BR6: FALSE | BS6: FALSE | BT6: 1 | BU6: 1 | BV6: 1 | BW6: 1 | BX6: FALSE | BY6: FALSE | BZ6: FALSE | CA6: FALSE | CB6: 2 | CC6: 2 | CD6: 0 | CE6: 0 | CF6: 2 | CG6: 2 | CH6: 2 | CI6: 2 | CJ6: 0 | CK6: 0 | CL6: 2 | CM6: 2 | CN6: =IF(AU4=1,IF(AU6=1,SUM(AV4*1000+(BC4)/10+(BA4)/100+(BJ5)/1000+((F5+S5)-(G5+R5))/10000+(F5+S5)/100000+(S5)/1000000))) -> FALSE | CO6: =IF(AU5=1,IF(AU6=1,SUM(AV5*1000+(BC5)/10+(BA5)/100+(BJ9)/1000+((F9+S9)-(G9+R9))/10000+(F9+S9)/100000+(S9)/1000000))) -> FALSE | CP6: =IF(AU6=1,IF(AU5=1,SUM(AV6*1000+(BC6)/10+(BA6)/100+(BK9)/1000+((G9+R9)-(F9+S9))/10000+(G9+R9)/1000000+(G9)/1000000))) -> FALSE | CQ6: =IF(AU7=1,IF(AU5=1,SUM(AV7*1000+(BC7)/10+(BA7)/100+(BK10)/1000+((G10+R10)-(F10+S10))/10000+(G10+R10)/100000+(G10)/1000000))) -> FALSE | CR6: =IF(AU8=1,IF(AU5=1,SUM(AV8*1000+(BC8)/10+(BA8)/100+(BK11)/1000+((G11+R11)-(F11+S11))/10000+(G11+R11)/100000+(G11)/1000000))) -> FALSE | CS6: =IF(AU9=1,IF(AU5=1,SUM(AV9*1000+(BC9)/10+(BA9)/100+(BK12)/1000+((G12+R12)-(F12+S12))/10000+(G12+R12)/100000+(G12)/1000000))) -> FALSE | CU6: =IF(AU4=2,IF(AU6=2,SUM(AV4*1000+(BC4)/10+(BA4)/100+(BJ5)/1000+((F5+S5)-(G5+R5))/10000+(F5+S5)/100000+(S5)/1000000))) -> FALSE | CV6: =IF(AU5=2,IF(AU6=2,SUM(AV5*1000+(BC5)/10+(BA5)/100+(BJ9)/1000+((F9+S9)-(G9+R9))/10000+(F9+S9)/100000+(S9)/1000000))) -> FALSE | CW6: =IF(AU6=2,IF(AU5=2,SUM(AV6*1000+(BC6)/10+(BA6)/100+(BK9)/1000+((G9+R9)-(F9+S9))/10000+(G9+R9)/1000000+(G9)/1000000))) -> FALSE | CX6: =IF(AU7=2,IF(AU5=2,SUM(AV7*1000+(BC7)/10+(BA7)/100+(BK10)/1000+((G10+R10)-(F10+S10))/10000+(G10+R10)/100000+(G10)/1000000))) -> FALSE | CY6: =IF(AU8=2,IF(AU5=2,SUM(AV8*1000+(BC8)/10+(BA8)/100+(BK11)/1000+((G11+R11)-(F11+S11))/10000+(G11+R11)/100000+(G11)/1000000))) -> FALSE | CZ6: =IF(AU9=2,IF(AU5=2,SUM(AV9*1000+(BC9)/10+(BA9)/100+(BK12)/1000+((G12+R12)-(F12+S12))/10000+(G12+R12)/100000+(G12)/1000000))) -> FALSE | DA6: =IF(AU4=3,IF(AU6=3,SUM(AV4*1000+(BC4)/10+(BA4)/100+(BJ5)/1000+((F5+S5)-(G5+R5))/10000+(F5+S5)/100000+(S5)/1000000))) -> FALSE | DB6: =IF(AU5=3,IF(AU6=3,SUM(AV5*1000+(BC5)/10+(BA5)/100+(BJ9)/1000+((F9+S9)-(G9+R9))/10000+(F9+S9)/100000+(S9)/1000000))) -> FALSE | DC6: =IF(AU6=3,IF(AU5=3,SUM(AV6*1000+(BC6)/10+(BA6)/100+(BK9)/1000+((G9+R9)-(F9+S9))/10000+(G9+R9)/1000000+(G9)/1000000))) -> FALSE | DD6: =IF(AU7=3,IF(AU5=3,SUM(AV7*1000+(BC7)/10+(BA7)/100+(BK10)/1000+((G10+R10)-(F10+S10))/10000+(G10+R10)/100000+(G10)/1000000))) -> FALSE | DE6: =IF(AU8=3,IF(AU5=3,SUM(AV8*1000+(BC8)/10+(BA8)/100+(BK11)/1000+((G11+R11)-(F11+S11))/10000+(G11+R11)/100000+(G11)/1000000))) -> FALSE | DF6: =IF(AU9=3,IF(AU5=3,SUM(AV9*1000+(BC9)/10+(BA9)/100+(BK12)/1000+((G12+R12)-(F12+S12))/10000+(G12+R12)/100000+(G12)/1000000))) -> FALSE | DG6: =IF(AU4=4,IF(AU6=4,SUM(AV4*1000+(BC4)/10+(BA4)/100+(BJ5)/1000+((F5+S5)-(G5+R5))/10000+(F5+S5)/100000+(S5)/1000000))) -> FALSE | DH6: =IF(AU5=4,IF(AU6=4,SUM(AV5*1000+(BC5)/10+(BA5)/100+(BJ9)/1000+((F9+S9)-(G9+R9))/10000+(F9+S9)/100000+(S9)/1000000))) -> FALSE | DI6: =IF(AU6=4,IF(AU5=4,SUM(AV6*1000+(BC6)/10+(BA6)/100+(BK9)/1000+((G9+R9)-(F9+S9))/10000+(G9+R9)/1000000+(G9)/1000000))) -> FALSE | DJ6: =IF(AU7=4,IF(AU5=4,SUM(AV7*1000+(BC7)/10+(BA7)/100+(BK10)/1000+((G10+R10)-(F10+S10))/10000+(G10+R10)/100000+(G10)/1000000))) -> FALSE | DK6: =IF(AU8=4,IF(AU5=4,SUM(AV8*1000+(BC8)/10+(BA8)/100+(BK11)/1000+((G11+R11)-(F11+S11))/10000+(G11+R11)/100000+(G11)/1000000))) -> FALSE | DL6: =IF(AU9=4,IF(AU5=4,SUM(AV9*1000+(BC9)/10+(BA9)/100+(BK12)/1000+((G12+R12)-(F12+S12))/10000+(G12+R12)/100000+(G12)/1000000))) -> FALSE | DM6: =IF(AU4=5,IF(AU6=5,SUM(AV4*1000+(BC4)/10+(BA4)/100+(BJ5)/1000+((F5+S5)-(G5+R5))/10000+(F5+S5)/100000+(S5)/1000000))) -> FALSE | DN6: =IF(AU5=5,IF(AU6=5,SUM(AV5*1000+(BC5)/10+(BA5)/100+(BJ9)/1000+((F9+S9)-(G9+R9))/10000+(F9+S9)/100000+(S9)/1000000))) -> FALSE | DO6: =IF(AU6=5,IF(AU5=5,SUM(AV6*1000+(BC6)/10+(BA6)/100+(BK9)/1000+((G9+R9)-(F9+S9))/10000+(G9+R9)/1000000+(G9)/1000000))) -> FALSE | DP6: =IF(AU7=5,IF(AU5=5,SUM(AV7*1000+(BC7)/10+(BA7)/100+(BK10)/1000+((G10+R10)-(F10+S10))/10000+(G10+R10)/100000+(G10)/1000000))) -> FALSE | DQ6: =IF(AU8=5,IF(AU5=5,SUM(AV8*1000+(BC8)/10+(BA8)/100+(BK11)/1000+((G11+R11)-(F11+S11))/10000+(G11+R11)/100000+(G11)/1000000))) -> FALSE | DR6: =IF(AU9=5,IF(AU5=5,SUM(AV9*1000+(BC9)/10+(BA9)/100+(BK12)/1000+((G12+R12)-(F12+S12))/10000+(G12+R12)/100000+(G12)/1000000))) -> FALSE | DS6: =IF(AU4=6,IF(AU6=6,SUM(AV4*1000+(BC4)/10+(BA4)/100+(BJ5)/1000+((F5+S5)-(G5+R5))/10000+(F5+S5)/100000+(S5)/1000000))) -> FALSE | DT6: =IF(AU5=6,IF(AU6=6,SUM(AV5*1000+(BC5)/10+(BA5)/100+(BJ9)/1000+((F9+S9)-(G9+R9))/10000+(F9+S9)/100000+(S9)/1000000))) -> FALSE | DU6: =IF(AU6=6,IF(AU5=6,SUM(AV6*1000+(BC6)/10+(BA6)/100+(BK9)/1000+((G9+R9)-(F9+S9))/10000+(G9+R9)/1000000+(G9)/1000000))) -> FALSE | DV6: =IF(AU7=6,IF(AU5=6,SUM(AV7*1000+(BC7)/10+(BA7)/100+(BK10)/1000+((G10+R10)-(F10+S10))/10000+(G10+R10)/100000+(G10)/1000000))) -> FALSE | DW6: =IF(AU8=6,IF(AU5=6,SUM(AV8*1000+(BC8)/10+(BA8)/100+(BK11)/1000+((G11+R11)-(F11+S11))/10000+(G11+R11)/100000+(G11)/1000000))) -> FALSE | DX6: =IF(AU9=6,IF(AU5=6,SUM(AV9*1000+(BC9)/10+(BA9)/100+(BK12)/1000+((G12+R12)-(F12+S12))/10000+(G12+R12)/100000+(G12)/1000000))) -> FALSE
A7: =AP4 -> IRAN | F7: 1 | G7: 0 | H7: =AP8 -> RÉPUBLIQUE DE CHINE | M7: RÉPUBLIQUE DE CHINE | R7: 0 | S7: 0 | T7: IRAN | Z7: =VLOOKUP(AN14,AO11:AT16,2,0) -> OUZBÉKISTAN | AE7: 4 | AF7: =VLOOKUP(Z7,AP4:BC9,7,0) -> 13 | AG7: =VLOOKUP(Z7,AP4:BC9,8,0) -> 10 | AH7: =VLOOKUP(Z7,AP4:BC9,9,0) -> 4 | AI7: =VLOOKUP(Z7,AP4:BC9,10,0) -> 1 | AJ7: =VLOOKUP(Z7,AP4:BC9,11,0) -> 5 | AK7: =VLOOKUP(Z7,AP4:BC9,12,0) -> 6 | AL7: =VLOOKUP(Z7,AP4:BC9,13,0) -> 7 | AM7: =VLOOKUP(Z7,AP4:BC9,14,0) -> -1 | AP7: SYRIE | AU7: =RANK(AV7,AV4:AV9) -> 3 | AV7: =SUMPRODUCT((A4:E18=AP7)*(BF4:BF18))+SUMPRODUCT((H4:L18=AP7)*(BG4:BG18))+SUMPRODUCT((M4:Q18=AP7)*(BH4:BH18))+SUMPRODUCT((T4:X18=AP7)*(BI4:BI18)) -> 13 | AW7: =SUMPRODUCT((A4:E18=AP7)*(BL4:BL18))+SUMPRODUCT((H4:L18=AP7)*(BM4:BM18))+SUMPRODUCT((M4:Q18=AP7)*(BN4:BN18))+SUMPRODUCT((T4:X18=AP7)*(BO4:BO18)) -> 10 | AX7: =SUMPRODUCT((A4:E18=AP7)*(BP4:BP18))+SUMPRODUCT((H4:L18=AP7)*(BQ4:BQ18))+SUMPRODUCT((M4:Q18=AP7)*(BR4:BR18))+SUMPRODUCT((T4:X18=AP7)*(BS4:BS18)) -> 3 | AY7: =SUMPRODUCT((A4:E18=AP7)*(BT4:BT18))+SUMPRODUCT((H4:L18=AP7)*(BU4:BU18))+SUMPRODUCT((M4:Q18=AP7)*(BV4:BV18))+SUMPRODUCT((T4:X18=AP7)*(BW4:BW18)) -> 4 | AZ7: =SUMPRODUCT((A4:E18=AP7)*(BX4:BX18))+SUMPRODUCT((H4:L18=AP7)*(BY4:BY18))+SUMPRODUCT((M4:Q18=AP7)*(BZ4:BZ18))+SUMPRODUCT((T4:X18=AP7)*(CA4:CA18)) -> 3 | BA7: =SUMPRODUCT((A4:E18=AP7)*(CB4:CB18))+SUMPRODUCT((H4:L18=AP7)*(CC4:CC18))+SUMPRODUCT((M4:Q18=AP7)*(CD4:CD18))+SUMPRODUCT((T4:X18=AP7)*(CE4:CE18)) -> 9 | BB7: =SUMPRODUCT((A4:E18=AP7)*(CH4:CH18))+SUMPRODUCT((H4:L18=AP7)*(CI4:CI18))+SUMPRODUCT((M4:Q18=AP7)*(CJ4:CJ18))+SUMPRODUCT((T4:X18=AP7)*(CK4:CK18)) -> 8 | BC7: 1 | BF7: 3 | BG7: 0 | BH7: 1 | BI7: 1 | BJ7: 4 | BK7: 1 | BL7: 1 | BM7: 1 | BN7: 1 | BO7: 1 | BP7: 1 | BQ7: FALSE | BR7: FALSE | BS7: FALSE | BT7: FALSE | BU7: FALSE | BV7: 1 | BW7: 1 | BX7: FALSE | BY7: 1 | BZ7: FALSE | CA7: FALSE | CB7: 1 | CC7: 0 | CD7: 0 | CE7: 0 | CF7: 1 | CG7: 0 | CH7: 0 | CI7: 1 | CJ7: 0 | CK7: 0 | CL7: 0 | CM7: 1 | CN7: =IF(AU4=1,IF(AU7=1,SUM(AV4*1000+(BC4)/10+(BA4)/100+(BJ6)/1000+((F6+S6)-(G6+R6))/10000+(F6+S6)/100000+(S6)/1000000))) -> FALSE | CO7: =IF(AU5=1,IF(AU7=1,SUM(AV5*1000+(BC5)/10+(BA5)/100+(BJ10)/1000+((F10+S10)-(G10+R10))/10000+(F10+S10)/100000+(S10)/1000000))) -> FALSE | CP7: =IF(AU6=1,IF(AU7=1,SUM(AV6*1000+(BC6)/10+(BA6)/100+(BJ13)/1000+((F13+S13)-(G13+R13))/10000+(F13+S13)/100000+(S13)/1000000))) -> FALSE | CQ7: =IF(AU7=1,IF(AU6=1,SUM(AV7*1000+(BC7)/10+(BA7)/100+(BK13)/1000+((G13+R13)-(F13+S13))/10000+(G13+R13)/100000+(G13)/1000000))) -> FALSE | CR7: =IF(AU8=1,IF(AU6=1,SUM(AV8*1000+(BC8)/10+(BA8)/100+(BK14)/1000+((G14+R14)-(F14+S14))/10000+(G14+R14)/100000+(G14)/1000000))) -> FALSE | CS7: =IF(AU9=1,IF(AU6=1,SUM(AV9*1000+(BC9)/10+(BA9)/100+(BK15)/1000+((G15+R15)-(F15+S15))/10000+(G15+R15)/100000+(G15)/1000000))) -> FALSE | CU7: =IF(AU4=2,IF(AU7=2,SUM(AV4*1000+(BC4)/10+(BA4)/100+(BJ6)/1000+((F6+S6)-(G6+R6))/10000+(F6+S6)/100000+(S6)/1000000))) -> FALSE | CV7: =IF(AU5=2,IF(AU7=2,SUM(AV5*1000+(BC5)/10+(BA5)/100+(BJ10)/1000+((F10+S10)-(G10+R10))/10000+(F10+S10)/100000+(S10)/1000000))) -> FALSE | CW7: =IF(AU6=2,IF(AU7=2,SUM(AV6*1000+(BC6)/10+(BA6)/100+(BJ13)/1000+((F13+S13)-(G13+R13))/10000+(F13+S13)/100000+(S13)/1000000))) -> FALSE | CX7: =IF(AU7=2,IF(AU6=2,SUM(AV7*1000+(BC7)/10+(BA7)/100+(BK13)/1000+((G13+R13)-(F13+S13))/10000+(G13+R13)/100000+(G13)/1000000))) -> FALSE | CY7: =IF(AU8=2,IF(AU6=2,SUM(AV8*1000+(BC8)/10+(BA8)/100+(BK14)/1000+((G14+R14)-(F14+S14))/10000+(G14+R14)/100000+(G14)/1000000))) -> FALSE | CZ7: =IF(AU9=2,IF(AU6=2,SUM(AV9*1000+(BC9)/10+(BA9)/100+(BK15)/1000+((G15+R15)-(F15+S15))/10000+(G15+R15)/100000+(G15)/1000000))) -> FALSE | DA7: =IF(AU4=3,IF(AU7=3,SUM(AV4*1000+(BC4)/10+(BA4)/100+(BJ6)/1000+((F6+S6)-(G6+R6))/10000+(F6+S6)/100000+(S6)/1000000))) -> FALSE | DB7: =IF(AU5=3,IF(AU7=3,SUM(AV5*1000+(BC5)/10+(BA5)/100+(BJ10)/1000+((F10+S10)-(G10+R10))/10000+(F10+S10)/100000+(S10)/1000000))) -> FALSE | DC7: =IF(AU6=3,IF(AU7=3,SUM(AV6*1000+(BC6)/10+(BA6)/100+(BJ13)/1000+((F13+S13)-(G13+R13))/10000+(F13+S13)/100000+(S13)/1000000))) -> 12999.96301 | DD7: =IF(AU7=3,IF(AU6=3,SUM(AV7*1000+(BC7)/10+(BA7)/100+(BK13)/1000+((G13+R13)-(F13+S13))/10000+(G13+R13)/100000+(G13)/1000000))) -> 13000.19301 | DE7: =IF(AU8=3,IF(AU6=3,SUM(AV8*1000+(BC8)/10+(BA8)/100+(BK14)/1000+((G14+R14)-(F14+S14))/10000+(G14+R14)/100000+(G14)/1000000))) -> FALSE | DF7: =IF(AU9=3,IF(AU6=3,SUM(AV9*1000+(BC9)/10+(BA9)/100+(BK15)/1000+((G15+R15)-(F15+S15))/10000+(G15+R15)/100000+(G15)/1000000))) -> FALSE | DG7: =IF(AU4=4,IF(AU7=4,SUM(AV4*1000+(BC4)/10+(BA4)/100+(BJ6)/1000+((F6+S6)-(G6+R6))/10000+(F6+S6)/100000+(S6)/1000000))) -> FALSE | DH7: =IF(AU5=4,IF(AU7=4,SUM(AV5*1000+(BC5)/10+(BA5)/100+(BJ10)/1000+((F10+S10)-(G10+R10))/10000+(F10+S10)/100000+(S10)/1000000))) -> FALSE | DI7: =IF(AU6=4,IF(AU7=4,SUM(AV6*1000+(BC6)/10+(BA6)/100+(BJ13)/1000+((F13+S13)-(G13+R13))/10000+(F13+S13)/100000+(S13)/1000000))) -> FALSE | DJ7: =IF(AU7=4,IF(AU6=4,SUM(AV7*1000+(BC7)/10+(BA7)/100+(BK13)/1000+((G13+R13)-(F13+S13))/10000+(G13+R13)/100000+(G13)/1000000))) -> FALSE | DK7: =IF(AU8=4,IF(AU6=4,SUM(AV8*1000+(BC8)/10+(BA8)/100+(BK14)/1000+((G14+R14)-(F14+S14))/10000+(G14+R14)/100000+(G14)/1000000))) -> FALSE | DL7: =IF(AU9=4,IF(AU6=4,SUM(AV9*1000+(BC9)/10+(BA9)/100+(BK15)/1000+((G15+R15)-(F15+S15))/10000+(G15+R15)/100000+(G15)/1000000))) -> FALSE | DM7: =IF(AU4=5,IF(AU7=5,SUM(AV4*1000+(BC4)/10+(BA4)/100+(BJ6)/1000+((F6+S6)-(G6+R6))/10000+(F6+S6)/100000+(S6)/1000000))) -> FALSE | DN7: =IF(AU5=5,IF(AU7=5,SUM(AV5*1000+(BC5)/10+(BA5)/100+(BJ10)/1000+((F10+S10)-(G10+R10))/10000+(F10+S10)/100000+(S10)/1000000))) -> FALSE | DO7: =IF(AU6=5,IF(AU7=5,SUM(AV6*1000+(BC6)/10+(BA6)/100+(BJ13)/1000+((F13+S13)-(G13+R13))/10000+(F13+S13)/100000+(S13)/1000000))) -> FALSE | DP7: =IF(AU7=5,IF(AU6=5,SUM(AV7*1000+(BC7)/10+(BA7)/100+(BK13)/1000+((G13+R13)-(F13+S13))/10000+(G13+R13)/100000+(G13)/1000000))) -> FALSE | DQ7: =IF(AU8=5,IF(AU6=5,SUM(AV8*1000+(BC8)/10+(BA8)/100+(BK14)/1000+((G14+R14)-(F14+S14))/10000+(G14+R14)/100000+(G14)/1000000))) -> FALSE | DR7: =IF(AU9=5,IF(AU6=5,SUM(AV9*1000+(BC9)/10+(BA9)/100+(BK15)/1000+((G15+R15)-(F15+S15))/10000+(G15+R15)/100000+(G15)/1000000))) -> FALSE | DS7: =IF(AU4=6,IF(AU7=6,SUM(AV4*1000+(BC4)/10+(BA4)/100+(BJ6)/1000+((F6+S6)-(G6+R6))/10000+(F6+S6)/100000+(S6)/1000000))) -> FALSE | DT7: =IF(AU5=6,IF(AU7=6,SUM(AV5*1000+(BC5)/10+(BA5)/100+(BJ10)/1000+((F10+S10)-(G10+R10))/10000+(F10+S10)/100000+(S10)/1000000))) -> FALSE | DU7: =IF(AU6=6,IF(AU7=6,SUM(AV6*1000+(BC6)/10+(BA6)/100+(BJ13)/1000+((F13+S13)-(G13+R13))/10000+(F13+S13)/100000+(S13)/1000000))) -> FALSE | DV7: =IF(AU7=6,IF(AU6=6,SUM(AV7*1000+(BC7)/10+(BA7)/100+(BK13)/1000+((G13+R13)-(F13+S13))/10000+(G13+R13)/100000+(G13)/1000000))) -> FALSE | DW7: =IF(AU8=6,IF(AU6=6,SUM(AV8*1000+(BC8)/10+(BA8)/100+(BK14)/1000+((G14+R14)-(F14+S14))/10000+(G14+R14)/100000+(G14)/1000000))) -> FALSE | DX7: =IF(AU9=6,IF(AU6=6,SUM(AV9*1000+(BC9)/10+(BA9)/100+(BK15)/1000+((G15+R15)-(F15+S15))/10000+(G15+R15)/100000+(G15)/1000000))) -> FALSE
A8: =AP4 -> IRAN | F8: 2 | G8: 0 | H8: =AP9 -> QATAR | M8: QATAR | R8: 0 | S8: 1 | T8: IRAN | Z8: =VLOOKUP(AN15,AO11:AT16,2,0) -> RÉPUBLIQUE DE CHINE | AE8: 5 | AF8: =VLOOKUP(Z8,AP4:BC9,7,0) -> 12 | AG8: =VLOOKUP(Z8,AP4:BC9,8,0) -> 10 | AH8: =VLOOKUP(Z8,AP4:BC9,9,0) -> 3 | AI8: =VLOOKUP(Z8,AP4:BC9,10,0) -> 3 | AJ8: =VLOOKUP(Z8,AP4:BC9,11,0) -> 4 | AK8: =VLOOKUP(Z8,AP4:BC9,12,0) -> 8 | AL8: =VLOOKUP(Z8,AP4:BC9,13,0) -> 10 | AM8: =VLOOKUP(Z8,AP4:BC9,14,0) -> -2 | AP8: RÉPUBLIQUE DE CHINE | AU8: =RANK(AV8,AV4:AV9) -> 5 | AV8: =SUMPRODUCT((A4:E18=AP8)*(BF4:BF18))+SUMPRODUCT((H4:L18=AP8)*(BG4:BG18))+SUMPRODUCT((M4:Q18=AP8)*(BH4:BH18))+SUMPRODUCT((T4:X18=AP8)*(BI4:BI18)) -> 12 | AW8: =SUMPRODUCT((A4:E18=AP8)*(BL4:BL18))+SUMPRODUCT((H4:L18=AP8)*(BM4:BM18))+SUMPRODUCT((M4:Q18=AP8)*(BN4:BN18))+SUMPRODUCT((T4:X18=AP8)*(BO4:BO18)) -> 10 | AX8: =SUMPRODUCT((A4:E18=AP8)*(BP4:BP18))+SUMPRODUCT((H4:L18=AP8)*(BQ4:BQ18))+SUMPRODUCT((M4:Q18=AP8)*(BR4:BR18))+SUMPRODUCT((T4:X18=AP8)*(BS4:BS18)) -> 3 | AY8: =SUMPRODUCT((A4:E18=AP8)*(BT4:BT18))+SUMPRODUCT((H4:L18=AP8)*(BU4:BU18))+SUMPRODUCT((M4:Q18=AP8)*(BV4:BV18))+SUMPRODUCT((T4:X18=AP8)*(BW4:BW18)) -> 3 | AZ8: =SUMPRODUCT((A4:E18=AP8)*(BX4:BX18))+SUMPRODUCT((H4:L18=AP8)*(BY4:BY18))+SUMPRODUCT((M4:Q18=AP8)*(BZ4:BZ18))+SUMPRODUCT((T4:X18=AP8)*(CA4:CA18)) -> 4 | BA8: =SUMPRODUCT((A4:E18=AP8)*(CB4:CB18))+SUMPRODUCT((H4:L18=AP8)*(CC4:CC18))+SUMPRODUCT((M4:Q18=AP8)*(CD4:CD18))+SUMPRODUCT((T4:X18=AP8)*(CE4:CE18)) -> 8 | BB8: =SUMPRODUCT((A4:E18=AP8)*(CH4:CH18))+SUMPRODUCT((H4:L18=AP8)*(CI4:CI18))+SUMPRODUCT((M4:Q18=AP8)*(CJ4:CJ18))+SUMPRODUCT((T4:X18=AP8)*(CK4:CK18)) -> 10 | BC8: -2 | BF8: 3 | BG8: 0 | BH8: 0 | BI8: 3 | BJ8: 6 | BK8: 0 | BL8: 1 | BM8: 1 | BN8: 1 | BO8: 1 | BP8: 1 | BQ8: FALSE | BR8: FALSE | BS8: 1 | BT8: FALSE | BU8: FALSE | BV8: FALSE | BW8: FALSE | BX8: FALSE | BY8: 1 | BZ8: 1 | CA8: FALSE | CB8: 2 | CC8: 0 | CD8: 0 | CE8: 1 | CF8: 3 | CG8: 0 | CH8: 0 | CI8: 2 | CJ8: 1 | CK8: 0 | CL8: 0 | CM8: 3 | CN8: =IF(AU4=1,IF(AU8=1,SUM(AV4*1000+(BC4)/10+(BA4)/100+(BJ7)/1000+((F7+S7)-(G7+R7))/10000+(F7+S7)/100000+(S7)/1000000))) -> FALSE | CO8: =IF(AU5=1,IF(AU8=1,SUM(AV5*1000+(BC5)/10+(BA5)/100+(BJ11)/1000+((F11+S11)-(G11+R11))/10000+(F11+S11)/100000+(S11)/1000000))) -> FALSE | CP8: =IF(AU6=1,IF(AU8=1,SUM(AV6*1000+(BC6)/10+(BA6)/100+(BJ14)/1000+((F14+S14)-(G14+R14))/10000+(F14+S14)/100000+(S14)/1000000))) -> FALSE | CQ8: =IF(AU7=1,IF(AU8=1,SUM(AV7*1000+(BC7)/10+(BA7)/100+(BJ16)/1000+((F16+S16)-(G16+R16))/10000+(F16+S16)/100000+(S16)/1000000))) -> FALSE | CR8: =IF(AU8=1,IF(AU7=1,SUM(AV8*1000+(BC8)/10+(BA8)/100+(BK16)/1000+((G16+R16)-(F16+S16))/10000+(G16+R16)/100000+(G16)/1000000))) -> FALSE | CS8: =IF(AU9=1,IF(AU7=1,SUM(AV9*1000+(BC9)/10+(BA9)/100+(BK17)/1000+((G17+R17)-(F17+S17))/10000+(G17+R17)/100000+(G17)/1000000))) -> FALSE | CU8: =IF(AU4=2,IF(AU8=2,SUM(AV4*1000+(BC4)/10+(BA4)/100+(BJ7)/1000+((F7+S7)-(G7+R7))/10000+(F7+S7)/100000+(S7)/1000000))) -> FALSE | CV8: =IF(AU5=2,IF(AU8=2,SUM(AV5*1000+(BC5)/10+(BA5)/100+(BJ11)/1000+((F11+S11)-(G11+R11))/10000+(F11+S11)/100000+(S11)/1000000))) -> FALSE | CW8: =IF(AU6=2,IF(AU8=2,SUM(AV6*1000+(BC6)/10+(BA6)/100+(BJ14)/1000+((F14+S14)-(G14+R14))/10000+(F14+S14)/100000+(S14)/1000000))) -> FALSE | CX8: =IF(AU7=2,IF(AU8=2,SUM(AV7*1000+(BC7)/10+(BA7)/100+(BJ16)/1000+((F16+S16)-(G16+R16))/10000+(F16+S16)/100000+(S16)/1000000))) -> FALSE | CY8: =IF(AU8=2,IF(AU7=2,SUM(AV8*1000+(BC8)/10+(BA8)/100+(BK16)/1000+((G16+R16)-(F16+S16))/10000+(G16+R16)/100000+(G16)/1000000))) -> FALSE | CZ8: =IF(AU9=2,IF(AU7=2,SUM(AV9*1000+(BC9)/10+(BA9)/100+(BK17)/1000+((G17+R17)-(F17+S17))/10000+(G17+R17)/100000+(G17)/1000000))) -> FALSE | DA8: =IF(AU4=3,IF(AU8=3,SUM(AV4*1000+(BC4)/10+(BA4)/100+(BJ7)/1000+((F7+S7)-(G7+R7))/10000+(F7+S7)/100000+(S7)/1000000))) -> FALSE | DB8: =IF(AU5=3,IF(AU8=3,SUM(AV5*1000+(BC5)/10+(BA5)/100+(BJ11)/1000+((F11+S11)-(G11+R11))/10000+(F11+S11)/100000+(S11)/1000000))) -> FALSE | DC8: =IF(AU6=3,IF(AU8=3,SUM(AV6*1000+(BC6)/10+(BA6)/100+(BJ14)/1000+((F14+S14)-(G14+R14))/10000+(F14+S14)/100000+(S14)/1000000))) -> FALSE | DD8: =IF(AU7=3,IF(AU8=3,SUM(AV7*1000+(BC7)/10+(BA7)/100+(BJ16)/1000+((F16+S16)-(G16+R16))/10000+(F16+S16)/100000+(S16)/1000000))) -> FALSE | DE8: =IF(AU8=3,IF(AU7=3,SUM(AV8*1000+(BC8)/10+(BA8)/100+(BK16)/1000+((G16+R16)-(F16+S16))/10000+(G16+R16)/100000+(G16)/1000000))) -> FALSE | DF8: =IF(AU9=3,IF(AU7=3,SUM(AV9*1000+(BC9)/10+(BA9)/100+(BK17)/1000+((G17+R17)-(F17+S17))/10000+(G17+R17)/100000+(G17)/1000000))) -> FALSE | DG8: =IF(AU4=4,IF(AU8=4,SUM(AV4*1000+(BC4)/10+(BA4)/100+(BJ7)/1000+((F7+S7)-(G7+R7))/10000+(F7+S7)/100000+(S7)/1000000))) -> FALSE | DH8: =IF(AU5=4,IF(AU8=4,SUM(AV5*1000+(BC5)/10+(BA5)/100+(BJ11)/1000+((F11+S11)-(G11+R11))/10000+(F11+S11)/100000+(S11)/1000000))) -> FALSE | DI8: =IF(AU6=4,IF(AU8=4,SUM(AV6*1000+(BC6)/10+(BA6)/100+(BJ14)/1000+((F14+S14)-(G14+R14))/10000+(F14+S14)/100000+(S14)/1000000))) -> FALSE | DJ8: =IF(AU7=4,IF(AU8=4,SUM(AV7*1000+(BC7)/10+(BA7)/100+(BJ16)/1000+((F16+S16)-(G16+R16))/10000+(F16+S16)/100000+(S16)/1000000))) -> FALSE | DK8: =IF(AU8=4,IF(AU7=4,SUM(AV8*1000+(BC8)/10+(BA8)/100+(BK16)/1000+((G16+R16)-(F16+S16))/10000+(G16+R16)/100000+(G16)/1000000))) -> FALSE | DL8: =IF(AU9=4,IF(AU7=4,SUM(AV9*1000+(BC9)/10+(BA9)/100+(BK17)/1000+((G17+R17)-(F17+S17))/10000+(G17+R17)/100000+(G17)/1000000))) -> FALSE | DM8: =IF(AU4=5,IF(AU8=5,SUM(AV4*1000+(BC4)/10+(BA4)/100+(BJ7)/1000+((F7+S7)-(G7+R7))/10000+(F7+S7)/100000+(S7)/1000000))) -> FALSE | DN8: =IF(AU5=5,IF(AU8=5,SUM(AV5*1000+(BC5)/10+(BA5)/100+(BJ11)/1000+((F11+S11)-(G11+R11))/10000+(F11+S11)/100000+(S11)/1000000))) -> FALSE | DO8: =IF(AU6=5,IF(AU8=5,SUM(AV6*1000+(BC6)/10+(BA6)/100+(BJ14)/1000+((F14+S14)-(G14+R14))/10000+(F14+S14)/100000+(S14)/1000000))) -> FALSE | DP8: =IF(AU7=5,IF(AU8=5,SUM(AV7*1000+(BC7)/10+(BA7)/100+(BJ16)/1000+((F16+S16)-(G16+R16))/10000+(F16+S16)/100000+(S16)/1000000))) -> FALSE | DQ8: =IF(AU8=5,IF(AU7=5,SUM(AV8*1000+(BC8)/10+(BA8)/100+(BK16)/1000+((G16+R16)-(F16+S16))/10000+(G16+R16)/100000+(G16)/1000000))) -> FALSE | DR8: =IF(AU9=5,IF(AU7=5,SUM(AV9*1000+(BC9)/10+(BA9)/100+(BK17)/1000+((G17+R17)-(F17+S17))/10000+(G17+R17)/100000+(G17)/1000000))) -> FALSE | DS8: =IF(AU4=6,IF(AU8=6,SUM(AV4*1000+(BC4)/10+(BA4)/100+(BJ7)/1000+((F7+S7)-(G7+R7))/10000+(F7+S7)/100000+(S7)/1000000))) -> FALSE | DT8: =IF(AU5=6,IF(AU8=6,SUM(AV5*1000+(BC5)/10+(BA5)/100+(BJ11)/1000+((F11+S11)-(G11+R11))/10000+(F11+S11)/100000+(S11)/1000000))) -> FALSE | DU8: =IF(AU6=6,IF(AU8=6,SUM(AV6*1000+(BC6)/10+(BA6)/100+(BJ14)/1000+((F14+S14)-(G14+R14))/10000+(F14+S14)/100000+(S14)/1000000))) -> FALSE | DV8: =IF(AU7=6,IF(AU8=6,SUM(AV7*1000+(BC7)/10+(BA7)/100+(BJ16)/1000+((F16+S16)-(G16+R16))/10000+(F16+S16)/100000+(S16)/1000000))) -> FALSE | DW8: =IF(AU8=6,IF(AU7=6,SUM(AV8*1000+(BC8)/10+(BA8)/100+(BK16)/1000+((G16+R16)-(F16+S16))/10000+(G16+R16)/100000+(G16)/1000000))) -> FALSE | DX8: =IF(AU9=6,IF(AU7=6,SUM(AV9*1000+(BC9)/10+(BA9)/100+(BK17)/1000+((G17+R17)-(F17+S17))/10000+(G17+R17)/100000+(G17)/1000000))) -> FALSE
A9: =AP5 -> RÉPUBLIQUE DE CORÉE | F9: 2 | G9: 1 | H9: =AP6 -> OUZBÉKISTAN | M9: OUZBÉKISTAN | R9: 0 | S9: 0 | T9: RÉPUBLIQUE DE CORÉE | Z9: =VLOOKUP(AN16,AO11:AT16,2,0) -> QATAR | AE9: 6 | AF9: =VLOOKUP(Z9,AP4:BC9,7,0) -> 7 | AG9: =VLOOKUP(Z9,AP4:BC9,8,0) -> 10 | AH9: =VLOOKUP(Z9,AP4:BC9,9,0) -> 2 | AI9: =VLOOKUP(Z9,AP4:BC9,10,0) -> 1 | AJ9: =VLOOKUP(Z9,AP4:BC9,11,0) -> 7 | AK9: =VLOOKUP(Z9,AP4:BC9,12,0) -> 8 | AL9: =VLOOKUP(Z9,AP4:BC9,13,0) -> 15 | AM9: =VLOOKUP(Z9,AP4:BC9,14,0) -> -7 | AP9: QATAR | AU9: =RANK(AV9,AV4:AV9) -> 6 | AV9: =SUMPRODUCT((A4:E18=AP9)*(BF4:BF18))+SUMPRODUCT((H4:L18=AP9)*(BG4:BG18))+SUMPRODUCT((M4:Q18=AP9)*(BH4:BH18))+SUMPRODUCT((T4:X18=AP9)*(BI4:BI18)) -> 7 | AW9: =SUMPRODUCT((A4:E18=AP9)*(BL4:BL18))+SUMPRODUCT((H4:L18=AP9)*(BM4:BM18))+SUMPRODUCT((M4:Q18=AP9)*(BN4:BN18))+SUMPRODUCT((T4:X18=AP9)*(BO4:BO18)) -> 10 | AX9: =SUMPRODUCT((A4:E18=AP9)*(BP4:BP18))+SUMPRODUCT((H4:L18=AP9)*(BQ4:BQ18))+SUMPRODUCT((M4:Q18=AP9)*(BR4:BR18))+SUMPRODUCT((T4:X18=AP9)*(BS4:BS18)) -> 2 | AY9: =SUMPRODUCT((A4:E18=AP9)*(BT4:BT18))+SUMPRODUCT((H4:L18=AP9)*(BU4:BU18))+SUMPRODUCT((M4:Q18=AP9)*(BV4:BV18))+SUMPRODUCT((T4:X18=AP9)*(BW4:BW18)) -> 1 | AZ9: =SUMPRODUCT((A4:E18=AP9)*(BX4:BX18))+SUMPRODUCT((H4:L18=AP9)*(BY4:BY18))+SUMPRODUCT((M4:Q18=AP9)*(BZ4:BZ18))+SUMPRODUCT((T4:X18=AP9)*(CA4:CA18)) -> 7 | BA9: =SUMPRODUCT((A4:E18=AP9)*(CB4:CB18))+SUMPRODUCT((H4:L18=AP9)*(CC4:CC18))+SUMPRODUCT((M4:Q18=AP9)*(CD4:CD18))+SUMPRODUCT((T4:X18=AP9)*(CE4:CE18)) -> 8 | BB9: =SUMPRODUCT((A4:E18=AP9)*(CH4:CH18))+SUMPRODUCT((H4:L18=AP9)*(CI4:CI18))+SUMPRODUCT((M4:Q18=AP9)*(CJ4:CJ18))+SUMPRODUCT((T4:X18=AP9)*(CK4:CK18)) -> 15 | BC9: -7 | BF9: 3 | BG9: 0 | BH9: 1 | BI9: 1 | BJ9: 4 | BK9: 1 | BL9: 1 | BM9: 1 | BN9: 1 | BO9: 1 | BP9: 1 | BQ9: FALSE | BR9: FALSE | BS9: FALSE | BT9: FALSE | BU9: FALSE | BV9: 1 | BW9: 1 | BX9: FALSE | BY9: 1 | BZ9: FALSE | CA9: FALSE | CB9: 2 | CC9: 1 | CD9: 0 | CE9: 0 | CF9: 2 | CG9: 1 | CH9: 1 | CI9: 2 | CJ9: 0 | CK9: 0 | CL9: 1 | CM9: 2 | CN9: =IF(AU4=1,IF(AU9=1,SUM(AV4*1000+(BC4)/10+(BA4)/100+(BJ8)/1000+((F8+S8)-(G8+R8))/10000+(F8+S8)/100000+(S8)/1000000))) -> FALSE | CO9: =IF(AU5=1,IF(AU9=1,SUM(AV5*1000+(BC5)/10+(BA5)/100+(BJ12)/1000+((F12+S12)-(G12+R12))/10000+(F12+S12)/100000+(S12)/1000000))) -> FALSE | CP9: =IF(AU6=1,IF(AU9=1,SUM(AV6*1000+(BC6)/10+(BA6)/100+(BJ15)/1000+((F15+S15)-(G15+R15))/10000+(F15+S15)/100000+(S15)/1000000))) -> FALSE | CQ9: =IF(AU7=1,IF(AU9=1,SUM(AV7*1000+(BC7)/10+(BA7)/100+(BJ17)/1000+((F17+S17)-(G17+R17))/10000+(F17+S17)/100000+(S17)/1000000))) -> FALSE | CR9: =IF(AU8=1,IF(AU9=1,SUM(AV8*1000+(BC8)/10+(BA8)/100+(BJ18)/1000+((F18+S18)-(G18+R18))/10000+(F18+S18)/100000+(S18)/1000000))) -> FALSE | CS9: =IF(AU9=1,IF(AU8=1,SUM(AV9*1000+(BC9)/10+(BA9)/100+(BK18)/1000+((G18+R18)-(F18+S18))/10000+(G18+R18)/100000+(G18)/1000000))) -> FALSE | CU9: =IF(AU4=2,IF(AU9=2,SUM(AV4*1000+(BC4)/10+(BA4)/100+(BJ8)/1000+((F8+S8)-(G8+R8))/10000+(F8+S8)/100000+(S8)/1000000))) -> FALSE | CV9: =IF(AU5=2,IF(AU9=2,SUM(AV5*1000+(BC5)/10+(BA5)/100+(BJ12)/1000+((F12+S12)-(G12+R12))/10000+(F12+S12)/100000+(S12)/1000000))) -> FALSE | CW9: =IF(AU6=2,IF(AU9=2,SUM(AV6*1000+(BC6)/10+(BA6)/100+(BJ15)/1000+((F15+S15)-(G15+R15))/10000+(F15+S15)/100000+(S15)/1000000))) -> FALSE | CX9: =IF(AU7=2,IF(AU9=2,SUM(AV7*1000+(BC7)/10+(BA7)/100+(BJ17)/1000+((F17+S17)-(G17+R17))/10000+(F17+S17)/100000+(S17)/1000000))) -> FALSE | CY9: =IF(AU8=2,IF(AU9=2,SUM(AV8*1000+(BC8)/10+(BA8)/100+(BJ18)/1000+((F18+S18)-(G18+R18))/10000+(F18+S18)/100000+(S18)/1000000))) -> FALSE | CZ9: =IF(AU9=2,IF(AU8=2,SUM(AV9*1000+(BC9)/10+(BA9)/100+(BK18)/1000+((G18+R18)-(F18+S18))/10000+(G18+R18)/100000+(G18)/1000000))) -> FALSE | DA9: =IF(AU4=3,IF(AU9=3,SUM(AV4*1000+(BC4)/10+(BA4)/100+(BJ8)/1000+((F8+S8)-(G8+R8))/10000+(F8+S8)/100000+(S8)/1000000))) -> FALSE | DB9: =IF(AU5=3,IF(AU9=3,SUM(AV5*1000+(BC5)/10+(BA5)/100+(BJ12)/1000+((F12+S12)-(G12+R12))/10000+(F12+S12)/100000+(S12)/1000000))) -> FALSE | DC9: =IF(AU6=3,IF(AU9=3,SUM(AV6*1000+(BC6)/10+(BA6)/100+(BJ15)/1000+((F15+S15)-(G15+R15))/10000+(F15+S15)/100000+(S15)/1000000))) -> FALSE | DD9: =IF(AU7=3,IF(AU9=3,SUM(AV7*1000+(BC7)/10+(BA7)/100+(BJ17)/1000+((F17+S17)-(G17+R17))/10000+(F17+S17)/100000+(S17)/1000000))) -> FALSE | DE9: =IF(AU8=3,IF(AU9=3,SUM(AV8*1000+(BC8)/10+(BA8)/100+(BJ18)/1000+((F18+S18)-(G18+R18))/10000+(F18+S18)/100000+(S18)/1000000))) -> FALSE | DF9: =IF(AU9=3,IF(AU8=3,SUM(AV9*1000+(BC9)/10+(BA9)/100+(BK18)/1000+((G18+R18)-(F18+S18))/10000+(G18+R18)/100000+(G18)/1000000))) -> FALSE | DG9: =IF(AU4=4,IF(AU9=4,SUM(AV4*1000+(BC4)/10+(BA4)/100+(BJ8)/1000+((F8+S8)-(G8+R8))/10000+(F8+S8)/100000+(S8)/1000000))) -> FALSE | DH9: =IF(AU5=4,IF(AU9=4,SUM(AV5*1000+(BC5)/10+(BA5)/100+(BJ12)/1000+((F12+S12)-(G12+R12))/10000+(F12+S12)/100000+(S12)/1000000))) -> FALSE | DI9: =IF(AU6=4,IF(AU9=4,SUM(AV6*1000+(BC6)/10+(BA6)/100+(BJ15)/1000+((F15+S15)-(G15+R15))/10000+(F15+S15)/100000+(S15)/1000000))) -> FALSE | DJ9: =IF(AU7=4,IF(AU9=4,SUM(AV7*1000+(BC7)/10+(BA7)/100+(BJ17)/1000+((F17+S17)-(G17+R17))/10000+(F17+S17)/100000+(S17)/1000000))) -> FALSE | DK9: =IF(AU8=4,IF(AU9=4,SUM(AV8*1000+(BC8)/10+(BA8)/100+(BJ18)/1000+((F18+S18)-(G18+R18))/10000+(F18+S18)/100000+(S18)/1000000))) -> FALSE | DL9: =IF(AU9=4,IF(AU8=4,SUM(AV9*1000+(BC9)/10+(BA9)/100+(BK18)/1000+((G18+R18)-(F18+S18))/10000+(G18+R18)/100000+(G18)/1000000))) -> FALSE | DM9: =IF(AU4=5,IF(AU9=5,SUM(AV4*1000+(BC4)/10+(BA4)/100+(BJ8)/1000+((F8+S8)-(G8+R8))/10000+(F8+S8)/100000+(S8)/1000000))) -> FALSE | DN9: =IF(AU5=5,IF(AU9=5,SUM(AV5*1000+(BC5)/10+(BA5)/100+(BJ12)/1000+((F12+S12)-(G12+R12))/10000+(F12+S12)/100000+(S12)/1000000))) -> FALSE | DO9: =IF(AU6=5,IF(AU9=5,SUM(AV6*1000+(BC6)/10+(BA6)/100+(BJ15)/1000+((F15+S15)-(G15+R15))/10000+(F15+S15)/100000+(S15)/1000000))) -> FALSE | DP9: =IF(AU7=5,IF(AU9=5,SUM(AV7*1000+(BC7)/10+(BA7)/100+(BJ17)/1000+((F17+S17)-(G17+R17))/10000+(F17+S17)/100000+(S17)/1000000))) -> FALSE | DQ9: =IF(AU8=5,IF(AU9=5,SUM(AV8*1000+(BC8)/10+(BA8)/100+(BJ18)/1000+((F18+S18)-(G18+R18))/10000+(F18+S18)/100000+(S18)/1000000))) -> FALSE | DR9: =IF(AU9=5,IF(AU8=5,SUM(AV9*1000+(BC9)/10+(BA9)/100+(BK18)/1000+((G18+R18)-(F18+S18))/10000+(G18+R18)/100000+(G18)/1000000))) -> FALSE | DS9: =IF(AU4=6,IF(AU9=6,SUM(AV4*1000+(BC4)/10+(BA4)/100+(BJ8)/1000+((F8+S8)-(G8+R8))/10000+(F8+S8)/100000+(S8)/1000000))) -> FALSE | DT9: =IF(AU5=6,IF(AU9=6,SUM(AV5*1000+(BC5)/10+(BA5)/100+(BJ12)/1000+((F12+S12)-(G12+R12))/10000+(F12+S12)/100000+(S12)/1000000))) -> FALSE | DU9: =IF(AU6=6,IF(AU9=6,SUM(AV6*1000+(BC6)/10+(BA6)/100+(BJ15)/1000+((F15+S15)-(G15+R15))/10000+(F15+S15)/100000+(S15)/1000000))) -> FALSE | DV9: =IF(AU7=6,IF(AU9=6,SUM(AV7*1000+(BC7)/10+(BA7)/100+(BJ17)/1000+((F17+S17)-(G17+R17))/10000+(F17+S17)/100000+(S17)/1000000))) -> FALSE | DW9: =IF(AU8=6,IF(AU9=6,SUM(AV8*1000+(BC8)/10+(BA8)/100+(BJ18)/1000+((F18+S18)-(G18+R18))/10000+(F18+S18)/100000+(S18)/1000000))) -> FALSE | DX9: =IF(AU9=6,IF(AU8=6,SUM(AV9*1000+(BC9)/10+(BA9)/100+(BK18)/1000+((G18+R18)-(F18+S18))/10000+(G18+R18)/100000+(G18)/1000000))) -> FALSE
A10: =AP5 -> RÉPUBLIQUE DE CORÉE | F10: 1 | G10: 0 | H10: =AP7 -> SYRIE | M10: SYRIE | R10: 0 | S10: 0 | T10: RÉPUBLIQUE DE CORÉE | BF10: 3 | BG10: 0 | BH10: 1 | BI10: 1 | BJ10: 4 | BK10: 1 | BL10: 1 | BM10: 1 | BN10: 1 | BO10: 1 | BP10: 1 | BQ10: FALSE | BR10: FALSE | BS10: FALSE | BT10: FALSE | BU10: FALSE | BV10: 1 | BW10: 1 | BX10: FALSE | BY10: 1 | BZ10: FALSE | CA10: FALSE | CB10: 1 | CC10: 0 | CD10: 0 | CE10: 0 | CF10: 1 | CG10: 0 | CH10: 0 | CI10: 1 | CJ10: 0 | CK10: 0 | CL10: 0 | CM10: 1 | CN10: =SUM(CN4:CN9) -> 1000000 | CO10: 0 | CP10: 0 | CQ10: 0 | CR10: 0 | CS10: 0 | CU10: =SUM(CU4:CU9) -> 0 | CV10: 800000 | CW10: 0 | CX10: 0 | CY10: 0 | CZ10: 0 | DA10: 0 | DB10: 0 | DC10: 612999.963 | DD10: 613000.193 | DE10: 0 | DF10: 0 | DG10: 0 | DH10: 0 | DI10: 0 | DJ10: 0 | DK10: 0 | DL10: 0 | DM10: 0 | DN10: 0 | DO10: 0 | DP10: 0 | DQ10: 200000 | DR10: 0 | DS10: 0 | DT10: 0 | DU10: 0 | DV10: 0 | DW10: 0 | DX10: 100000
A11: =AP5 -> RÉPUBLIQUE DE CORÉE | F11: 3 | G11: 2 | H11: =AP8 -> RÉPUBLIQUE DE CHINE | M11: RÉPUBLIQUE DE CHINE | R11: 1 | S11: 0 | T11: RÉPUBLIQUE DE CORÉE | AN11: 1 | AO11: =BA11 -> 1 | AP11: =AP4 -> IRAN | AU11: =SUM(CN10,CU10,DA10,DG10,DM10,DS10) -> 1000000 | AX11: =AU11+0.00000006 -> 1000000 | BA11: =RANK(AX11,AX11:AZ16) -> 1 | BB11: =RANK(AU11,AU11:AW16) -> 1 | BF11: 3 | BG11: 0 | BH11: 3 | BI11: 0 | BJ11: 3 | BK11: 3 | BL11: 1 | BM11: 1 | BN11: 1 | BO11: 1 | BP11: 1 | BQ11: FALSE | BR11: 1 | BS11: FALSE | BT11: FALSE | BU11: FALSE | BV11: FALSE | BW11: FALSE | BX11: FALSE | BY11: 1 | BZ11: FALSE | CA11: 1 | CB11: 3 | CC11: 2 | CD11: 1 | CE11: 0 | CF11: 3 | CG11: 3 | CH11: 2 | CI11: 3 | CJ11: 0 | CK11: 1 | CL11: 3 | CM11: 3
A12: =AP5 -> RÉPUBLIQUE DE CORÉE | F12: 3 | G12: 2 | H12: =AP9 -> QATAR | M12: QATAR | R12: 3 | S12: 2 | T12: RÉPUBLIQUE DE CORÉE | AN12: 2 | AO12: =BA12 -> 2 | AP12: =AP5 -> RÉPUBLIQUE DE CORÉE | AU12: =SUM(CO10,CV10,DB10,DH10,DN10,DT10) -> 800000 | AX12: =AU12+0.00000005 -> 800000 | BA12: =RANK(AX12,AX11:AZ16) -> 2 | BB12: =RANK(AU12,AU11:AW16) -> 2 | BF12: 3 | BG12: 0 | BH12: 3 | BI12: 0 | BJ12: 3 | BK12: 3 | BL12: 1 | BM12: 1 | BN12: 1 | BO12: 1 | BP12: 1 | BQ12: FALSE | BR12: 1 | BS12: FALSE | BT12: FALSE | BU12: FALSE | BV12: FALSE | BW12: FALSE | BX12: FALSE | BY12: 1 | BZ12: FALSE | CA12: 1 | CB12: 3 | CC12: 2 | CD12: 3 | CE12: 2 | CF12: 5 | CG12: 5 | CH12: 2 | CI12: 3 | CJ12: 2 | CK12: 3 | CL12: 5 | CM12: 5 | CN12: =VLOOKUP(AN11,AO11:AT16,2,0) -> IRAN | CT12: =VLOOKUP(CN12,AP11:AW16,6,0) -> 1000000 | CW12: =RANK(CT12,CT12:CV17) -> 1
A13: =AP6 -> OUZBÉKISTAN | F13: 1 | G13: 0 | H13: =AP7 -> SYRIE | M13: SYRIE | R13: 1 | S13: 0 | T13: OUZBÉKISTAN | Z13: ÉQUIPE QUILIFIÉE | AD13: =Z4 -> IRAN | AN13: 3 | AO13: 4 | AP13: OUZBÉKISTAN | AU13: =SUM(CP10,CW10,DC10,DI10,DO10,DU10) -> 612999.963 | AX13: =AU13+0.00000004 -> 612999.963 | BA13: =RANK(AX13,AX11:AZ16) -> 4 | BB13: =RANK(AU13,AU11:AW16) -> 4 | BF13: 3 | BG13: 0 | BH13: 3 | BI13: 0 | BJ13: 3 | BK13: 3 | BL13: 1 | BM13: 1 | BN13: 1 | BO13: 1 | BP13: 1 | BQ13: FALSE | BR13: 1 | BS13: FALSE | BT13: FALSE | BU13: FALSE | BV13: FALSE | BW13: FALSE | BX13: FALSE | BY13: 1 | BZ13: FALSE | CA13: 1 | CB13: 1 | CC13: 0 | CD13: 1 | CE13: 0 | CF13: 1 | CG13: 1 | CH13: 0 | CI13: 1 | CJ13: 0 | CK13: 1 | CL13: 1 | CM13: 1 | CN13: =VLOOKUP(AN12,AO11:AT16,2,0) -> RÉPUBLIQUE DE CORÉE | CT13: =VLOOKUP(CN13,AP11:AW16,6,0) -> 800000 | CW13: =RANK(CT13,CT12:CV17) -> 2
A14: =AP6 -> OUZBÉKISTAN | F14: 2 | G14: 0 | H14: =AP8 -> RÉPUBLIQUE DE CHINE | M14: RÉPUBLIQUE DE CHINE | R14: 1 | S14: 0 | T14: OUZBÉKISTAN | AN14: 4 | AO14: 3 | AP14: SYRIE | AU14: =SUM(CQ10,CX10,DD10,DJ10,DP10,DV10) -> 613000.193 | AX14: =AU14+0.00000003 -> 613000.193 | BA14: =RANK(AX14,AX11:AZ16) -> 3 | BB14: =RANK(AU14,AU11:AW16) -> 3 | BF14: 3 | BG14: 0 | BH14: 3 | BI14: 0 | BJ14: 3 | BK14: 3 | BL14: 1 | BM14: 1 | BN14: 1 | BO14: 1 | BP14: 1 | BQ14: FALSE | BR14: 1 | BS14: FALSE | BT14: FALSE | BU14: FALSE | BV14: FALSE | BW14: FALSE | BX14: FALSE | BY14: 1 | BZ14: FALSE | CA14: 1 | CB14: 2 | CC14: 0 | CD14: 1 | CE14: 0 | CF14: 2 | CG14: 1 | CH14: 0 | CI14: 2 | CJ14: 0 | CK14: 1 | CL14: 1 | CM14: 2 | CN14: =VLOOKUP(AN13,AO11:AT16,2,0) -> SYRIE | CT14: =VLOOKUP(CN14,AP11:AW16,6,0) -> 613000.193 | CW14: =RANK(CT14,CT12:CV17) -> 3
A15: =AP6 -> OUZBÉKISTAN | F15: 1 | G15: 0 | H15: =AP9 -> QATAR | M15: QATAR | R15: 0 | S15: 1 | T15: OUZBÉKISTAN | Z15: ÉQUIPE QUILIFIÉE | AD15: =Z5 -> RÉPUBLIQUE DE CORÉE | AN15: 5 | AO15: 5 | AP15: RÉPUBLIQUE DE CHINE | AU15: =SUM(CR10,CY10,DE10,DK10,DQ10,DW10) -> 200000 | AX15: =AU15+0.00000002 -> 200000 | BA15: =RANK(AX15,AX11:AZ16) -> 5 | BB15: =RANK(AU15,AU11:AW16) -> 5 | BF15: 3 | BG15: 0 | BH15: 0 | BI15: 3 | BJ15: 6 | BK15: 0 | BL15: 1 | BM15: 1 | BN15: 1 | BO15: 1 | BP15: 1 | BQ15: FALSE | BR15: FALSE | BS15: 1 | BT15: FALSE | BU15: FALSE | BV15: FALSE | BW15: FALSE | BX15: FALSE | BY15: 1 | BZ15: 1 | CA15: FALSE | CB15: 1 | CC15: 0 | CD15: 0 | CE15: 1 | CF15: 2 | CG15: 0 | CH15: 0 | CI15: 1 | CJ15: 1 | CK15: 0 | CL15: 0 | CM15: 2 | CN15: =VLOOKUP(AN14,AO11:AT16,2,0) -> OUZBÉKISTAN | CT15: =VLOOKUP(CN15,AP11:AW16,6,0) -> 612999.963 | CW15: =RANK(CT15,CT12:CV17) -> 4
A16: =AP7 -> SYRIE | F16: 2 | G16: 2 | H16: =AP8 -> RÉPUBLIQUE DE CHINE | M16: RÉPUBLIQUE DE CHINE | R16: 0 | S16: 1 | T16: SYRIE | AN16: 6 | AO16: 6 | AP16: QATAR | AU16: =SUM(CS10,CZ10,DF10,DL10,DR10,DX10) -> 100000 | AX16: =AU16+0.00000001 -> 100000 | BA16: =RANK(AX16,AX11:AZ16) -> 6 | BB16: =RANK(AU16,AU11:AW16) -> 6 | BF16: 1 | BG16: 1 | BH16: 0 | BI16: 3 | BJ16: 4 | BK16: 1 | BL16: 1 | BM16: 1 | BN16: 1 | BO16: 1 | BP16: FALSE | BQ16: FALSE | BR16: FALSE | BS16: 1 | BT16: 1 | BU16: 1 | BV16: FALSE | BW16: FALSE | BX16: FALSE | BY16: FALSE | BZ16: 1 | CA16: FALSE | CB16: 2 | CC16: 2 | CD16: 0 | CE16: 1 | CF16: 3 | CG16: 2 | CH16: 2 | CI16: 2 | CJ16: 1 | CK16: 0 | CL16: 2 | CM16: 3 | CN16: =VLOOKUP(AN15,AO11:AT16,2,0) -> RÉPUBLIQUE DE CHINE | CT16: =VLOOKUP(CN16,AP11:AW16,6,0) -> 200000 | CW16: =RANK(CT16,CT12:CV17) -> 5
A17: =AP7 -> SYRIE | F17: 3 | G17: 1 | H17: =AP9 -> QATAR | M17: QATAR | R17: 1 | S17: 0 | T17: SYRIE | Z17: BARRAGE | AD17: =Z6 -> SYRIE | BF17: 3 | BG17: 0 | BH17: 3 | BI17: 0 | BJ17: 3 | BK17: 3 | BL17: 1 | BM17: 1 | BN17: 1 | BO17: 1 | BP17: 1 | BQ17: FALSE | BR17: 1 | BS17: FALSE | BT17: FALSE | BU17: FALSE | BV17: FALSE | BW17: FALSE | BX17: FALSE | BY17: 1 | BZ17: FALSE | CA17: 1 | CB17: 3 | CC17: 1 | CD17: 1 | CE17: 0 | CF17: 3 | CG17: 2 | CH17: 1 | CI17: 3 | CJ17: 0 | CK17: 1 | CL17: 2 | CM17: 3 | CN17: =VLOOKUP(AN16,AO11:AT16,2,0) -> QATAR | CT17: =VLOOKUP(CN17,AP11:AW16,6,0) -> 100000 | CW17: =RANK(CT17,CT12:CV17) -> 6
A18: =AP8 -> RÉPUBLIQUE DE CHINE | F18: 0 | G18: 0 | H18: =AP9 -> QATAR | M18: QATAR | R18: 1 | S18: 2 | T18: RÉPUBLIQUE DE CHINE | BF18: 1 | BG18: 1 | BH18: 0 | BI18: 3 | BJ18: 4 | BK18: 1 | BL18: 1 | BM18: 1 | BN18: 1 | BO18: 1 | BP18: FALSE | BQ18: FALSE | BR18: FALSE | BS18: 1 | BT18: 1 | BU18: 1 | BV18: FALSE | BW18: FALSE | BX18: FALSE | BY18: FALSE | BZ18: 1 | CA18: FALSE | CB18: 0 | CC18: 0 | CD18: 1 | CE18: 2 | CF18: 2 | CG18: 1 | CH18: 0 | CI18: 0 | CJ18: 2 | CK18: 1 | CL18: 1 | CM18: 2
A21: MATCHS ALLER | J21: GROUPE B | P21: MATCHS RETOUR | Y21: GROUPE A | Z21: CLASSEMENT | AP21: CLASSEMENT
A23: Équipes | F23: Bts | G23: Bts | H23: Équipes | M23: Équipes | R23: Bts | S23: Bts | T23: Équipes | Z23: Équipes | AE23: R | AF23: Pts | AG23: J | AH23: G | AI23: N | AJ23: P | AK23: B + | AL23: B - | AM23: Diff | AP23: Équipes | AU23: R | AV23: Pts | AW23: J | AX23: G | AY23: N | AZ23: P | BA23: B + | BB23: B - | BC23: Diff | BF23: pts | BG23: pts | BH23: pts | BI23: pts | BJ23: t pts | BK23: t pts | BL23: j | BM23: j | BN23: j | BO23: j | BP23: g | BQ23: g | BR23: g | BS23: g | BT23: n | BU23: n | BV23: n | BW23: n | BX23: p | BY23: p | BZ23: p | CA23: p | CB23: b+ | CC23: b+ | CD23: b+ | CE23: b+ | CF23: b+ | CG23: b+ | CH23: b- | CI23: b- | CJ23: b- | CK23: b- | CL23: b- | CM23: b- | CN23: =AP24 -> JAPON | CO23: =AP25 -> ARABIE SAOUDITE | CP23: =AP26 -> AUSTRALIE | CQ23: =AP27 -> EMIRATS ARABES UNIS | CR23: =AP28 -> IRAK | CS23: =AP29 -> THAÏLANDE | CU23: =CN23 -> JAPON | CV23: =CO23 -> ARABIE SAOUDITE | CW23: =CP23 -> AUSTRALIE | CX23: =CQ23 -> EMIRATS ARABES UNIS | CY23: =CR23 -> IRAK | CZ23: =CS23 -> THAÏLANDE | DA23: =CN23 -> JAPON | DB23: =CO23 -> ARABIE SAOUDITE | DC23: =CP23 -> AUSTRALIE | DD23: =CQ23 -> EMIRATS ARABES UNIS | DE23: =CR23 -> IRAK | DF23: =CS23 -> THAÏLANDE | DG23: =CN23 -> JAPON | DH23: =CO23 -> ARABIE SAOUDITE | DI23: =CP23 -> AUSTRALIE | DJ23: =CQ23 -> EMIRATS ARABES UNIS | DK23: =CR23 -> IRAK | DL23: =CS23 -> THAÏLANDE | DM23: =CN23 -> JAPON | DN23: =CO23 -> ARABIE SAOUDITE | DO23: =CP23 -> AUSTRALIE | DP23: =CQ23 -> EMIRATS ARABES UNIS | DQ23: =CR23 -> IRAK | DR23: =CS23 -> THAÏLANDE | DS23: =CN23 -> JAPON | DT23: =CO23 -> ARABIE SAOUDITE | DU23: =CP23 -> AUSTRALIE | DV23: =CQ23 -> EMIRATS ARABES UNIS | DW23: =CR23 -> IRAK | DX23: =CS23 -> THAÏLANDE
A24: =AP24 -> JAPON | F24: 2 | G24: 1 | H24: =AP25 -> ARABIE SAOUDITE | M24: =H24 -> ARABIE SAOUDITE | R24: 1 | S24: 0 | T24: =A24 -> JAPON | Z24: =VLOOKUP(AN31,AO31:AT36,2,0) -> JAPON | AE24: 1 | AF24: =VLOOKUP(Z24,AP24:BC29,7,0) -> 20 | AG24: =VLOOKUP(Z24,AP24:BC29,8,0) -> 10 | AH24: =VLOOKUP(Z24,AP24:BC29,9,0) -> 6 | AI24: =VLOOKUP(Z24,AP24:BC29,10,0) -> 2 | AJ24: =VLOOKUP(Z24,AP24:BC29,11,0) -> 2 | AK24: =VLOOKUP(Z24,AP24:BC29,12,0) -> 17 | AL24: =VLOOKUP(Z24,AP24:BC29,13,0) -> 7 | AM24: =VLOOKUP(Z24,AP24:BC29,14,0) -> 10 | AP24: JAPON | AU24: =RANK(AV24,AV24:AV29) -> 1 | AV24: =SUMPRODUCT((A24:E38=AP24)*(BF24:BF38))+SUMPRODUCT((H24:L38=AP24)*(BG24:BG38))+SUMPRODUCT((M24:Q38=AP24)*(BH24:BH38))+SUMPRODUCT((T24:X38=AP24)*(BI24:BI38)) -> 20 | AW24: =SUMPRODUCT((A24:E38=AP24)*(BL24:BL38))+SUMPRODUCT((H24:L38=AP24)*(BM24:BM38))+SUMPRODUCT((M24:Q38=AP24)*(BN24:BN38))+SUMPRODUCT((T24:X38=AP24)*(BO24:BO38)) -> 10 | AX24: =SUMPRODUCT((A24:E38=AP24)*(BP24:BP38))+SUMPRODUCT((H24:L38=AP24)*(BQ24:BQ38))+SUMPRODUCT((M24:Q38=AP24)*(BR24:BR38))+SUMPRODUCT((T24:X38=AP24)*(BS24:BS38)) -> 6 | AY24: =SUMPRODUCT((A24:E38=AP24)*(BT24:BT38))+SUMPRODUCT((H24:L38=AP24)*(BU24:BU38))+SUMPRODUCT((M24:Q38=AP24)*(BV24:BV38))+SUMPRODUCT((T24:X38=AP24)*(BW24:BW38)) -> 2 | AZ24: =SUMPRODUCT((A24:E38=AP24)*(BX24:BX38))+SUMPRODUCT((H24:L38=AP24)*(BY24:BY38))+SUMPRODUCT((M24:Q38=AP24)*(BZ24:BZ38))+SUMPRODUCT((T24:X38=AP24)*(CA24:CA38)) -> 2 | BA24: =SUMPRODUCT((A24:E38=AP24)*(CB24:CB38))+SUMPRODUCT((H24:L38=AP24)*(CC24:CC38))+SUMPRODUCT((M24:Q38=AP24)*(CD24:CD38))+SUMPRODUCT((T24:X38=AP24)*(CE24:CE38)) -> 17 | BB24: =SUMPRODUCT((A24:E38=AP24)*(CH24:CH38))+SUMPRODUCT((H24:L38=AP24)*(CI24:CI38))+SUMPRODUCT((M24:Q38=AP24)*(CJ24:CJ38))+SUMPRODUCT((T24:X38=AP24)*(CK24:CK38)) -> 7 | BC24: =BA24-BB24 -> 10 | BF24: =IF(F24="",0,IF(F24>G24,3,IF(F24=G24,1,IF(F24<G24,0)))) -> 3 | BG24: =IF(G24="",0,IF(G24>F24,3,IF(G24=F24,1,IF(G24<F24,0)))) -> 0 | BH24: =IF(R24="",0,IF(R24>S24,3,IF(R24=S24,1,IF(R24<S24,0)))) -> 3 | BI24: =IF(S24="",0,IF(S24>R24,3,IF(S24=R24,1,IF(S24<R24,0)))) -> 0 | BJ24: =BF24+BI24 -> 3 | BK24: =BG24+BH24 -> 3 | BL24: =IF(F24="",0,1) -> 1 | BM24: =IF(G24="",0,1) -> 1 | BN24: =IF(R24="",0,1) -> 1 | BO24: =IF(S24="",0,1) -> 1 | BP24: =IF(F24<>"",IF(F24>G24,1)) -> 1 | BQ24: =IF(G24<>"",IF(G24>F24,1)) -> FALSE | BR24: =IF(R24<>"",IF(R24>S24,1)) -> 1 | BS24: =IF(S24<>"",IF(S24>R24,1)) -> FALSE | BT24: =IF(F24<>"",IF(F24=G24,1)) -> FALSE | BU24: =IF(G24<>"",IF(G24=F24,1)) -> FALSE | BV24: =IF(R24<>"",IF(R24=S24,1)) -> FALSE | BW24: =IF(S24<>"",IF(S24=R24,1)) -> FALSE | BX24: =IF(F24<>"",IF(F24<G24,1)) -> FALSE | BY24: =IF(G24<>"",IF(G24<F24,1)) -> 1 | BZ24: =IF(R24<>"",IF(R24<S24,1)) -> FALSE | CA24: =IF(S24<>"",IF(S24<R24,1)) -> 1 | CB24: =F24 -> 2 | CC24: =G24 -> 1 | CD24: =R24 -> 1 | CE24: =S24 -> 0 | CF24: =CB24+CE24 -> 2 | CG24: =CC24+CD24 -> 2 | CH24: =G24 -> 1 | CI24: =F24 -> 2 | CJ24: =S24 -> 0 | CK24: =R24 -> 1 | CL24: =CH24+CK24 -> 2 | CM24: =CI24+CJ24 -> 2 | CN24: =IF(AU24=1,1000000) -> 1000000 | CO24: =IF(AU25=1,1000000) -> FALSE | CP24: =IF(AU26=1,1000000) -> FALSE | CQ24: =IF(AU27=1,1000000) -> FALSE | CR24: =IF(AU28=1,1000000) -> FALSE | CS24: =IF(AU29=1,1000000) -> FALSE | CU24: =IF(AU24=2,800000) -> FALSE | CV24: =IF(AU25=2,800000) -> 800000 | CW24: =IF(AU26=2,800000) -> 800000 | CX24: =IF(AU27=2,800000) -> FALSE | CY24: =IF(AU28=2,800000) -> FALSE | CZ24: =IF(AU29=2,800000) -> FALSE | DA24: =IF(AU24=3,600000) -> FALSE | DB24: =IF(AU25=3,600000) -> FALSE | DC24: =IF(AU26=3,600000) -> FALSE | DD24: =IF(AU27=3,600000) -> FALSE | DE24: =IF(AU28=3,600000) -> FALSE | DF24: =IF(AU29=3,600000) -> FALSE | DG24: =IF(AU24=4,400000) -> FALSE | DH24: =IF(AU25=4,400000) -> FALSE | DI24: =IF(AU26=4,400000) -> FALSE | DJ24: =IF(AU27=4,400000) -> 400000 | DK24: =IF(AU28=4,400000) -> FALSE | DL24: =IF(AU29=4,400000) -> FALSE | DM24: =IF(AU24=5,200000) -> FALSE | DN24: =IF(AU25=5,200000) -> FALSE | DO24: =IF(AU26=5,200000) -> FALSE | DP24: =IF(AU27=5,200000) -> FALSE | DQ24: =IF(AU28=5,200000) -> 200000 | DR24: =IF(AU29=5,200000) -> FALSE | DS24: =IF(AU24=6,100000) -> FALSE | DT24: =IF(AU25=6,100000) -> FALSE | DU24: =IF(AU26=6,100000) -> FALSE | DV24: =IF(AU27=6,100000) -> FALSE | DW24: =IF(AU28=6,100000) -> FALSE | DX24: =IF(AU29=6,100000) -> 100000
A25: =AP24 -> JAPON | F25: 2 | G25: 0 | H25: =AP26 -> AUSTRALIE | M25: =H25 -> AUSTRALIE | R25: 1 | S25: 1 | T25: =A25 -> JAPON | Z25: =VLOOKUP(AN32,AO31:AT36,2,0) -> ARABIE SAOUDITE | AE25: =IF(CT33=CT32,CW32,CW33) -> 2 | AF25: =VLOOKUP(Z25,AP24:BC29,7,0) -> 19 | AG25: =VLOOKUP(Z25,AP24:BC29,8,0) -> 10 | AH25: =VLOOKUP(Z25,AP24:BC29,9,0) -> 6 | AI25: =VLOOKUP(Z25,AP24:BC29,10,0) -> 1 | AJ25: =VLOOKUP(Z25,AP24:BC29,11,0) -> 3 | AK25: =VLOOKUP(Z25,AP24:BC29,12,0) -> 17 | AL25: =VLOOKUP(Z25,AP24:BC29,13,0) -> 10 | AM25: =VLOOKUP(Z25,AP24:BC29,14,0) -> 7 | AP25: ARABIE SAOUDITE | AU25: =RANK(AV25,AV24:AV29) -> 2 | AV25: =SUMPRODUCT((A24:E38=AP25)*(BF24:BF38))+SUMPRODUCT((H24:L38=AP25)*(BG24:BG38))+SUMPRODUCT((M24:Q38=AP25)*(BH24:BH38))+SUMPRODUCT((T24:X38=AP25)*(BI24:BI38)) -> 19 | AW25: =SUMPRODUCT((A24:E38=AP25)*(BL24:BL38))+SUMPRODUCT((H24:L38=AP25)*(BM24:BM38))+SUMPRODUCT((M24:Q38=AP25)*(BN24:BN38))+SUMPRODUCT((T24:X38=AP25)*(BO24:BO38)) -> 10 | AX25: =SUMPRODUCT((A24:E38=AP25)*(BP24:BP38))+SUMPRODUCT((H24:L38=AP25)*(BQ24:BQ38))+SUMPRODUCT((M24:Q38=AP25)*(BR24:BR38))+SUMPRODUCT((T24:X38=AP25)*(BS24:BS38)) -> 6 | AY25: =SUMPRODUCT((A24:E38=AP25)*(BT24:BT38))+SUMPRODUCT((H24:L38=AP25)*(BU24:BU38))+SUMPRODUCT((M24:Q38=AP25)*(BV24:BV38))+SUMPRODUCT((T24:X38=AP25)*(BW24:BW38)) -> 1 | AZ25: =SUMPRODUCT((A24:E38=AP25)*(BX24:BX38))+SUMPRODUCT((H24:L38=AP25)*(BY24:BY38))+SUMPRODUCT((M24:Q38=AP25)*(BZ24:BZ38))+SUMPRODUCT((T24:X38=AP25)*(CA24:CA38)) -> 3 | BA25: =SUMPRODUCT((A24:E38=AP25)*(CB24:CB38))+SUMPRODUCT((H24:L38=AP25)*(CC24:CC38))+SUMPRODUCT((M24:Q38=AP25)*(CD24:CD38))+SUMPRODUCT((T24:X38=AP25)*(CE24:CE38)) -> 17 | BB25: =SUMPRODUCT((A24:E38=AP25)*(CH24:CH38))+SUMPRODUCT((H24:L38=AP25)*(CI24:CI38))+SUMPRODUCT((M24:Q38=AP25)*(CJ24:CJ38))+SUMPRODUCT((T24:X38=AP25)*(CK24:CK38)) -> 10 | BC25: =BA25-BB25 -> 7 | BF25: =IF(F25="",0,IF(F25>G25,3,IF(F25=G25,1,IF(F25<G25,0)))) -> 3 | BG25: =IF(G25="",0,IF(G25>F25,3,IF(G25=F25,1,IF(G25<F25,0)))) -> 0 | BH25: =IF(R25="",0,IF(R25>S25,3,IF(R25=S25,1,IF(R25<S25,0)))) -> 1 | BI25: =IF(S25="",0,IF(S25>R25,3,IF(S25=R25,1,IF(S25<R25,0)))) -> 1 | BJ25: =BF25+BI25 -> 4 | BK25: =BG25+BH25 -> 1 | BL25: =IF(F25="",0,1) -> 1 | BM25: =IF(G25="",0,1) -> 1 | BN25: =IF(R25="",0,1) -> 1 | BO25: =IF(S25="",0,1) -> 1 | BP25: =IF(F25<>"",IF(F25>G25,1)) -> 1 | BQ25: =IF(G25<>"",IF(G25>F25,1)) -> FALSE | BR25: =IF(R25<>"",IF(R25>S25,1)) -> FALSE | BS25: =IF(S25<>"",IF(S25>R25,1)) -> FALSE | BT25: =IF(F25<>"",IF(F25=G25,1)) -> FALSE | BU25: =IF(G25<>"",IF(G25=F25,1)) -> FALSE | BV25: =IF(R25<>"",IF(R25=S25,1)) -> 1 | BW25: =IF(S25<>"",IF(S25=R25,1)) -> 1 | BX25: =IF(F25<>"",IF(F25<G25,1)) -> FALSE | BY25: =IF(G25<>"",IF(G25<F25,1)) -> 1 | BZ25: =IF(R25<>"",IF(R25<S25,1)) -> FALSE | CA25: =IF(S25<>"",IF(S25<R25,1)) -> FALSE | CB25: =F25 -> 2 | CC25: =G25 -> 0 | CD25: =R25 -> 1 | CE25: =S25 -> 1 | CF25: =CB25+CE25 -> 3 | CG25: =CC25+CD25 -> 1 | CH25: =G25 -> 0 | CI25: =F25 -> 2 | CJ25: =S25 -> 1 | CK25: =R25 -> 1 | CL25: =CH25+CK25 -> 1 | CM25: =CI25+CJ25 -> 3 | CN25: =IF(AU24=1,IF(AU25=1,SUM(AV24*1000+(BC24)/10+(BA24)/100+(BJ24)/1000+((F24+S24)-(G24+R24))/10000+(F24+S24)/100000+(S24)/1000000))) -> FALSE | CO25: =IF(AU25=1,IF(AU24=1,SUM(AV25*1000+(BC25)/10+(BA25)/100+(BK24)/1000+((G24+R24)-(F24+S24))/10000+(G24+R24)/100000+(G24)/1000000))) -> FALSE | CP25: =IF(AU26=1,IF(AU24=1,SUM(AV26*1000+(BC26)/10+(BA26)/100+(BK25)/1000+((G25+R25)-(F25+S25))/10000+(G25+R25)/100000+(G25)/1000000))) -> FALSE | CQ25: =IF(AU27=1,IF(AU24=1,SUM(AV27*1000+(BC27)/10+(BA27)/100+(BK26)/1000+((G26+R26)-(F26+S26))/10000+(G26+R26)/100000+(G26)/1000000))) -> FALSE | CR25: =IF(AU28=1,IF(AU24=1,SUM(AV28*1000+(BC28)/10+(BA28)/100+(BK27)/1000+((G27+R27)-(F27+S27))/10000+(G27+R27)/100000+(G27)/1000000))) -> FALSE | CS25: =IF(AU29=1,IF(AU24=1,SUM(AV29*1000+(BC29)/10+(BA29)/100+(BK28)/1000+((G28+R28)-(F28+S28))/10000+(G28+R28)/100000+(G28)/1000000))) -> FALSE | CU25: =IF(AU24=2,IF(AU25=2,SUM(AV24*1000+(BC24)/10+(BA24)/100+(BJ24)/1000+((F24+S24)-(G24+R24))/10000+(F24+S24)/100000+(S24)/1000000))) -> FALSE | CV25: =IF(AU25=2,IF(AU24=2,SUM(AV25*1000+(BC25)/10+(BA25)/100+(BK24)/1000+((G24+R24)-(F24+S24))/10000+(G24+R24)/100000+(G24)/1000000))) -> FALSE | CW25: =IF(AU26=2,IF(AU24=2,SUM(AV26*1000+(BC26)/10+(BA26)/100+(BK25)/1000+((G25+R25)-(F25+S25))/10000+(G25+R25)/100000+(G25)/1000000))) -> FALSE | CX25: =IF(AU27=2,IF(AU24=2,SUM(AV27*1000+(BC27)/10+(BA27)/100+(BK26)/1000+((G26+R26)-(F26+S26))/10000+(G26+R26)/100000+(G26)/1000000))) -> FALSE | CY25: =IF(AU28=2,IF(AU24=2,SUM(AV28*1000+(BC28)/10+(BA28)/100+(BK27)/1000+((G27+R27)-(F27+S27))/10000+(G27+R27)/100000+(G27)/1000000))) -> FALSE | CZ25: =IF(AU29=2,IF(AU24=2,SUM(AV29*1000+(BC29)/10+(BA29)/100+(BK28)/1000+((G28+R28)-(F28+S28))/10000+(G28+R28)/100000+(G28)/1000000))) -> FALSE | DA25: =IF(AU24=3,IF(AU25=3,SUM(AV24*1000+(BC24)/10+(BA24)/100+(BJ24)/1000+((F24+S24)-(G24+R24))/10000+(F24+S24)/100000+(S24)/1000000))) -> FALSE | DB25: =IF(AU25=3,IF(AU24=3,SUM(AV25*1000+(BC25)/10+(BA25)/100+(BK24)/1000+((G24+R24)-(F24+S24))/10000+(G24+R24)/100000+(G24)/1000000))) -> FALSE | DC25: =IF(AU26=3,IF(AU24=3,SUM(AV26*1000+(BC26)/10+(BA26)/100+(BK25)/1000+((G25+R25)-(F25+S25))/10000+(G25+R25)/100000+(G25)/1000000))) -> FALSE | DD25: =IF(AU27=3,IF(AU24=3,SUM(AV27*1000+(BC27)/10+(BA27)/100+(BK26)/1000+((G26+R26)-(F26+S26))/10000+(G26+R26)/100000+(G26)/1000000))) -> FALSE | DE25: =IF(AU28=3,IF(AU24=3,SUM(AV28*1000+(BC28)/10+(BA28)/100+(BK27)/1000+((G27+R27)-(F27+S27))/10000+(G27+R27)/100000+(G27)/1000000))) -> FALSE | DF25: =IF(AU29=3,IF(AU24=3,SUM(AV29*1000+(BC29)/10+(BA29)/100+(BK28)/1000+((G28+R28)-(F28+S28))/10000+(G28+R28)/100000+(G28)/1000000))) -> FALSE | DG25: =IF(AU24=4,IF(AU25=4,SUM(AV24*1000+(BC24)/10+(BA24)/100+(BJ24)/1000+((F24+S24)-(G24+R24))/10000+(F24+S24)/100000+(S24)/1000000))) -> FALSE | DH25: =IF(AU25=4,IF(AU24=4,SUM(AV25*1000+(BC25)/10+(BA25)/100+(BK24)/1000+((G24+R24)-(F24+S24))/10000+(G24+R24)/100000+(G24)/1000000))) -> FALSE | DI25: =IF(AU26=4,IF(AU24=4,SUM(AV26*1000+(BC26)/10+(BA26)/100+(BK25)/1000+((G25+R25)-(F25+S25))/10000+(G25+R25)/100000+(G25)/1000000))) -> FALSE | DJ25: =IF(AU27=4,IF(AU24=4,SUM(AV27*1000+(BC27)/10+(BA27)/100+(BK26)/1000+((G26+R26)-(F26+S26))/10000+(G26+R26)/100000+(G26)/1000000))) -> FALSE | DK25: =IF(AU28=4,IF(AU24=4,SUM(AV28*1000+(BC28)/10+(BA28)/100+(BK27)/1000+((G27+R27)-(F27+S27))/10000+(G27+R27)/100000+(G27)/1000000))) -> FALSE | DL25: =IF(AU29=4,IF(AU24=4,SUM(AV29*1000+(BC29)/10+(BA29)/100+(BK28)/1000+((G28+R28)-(F28+S28))/10000+(G28+R28)/100000+(G28)/1000000))) -> FALSE | DM25: =IF(AU24=5,IF(AU25=5,SUM(AV24*1000+(BC24)/10+(BA24)/100+(BJ24)/1000+((F24+S24)-(G24+R24))/10000+(F24+S24)/100000+(S24)/1000000))) -> FALSE | DN25: =IF(AU25=5,IF(AU24=5,SUM(AV25*1000+(BC25)/10+(BA25)/100+(BK24)/1000+((G24+R24)-(F24+S24))/10000+(G24+R24)/100000+(G24)/1000000))) -> FALSE | DO25: =IF(AU26=5,IF(AU24=5,SUM(AV26*1000+(BC26)/10+(BA26)/100+(BK25)/1000+((G25+R25)-(F25+S25))/10000+(G25+R25)/100000+(G25)/1000000))) -> FALSE | DP25: =IF(AU27=5,IF(AU24=5,SUM(AV27*1000+(BC27)/10+(BA27)/100+(BK26)/1000+((G26+R26)-(F26+S26))/10000+(G26+R26)/100000+(G26)/1000000))) -> FALSE | DQ25: =IF(AU28=5,IF(AU24=5,SUM(AV28*1000+(BC28)/10+(BA28)/100+(BK27)/1000+((G27+R27)-(F27+S27))/10000+(G27+R27)/100000+(G27)/1000000))) -> FALSE | DR25: =IF(AU29=5,IF(AU24=5,SUM(AV29*1000+(BC29)/10+(BA29)/100+(BK28)/1000+((G28+R28)-(F28+S28))/10000+(G28+R28)/100000+(G28)/1000000))) -> FALSE | DS25: =IF(AU24=6,IF(AU25=6,SUM(AV24*1000+(BC24)/10+(BA24)/100+(BJ24)/1000+((F24+S24)-(G24+R24))/10000+(F24+S24)/100000+(S24)/1000000))) -> FALSE | DT25: =IF(AU25=6,IF(AU24=6,SUM(AV25*1000+(BC25)/10+(BA25)/100+(BK24)/1000+((G24+R24)-(F24+S24))/10000+(G24+R24)/100000+(G24)/1000000))) -> FALSE | DU25: =IF(AU26=6,IF(AU24=6,SUM(AV26*1000+(BC26)/10+(BA26)/100+(BK25)/1000+((G25+R25)-(F25+S25))/10000+(G25+R25)/100000+(G25)/1000000))) -> FALSE | DV25: =IF(AU27=6,IF(AU24=6,SUM(AV27*1000+(BC27)/10+(BA27)/100+(BK26)/1000+((G26+R26)-(F26+S26))/10000+(G26+R26)/100000+(G26)/1000000))) -> FALSE | DW25: =IF(AU28=6,IF(AU24=6,SUM(AV28*1000+(BC28)/10+(BA28)/100+(BK27)/1000+((G27+R27)-(F27+S27))/10000+(G27+R27)/100000+(G27)/1000000))) -> FALSE | DX25: =IF(AU29=6,IF(AU24=6,SUM(AV29*1000+(BC29)/10+(BA29)/100+(BK28)/1000+((G28+R28)-(F28+S28))/10000+(G28+R28)/100000+(G28)/1000000))) -> FALSE
A26: =AP24 -> JAPON | F26: 1 | G26: 2 | H26: =AP27 -> EMIRATS ARABES UNIS | M26: EMIRATS ARABES UNIS | R26: 0 | S26: 2 | T26: JAPON | Z26: =VLOOKUP(AN33,AO31:AT36,2,0) -> AUSTRALIE | AE26: =IF(CT34=CT33,CW33,CW34) -> 3 | AF26: =VLOOKUP(Z26,AP24:BC29,7,0) -> 19 | AG26: =VLOOKUP(Z26,AP24:BC29,8,0) -> 10 | AH26: =VLOOKUP(Z26,AP24:BC29,9,0) -> 5 | AI26: =VLOOKUP(Z26,AP24:BC29,10,0) -> 4 | AJ26: =VLOOKUP(Z26,AP24:BC29,11,0) -> 1 | AK26: =VLOOKUP(Z26,AP24:BC29,12,0) -> 16 | AL26: =VLOOKUP(Z26,AP24:BC29,13,0) -> 11 | AM26: =VLOOKUP(Z26,AP24:BC29,14,0) -> 5 | AP26: AUSTRALIE | AU26: =RANK(AV26,AV24:AV29) -> 2 | AV26: =SUMPRODUCT((A24:E38=AP26)*(BF24:BF38))+SUMPRODUCT((H24:L38=AP26)*(BG24:BG38))+SUMPRODUCT((M24:Q38=AP26)*(BH24:BH38))+SUMPRODUCT((T24:X38=AP26)*(BI24:BI38)) -> 19 | AW26: =SUMPRODUCT((A24:E38=AP26)*(BL24:BL38))+SUMPRODUCT((H24:L38=AP26)*(BM24:BM38))+SUMPRODUCT((M24:Q38=AP26)*(BN24:BN38))+SUMPRODUCT((T24:X38=AP26)*(BO24:BO38)) -> 10 | AX26: =SUMPRODUCT((A24:E38=AP26)*(BP24:BP38))+SUMPRODUCT((H24:L38=AP26)*(BQ24:BQ38))+SUMPRODUCT((M24:Q38=AP26)*(BR24:BR38))+SUMPRODUCT((T24:X38=AP26)*(BS24:BS38)) -> 5 | AY26: =SUMPRODUCT((A24:E38=AP26)*(BT24:BT38))+SUMPRODUCT((H24:L38=AP26)*(BU24:BU38))+SUMPRODUCT((M24:Q38=AP26)*(BV24:BV38))+SUMPRODUCT((T24:X38=AP26)*(BW24:BW38)) -> 4 | AZ26: =SUMPRODUCT((A24:E38=AP26)*(BX24:BX38))+SUMPRODUCT((H24:L38=AP26)*(BY24:BY38))+SUMPRODUCT((M24:Q38=AP26)*(BZ24:BZ38))+SUMPRODUCT((T24:X38=AP26)*(CA24:CA38)) -> 1 | BA26: =SUMPRODUCT((A24:E38=AP26)*(CB24:CB38))+SUMPRODUCT((H24:L38=AP26)*(CC24:CC38))+SUMPRODUCT((M24:Q38=AP26)*(CD24:CD38))+SUMPRODUCT((T24:X38=AP26)*(CE24:CE38)) -> 16 | BB26: =SUMPRODUCT((A24:E38=AP26)*(CH24:CH38))+SUMPRODUCT((H24:L38=AP26)*(CI24:CI38))+SUMPRODUCT((M24:Q38=AP26)*(CJ24:CJ38))+SUMPRODUCT((T24:X38=AP26)*(CK24:CK38)) -> 11 | BC26: 5 | BF26: 0 | BG26: 3 | BH26: 0 | BI26: 3 | BJ26: 3 | BK26: 3 | BL26: 1 | BM26: 1 | BN26: 1 | BO26: 1 | BP26: FALSE | BQ26: 1 | BR26: FALSE | BS26: 1 | BT26: FALSE | BU26: FALSE | BV26: FALSE | BW26: FALSE | BX26: 1 | BY26: FALSE | BZ26: 1 | CA26: FALSE | CB26: 1 | CC26: 2 | CD26: 0 | CE26: 2 | CF26: 3 | CG26: 2 | CH26: 2 | CI26: 1 | CJ26: 2 | CK26: 0 | CL26: 2 | CM26: 3 | CN26: =IF(AU24=1,IF(AU26=1,SUM(AV24*1000+(BC24)/10+(BA24)/100+(BJ25)/1000+((F25+S25)-(G25+R25))/10000+(F25+S25)/100000+(S25)/1000000))) -> FALSE | CO26: =IF(AU25=1,IF(AU26=1,SUM(AV25*1000+(BC25)/10+(BA25)/100+(BJ29)/1000+((F29+S29)-(G29+R29))/10000+(F29+S29)/100000+(S29)/1000000))) -> FALSE | CP26: =IF(AU26=1,IF(AU25=1,SUM(AV26*1000+(BC26)/10+(BA26)/100+(BK29)/1000+((G29+R29)-(F29+S29))/10000+(G29+R29)/1000000+(G29)/1000000))) -> FALSE | CQ26: =IF(AU27=1,IF(AU25=1,SUM(AV27*1000+(BC27)/10+(BA27)/100+(BK30)/1000+((G30+R30)-(F30+S30))/10000+(G30+R30)/100000+(G30)/1000000))) -> FALSE | CR26: =IF(AU28=1,IF(AU25=1,SUM(AV28*1000+(BC28)/10+(BA28)/100+(BK31)/1000+((G31+R31)-(F31+S31))/10000+(G31+R31)/100000+(G31)/1000000))) -> FALSE | CS26: =IF(AU29=1,IF(AU25=1,SUM(AV29*1000+(BC29)/10+(BA29)/100+(BK32)/1000+((G32+R32)-(F32+S32))/10000+(G32+R32)/100000+(G32)/1000000))) -> FALSE | CU26: =IF(AU24=2,IF(AU26=2,SUM(AV24*1000+(BC24)/10+(BA24)/100+(BJ25)/1000+((F25+S25)-(G25+R25))/10000+(F25+S25)/100000+(S25)/1000000))) -> FALSE | CV26: =IF(AU25=2,IF(AU26=2,SUM(AV25*1000+(BC25)/10+(BA25)/100+(BJ29)/1000+((F29+S29)-(G29+R29))/10000+(F29+S29)/100000+(S29)/1000000))) -> 19000.87094 | CW26: =IF(AU26=2,IF(AU25=2,SUM(AV26*1000+(BC26)/10+(BA26)/100+(BK29)/1000+((G29+R29)-(F29+S29))/10000+(G29+R29)/1000000+(G29)/1000000))) -> 19000.66411 | CX26: =IF(AU27=2,IF(AU25=2,SUM(AV27*1000+(BC27)/10+(BA27)/100+(BK30)/1000+((G30+R30)-(F30+S30))/10000+(G30+R30)/100000+(G30)/1000000))) -> FALSE | CY26: =IF(AU28=2,IF(AU25=2,SUM(AV28*1000+(BC28)/10+(BA28)/100+(BK31)/1000+((G31+R31)-(F31+S31))/10000+(G31+R31)/100000+(G31)/1000000))) -> FALSE | CZ26: =IF(AU29=2,IF(AU25=2,SUM(AV29*1000+(BC29)/10+(BA29)/100+(BK32)/1000+((G32+R32)-(F32+S32))/10000+(G32+R32)/100000+(G32)/1000000))) -> FALSE | DA26: =IF(AU24=3,IF(AU26=3,SUM(AV24*1000+(BC24)/10+(BA24)/100+(BJ25)/1000+((F25+S25)-(G25+R25))/10000+(F25+S25)/100000+(S25)/1000000))) -> FALSE | DB26: =IF(AU25=3,IF(AU26=3,SUM(AV25*1000+(BC25)/10+(BA25)/100+(BJ29)/1000+((F29+S29)-(G29+R29))/10000+(F29+S29)/100000+(S29)/1000000))) -> FALSE | DC26: =IF(AU26=3,IF(AU25=3,SUM(AV26*1000+(BC26)/10+(BA26)/100+(BK29)/1000+((G29+R29)-(F29+S29))/10000+(G29+R29)/1000000+(G29)/1000000))) -> FALSE | DD26: =IF(AU27=3,IF(AU25=3,SUM(AV27*1000+(BC27)/10+(BA27)/100+(BK30)/1000+((G30+R30)-(F30+S30))/10000+(G30+R30)/100000+(G30)/1000000))) -> FALSE | DE26: =IF(AU28=3,IF(AU25=3,SUM(AV28*1000+(BC28)/10+(BA28)/100+(BK31)/1000+((G31+R31)-(F31+S31))/10000+(G31+R31)/100000+(G31)/1000000))) -> FALSE | DF26: =IF(AU29=3,IF(AU25=3,SUM(AV29*1000+(BC29)/10+(BA29)/100+(BK32)/1000+((G32+R32)-(F32+S32))/10000+(G32+R32)/100000+(G32)/1000000))) -> FALSE | DG26: =IF(AU24=4,IF(AU26=4,SUM(AV24*1000+(BC24)/10+(BA24)/100+(BJ25)/1000+((F25+S25)-(G25+R25))/10000+(F25+S25)/100000+(S25)/1000000))) -> FALSE | DH26: =IF(AU25=4,IF(AU26=4,SUM(AV25*1000+(BC25)/10+(BA25)/100+(BJ29)/1000+((F29+S29)-(G29+R29))/10000+(F29+S29)/100000+(S29)/1000000))) -> FALSE | DI26: =IF(AU26=4,IF(AU25=4,SUM(AV26*1000+(BC26)/10+(BA26)/100+(BK29)/1000+((G29+R29)-(F29+S29))/10000+(G29+R29)/1000000+(G29)/1000000))) -> FALSE | DJ26: =IF(AU27=4,IF(AU25=4,SUM(AV27*1000+(BC27)/10+(BA27)/100+(BK30)/1000+((G30+R30)-(F30+S30))/10000+(G30+R30)/100000+(G30)/1000000))) -> FALSE | DK26: =IF(AU28=4,IF(AU25=4,SUM(AV28*1000+(BC28)/10+(BA28)/100+(BK31)/1000+((G31+R31)-(F31+S31))/10000+(G31+R31)/100000+(G31)/1000000))) -> FALSE | DL26: =IF(AU29=4,IF(AU25=4,SUM(AV29*1000+(BC29)/10+(BA29)/100+(BK32)/1000+((G32+R32)-(F32+S32))/10000+(G32+R32)/100000+(G32)/1000000))) -> FALSE | DM26: =IF(AU24=5,IF(AU26=5,SUM(AV24*1000+(BC24)/10+(BA24)/100+(BJ25)/1000+((F25+S25)-(G25+R25))/10000+(F25+S25)/100000+(S25)/1000000))) -> FALSE | DN26: =IF(AU25=5,IF(AU26=5,SUM(AV25*1000+(BC25)/10+(BA25)/100+(BJ29)/1000+((F29+S29)-(G29+R29))/10000+(F29+S29)/100000+(S29)/1000000))) -> FALSE | DO26: =IF(AU26=5,IF(AU25=5,SUM(AV26*1000+(BC26)/10+(BA26)/100+(BK29)/1000+((G29+R29)-(F29+S29))/10000+(G29+R29)/1000000+(G29)/1000000))) -> FALSE | DP26: =IF(AU27=5,IF(AU25=5,SUM(AV27*1000+(BC27)/10+(BA27)/100+(BK30)/1000+((G30+R30)-(F30+S30))/10000+(G30+R30)/100000+(G30)/1000000))) -> FALSE | DQ26: =IF(AU28=5,IF(AU25=5,SUM(AV28*1000+(BC28)/10+(BA28)/100+(BK31)/1000+((G31+R31)-(F31+S31))/10000+(G31+R31)/100000+(G31)/1000000))) -> FALSE | DR26: =IF(AU29=5,IF(AU25=5,SUM(AV29*1000+(BC29)/10+(BA29)/100+(BK32)/1000+((G32+R32)-(F32+S32))/10000+(G32+R32)/100000+(G32)/1000000))) -> FALSE | DS26: =IF(AU24=6,IF(AU26=6,SUM(AV24*1000+(BC24)/10+(BA24)/100+(BJ25)/1000+((F25+S25)-(G25+R25))/10000+(F25+S25)/100000+(S25)/1000000))) -> FALSE | DT26: =IF(AU25=6,IF(AU26=6,SUM(AV25*1000+(BC25)/10+(BA25)/100+(BJ29)/1000+((F29+S29)-(G29+R29))/10000+(F29+S29)/100000+(S29)/1000000))) -> FALSE | DU26: =IF(AU26=6,IF(AU25=6,SUM(AV26*1000+(BC26)/10+(BA26)/100+(BK29)/1000+((G29+R29)-(F29+S29))/10000+(G29+R29)/1000000+(G29)/1000000))) -> FALSE | DV26: =IF(AU27=6,IF(AU25=6,SUM(AV27*1000+(BC27)/10+(BA27)/100+(BK30)/1000+((G30+R30)-(F30+S30))/10000+(G30+R30)/100000+(G30)/1000000))) -> FALSE | DW26: =IF(AU28=6,IF(AU25=6,SUM(AV28*1000+(BC28)/10+(BA28)/100+(BK31)/1000+((G31+R31)-(F31+S31))/10000+(G31+R31)/100000+(G31)/1000000))) -> FALSE | DX26: =IF(AU29=6,IF(AU25=6,SUM(AV29*1000+(BC29)/10+(BA29)/100+(BK32)/1000+((G32+R32)-(F32+S32))/10000+(G32+R32)/100000+(G32)/1000000))) -> FALSE
A27: =AP24 -> JAPON | F27: 2 | G27: 1 | H27: =AP28 -> IRAK | M27: IRAK | R27: 1 | S27: 1 | T27: JAPON | Z27: =VLOOKUP(AN34,AO31:AT36,2,0) -> EMIRATS ARABES UNIS | AE27: 4 | AF27: =VLOOKUP(Z27,AP24:BC29,7,0) -> 13 | AG27: =VLOOKUP(Z27,AP24:BC29,8,0) -> 10 | AH27: =VLOOKUP(Z27,AP24:BC29,9,0) -> 4 | AI27: =VLOOKUP(Z27,AP24:BC29,10,0) -> 1 | AJ27: =VLOOKUP(Z27,AP24:BC29,11,0) -> 5 | AK27: =VLOOKUP(Z27,AP24:BC29,12,0) -> 10 | AL27: =VLOOKUP(Z27,AP24:BC29,13,0) -> 13 | AM27: =VLOOKUP(Z27,AP24:BC29,14,0) -> -3 | AP27: EMIRATS ARABES UNIS | AU27: =RANK(AV27,AV24:AV29) -> 4 | AV27: =SUMPRODUCT((A24:E38=AP27)*(BF24:BF38))+SUMPRODUCT((H24:L38=AP27)*(BG24:BG38))+SUMPRODUCT((M24:Q38=AP27)*(BH24:BH38))+SUMPRODUCT((T24:X38=AP27)*(BI24:BI38)) -> 13 | AW27: =SUMPRODUCT((A24:E38=AP27)*(BL24:BL38))+SUMPRODUCT((H24:L38=AP27)*(BM24:BM38))+SUMPRODUCT((M24:Q38=AP27)*(BN24:BN38))+SUMPRODUCT((T24:X38=AP27)*(BO24:BO38)) -> 10 | AX27: =SUMPRODUCT((A24:E38=AP27)*(BP24:BP38))+SUMPRODUCT((H24:L38=AP27)*(BQ24:BQ38))+SUMPRODUCT((M24:Q38=AP27)*(BR24:BR38))+SUMPRODUCT((T24:X38=AP27)*(BS24:BS38)) -> 4 | AY27: =SUMPRODUCT((A24:E38=AP27)*(BT24:BT38))+SUMPRODUCT((H24:L38=AP27)*(BU24:BU38))+SUMPRODUCT((M24:Q38=AP27)*(BV24:BV38))+SUMPRODUCT((T24:X38=AP27)*(BW24:BW38)) -> 1 | AZ27: =SUMPRODUCT((A24:E38=AP27)*(BX24:BX38))+SUMPRODUCT((H24:L38=AP27)*(BY24:BY38))+SUMPRODUCT((M24:Q38=AP27)*(BZ24:BZ38))+SUMPRODUCT((T24:X38=AP27)*(CA24:CA38)) -> 5 | BA27: =SUMPRODUCT((A24:E38=AP27)*(CB24:CB38))+SUMPRODUCT((H24:L38=AP27)*(CC24:CC38))+SUMPRODUCT((M24:Q38=AP27)*(CD24:CD38))+SUMPRODUCT((T24:X38=AP27)*(CE24:CE38)) -> 10 | BB27: =SUMPRODUCT((A24:E38=AP27)*(CH24:CH38))+SUMPRODUCT((H24:L38=AP27)*(CI24:CI38))+SUMPRODUCT((M24:Q38=AP27)*(CJ24:CJ38))+SUMPRODUCT((T24:X38=AP27)*(CK24:CK38)) -> 13 | BC27: -3 | BF27: 3 | BG27: 0 | BH27: 1 | BI27: 1 | BJ27: 4 | BK27: 1 | BL27: 1 | BM27: 1 | BN27: 1 | BO27: 1 | BP27: 1 | BQ27: FALSE | BR27: FALSE | BS27: FALSE | BT27: FALSE | BU27: FALSE | BV27: 1 | BW27: 1 | BX27: FALSE | BY27: 1 | BZ27: FALSE | CA27: FALSE | CB27: 2 | CC27: 1 | CD27: 1 | CE27: 1 | CF27: 3 | CG27: 2 | CH27: 1 | CI27: 2 | CJ27: 1 | CK27: 1 | CL27: 2 | CM27: 3 | CN27: =IF(AU24=1,IF(AU27=1,SUM(AV24*1000+(BC24)/10+(BA24)/100+(BJ26)/1000+((F26+S26)-(G26+R26))/10000+(F26+S26)/100000+(S26)/1000000))) -> FALSE | CO27: =IF(AU25=1,IF(AU27=1,SUM(AV25*1000+(BC25)/10+(BA25)/100+(BJ30)/1000+((F30+S30)-(G30+R30))/10000+(F30+S30)/100000+(S30)/1000000))) -> FALSE | CP27: =IF(AU26=1,IF(AU27=1,SUM(AV26*1000+(BC26)/10+(BA26)/100+(BJ33)/1000+((F33+S33)-(G33+R33))/10000+(F33+S33)/100000+(S33)/1000000))) -> FALSE | CQ27: =IF(AU27=1,IF(AU26=1,SUM(AV27*1000+(BC27)/10+(BA27)/100+(BK33)/1000+((G33+R33)-(F33+S33))/10000+(G33+R33)/100000+(G33)/1000000))) -> FALSE | CR27: =IF(AU28=1,IF(AU26=1,SUM(AV28*1000+(BC28)/10+(BA28)/100+(BK34)/1000+((G34+R34)-(F34+S34))/10000+(G34+R34)/100000+(G34)/1000000))) -> FALSE | CS27: =IF(AU29=1,IF(AU26=1,SUM(AV29*1000+(BC29)/10+(BA29)/100+(BK35)/1000+((G35+R35)-(F35+S35))/10000+(G35+R35)/100000+(G35)/1000000))) -> FALSE | CU27: =IF(AU24=2,IF(AU27=2,SUM(AV24*1000+(BC24)/10+(BA24)/100+(BJ26)/1000+((F26+S26)-(G26+R26))/10000+(F26+S26)/100000+(S26)/1000000))) -> FALSE | CV27: =IF(AU25=2,IF(AU27=2,SUM(AV25*1000+(BC25)/10+(BA25)/100+(BJ30)/1000+((F30+S30)-(G30+R30))/10000+(F30+S30)/100000+(S30)/1000000))) -> FALSE | CW27: =IF(AU26=2,IF(AU27=2,SUM(AV26*1000+(BC26)/10+(BA26)/100+(BJ33)/1000+((F33+S33)-(G33+R33))/10000+(F33+S33)/100000+(S33)/1000000))) -> FALSE | CX27: =IF(AU27=2,IF(AU26=2,SUM(AV27*1000+(BC27)/10+(BA27)/100+(BK33)/1000+((G33+R33)-(F33+S33))/10000+(G33+R33)/100000+(G33)/1000000))) -> FALSE | CY27: =IF(AU28=2,IF(AU26=2,SUM(AV28*1000+(BC28)/10+(BA28)/100+(BK34)/1000+((G34+R34)-(F34+S34))/10000+(G34+R34)/100000+(G34)/1000000))) -> FALSE | CZ27: =IF(AU29=2,IF(AU26=2,SUM(AV29*1000+(BC29)/10+(BA29)/100+(BK35)/1000+((G35+R35)-(F35+S35))/10000+(G35+R35)/100000+(G35)/1000000))) -> FALSE | DA27: =IF(AU24=3,IF(AU27=3,SUM(AV24*1000+(BC24)/10+(BA24)/100+(BJ26)/1000+((F26+S26)-(G26+R26))/10000+(F26+S26)/100000+(S26)/1000000))) -> FALSE | DB27: =IF(AU25=3,IF(AU27=3,SUM(AV25*1000+(BC25)/10+(BA25)/100+(BJ30)/1000+((F30+S30)-(G30+R30))/10000+(F30+S30)/100000+(S30)/1000000))) -> FALSE | DC27: =IF(AU26=3,IF(AU27=3,SUM(AV26*1000+(BC26)/10+(BA26)/100+(BJ33)/1000+((F33+S33)-(G33+R33))/10000+(F33+S33)/100000+(S33)/1000000))) -> FALSE | DD27: =IF(AU27=3,IF(AU26=3,SUM(AV27*1000+(BC27)/10+(BA27)/100+(BK33)/1000+((G33+R33)-(F33+S33))/10000+(G33+R33)/100000+(G33)/1000000))) -> FALSE | DE27: =IF(AU28=3,IF(AU26=3,SUM(AV28*1000+(BC28)/10+(BA28)/100+(BK34)/1000+((G34+R34)-(F34+S34))/10000+(G34+R34)/100000+(G34)/1000000))) -> FALSE | DF27: =IF(AU29=3,IF(AU26=3,SUM(AV29*1000+(BC29)/10+(BA29)/100+(BK35)/1000+((G35+R35)-(F35+S35))/10000+(G35+R35)/100000+(G35)/1000000))) -> FALSE | DG27: =IF(AU24=4,IF(AU27=4,SUM(AV24*1000+(BC24)/10+(BA24)/100+(BJ26)/1000+((F26+S26)-(G26+R26))/10000+(F26+S26)/100000+(S26)/1000000))) -> FALSE | DH27: =IF(AU25=4,IF(AU27=4,SUM(AV25*1000+(BC25)/10+(BA25)/100+(BJ30)/1000+((F30+S30)-(G30+R30))/10000+(F30+S30)/100000+(S30)/1000000))) -> FALSE | DI27: =IF(AU26=4,IF(AU27=4,SUM(AV26*1000+(BC26)/10+(BA26)/100+(BJ33)/1000+((F33+S33)-(G33+R33))/10000+(F33+S33)/100000+(S33)/1000000))) -> FALSE | DJ27: =IF(AU27=4,IF(AU26=4,SUM(AV27*1000+(BC27)/10+(BA27)/100+(BK33)/1000+((G33+R33)-(F33+S33))/10000+(G33+R33)/100000+(G33)/1000000))) -> FALSE | DK27: =IF(AU28=4,IF(AU26=4,SUM(AV28*1000+(BC28)/10+(BA28)/100+(BK34)/1000+((G34+R34)-(F34+S34))/10000+(G34+R34)/100000+(G34)/1000000))) -> FALSE | DL27: =IF(AU29=4,IF(AU26=4,SUM(AV29*1000+(BC29)/10+(BA29)/100+(BK35)/1000+((G35+R35)-(F35+S35))/10000+(G35+R35)/100000+(G35)/1000000))) -> FALSE | DM27: =IF(AU24=5,IF(AU27=5,SUM(AV24*1000+(BC24)/10+(BA24)/100+(BJ26)/1000+((F26+S26)-(G26+R26))/10000+(F26+S26)/100000+(S26)/1000000))) -> FALSE | DN27: =IF(AU25=5,IF(AU27=5,SUM(AV25*1000+(BC25)/10+(BA25)/100+(BJ30)/1000+((F30+S30)-(G30+R30))/10000+(F30+S30)/100000+(S30)/1000000))) -> FALSE | DO27: =IF(AU26=5,IF(AU27=5,SUM(AV26*1000+(BC26)/10+(BA26)/100+(BJ33)/1000+((F33+S33)-(G33+R33))/10000+(F33+S33)/100000+(S33)/1000000))) -> FALSE | DP27: =IF(AU27=5,IF(AU26=5,SUM(AV27*1000+(BC27)/10+(BA27)/100+(BK33)/1000+((G33+R33)-(F33+S33))/10000+(G33+R33)/100000+(G33)/1000000))) -> FALSE | DQ27: =IF(AU28=5,IF(AU26=5,SUM(AV28*1000+(BC28)/10+(BA28)/100+(BK34)/1000+((G34+R34)-(F34+S34))/10000+(G34+R34)/100000+(G34)/1000000))) -> FALSE | DR27: =IF(AU29=5,IF(AU26=5,SUM(AV29*1000+(BC29)/10+(BA29)/100+(BK35)/1000+((G35+R35)-(F35+S35))/10000+(G35+R35)/100000+(G35)/1000000))) -> FALSE | DS27: =IF(AU24=6,IF(AU27=6,SUM(AV24*1000+(BC24)/10+(BA24)/100+(BJ26)/1000+((F26+S26)-(G26+R26))/10000+(F26+S26)/100000+(S26)/1000000))) -> FALSE | DT27: =IF(AU25=6,IF(AU27=6,SUM(AV25*1000+(BC25)/10+(BA25)/100+(BJ30)/1000+((F30+S30)-(G30+R30))/10000+(F30+S30)/100000+(S30)/1000000))) -> FALSE | DU27: =IF(AU26=6,IF(AU27=6,SUM(AV26*1000+(BC26)/10+(BA26)/100+(BJ33)/1000+((F33+S33)-(G33+R33))/10000+(F33+S33)/100000+(S33)/1000000))) -> FALSE | DV27: =IF(AU27=6,IF(AU26=6,SUM(AV27*1000+(BC27)/10+(BA27)/100+(BK33)/1000+((G33+R33)-(F33+S33))/10000+(G33+R33)/100000+(G33)/1000000))) -> FALSE | DW27: =IF(AU28=6,IF(AU26=6,SUM(AV28*1000+(BC28)/10+(BA28)/100+(BK34)/1000+((G34+R34)-(F34+S34))/10000+(G34+R34)/100000+(G34)/1000000))) -> FALSE | DX27: =IF(AU29=6,IF(AU26=6,SUM(AV29*1000+(BC29)/10+(BA29)/100+(BK35)/1000+((G35+R35)-(F35+S35))/10000+(G35+R35)/100000+(G35)/1000000))) -> FALSE
A28: =AP24 -> JAPON | F28: 4 | G28: 0 | H28: =AP29 -> THAÏLANDE | M28: THAÏLANDE | R28: 0 | S28: 2 | T28: JAPON | Z28: =VLOOKUP(AN35,AO31:AT36,2,0) -> IRAK | AE28: 5 | AF28: =VLOOKUP(Z28,AP24:BC29,7,0) -> 11 | AG28: =VLOOKUP(Z28,AP24:BC29,8,0) -> 10 | AH28: =VLOOKUP(Z28,AP24:BC29,9,0) -> 3 | AI28: =VLOOKUP(Z28,AP24:BC29,10,0) -> 2 | AJ28: =VLOOKUP(Z28,AP24:BC29,11,0) -> 5 | AK28: =VLOOKUP(Z28,AP24:BC29,12,0) -> 11 | AL28: =VLOOKUP(Z28,AP24:BC29,13,0) -> 12 | AM28: =VLOOKUP(Z28,AP24:BC29,14,0) -> -1 | AP28: IRAK | AU28: =RANK(AV28,AV24:AV29) -> 5 | AV28: =SUMPRODUCT((A24:E38=AP28)*(BF24:BF38))+SUMPRODUCT((H24:L38=AP28)*(BG24:BG38))+SUMPRODUCT((M24:Q38=AP28)*(BH24:BH38))+SUMPRODUCT((T24:X38=AP28)*(BI24:BI38)) -> 11 | AW28: =SUMPRODUCT((A24:E38=AP28)*(BL24:BL38))+SUMPRODUCT((H24:L38=AP28)*(BM24:BM38))+SUMPRODUCT((M24:Q38=AP28)*(BN24:BN38))+SUMPRODUCT((T24:X38=AP28)*(BO24:BO38)) -> 10 | AX28: =SUMPRODUCT((A24:E38=AP28)*(BP24:BP38))+SUMPRODUCT((H24:L38=AP28)*(BQ24:BQ38))+SUMPRODUCT((M24:Q38=AP28)*(BR24:BR38))+SUMPRODUCT((T24:X38=AP28)*(BS24:BS38)) -> 3 | AY28: =SUMPRODUCT((A24:E38=AP28)*(BT24:BT38))+SUMPRODUCT((H24:L38=AP28)*(BU24:BU38))+SUMPRODUCT((M24:Q38=AP28)*(BV24:BV38))+SUMPRODUCT((T24:X38=AP28)*(BW24:BW38)) -> 2 | AZ28: =SUMPRODUCT((A24:E38=AP28)*(BX24:BX38))+SUMPRODUCT((H24:L38=AP28)*(BY24:BY38))+SUMPRODUCT((M24:Q38=AP28)*(BZ24:BZ38))+SUMPRODUCT((T24:X38=AP28)*(CA24:CA38)) -> 5 | BA28: =SUMPRODUCT((A24:E38=AP28)*(CB24:CB38))+SUMPRODUCT((H24:L38=AP28)*(CC24:CC38))+SUMPRODUCT((M24:Q38=AP28)*(CD24:CD38))+SUMPRODUCT((T24:X38=AP28)*(CE24:CE38)) -> 11 | BB28: =SUMPRODUCT((A24:E38=AP28)*(CH24:CH38))+SUMPRODUCT((H24:L38=AP28)*(CI24:CI38))+SUMPRODUCT((M24:Q38=AP28)*(CJ24:CJ38))+SUMPRODUCT((T24:X38=AP28)*(CK24:CK38)) -> 12 | BC28: -1 | BF28: 3 | BG28: 0 | BH28: 0 | BI28: 3 | BJ28: 6 | BK28: 0 | BL28: 1 | BM28: 1 | BN28: 1 | BO28: 1 | BP28: 1 | BQ28: FALSE | BR28: FALSE | BS28: 1 | BT28: FALSE | BU28: FALSE | BV28: FALSE | BW28: FALSE | BX28: FALSE | BY28: 1 | BZ28: 1 | CA28: FALSE | CB28: 4 | CC28: 0 | CD28: 0 | CE28: 2 | CF28: 6 | CG28: 0 | CH28: 0 | CI28: 4 | CJ28: 2 | CK28: 0 | CL28: 0 | CM28: 6 | CN28: =IF(AU24=1,IF(AU28=1,SUM(AV24*1000+(BC24)/10+(BA24)/100+(BJ27)/1000+((F27+S27)-(G27+R27))/10000+(F27+S27)/100000+(S27)/1000000))) -> FALSE | CO28: =IF(AU25=1,IF(AU28=1,SUM(AV25*1000+(BC25)/10+(BA25)/100+(BJ31)/1000+((F31+S31)-(G31+R31))/10000+(F31+S31)/100000+(S31)/1000000))) -> FALSE | CP28: =IF(AU26=1,IF(AU28=1,SUM(AV26*1000+(BC26)/10+(BA26)/100+(BJ34)/1000+((F34+S34)-(G34+R34))/10000+(F34+S34)/100000+(S34)/1000000))) -> FALSE | CQ28: =IF(AU27=1,IF(AU28=1,SUM(AV27*1000+(BC27)/10+(BA27)/100+(BJ36)/1000+((F36+S36)-(G36+R36))/10000+(F36+S36)/100000+(S36)/1000000))) -> FALSE | CR28: =IF(AU28=1,IF(AU27=1,SUM(AV28*1000+(BC28)/10+(BA28)/100+(BK36)/1000+((G36+R36)-(F36+S36))/10000+(G36+R36)/100000+(G36)/1000000))) -> FALSE | CS28: =IF(AU29=1,IF(AU27=1,SUM(AV29*1000+(BC29)/10+(BA29)/100+(BK37)/1000+((G37+R37)-(F37+S37))/10000+(G37+R37)/100000+(G37)/1000000))) -> FALSE | CU28: =IF(AU24=2,IF(AU28=2,SUM(AV24*1000+(BC24)/10+(BA24)/100+(BJ27)/1000+((F27+S27)-(G27+R27))/10000+(F27+S27)/100000+(S27)/1000000))) -> FALSE | CV28: =IF(AU25=2,IF(AU28=2,SUM(AV25*1000+(BC25)/10+(BA25)/100+(BJ31)/1000+((F31+S31)-(G31+R31))/10000+(F31+S31)/100000+(S31)/1000000))) -> FALSE | CW28: =IF(AU26=2,IF(AU28=2,SUM(AV26*1000+(BC26)/10+(BA26)/100+(BJ34)/1000+((F34+S34)-(G34+R34))/10000+(F34+S34)/100000+(S34)/1000000))) -> FALSE | CX28: =IF(AU27=2,IF(AU28=2,SUM(AV27*1000+(BC27)/10+(BA27)/100+(BJ36)/1000+((F36+S36)-(G36+R36))/10000+(F36+S36)/100000+(S36)/1000000))) -> FALSE | CY28: =IF(AU28=2,IF(AU27=2,SUM(AV28*1000+(BC28)/10+(BA28)/100+(BK36)/1000+((G36+R36)-(F36+S36))/10000+(G36+R36)/100000+(G36)/1000000))) -> FALSE | CZ28: =IF(AU29=2,IF(AU27=2,SUM(AV29*1000+(BC29)/10+(BA29)/100+(BK37)/1000+((G37+R37)-(F37+S37))/10000+(G37+R37)/100000+(G37)/1000000))) -> FALSE | DA28: =IF(AU24=3,IF(AU28=3,SUM(AV24*1000+(BC24)/10+(BA24)/100+(BJ27)/1000+((F27+S27)-(G27+R27))/10000+(F27+S27)/100000+(S27)/1000000))) -> FALSE | DB28: =IF(AU25=3,IF(AU28=3,SUM(AV25*1000+(BC25)/10+(BA25)/100+(BJ31)/1000+((F31+S31)-(G31+R31))/10000+(F31+S31)/100000+(S31)/1000000))) -> FALSE | DC28: =IF(AU26=3,IF(AU28=3,SUM(AV26*1000+(BC26)/10+(BA26)/100+(BJ34)/1000+((F34+S34)-(G34+R34))/10000+(F34+S34)/100000+(S34)/1000000))) -> FALSE | DD28: =IF(AU27=3,IF(AU28=3,SUM(AV27*1000+(BC27)/10+(BA27)/100+(BJ36)/1000+((F36+S36)-(G36+R36))/10000+(F36+S36)/100000+(S36)/1000000))) -> FALSE | DE28: =IF(AU28=3,IF(AU27=3,SUM(AV28*1000+(BC28)/10+(BA28)/100+(BK36)/1000+((G36+R36)-(F36+S36))/10000+(G36+R36)/100000+(G36)/1000000))) -> FALSE | DF28: =IF(AU29=3,IF(AU27=3,SUM(AV29*1000+(BC29)/10+(BA29)/100+(BK37)/1000+((G37+R37)-(F37+S37))/10000+(G37+R37)/100000+(G37)/1000000))) -> FALSE | DG28: =IF(AU24=4,IF(AU28=4,SUM(AV24*1000+(BC24)/10+(BA24)/100+(BJ27)/1000+((F27+S27)-(G27+R27))/10000+(F27+S27)/100000+(S27)/1000000))) -> FALSE | DH28: =IF(AU25=4,IF(AU28=4,SUM(AV25*1000+(BC25)/10+(BA25)/100+(BJ31)/1000+((F31+S31)-(G31+R31))/10000+(F31+S31)/100000+(S31)/1000000))) -> FALSE | DI28: =IF(AU26=4,IF(AU28=4,SUM(AV26*1000+(BC26)/10+(BA26)/100+(BJ34)/1000+((F34+S34)-(G34+R34))/10000+(F34+S34)/100000+(S34)/1000000))) -> FALSE | DJ28: =IF(AU27=4,IF(AU28=4,SUM(AV27*1000+(BC27)/10+(BA27)/100+(BJ36)/1000+((F36+S36)-(G36+R36))/10000+(F36+S36)/100000+(S36)/1000000))) -> FALSE | DK28: =IF(AU28=4,IF(AU27=4,SUM(AV28*1000+(BC28)/10+(BA28)/100+(BK36)/1000+((G36+R36)-(F36+S36))/10000+(G36+R36)/100000+(G36)/1000000))) -> FALSE | DL28: =IF(AU29=4,IF(AU27=4,SUM(AV29*1000+(BC29)/10+(BA29)/100+(BK37)/1000+((G37+R37)-(F37+S37))/10000+(G37+R37)/100000+(G37)/1000000))) -> FALSE | DM28: =IF(AU24=5,IF(AU28=5,SUM(AV24*1000+(BC24)/10+(BA24)/100+(BJ27)/1000+((F27+S27)-(G27+R27))/10000+(F27+S27)/100000+(S27)/1000000))) -> FALSE | DN28: =IF(AU25=5,IF(AU28=5,SUM(AV25*1000+(BC25)/10+(BA25)/100+(BJ31)/1000+((F31+S31)-(G31+R31))/10000+(F31+S31)/100000+(S31)/1000000))) -> FALSE | DO28: =IF(AU26=5,IF(AU28=5,SUM(AV26*1000+(BC26)/10+(BA26)/100+(BJ34)/1000+((F34+S34)-(G34+R34))/10000+(F34+S34)/100000+(S34)/1000000))) -> FALSE | DP28: =IF(AU27=5,IF(AU28=5,SUM(AV27*1000+(BC27)/10+(BA27)/100+(BJ36)/1000+((F36+S36)-(G36+R36))/10000+(F36+S36)/100000+(S36)/1000000))) -> FALSE | DQ28: =IF(AU28=5,IF(AU27=5,SUM(AV28*1000+(BC28)/10+(BA28)/100+(BK36)/1000+((G36+R36)-(F36+S36))/10000+(G36+R36)/100000+(G36)/1000000))) -> FALSE | DR28: =IF(AU29=5,IF(AU27=5,SUM(AV29*1000+(BC29)/10+(BA29)/100+(BK37)/1000+((G37+R37)-(F37+S37))/10000+(G37+R37)/100000+(G37)/1000000))) -> FALSE | DS28: =IF(AU24=6,IF(AU28=6,SUM(AV24*1000+(BC24)/10+(BA24)/100+(BJ27)/1000+((F27+S27)-(G27+R27))/10000+(F27+S27)/100000+(S27)/1000000))) -> FALSE | DT28: =IF(AU25=6,IF(AU28=6,SUM(AV25*1000+(BC25)/10+(BA25)/100+(BJ31)/1000+((F31+S31)-(G31+R31))/10000+(F31+S31)/100000+(S31)/1000000))) -> FALSE | DU28: =IF(AU26=6,IF(AU28=6,SUM(AV26*1000+(BC26)/10+(BA26)/100+(BJ34)/1000+((F34+S34)-(G34+R34))/10000+(F34+S34)/100000+(S34)/1000000))) -> FALSE | DV28: =IF(AU27=6,IF(AU28=6,SUM(AV27*1000+(BC27)/10+(BA27)/100+(BJ36)/1000+((F36+S36)-(G36+R36))/10000+(F36+S36)/100000+(S36)/1000000))) -> FALSE | DW28: =IF(AU28=6,IF(AU27=6,SUM(AV28*1000+(BC28)/10+(BA28)/100+(BK36)/1000+((G36+R36)-(F36+S36))/10000+(G36+R36)/100000+(G36)/1000000))) -> FALSE | DX28: =IF(AU29=6,IF(AU27=6,SUM(AV29*1000+(BC29)/10+(BA29)/100+(BK37)/1000+((G37+R37)-(F37+S37))/10000+(G37+R37)/100000+(G37)/1000000))) -> FALSE
A29: =AP25 -> ARABIE SAOUDITE | F29: 2 | G29: 2 | H29: =AP26 -> AUSTRALIE | M29: AUSTRALIE | R29: 3 | S29: 2 | T29: ARABIE SAOUDITE | Z29: =VLOOKUP(AN36,AO31:AT36,2,0) -> THAÏLANDE | AE29: 6 | AF29: =VLOOKUP(Z29,AP24:BC29,7,0) -> 2 | AG29: =VLOOKUP(Z29,AP24:BC29,8,0) -> 10 | AH29: =VLOOKUP(Z29,AP24:BC29,9,0) -> 0 | AI29: =VLOOKUP(Z29,AP24:BC29,10,0) -> 2 | AJ29: =VLOOKUP(Z29,AP24:BC29,11,0) -> 8 | AK29: =VLOOKUP(Z29,AP24:BC29,12,0) -> 6 | AL29: =VLOOKUP(Z29,AP24:BC29,13,0) -> 24 | AM29: =VLOOKUP(Z29,AP24:BC29,14,0) -> -18 | AP29: THAÏLANDE | AU29: =RANK(AV29,AV24:AV29) -> 6 | AV29: =SUMPRODUCT((A24:E38=AP29)*(BF24:BF38))+SUMPRODUCT((H24:L38=AP29)*(BG24:BG38))+SUMPRODUCT((M24:Q38=AP29)*(BH24:BH38))+SUMPRODUCT((T24:X38=AP29)*(BI24:BI38)) -> 2 | AW29: =SUMPRODUCT((A24:E38=AP29)*(BL24:BL38))+SUMPRODUCT((H24:L38=AP29)*(BM24:BM38))+SUMPRODUCT((M24:Q38=AP29)*(BN24:BN38))+SUMPRODUCT((T24:X38=AP29)*(BO24:BO38)) -> 10 | AX29: =SUMPRODUCT((A24:E38=AP29)*(BP24:BP38))+SUMPRODUCT((H24:L38=AP29)*(BQ24:BQ38))+SUMPRODUCT((M24:Q38=AP29)*(BR24:BR38))+SUMPRODUCT((T24:X38=AP29)*(BS24:BS38)) -> 0 | AY29: =SUMPRODUCT((A24:E38=AP29)*(BT24:BT38))+SUMPRODUCT((H24:L38=AP29)*(BU24:BU38))+SUMPRODUCT((M24:Q38=AP29)*(BV24:BV38))+SUMPRODUCT((T24:X38=AP29)*(BW24:BW38)) -> 2 | AZ29: =SUMPRODUCT((A24:E38=AP29)*(BX24:BX38))+SUMPRODUCT((H24:L38=AP29)*(BY24:BY38))+SUMPRODUCT((M24:Q38=AP29)*(BZ24:BZ38))+SUMPRODUCT((T24:X38=AP29)*(CA24:CA38)) -> 8 | BA29: =SUMPRODUCT((A24:E38=AP29)*(CB24:CB38))+SUMPRODUCT((H24:L38=AP29)*(CC24:CC38))+SUMPRODUCT((M24:Q38=AP29)*(CD24:CD38))+SUMPRODUCT((T24:X38=AP29)*(CE24:CE38)) -> 6 | BB29: =SUMPRODUCT((A24:E38=AP29)*(CH24:CH38))+SUMPRODUCT((H24:L38=AP29)*(CI24:CI38))+SUMPRODUCT((M24:Q38=AP29)*(CJ24:CJ38))+SUMPRODUCT((T24:X38=AP29)*(CK24:CK38)) -> 24 | BC29: -18 | BF29: 1 | BG29: 1 | BH29: 3 | BI29: 0 | BJ29: 1 | BK29: 4 | BL29: 1 | BM29: 1 | BN29: 1 | BO29: 1 | BP29: FALSE | BQ29: FALSE | BR29: 1 | BS29: FALSE | BT29: 1 | BU29: 1 | BV29: FALSE | BW29: FALSE | BX29: FALSE | BY29: FALSE | BZ29: FALSE | CA29: 1 | CB29: 2 | CC29: 2 | CD29: 3 | CE29: 2 | CF29: 4 | CG29: 5 | CH29: 2 | CI29: 2 | CJ29: 2 | CK29: 3 | CL29: 5 | CM29: 4 | CN29: =IF(AU24=1,IF(AU29=1,SUM(AV24*1000+(BC24)/10+(BA24)/100+(BJ28)/1000+((F28+S28)-(G28+R28))/10000+(F28+S28)/100000+(S28)/1000000))) -> FALSE | CO29: =IF(AU25=1,IF(AU29=1,SUM(AV25*1000+(BC25)/10+(BA25)/100+(BJ32)/1000+((F32+S32)-(G32+R32))/10000+(F32+S32)/100000+(S32)/1000000))) -> FALSE | CP29: =IF(AU26=1,IF(AU29=1,SUM(AV26*1000+(BC26)/10+(BA26)/100+(BJ35)/1000+((F35+S35)-(G35+R35))/10000+(F35+S35)/100000+(S35)/1000000))) -> FALSE | CQ29: =IF(AU27=1,IF(AU29=1,SUM(AV27*1000+(BC27)/10+(BA27)/100+(BJ37)/1000+((F37+S37)-(G37+R37))/10000+(F37+S37)/100000+(S37)/1000000))) -> FALSE | CR29: =IF(AU28=1,IF(AU29=1,SUM(AV28*1000+(BC28)/10+(BA28)/100+(BJ38)/1000+((F38+S38)-(G38+R38))/10000+(F38+S38)/100000+(S38)/1000000))) -> FALSE | CS29: =IF(AU29=1,IF(AU28=1,SUM(AV29*1000+(BC29)/10+(BA29)/100+(BK38)/1000+((G38+R38)-(F38+S38))/10000+(G38+R38)/100000+(G38)/1000000))) -> FALSE | CU29: =IF(AU24=2,IF(AU29=2,SUM(AV24*1000+(BC24)/10+(BA24)/100+(BJ28)/1000+((F28+S28)-(G28+R28))/10000+(F28+S28)/100000+(S28)/1000000))) -> FALSE | CV29: =IF(AU25=2,IF(AU29=2,SUM(AV25*1000+(BC25)/10+(BA25)/100+(BJ32)/1000+((F32+S32)-(G32+R32))/10000+(F32+S32)/100000+(S32)/1000000))) -> FALSE | CW29: =IF(AU26=2,IF(AU29=2,SUM(AV26*1000+(BC26)/10+(BA26)/100+(BJ35)/1000+((F35+S35)-(G35+R35))/10000+(F35+S35)/100000+(S35)/1000000))) -> FALSE | CX29: =IF(AU27=2,IF(AU29=2,SUM(AV27*1000+(BC27)/10+(BA27)/100+(BJ37)/1000+((F37+S37)-(G37+R37))/10000+(F37+S37)/100000+(S37)/1000000))) -> FALSE | CY29: =IF(AU28=2,IF(AU29=2,SUM(AV28*1000+(BC28)/10+(BA28)/100+(BJ38)/1000+((F38+S38)-(G38+R38))/10000+(F38+S38)/100000+(S38)/1000000))) -> FALSE | CZ29: =IF(AU29=2,IF(AU28=2,SUM(AV29*1000+(BC29)/10+(BA29)/100+(BK38)/1000+((G38+R38)-(F38+S38))/10000+(G38+R38)/100000+(G38)/1000000))) -> FALSE | DA29: =IF(AU24=3,IF(AU29=3,SUM(AV24*1000+(BC24)/10+(BA24)/100+(BJ28)/1000+((F28+S28)-(G28+R28))/10000+(F28+S28)/100000+(S28)/1000000))) -> FALSE | DB29: =IF(AU25=3,IF(AU29=3,SUM(AV25*1000+(BC25)/10+(BA25)/100+(BJ32)/1000+((F32+S32)-(G32+R32))/10000+(F32+S32)/100000+(S32)/1000000))) -> FALSE | DC29: =IF(AU26=3,IF(AU29=3,SUM(AV26*1000+(BC26)/10+(BA26)/100+(BJ35)/1000+((F35+S35)-(G35+R35))/10000+(F35+S35)/100000+(S35)/1000000))) -> FALSE | DD29: =IF(AU27=3,IF(AU29=3,SUM(AV27*1000+(BC27)/10+(BA27)/100+(BJ37)/1000+((F37+S37)-(G37+R37))/10000+(F37+S37)/100000+(S37)/1000000))) -> FALSE | DE29: =IF(AU28=3,IF(AU29=3,SUM(AV28*1000+(BC28)/10+(BA28)/100+(BJ38)/1000+((F38+S38)-(G38+R38))/10000+(F38+S38)/100000+(S38)/1000000))) -> FALSE | DF29: =IF(AU29=3,IF(AU28=3,SUM(AV29*1000+(BC29)/10+(BA29)/100+(BK38)/1000+((G38+R38)-(F38+S38))/10000+(G38+R38)/100000+(G38)/1000000))) -> FALSE | DG29: =IF(AU24=4,IF(AU29=4,SUM(AV24*1000+(BC24)/10+(BA24)/100+(BJ28)/1000+((F28+S28)-(G28+R28))/10000+(F28+S28)/100000+(S28)/1000000))) -> FALSE | DH29: =IF(AU25=4,IF(AU29=4,SUM(AV25*1000+(BC25)/10+(BA25)/100+(BJ32)/1000+((F32+S32)-(G32+R32))/10000+(F32+S32)/100000+(S32)/1000000))) -> FALSE | DI29: =IF(AU26=4,IF(AU29=4,SUM(AV26*1000+(BC26)/10+(BA26)/100+(BJ35)/1000+((F35+S35)-(G35+R35))/10000+(F35+S35)/100000+(S35)/1000000))) -> FALSE | DJ29: =IF(AU27=4,IF(AU29=4,SUM(AV27*1000+(BC27)/10+(BA27)/100+(BJ37)/1000+((F37+S37)-(G37+R37))/10000+(F37+S37)/100000+(S37)/1000000))) -> FALSE | DK29: =IF(AU28=4,IF(AU29=4,SUM(AV28*1000+(BC28)/10+(BA28)/100+(BJ38)/1000+((F38+S38)-(G38+R38))/10000+(F38+S38)/100000+(S38)/1000000))) -> FALSE | DL29: =IF(AU29=4,IF(AU28=4,SUM(AV29*1000+(BC29)/10+(BA29)/100+(BK38)/1000+((G38+R38)-(F38+S38))/10000+(G38+R38)/100000+(G38)/1000000))) -> FALSE | DM29: =IF(AU24=5,IF(AU29=5,SUM(AV24*1000+(BC24)/10+(BA24)/100+(BJ28)/1000+((F28+S28)-(G28+R28))/10000+(F28+S28)/100000+(S28)/1000000))) -> FALSE | DN29: =IF(AU25=5,IF(AU29=5,SUM(AV25*1000+(BC25)/10+(BA25)/100+(BJ32)/1000+((F32+S32)-(G32+R32))/10000+(F32+S32)/100000+(S32)/1000000))) -> FALSE | DO29: =IF(AU26=5,IF(AU29=5,SUM(AV26*1000+(BC26)/10+(BA26)/100+(BJ35)/1000+((F35+S35)-(G35+R35))/10000+(F35+S35)/100000+(S35)/1000000))) -> FALSE | DP29: =IF(AU27=5,IF(AU29=5,SUM(AV27*1000+(BC27)/10+(BA27)/100+(BJ37)/1000+((F37+S37)-(G37+R37))/10000+(F37+S37)/100000+(S37)/1000000))) -> FALSE | DQ29: =IF(AU28=5,IF(AU29=5,SUM(AV28*1000+(BC28)/10+(BA28)/100+(BJ38)/1000+((F38+S38)-(G38+R38))/10000+(F38+S38)/100000+(S38)/1000000))) -> FALSE | DR29: =IF(AU29=5,IF(AU28=5,SUM(AV29*1000+(BC29)/10+(BA29)/100+(BK38)/1000+((G38+R38)-(F38+S38))/10000+(G38+R38)/100000+(G38)/1000000))) -> FALSE | DS29: =IF(AU24=6,IF(AU29=6,SUM(AV24*1000+(BC24)/10+(BA24)/100+(BJ28)/1000+((F28+S28)-(G28+R28))/10000+(F28+S28)/100000+(S28)/1000000))) -> FALSE | DT29: =IF(AU25=6,IF(AU29=6,SUM(AV25*1000+(BC25)/10+(BA25)/100+(BJ32)/1000+((F32+S32)-(G32+R32))/10000+(F32+S32)/100000+(S32)/1000000))) -> FALSE | DU29: =IF(AU26=6,IF(AU29=6,SUM(AV26*1000+(BC26)/10+(BA26)/100+(BJ35)/1000+((F35+S35)-(G35+R35))/10000+(F35+S35)/100000+(S35)/1000000))) -> FALSE | DV29: =IF(AU27=6,IF(AU29=6,SUM(AV27*1000+(BC27)/10+(BA27)/100+(BJ37)/1000+((F37+S37)-(G37+R37))/10000+(F37+S37)/100000+(S37)/1000000))) -> FALSE | DW29: =IF(AU28=6,IF(AU29=6,SUM(AV28*1000+(BC28)/10+(BA28)/100+(BJ38)/1000+((F38+S38)-(G38+R38))/10000+(F38+S38)/100000+(S38)/1000000))) -> FALSE | DX29: =IF(AU29=6,IF(AU28=6,SUM(AV29*1000+(BC29)/10+(BA29)/100+(BK38)/1000+((G38+R38)-(F38+S38))/10000+(G38+R38)/100000+(G38)/1000000))) -> FALSE
A30: =AP25 -> ARABIE SAOUDITE | F30: 3 | G30: 0 | H30: =AP27 -> EMIRATS ARABES UNIS | M30: EMIRATS ARABES UNIS | R30: 2 | S30: 1 | T30: ARABIE SAOUDITE | BF30: 3 | BG30: 0 | BH30: 3 | BI30: 0 | BJ30: 3 | BK30: 3 | BL30: 1 | BM30: 1 | BN30: 1 | BO30: 1 | BP30: 1 | BQ30: FALSE | BR30: 1 | BS30: FALSE | BT30: FALSE | BU30: FALSE | BV30: FALSE | BW30: FALSE | BX30: FALSE | BY30: 1 | BZ30: FALSE | CA30: 1 | CB30: 3 | CC30: 0 | CD30: 2 | CE30: 1 | CF30: 4 | CG30: 2 | CH30: 0 | CI30: 3 | CJ30: 1 | CK30: 2 | CL30: 2 | CM30: 4 | CN30: =SUM(CN24:CN29) -> 1000000 | CO30: 0 | CP30: 0 | CQ30: 0 | CR30: 0 | CS30: 0 | CU30: =SUM(CU24:CU29) -> 0 | CV30: 819000.8709 | CW30: 819000.6641 | CX30: 0 | CY30: 0 | CZ30: 0 | DA30: 0 | DB30: 0 | DC30: 0 | DD30: 0 | DE30: 0 | DF30: 0 | DG30: 0 | DH30: 0 | DI30: 0 | DJ30: 400000 | DK30: 0 | DL30: 0 | DM30: 0 | DN30: 0 | DO30: 0 | DP30: 0 | DQ30: 200000 | DR30: 0 | DS30: 0 | DT30: 0 | DU30: 0 | DV30: 0 | DW30: 0 | DX30: 100000
A31: =AP25 -> ARABIE SAOUDITE | F31: 1 | G31: 0 | H31: =AP28 -> IRAK | M31: IRAK | R31: 1 | S31: 2 | T31: ARABIE SAOUDITE | AN31: 1 | AO31: =BA31 -> 1 | AP31: =AP24 -> JAPON | AU31: =SUM(CN30,CU30,DA30,DG30,DM30,DS30) -> 1000000 | AX31: =AU31+0.00000006 -> 1000000 | BA31: =RANK(AX31,AX31:AZ36) -> 1 | BB31: =RANK(AU31,AU31:AW36) -> 1 | BF31: 3 | BG31: 0 | BH31: 0 | BI31: 3 | BJ31: 6 | BK31: 0 | BL31: 1 | BM31: 1 | BN31: 1 | BO31: 1 | BP31: 1 | BQ31: FALSE | BR31: FALSE | BS31: 1 | BT31: FALSE | BU31: FALSE | BV31: FALSE | BW31: FALSE | BX31: FALSE | BY31: 1 | BZ31: 1 | CA31: FALSE | CB31: 1 | CC31: 0 | CD31: 1 | CE31: 2 | CF31: 3 | CG31: 1 | CH31: 0 | CI31: 1 | CJ31: 2 | CK31: 1 | CL31: 1 | CM31: 3
A32: =AP25 -> ARABIE SAOUDITE | F32: 1 | G32: 0 | H32: =AP29 -> THAÏLANDE | M32: THAÏLANDE | R32: 0 | S32: 3 | T32: ARABIE SAOUDITE | AN32: 2 | AO32: =BA32 -> 2 | AP32: =AP25 -> ARABIE SAOUDITE | AU32: =SUM(CO30,CV30,DB30,DH30,DN30,DT30) -> 819000.8709 | AX32: =AU32+0.00000005 -> 819000.8709 | BA32: =RANK(AX32,AX31:AZ36) -> 2 | BB32: =RANK(AU32,AU31:AW36) -> 2 | BF32: 3 | BG32: 0 | BH32: 0 | BI32: 3 | BJ32: 6 | BK32: 0 | BL32: 1 | BM32: 1 | BN32: 1 | BO32: 1 | BP32: 1 | BQ32: FALSE | BR32: FALSE | BS32: 1 | BT32: FALSE | BU32: FALSE | BV32: FALSE | BW32: FALSE | BX32: FALSE | BY32: 1 | BZ32: 1 | CA32: FALSE | CB32: 1 | CC32: 0 | CD32: 0 | CE32: 3 | CF32: 4 | CG32: 0 | CH32: 0 | CI32: 1 | CJ32: 3 | CK32: 0 | CL32: 0 | CM32: 4 | CN32: =VLOOKUP(AN31,AO31:AT36,2,0) -> JAPON | CT32: =VLOOKUP(CN32,AP31:AW36,6,0) -> 1000000 | CW32: =RANK(CT32,CT32:CV37) -> 1
A33: =AP26 -> AUSTRALIE | F33: 2 | G33: 0 | H33: =AP27 -> EMIRATS ARABES UNIS | M33: EMIRATS ARABES UNIS | R33: 0 | S33: 1 | T33: AUSTRALIE | Z33: ÉQUIPE QUILIFIÉE | AD33: =Z24 -> JAPON | AN33: 3 | AO33: 3 | AP33: AUSTRALIE | AU33: =SUM(CP30,CW30,DC30,DI30,DO30,DU30) -> 819000.6641 | AX33: =AU33+0.00000004 -> 819000.6641 | BA33: =RANK(AX33,AX31:AZ36) -> 3 | BB33: =RANK(AU33,AU31:AW36) -> 3 | BF33: 3 | BG33: 0 | BH33: 0 | BI33: 3 | BJ33: 6 | BK33: 0 | BL33: 1 | BM33: 1 | BN33: 1 | BO33: 1 | BP33: 1 | BQ33: FALSE | BR33: FALSE | BS33: 1 | BT33: FALSE | BU33: FALSE | BV33: FALSE | BW33: FALSE | BX33: FALSE | BY33: 1 | BZ33: 1 | CA33: FALSE | CB33: 2 | CC33: 0 | CD33: 0 | CE33: 1 | CF33: 3 | CG33: 0 | CH33: 0 | CI33: 2 | CJ33: 1 | CK33: 0 | CL33: 0 | CM33: 3 | CN33: =VLOOKUP(AN32,AO31:AT36,2,0) -> ARABIE SAOUDITE | CT33: =VLOOKUP(CN33,AP31:AW36,6,0) -> 819000.8709 | CW33: =RANK(CT33,CT32:CV37) -> 2
A34: =AP26 -> AUSTRALIE | F34: 2 | G34: 0 | H34: =AP28 -> IRAK | M34: IRAK | R34: 1 | S34: 1 | T34: AUSTRALIE | AN34: 4 | AO34: 4 | AP34: EMIRATS ARABES UNIS | AU34: =SUM(CQ30,CX30,DD30,DJ30,DP30,DV30) -> 400000 | AX34: =AU34+0.00000003 -> 400000 | BA34: =RANK(AX34,AX31:AZ36) -> 4 | BB34: =RANK(AU34,AU31:AW36) -> 4 | BF34: 3 | BG34: 0 | BH34: 1 | BI34: 1 | BJ34: 4 | BK34: 1 | BL34: 1 | BM34: 1 | BN34: 1 | BO34: 1 | BP34: 1 | BQ34: FALSE | BR34: FALSE | BS34: FALSE | BT34: FALSE | BU34: FALSE | BV34: 1 | BW34: 1 | BX34: FALSE | BY34: 1 | BZ34: FALSE | CA34: FALSE | CB34: 2 | CC34: 0 | CD34: 1 | CE34: 1 | CF34: 3 | CG34: 1 | CH34: 0 | CI34: 2 | CJ34: 1 | CK34: 1 | CL34: 1 | CM34: 3 | CN34: =VLOOKUP(AN33,AO31:AT36,2,0) -> AUSTRALIE | CT34: =VLOOKUP(CN34,AP31:AW36,6,0) -> 819000.6641 | CW34: =RANK(CT34,CT32:CV37) -> 3
A35: =AP26 -> AUSTRALIE | F35: 2 | G35: 1 | H35: =AP29 -> THAÏLANDE | M35: THAÏLANDE | R35: 2 | S35: 2 | T35: AUSTRALIE | Z35: ÉQUIPE QUILIFIÉE | AD35: =Z25 -> ARABIE SAOUDITE | AN35: 5 | AO35: 5 | AP35: IRAK | AU35: =SUM(CR30,CY30,DE30,DK30,DQ30,DW30) -> 200000 | AX35: =AU35+0.00000002 -> 200000 | BA35: =RANK(AX35,AX31:AZ36) -> 5 | BB35: =RANK(AU35,AU31:AW36) -> 5 | BF35: 3 | BG35: 0 | BH35: 1 | BI35: 1 | BJ35: 4 | BK35: 1 | BL35: 1 | BM35: 1 | BN35: 1 | BO35: 1 | BP35: 1 | BQ35: FALSE | BR35: FALSE | BS35: FALSE | BT35: FALSE | BU35: FALSE | BV35: 1 | BW35: 1 | BX35: FALSE | BY35: 1 | BZ35: FALSE | CA35: FALSE | CB35: 2 | CC35: 1 | CD35: 2 | CE35: 2 | CF35: 4 | CG35: 3 | CH35: 1 | CI35: 2 | CJ35: 2 | CK35: 2 | CL35: 3 | CM35: 4 | CN35: =VLOOKUP(AN34,AO31:AT36,2,0) -> EMIRATS ARABES UNIS | CT35: =VLOOKUP(CN35,AP31:AW36,6,0) -> 400000 | CW35: =RANK(CT35,CT32:CV37) -> 4
A36: =AP27 -> EMIRATS ARABES UNIS | F36: 2 | G36: 0 | H36: =AP28 -> IRAK | M36: IRAK | R36: 1 | S36: 0 | T36: EMIRATS ARABES UNIS | AN36: 6 | AO36: 6 | AP36: THAÏLANDE | AU36: =SUM(CS30,CZ30,DF30,DL30,DR30,DX30) -> 100000 | AX36: =AU36+0.00000001 -> 100000 | BA36: =RANK(AX36,AX31:AZ36) -> 6 | BB36: =RANK(AU36,AU31:AW36) -> 6 | BF36: 3 | BG36: 0 | BH36: 3 | BI36: 0 | BJ36: 3 | BK36: 3 | BL36: 1 | BM36: 1 | BN36: 1 | BO36: 1 | BP36: 1 | BQ36: FALSE | BR36: 1 | BS36: FALSE | BT36: FALSE | BU36: FALSE | BV36: FALSE | BW36: FALSE | BX36: FALSE | BY36: 1 | BZ36: FALSE | CA36: 1 | CB36: 2 | CC36: 0 | CD36: 1 | CE36: 0 | CF36: 2 | CG36: 1 | CH36: 0 | CI36: 2 | CJ36: 0 | CK36: 1 | CL36: 1 | CM36: 2 | CN36: =VLOOKUP(AN35,AO31:AT36,2,0) -> IRAK | CT36: =VLOOKUP(CN36,AP31:AW36,6,0) -> 200000 | CW36: =RANK(CT36,CT32:CV37) -> 5
A37: =AP27 -> EMIRATS ARABES UNIS | F37: 3 | G37: 1 | H37: =AP29 -> THAÏLANDE | M37: THAÏLANDE | R37: 1 | S37: 1 | T37: EMIRATS ARABES UNIS | Z37: BARRAGE | AD37: =Z26 -> AUSTRALIE | BF37: 3 | BG37: 0 | BH37: 1 | BI37: 1 | BJ37: 4 | BK37: 1 | BL37: 1 | BM37: 1 | BN37: 1 | BO37: 1 | BP37: 1 | BQ37: FALSE | BR37: FALSE | BS37: FALSE | BT37: FALSE | BU37: FALSE | BV37: 1 | BW37: 1 | BX37: FALSE | BY37: 1 | BZ37: FALSE | CA37: FALSE | CB37: 3 | CC37: 1 | CD37: 1 | CE37: 1 | CF37: 4 | CG37: 2 | CH37: 1 | CI37: 3 | CJ37: 1 | CK37: 1 | CL37: 2 | CM37: 4 | CN37: =VLOOKUP(AN36,AO31:AT36,2,0) -> THAÏLANDE | CT37: =VLOOKUP(CN37,AP31:AW36,6,0) -> 100000 | CW37: =RANK(CT37,CT32:CV37) -> 6
A38: =AP28 -> IRAK | F38: 4 | G38: 0 | H38: =AP29 -> THAÏLANDE | M38: THAÏLANDE | R38: 1 | S38: 2 | T38: IRAK | BF38: 3 | BG38: 0 | BH38: 0 | BI38: 3 | BJ38: 6 | BK38: 0 | BL38: 1 | BM38: 1 | BN38: 1 | BO38: 1 | BP38: 1 | BQ38: FALSE | BR38: FALSE | BS38: 1 | BT38: FALSE | BU38: FALSE | BV38: FALSE | BW38: FALSE | BX38: FALSE | BY38: 1 | BZ38: 1 | CA38: FALSE | CB38: 4 | CC38: 0 | CD38: 1 | CE38: 2 | CF38: 6 | CG38: 1 | CH38: 0 | CI38: 4 | CJ38: 2 | CK38: 1 | CL38: 1 | CM38: 6
A41: ÉQUIPE | H41: BUTS | K41: PENALTIES | M41: BUTS | O41: ÉQUIPE
A42: =AD17 -> SYRIE | H42: 1 | M42: 2 | O42: =AD37 -> AUSTRALIE | W42: BARRAGES | AO42: =SUM(M44*2)/10+(H42)/100+(K44)/10000 -> 0.21
W43: =IF(H42="","",IF(AO42>AO45,A42,A44)) -> AUSTRALIE
A44: =AD37 -> AUSTRALIE | H44: 1 | M44: 1 | O44: =AD17 -> SYRIE
AO45: =SUM(H44*2)/10+(M42)/100+(K42)/10000 -> 0.22

Sheet EUROPE
A1: MATCHS ALLER | J1: GROUPE A | P1: MATCHS RETOUR | Y1: GROUPE A | Z1: CLASSEMENT | AP1: CLASSEMENT
A3: Équipes | F3: Bts | G3: Bts | H3: Équipes | M3: Équipes | R3: Bts | S3: Bts | T3: Équipes | Z3: Équipes | AE3: R | AF3: Pts | AG3: J | AH3: G | AI3: N | AJ3: P | AK3: B + | AL3: B - | AM3: Diff | AP3: Équipes | AU3: R | AV3: Pts | AW3: J | AX3: G | AY3: N | AZ3: P | BA3: B + | BB3: B - | BC3: Diff | BF3: pts | BG3: pts | BH3: pts | BI3: pts | BJ3: t pts | BK3: t pts | BL3: j | BM3: j | BN3: j | BO3: j | BP3: g | BQ3: g | BR3: g | BS3: g | BT3: n | BU3: n | BV3: n | BW3: n | BX3: p | BY3: p | BZ3: p | CA3: p | CB3: b+ | CC3: b+ | CD3: b+ | CE3: b+ | CF3: b+ | CG3: b+ | CH3: b- | CI3: b- | CJ3: b- | CK3: b- | CL3: b- | CM3: b- | CN3: =AP4 -> FRANCE | CO3: =AP5 -> SUÈDE | CP3: =AP6 -> BULGARIE | CQ3: =AP7 -> PAYS-BAS | CR3: =AP8 -> BIELORUSSIE | CS3: =AP9 -> LUXEMBOURG | CU3: =CN3 -> FRANCE | CV3: =CO3 -> SUÈDE | CW3: BULGARIE | CX3: PAYS-BAS | CY3: BIELORUSSIE | CZ3: LUXEMBOURG | DA3: =CN3 -> FRANCE | DB3: =CO3 -> SUÈDE | DC3: BULGARIE | DD3: PAYS-BAS | DE3: BIELORUSSIE | DF3: LUXEMBOURG | DG3: =CN3 -> FRANCE | DH3: =CO3 -> SUÈDE | DI3: BULGARIE | DJ3: PAYS-BAS | DK3: BIELORUSSIE | DL3: LUXEMBOURG | DM3: =CN3 -> FRANCE | DN3: =CO3 -> SUÈDE | DO3: BULGARIE | DP3: PAYS-BAS | DQ3: BIELORUSSIE | DR3: LUXEMBOURG | DS3: =CN3 -> FRANCE | DT3: =CO3 -> SUÈDE | DU3: BULGARIE | DV3: PAYS-BAS | DW3: BIELORUSSIE | DX3: LUXEMBOURG
A4: =AP4 -> FRANCE | F4: 2 | G4: 1 | H4: =AP5 -> SUÈDE | M4: =H4 -> SUÈDE | R4: 2 | S4: 1 | T4: =A4 -> FRANCE | Z4: =VLOOKUP(AN11,AO11:AT16,2,0) -> FRANCE | AE4: 1 | AF4: =VLOOKUP(Z4,AP4:BC9,7,0) -> 23 | AG4: =VLOOKUP(Z4,AP4:BC9,8,0) -> 10 | AH4: =VLOOKUP(Z4,AP4:BC9,9,0) -> 7 | AI4: =VLOOKUP(Z4,AP4:BC9,10,0) -> 2 | AJ4: =VLOOKUP(Z4,AP4:BC9,11,0) -> 1 | AK4: =VLOOKUP(Z4,AP4:BC9,12,0) -> 18 | AL4: =VLOOKUP(Z4,AP4:BC9,13,0) -> 6 | AM4: =VLOOKUP(Z4,AP4:BC9,14,0) -> 12 | AP4: FRANCE | AU4: =RANK(AV4,AV4:AV9) -> 1 | AV4: =SUMPRODUCT((A4:E18=AP4)*(BF4:BF18))+SUMPRODUCT((H4:L18=AP4)*(BG4:BG18))+SUMPRODUCT((M4:Q18=AP4)*(BH4:BH18))+SUMPRODUCT((T4:X18=AP4)*(BI4:BI18)) -> 23 | AW4: =SUMPRODUCT((A4:E18=AP4)*(BL4:BL18))+SUMPRODUCT((H4:L18=AP4)*(BM4:BM18))+SUMPRODUCT((M4:Q18=AP4)*(BN4:BN18))+SUMPRODUCT((T4:X18=AP4)*(BO4:BO18)) -> 10 | AX4: =SUMPRODUCT((A4:E18=AP4)*(BP4:BP18))+SUMPRODUCT((H4:L18=AP4)*(BQ4:BQ18))+SUMPRODUCT((M4:Q18=AP4)*(BR4:BR18))+SUMPRODUCT((T4:X18=AP4)*(BS4:BS18)) -> 7 | AY4: =SUMPRODUCT((A4:E18=AP4)*(BT4:BT18))+SUMPRODUCT((H4:L18=AP4)*(BU4:BU18))+SUMPRODUCT((M4:Q18=AP4)*(BV4:BV18))+SUMPRODUCT((T4:X18=AP4)*(BW4:BW18)) -> 2 | AZ4: =SUMPRODUCT((A4:E18=AP4)*(BX4:BX18))+SUMPRODUCT((H4:L18=AP4)*(BY4:BY18))+SUMPRODUCT((M4:Q18=AP4)*(BZ4:BZ18))+SUMPRODUCT((T4:X18=AP4)*(CA4:CA18)) -> 1 | BA4: =SUMPRODUCT((A4:E18=AP4)*(CB4:CB18))+SUMPRODUCT((H4:L18=AP4)*(CC4:CC18))+SUMPRODUCT((M4:Q18=AP4)*(CD4:CD18))+SUMPRODUCT((T4:X18=AP4)*(CE4:CE18)) -> 18 | BB4: =SUMPRODUCT((A4:E18=AP4)*(CH4:CH18))+SUMPRODUCT((H4:L18=AP4)*(CI4:CI18))+SUMPRODUCT((M4:Q18=AP4)*(CJ4:CJ18))+SUMPRODUCT((T4:X18=AP4)*(CK4:CK18)) -> 6 | BC4: =BA4-BB4 -> 12 | BF4: =IF(F4="",0,IF(F4>G4,3,IF(F4=G4,1,IF(F4<G4,0)))) -> 3 | BG4: =IF(G4="",0,IF(G4>F4,3,IF(G4=F4,1,IF(G4<F4,0)))) -> 0 | BH4: =IF(R4="",0,IF(R4>S4,3,IF(R4=S4,1,IF(R4<S4,0)))) -> 3 | BI4: =IF(S4="",0,IF(S4>R4,3,IF(S4=R4,1,IF(S4<R4,0)))) -> 0 | BJ4: =BF4+BI4 -> 3 | BK4: =BG4+BH4 -> 3 | BL4: =IF(F4="",0,1) -> 1 | BM4: =IF(G4="",0,1) -> 1 | BN4: =IF(R4="",0,1) -> 1 | BO4: =IF(S4="",0,1) -> 1 | BP4: =IF(F4<>"",IF(F4>G4,1)) -> 1 | BQ4: =IF(G4<>"",IF(G4>F4,1)) -> FALSE | BR4: =IF(R4<>"",IF(R4>S4,1)) -> 1 | BS4: =IF(S4<>"",IF(S4>R4,1)) -> FALSE | BT4: =IF(F4<>"",IF(F4=G4,1)) -> FALSE | BU4: =IF(G4<>"",IF(G4=F4,1)) -> FALSE | BV4: =IF(R4<>"",IF(R4=S4,1)) -> FALSE | BW4: =IF(S4<>"",IF(S4=R4,1)) -> FALSE | BX4: =IF(F4<>"",IF(F4<G4,1)) -> FALSE | BY4: =IF(G4<>"",IF(G4<F4,1)) -> 1 | BZ4: =IF(R4<>"",IF(R4<S4,1)) -> FALSE | CA4: =IF(S4<>"",IF(S4<R4,1)) -> 1 | CB4: =F4 -> 2 | CC4: =G4 -> 1 | CD4: =R4 -> 2 | CE4: =S4 -> 1 | CF4: =CB4+CE4 -> 3 | CG4: =CC4+CD4 -> 3 | CH4: =G4 -> 1 | CI4: =F4 -> 2 | CJ4: =S4 -> 1 | CK4: =R4 -> 2 | CL4: =CH4+CK4 -> 3 | CM4: =CI4+CJ4 -> 3 | CN4: =IF(AU4=1,1000000) -> 1000000 | CO4: =IF(AU5=1,1000000) -> FALSE | CP4: =IF(AU6=1,1000000) -> FALSE | CQ4: =IF(AU7=1,1000000) -> FALSE | CR4: =IF(AU8=1,1000000) -> FALSE | CS4: =IF(AU9=1,1000000) -> FALSE | CU4: =IF(AU4=2,800000) -> FALSE | CV4: =IF(AU5=2,800000) -> 800000 | CW4: =IF(AU6=2,800000) -> FALSE | CX4: =IF(AU7=2,800000) -> 800000 | CY4: =IF(AU8=2,800000) -> FALSE | CZ4: =IF(AU9=2,800000) -> FALSE | DA4: =IF(AU4=3,600000) -> FALSE | DB4: =IF(AU5=3,600000) -> FALSE | DC4: =IF(AU6=3,600000) -> FALSE | DD4: =IF(AU7=3,600000) -> FALSE | DE4: =IF(AU8=3,600000) -> FALSE | DF4: =IF(AU9=3,600000) -> FALSE | DG4: =IF(AU4=4,400000) -> FALSE | DH4: =IF(AU5=4,400000) -> FALSE | DI4: =IF(AU6=4,400000) -> 400000 | DJ4: =IF(AU7=4,400000) -> FALSE | DK4: =IF(AU8=4,400000) -> FALSE | DL4: =IF(AU9=4,400000) -> FALSE | DM4: =IF(AU4=5,200000) -> FALSE | DN4: =IF(AU5=5,200000) -> FALSE | DO4: =IF(AU6=5,200000) -> FALSE | DP4: =IF(AU7=5,200000) -> FALSE | DQ4: =IF(AU8=5,200000) -> FALSE | DR4: =IF(AU9=5,200000) -> 200000 | DS4: =IF(AU4=6,100000) -> FALSE | DT4: =IF(AU5=6,100000) -> FALSE | DU4: =IF(AU6=6,100000) -> FALSE | DV4: =IF(AU7=6,100000) -> FALSE | DW4: =IF(AU8=6,100000) -> 100000 | DX4: =IF(AU9=6,100000) -> FALSE
A5: =AP4 -> FRANCE | F5: 4 | G5: 1 | H5: =AP6 -> BULGARIE | M5: =H5 -> BULGARIE | R5: 0 | S5: 1 | T5: =A5 -> FRANCE | Z5: =VLOOKUP(AN12,AO11:AT16,2,0) -> SUÈDE | AE5: =IF(CT13=CT12,CW12,CW13) -> 2 | AF5: =VLOOKUP(Z5,AP4:BC9,7,0) -> 19 | AG5: =VLOOKUP(Z5,AP4:BC9,8,0) -> 10 | AH5: =VLOOKUP(Z5,AP4:BC9,9,0) -> 6 | AI5: =VLOOKUP(Z5,AP4:BC9,10,0) -> 1 | AJ5: =VLOOKUP(Z5,AP4:BC9,11,0) -> 3 | AK5: =VLOOKUP(Z5,AP4:BC9,12,0) -> 26 | AL5: =VLOOKUP(Z5,AP4:BC9,13,0) -> 9 | AM5: =VLOOKUP(Z5,AP4:BC9,14,0) -> 17 | AP5: SUÈDE | AU5: =RANK(AV5,AV4:AV9) -> 2 | AV5: =SUMPRODUCT((A4:E18=AP5)*(BF4:BF18))+SUMPRODUCT((H4:L18=AP5)*(BG4:BG18))+SUMPRODUCT((M4:Q18=AP5)*(BH4:BH18))+SUMPRODUCT((T4:X18=AP5)*(BI4:BI18)) -> 19 | AW5: =SUMPRODUCT((A4:E18=AP5)*(BL4:BL18))+SUMPRODUCT((H4:L18=AP5)*(BM4:BM18))+SUMPRODUCT((M4:Q18=AP5)*(BN4:BN18))+SUMPRODUCT((T4:X18=AP5)*(BO4:BO18)) -> 10 | AX5: =SUMPRODUCT((A4:E18=AP5)*(BP4:BP18))+SUMPRODUCT((H4:L18=AP5)*(BQ4:BQ18))+SUMPRODUCT((M4:Q18=AP5)*(BR4:BR18))+SUMPRODUCT((T4:X18=AP5)*(BS4:BS18)) -> 6 | AY5: =SUMPRODUCT((A4:E18=AP5)*(BT4:BT18))+SUMPRODUCT((H4:L18=AP5)*(BU4:BU18))+SUMPRODUCT((M4:Q18=AP5)*(BV4:BV18))+SUMPRODUCT((T4:X18=AP5)*(BW4:BW18)) -> 1 | AZ5: =SUMPRODUCT((A4:E18=AP5)*(BX4:BX18))+SUMPRODUCT((H4:L18=AP5)*(BY4:BY18))+SUMPRODUCT((M4:Q18=AP5)*(BZ4:BZ18))+SUMPRODUCT((T4:X18=AP5)*(CA4:CA18)) -> 3 | BA5: =SUMPRODUCT((A4:E18=AP5)*(CB4:CB18))+SUMPRODUCT((H4:L18=AP5)*(CC4:CC18))+SUMPRODUCT((M4:Q18=AP5)*(CD4:CD18))+SUMPRODUCT((T4:X18=AP5)*(CE4:CE18)) -> 26 | BB5: =SUMPRODUCT((A4:E18=AP5)*(CH4:CH18))+SUMPRODUCT((H4:L18=AP5)*(CI4:CI18))+SUMPRODUCT((M4:Q18=AP5)*(CJ4:CJ18))+SUMPRODUCT((T4:X18=AP5)*(CK4:CK18)) -> 9 | BC5: =BA5-BB5 -> 17 | BF5: =IF(F5="",0,IF(F5>G5,3,IF(F5=G5,1,IF(F5<G5,0)))) -> 3 | BG5: =IF(G5="",0,IF(G5>F5,3,IF(G5=F5,1,IF(G5<F5,0)))) -> 0 | BH5: =IF(R5="",0,IF(R5>S5,3,IF(R5=S5,1,IF(R5<S5,0)))) -> 0 | BI5: =IF(S5="",0,IF(S5>R5,3,IF(S5=R5,1,IF(S5<R5,0)))) -> 3 | BJ5: =BF5+BI5 -> 6 | BK5: =BG5+BH5 -> 0 | BL5: =IF(F5="",0,1) -> 1 | BM5: =IF(G5="",0,1) -> 1 | BN5: =IF(R5="",0,1) -> 1 | BO5: =IF(S5="",0,1) -> 1 | BP5: =IF(F5<>"",IF(F5>G5,1)) -> 1 | BQ5: =IF(G5<>"",IF(G5>F5,1)) -> FALSE | BR5: =IF(R5<>"",IF(R5>S5,1)) -> FALSE | BS5: =IF(S5<>"",IF(S5>R5,1)) -> 1 | BT5: =IF(F5<>"",IF(F5=G5,1)) -> FALSE | BU5: =IF(G5<>"",IF(G5=F5,1)) -> FALSE | BV5: =IF(R5<>"",IF(R5=S5,1)) -> FALSE | BW5: =IF(S5<>"",IF(S5=R5,1)) -> FALSE | BX5: =IF(F5<>"",IF(F5<G5,1)) -> FALSE | BY5: =IF(G5<>"",IF(G5<F5,1)) -> 1 | BZ5: =IF(R5<>"",IF(R5<S5,1)) -> 1 | CA5: =IF(S5<>"",IF(S5<R5,1)) -> FALSE | CB5: =F5 -> 4 | CC5: =G5 -> 1 | CD5: =R5 -> 0 | CE5: =S5 -> 1 | CF5: =CB5+CE5 -> 5 | CG5: =CC5+CD5 -> 1 | CH5: =G5 -> 1 | CI5: =F5 -> 4 | CJ5: =S5 -> 1 | CK5: =R5 -> 0 | CL5: =CH5+CK5 -> 1 | CM5: =CI5+CJ5 -> 5 | CN5: =IF(AU4=1,IF(AU5=1,SUM(AV4*1000+(BC4)/10+(BA4)/100+(BJ4)/1000+((F4+S4)-(G4+R4))/10000+(F4+S4)/100000+(S4)/1000000))) -> FALSE | CO5: =IF(AU5=1,IF(AU4=1,SUM(AV5*1000+(BC5)/10+(BA5)/100+(BK4)/1000+((G4+R4)-(F4+S4))/10000+(G4+R4)/100000+(G4)/1000000))) -> FALSE | CP5: =IF(AU6=1,IF(AU4=1,SUM(AV6*1000+(BC6)/10+(BA6)/100+(BK5)/1000+((G5+R5)-(F5+S5))/10000+(G5+R5)/100000+(G5)/1000000))) -> FALSE | CQ5: =IF(AU7=1,IF(AU4=1,SUM(AV7*1000+(BC7)/10+(BA7)/100+(BK6)/1000+((G6+R6)-(F6+S6))/10000+(G6+R6)/100000+(G6)/1000000))) -> FALSE | CR5: =IF(AU8=1,IF(AU4=1,SUM(AV8*1000+(BC8)/10+(BA8)/100+(BK7)/1000+((G7+R7)-(F7+S7))/10000+(G7+R7)/100000+(G7)/1000000))) -> FALSE | CS5: =IF(AU9=1,IF(AU4=1,SUM(AV9*1000+(BC9)/10+(BA9)/100+(BK8)/1000+((G8+R8)-(F8+S8))/10000+(G8+R8)/100000+(G8)/1000000))) -> FALSE | CU5: =IF(AU4=2,IF(AU5=2,SUM(AV4*1000+(BC4)/10+(BA4)/100+(BJ4)/1000+((F4+S4)-(G4+R4))/10000+(F4+S4)/100000+(S4)/1000000))) -> FALSE | CV5: =IF(AU5=2,IF(AU4=2,SUM(AV5*1000+(BC5)/10+(BA5)/100+(BK4)/1000+((G4+R4)-(F4+S4))/10000+(G4+R4)/100000+(G4)/1000000))) -> FALSE | CW5: =IF(AU6=2,IF(AU4=2,SUM(AV6*1000+(BC6)/10+(BA6)/100+(BK5)/1000+((G5+R5)-(F5+S5))/10000+(G5+R5)/100000+(G5)/1000000))) -> FALSE | CX5: =IF(AU7=2,IF(AU4=2,SUM(AV7*1000+(BC7)/10+(BA7)/100+(BK6)/1000+((G6+R6)-(F6+S6))/10000+(G6+R6)/100000+(G6)/1000000))) -> FALSE | CY5: =IF(AU8=2,IF(AU4=2,SUM(AV8*1000+(BC8)/10+(BA8)/100+(BK7)/1000+((G7+R7)-(F7+S7))/10000+(G7+R7)/100000+(G7)/1000000))) -> FALSE | CZ5: =IF(AU9=2,IF(AU4=2,SUM(AV9*1000+(BC9)/10+(BA9)/100+(BK8)/1000+((G8+R8)-(F8+S8))/10000+(G8+R8)/100000+(G8)/1000000))) -> FALSE | DA5: =IF(AU4=3,IF(AU5=3,SUM(AV4*1000+(BC4)/10+(BA4)/100+(BJ4)/1000+((F4+S4)-(G4+R4))/10000+(F4+S4)/100000+(S4)/1000000))) -> FALSE | DB5: =IF(AU5=3,IF(AU4=3,SUM(AV5*1000+(BC5)/10+(BA5)/100+(BK4)/1000+((G4+R4)-(F4+S4))/10000+(G4+R4)/100000+(G4)/1000000))) -> FALSE | DC5: =IF(AU6=3,IF(AU4=3,SUM(AV6*1000+(BC6)/10+(BA6)/100+(BK5)/1000+((G5+R5)-(F5+S5))/10000+(G5+R5)/100000+(G5)/1000000))) -> FALSE | DD5: =IF(AU7=3,IF(AU4=3,SUM(AV7*1000+(BC7)/10+(BA7)/100+(BK6)/1000+((G6+R6)-(F6+S6))/10000+(G6+R6)/100000+(G6)/1000000))) -> FALSE | DE5: =IF(AU8=3,IF(AU4=3,SUM(AV8*1000+(BC8)/10+(BA8)/100+(BK7)/1000+((G7+R7)-(F7+S7))/10000+(G7+R7)/100000+(G7)/1000000))) -> FALSE | DF5: =IF(AU9=3,IF(AU4=3,SUM(AV9*1000+(BC9)/10+(BA9)/100+(BK8)/1000+((G8+R8)-(F8+S8))/10000+(G8+R8)/100000+(G8)/1000000))) -> FALSE | DG5: =IF(AU4=4,IF(AU5=4,SUM(AV4*1000+(BC4)/10+(BA4)/100+(BJ4)/1000+((F4+S4)-(G4+R4))/10000+(F4+S4)/100000+(S4)/1000000))) -> FALSE | DH5: =IF(AU5=4,IF(AU4=4,SUM(AV5*1000+(BC5)/10+(BA5)/100+(BK4)/1000+((G4+R4)-(F4+S4))/10000+(G4+R4)/100000+(G4)/1000000))) -> FALSE | DI5: =IF(AU6=4,IF(AU4=4,SUM(AV6*1000+(BC6)/10+(BA6)/100+(BK5)/1000+((G5+R5)-(F5+S5))/10000+(G5+R5)/100000+(G5)/1000000))) -> FALSE | DJ5: =IF(AU7=4,IF(AU4=4,SUM(AV7*1000+(BC7)/10+(BA7)/100+(BK6)/1000+((G6+R6)-(F6+S6))/10000+(G6+R6)/100000+(G6)/1000000))) -> FALSE | DK5: =IF(AU8=4,IF(AU4=4,SUM(AV8*1000+(BC8)/10+(BA8)/100+(BK7)/1000+((G7+R7)-(F7+S7))/10000+(G7+R7)/100000+(G7)/1000000))) -> FALSE | DL5: =IF(AU9=4,IF(AU4=4,SUM(AV9*1000+(BC9)/10+(BA9)/100+(BK8)/1000+((G8+R8)-(F8+S8))/10000+(G8+R8)/100000+(G8)/1000000))) -> FALSE | DM5: =IF(AU4=5,IF(AU5=5,SUM(AV4*1000+(BC4)/10+(BA4)/100+(BJ4)/1000+((F4+S4)-(G4+R4))/10000+(F4+S4)/100000+(S4)/1000000))) -> FALSE | DN5: =IF(AU5=5,IF(AU4=5,SUM(AV5*1000+(BC5)/10+(BA5)/100+(BK4)/1000+((G4+R4)-(F4+S4))/10000+(G4+R4)/100000+(G4)/1000000))) -> FALSE | DO5: =IF(AU6=5,IF(AU4=5,SUM(AV6*1000+(BC6)/10+(BA6)/100+(BK5)/1000+((G5+R5)-(F5+S5))/10000+(G5+R5)/100000+(G5)/1000000))) -> FALSE | DP5: =IF(AU7=5,IF(AU4=5,SUM(AV7*1000+(BC7)/10+(BA7)/100+(BK6)/1000+((G6+R6)-(F6+S6))/10000+(G6+R6)/100000+(G6)/1000000))) -> FALSE | DQ5: =IF(AU8=5,IF(AU4=5,SUM(AV8*1000+(BC8)/10+(BA8)/100+(BK7)/1000+((G7+R7)-(F7+S7))/10000+(G7+R7)/100000+(G7)/1000000))) -> FALSE | DR5: =IF(AU9=5,IF(AU4=5,SUM(AV9*1000+(BC9)/10+(BA9)/100+(BK8)/1000+((G8+R8)-(F8+S8))/10000+(G8+R8)/100000+(G8)/1000000))) -> FALSE | DS5: =IF(AU4=6,IF(AU5=6,SUM(AV4*1000+(BC4)/10+(BA4)/100+(BJ4)/1000+((F4+S4)-(G4+R4))/10000+(F4+S4)/100000+(S4)/1000000))) -> FALSE | DT5: =IF(AU5=6,IF(AU4=6,SUM(AV5*1000+(BC5)/10+(BA5)/100+(BK4)/1000+((G4+R4)-(F4+S4))/10000+(G4+R4)/100000+(G4)/1000000))) -> FALSE | DU5: =IF(AU6=6,IF(AU4=6,SUM(AV6*1000+(BC6)/10+(BA6)/100+(BK5)/1000+((G5+R5)-(F5+S5))/10000+(G5+R5)/100000+(G5)/1000000))) -> FALSE | DV5: =IF(AU7=6,IF(AU4=6,SUM(AV7*1000+(BC7)/10+(BA7)/100+(BK6)/1000+((G6+R6)-(F6+S6))/10000+(G6+R6)/100000+(G6)/1000000))) -> FALSE | DW5: =IF(AU8=6,IF(AU4=6,SUM(AV8*1000+(BC8)/10+(BA8)/100+(BK7)/1000+((G7+R7)-(F7+S7))/10000+(G7+R7)/100000+(G7)/1000000))) -> FALSE | DX5: =IF(AU9=6,IF(AU4=6,SUM(AV9*1000+(BC9)/10+(BA9)/100+(BK8)/1000+((G8+R8)-(F8+S8))/10000+(G8+R8)/100000+(G8)/1000000))) -> FALSE
A6: =AP4 -> FRANCE | F6: 4 | G6: 0 | H6: =AP7 -> PAYS-BAS | M6: PAYS-BAS | R6: 0 | S6: 1 | T6: FRANCE | Z6: =VLOOKUP(AN13,AO11:AT16,2,0) -> PAYS-BAS | AE6: =IF(CT14=CT13,CW13,CW14) -> 3 | AF6: =VLOOKUP(Z6,AP4:BC9,7,0) -> 19 | AG6: =VLOOKUP(Z6,AP4:BC9,8,0) -> 10 | AH6: =VLOOKUP(Z6,AP4:BC9,9,0) -> 6 | AI6: =VLOOKUP(Z6,AP4:BC9,10,0) -> 1 | AJ6: =VLOOKUP(Z6,AP4:BC9,11,0) -> 3 | AK6: =VLOOKUP(Z6,AP4:BC9,12,0) -> 21 | AL6: =VLOOKUP(Z6,AP4:BC9,13,0) -> 12 | AM6: =VLOOKUP(Z6,AP4:BC9,14,0) -> 9 | AP6: BULGARIE | AU6: =RANK(AV6,AV4:AV9) -> 4 | AV6: =SUMPRODUCT((A4:E18=AP6)*(BF4:BF18))+SUMPRODUCT((H4:L18=AP6)*(BG4:BG18))+SUMPRODUCT((M4:Q18=AP6)*(BH4:BH18))+SUMPRODUCT((T4:X18=AP6)*(BI4:BI18)) -> 13 | AW6: =SUMPRODUCT((A4:E18=AP6)*(BL4:BL18))+SUMPRODUCT((H4:L18=AP6)*(BM4:BM18))+SUMPRODUCT((M4:Q18=AP6)*(BN4:BN18))+SUMPRODUCT((T4:X18=AP6)*(BO4:BO18)) -> 10 | AX6: =SUMPRODUCT((A4:E18=AP6)*(BP4:BP18))+SUMPRODUCT((H4:L18=AP6)*(BQ4:BQ18))+SUMPRODUCT((M4:Q18=AP6)*(BR4:BR18))+SUMPRODUCT((T4:X18=AP6)*(BS4:BS18)) -> 4 | AY6: =SUMPRODUCT((A4:E18=AP6)*(BT4:BT18))+SUMPRODUCT((H4:L18=AP6)*(BU4:BU18))+SUMPRODUCT((M4:Q18=AP6)*(BV4:BV18))+SUMPRODUCT((T4:X18=AP6)*(BW4:BW18)) -> 1 | AZ6: =SUMPRODUCT((A4:E18=AP6)*(BX4:BX18))+SUMPRODUCT((H4:L18=AP6)*(BY4:BY18))+SUMPRODUCT((M4:Q18=AP6)*(BZ4:BZ18))+SUMPRODUCT((T4:X18=AP6)*(CA4:CA18)) -> 5 | BA6: =SUMPRODUCT((A4:E18=AP6)*(CB4:CB18))+SUMPRODUCT((H4:L18=AP6)*(CC4:CC18))+SUMPRODUCT((M4:Q18=AP6)*(CD4:CD18))+SUMPRODUCT((T4:X18=AP6)*(CE4:CE18)) -> 14 | BB6: =SUMPRODUCT((A4:E18=AP6)*(CH4:CH18))+SUMPRODUCT((H4:L18=AP6)*(CI4:CI18))+SUMPRODUCT((M4:Q18=AP6)*(CJ4:CJ18))+SUMPRODUCT((T4:X18=AP6)*(CK4:CK18)) -> 19 | BC6: -5 | BF6: 3 | BG6: 0 | BH6: 0 | BI6: 3 | BJ6: 6 | BK6: 0 | BL6: 1 | BM6: 1 | BN6: 1 | BO6: 1 | BP6: 1 | BQ6: FALSE | BR6: FALSE | BS6: 1 | BT6: FALSE | BU6: FALSE | BV6: FALSE | BW6: FALSE | BX6: FALSE | BY6: 1 | BZ6: 1 | CA6: FALSE | CB6: 4 | CC6: 0 | CD6: 0 | CE6: 1 | CF6: 5 | CG6: 0 | CH6: 0 | CI6: 4 | CJ6: 1 | CK6: 0 | CL6: 0 | CM6: 5 | CN6: =IF(AU4=1,IF(AU6=1,SUM(AV4*1000+(BC4)/10+(BA4)/100+(BJ5)/1000+((F5+S5)-(G5+R5))/10000+(F5+S5)/100000+(S5)/1000000))) -> FALSE | CO6: =IF(AU5=1,IF(AU6=1,SUM(AV5*1000+(BC5)/10+(BA5)/100+(BJ9)/1000+((F9+S9)-(G9+R9))/10000+(F9+S9)/100000+(S9)/1000000))) -> FALSE | CP6: =IF(AU6=1,IF(AU5=1,SUM(AV6*1000+(BC6)/10+(BA6)/100+(BK9)/1000+((G9+R9)-(F9+S9))/10000+(G9+R9)/1000000+(G9)/1000000))) -> FALSE | CQ6: =IF(AU7=1,IF(AU5=1,SUM(AV7*1000+(BC7)/10+(BA7)/100+(BK10)/1000+((G10+R10)-(F10+S10))/10000+(G10+R10)/100000+(G10)/1000000))) -> FALSE | CR6: =IF(AU8=1,IF(AU5=1,SUM(AV8*1000+(BC8)/10+(BA8)/100+(BK11)/1000+((G11+R11)-(F11+S11))/10000+(G11+R11)/100000+(G11)/1000000))) -> FALSE | CS6: =IF(AU9=1,IF(AU5=1,SUM(AV9*1000+(BC9)/10+(BA9)/100+(BK12)/1000+((G12+R12)-(F12+S12))/10000+(G12+R12)/100000+(G12)/1000000))) -> FALSE | CU6: =IF(AU4=2,IF(AU6=2,SUM(AV4*1000+(BC4)/10+(BA4)/100+(BJ5)/1000+((F5+S5)-(G5+R5))/10000+(F5+S5)/100000+(S5)/1000000))) -> FALSE | CV6: =IF(AU5=2,IF(AU6=2,SUM(AV5*1000+(BC5)/10+(BA5)/100+(BJ9)/1000+((F9+S9)-(G9+R9))/10000+(F9+S9)/100000+(S9)/1000000))) -> FALSE | CW6: =IF(AU6=2,IF(AU5=2,SUM(AV6*1000+(BC6)/10+(BA6)/100+(BK9)/1000+((G9+R9)-(F9+S9))/10000+(G9+R9)/1000000+(G9)/1000000))) -> FALSE | CX6: =IF(AU7=2,IF(AU5=2,SUM(AV7*1000+(BC7)/10+(BA7)/100+(BK10)/1000+((G10+R10)-(F10+S10))/10000+(G10+R10)/100000+(G10)/1000000))) -> 19001.11423 | CY6: =IF(AU8=2,IF(AU5=2,SUM(AV8*1000+(BC8)/10+(BA8)/100+(BK11)/1000+((G11+R11)-(F11+S11))/10000+(G11+R11)/100000+(G11)/1000000))) -> FALSE | CZ6: =IF(AU9=2,IF(AU5=2,SUM(AV9*1000+(BC9)/10+(BA9)/100+(BK12)/1000+((G12+R12)-(F12+S12))/10000+(G12+R12)/100000+(G12)/1000000))) -> FALSE | DA6: =IF(AU4=3,IF(AU6=3,SUM(AV4*1000+(BC4)/10+(BA4)/100+(BJ5)/1000+((F5+S5)-(G5+R5))/10000+(F5+S5)/100000+(S5)/1000000))) -> FALSE | DB6: =IF(AU5=3,IF(AU6=3,SUM(AV5*1000+(BC5)/10+(BA5)/100+(BJ9)/1000+((F9+S9)-(G9+R9))/10000+(F9+S9)/100000+(S9)/1000000))) -> FALSE | DC6: =IF(AU6=3,IF(AU5=3,SUM(AV6*1000+(BC6)/10+(BA6)/100+(BK9)/1000+((G9+R9)-(F9+S9))/10000+(G9+R9)/1000000+(G9)/1000000))) -> FALSE | DD6: =IF(AU7=3,IF(AU5=3,SUM(AV7*1000+(BC7)/10+(BA7)/100+(BK10)/1000+((G10+R10)-(F10+S10))/10000+(G10+R10)/100000+(G10)/1000000))) -> FALSE | DE6: =IF(AU8=3,IF(AU5=3,SUM(AV8*1000+(BC8)/10+(BA8)/100+(BK11)/1000+((G11+R11)-(F11+S11))/10000+(G11+R11)/100000+(G11)/1000000))) -> FALSE | DF6: =IF(AU9=3,IF(AU5=3,SUM(AV9*1000+(BC9)/10+(BA9)/100+(BK12)/1000+((G12+R12)-(F12+S12))/10000+(G12+R12)/100000+(G12)/1000000))) -> FALSE | DG6: =IF(AU4=4,IF(AU6=4,SUM(AV4*1000+(BC4)/10+(BA4)/100+(BJ5)/1000+((F5+S5)-(G5+R5))/10000+(F5+S5)/100000+(S5)/1000000))) -> FALSE | DH6: =IF(AU5=4,IF(AU6=4,SUM(AV5*1000+(BC5)/10+(BA5)/100+(BJ9)/1000+((F9+S9)-(G9+R9))/10000+(F9+S9)/100000+(S9)/1000000))) -> FALSE | DI6: =IF(AU6=4,IF(AU5=4,SUM(AV6*1000+(BC6)/10+(BA6)/100+(BK9)/1000+((G9+R9)-(F9+S9))/10000+(G9+R9)/1000000+(G9)/1000000))) -> FALSE | DJ6: =IF(AU7=4,IF(AU5=4,SUM(AV7*1000+(BC7)/10+(BA7)/100+(BK10)/1000+((G10+R10)-(F10+S10))/10000+(G10+R10)/100000+(G10)/1000000))) -> FALSE | DK6: =IF(AU8=4,IF(AU5=4,SUM(AV8*1000+(BC8)/10+(BA8)/100+(BK11)/1000+((G11+R11)-(F11+S11))/10000+(G11+R11)/100000+(G11)/1000000))) -> FALSE | DL6: =IF(AU9=4,IF(AU5=4,SUM(AV9*1000+(BC9)/10+(BA9)/100+(BK12)/1000+((G12+R12)-(F12+S12))/10000+(G12+R12)/100000+(G12)/1000000))) -> FALSE | DM6: =IF(AU4=5,IF(AU6=5,SUM(AV4*1000+(BC4)/10+(BA4)/100+(BJ5)/1000+((F5+S5)-(G5+R5))/10000+(F5+S5)/100000+(S5)/1000000))) -> FALSE | DN6: =IF(AU5=5,IF(AU6=5,SUM(AV5*1000+(BC5)/10+(BA5)/100+(BJ9)/1000+((F9+S9)-(G9+R9))/10000+(F9+S9)/100000+(S9)/1000000))) -> FALSE | DO6: =IF(AU6=5,IF(AU5=5,SUM(AV6*1000+(BC6)/10+(BA6)/100+(BK9)/1000+((G9+R9)-(F9+S9))/10000+(G9+R9)/1000000+(G9)/1000000))) -> FALSE | DP6: =IF(AU7=5,IF(AU5=5,SUM(AV7*1000+(BC7)/10+(BA7)/100+(BK10)/1000+((G10+R10)-(F10+S10))/10000+(G10+R10)/100000+(G10)/1000000))) -> FALSE | DQ6: =IF(AU8=5,IF(AU5=5,SUM(AV8*1000+(BC8)/10+(BA8)/100+(BK11)/1000+((G11+R11)-(F11+S11))/10000+(G11+R11)/100000+(G11)/1000000))) -> FALSE | DR6: =IF(AU9=5,IF(AU5=5,SUM(AV9*1000+(BC9)/10+(BA9)/100+(BK12)/1000+((G12+R12)-(F12+S12))/10000+(G12+R12)/100000+(G12)/1000000))) -> FALSE | DS6: =IF(AU4=6,IF(AU6=6,SUM(AV4*1000+(BC4)/10+(BA4)/100+(BJ5)/1000+((F5+S5)-(G5+R5))/10000+(F5+S5)/100000+(S5)/1000000))) -> FALSE | DT6: =IF(AU5=6,IF(AU6=6,SUM(AV5*1000+(BC5)/10+(BA5)/100+(BJ9)/1000+((F9+S9)-(G9+R9))/10000+(F9+S9)/100000+(S9)/1000000))) -> FALSE | DU6: =IF(AU6=6,IF(AU5=6,SUM(AV6*1000+(BC6)/10+(BA6)/100+(BK9)/1000+((G9+R9)-(F9+S9))/10000+(G9+R9)/1000000+(G9)/1000000))) -> FALSE | DV6: =IF(AU7=6,IF(AU5=6,SUM(AV7*1000+(BC7)/10+(BA7)/100+(BK10)/1000+((G10+R10)-(F10+S10))/10000+(G10+R10)/100000+(G10)/1000000))) -> FALSE | DW6: =IF(AU8=6,IF(AU5=6,SUM(AV8*1000+(BC8)/10+(BA8)/100+(BK11)/1000+((G11+R11)-(F11+S11))/10000+(G11+R11)/100000+(G11)/1000000))) -> FALSE | DX6: =IF(AU9=6,IF(AU5=6,SUM(AV9*1000+(BC9)/10+(BA9)/100+(BK12)/1000+((G12+R12)-(F12+S12))/10000+(G12+R12)/100000+(G12)/1000000))) -> FALSE
A7: =AP4 -> FRANCE | F7: 2 | G7: 1 | H7: =AP8 -> BIELORUSSIE | M7: BIELORUSSIE | R7: 0 | S7: 0 | T7: FRANCE | Z7: =VLOOKUP(AN14,AO11:AT16,2,0) -> BULGARIE | AE7: 4 | AF7: =VLOOKUP(Z7,AP4:BC9,7,0) -> 13 | AG7: =VLOOKUP(Z7,AP4:BC9,8,0) -> 10 | AH7: =VLOOKUP(Z7,AP4:BC9,9,0) -> 4 | AI7: =VLOOKUP(Z7,AP4:BC9,10,0) -> 1 | AJ7: =VLOOKUP(Z7,AP4:BC9,11,0) -> 5 | AK7: =VLOOKUP(Z7,AP4:BC9,12,0) -> 14 | AL7: =VLOOKUP(Z7,AP4:BC9,13,0) -> 19 | AM7: =VLOOKUP(Z7,AP4:BC9,14,0) -> -5 | AP7: PAYS-BAS | AU7: =RANK(AV7,AV4:AV9) -> 2 | AV7: =SUMPRODUCT((A4:E18=AP7)*(BF4:BF18))+SUMPRODUCT((H4:L18=AP7)*(BG4:BG18))+SUMPRODUCT((M4:Q18=AP7)*(BH4:BH18))+SUMPRODUCT((T4:X18=AP7)*(BI4:BI18)) -> 19 | AW7: =SUMPRODUCT((A4:E18=AP7)*(BL4:BL18))+SUMPRODUCT((H4:L18=AP7)*(BM4:BM18))+SUMPRODUCT((M4:Q18=AP7)*(BN4:BN18))+SUMPRODUCT((T4:X18=AP7)*(BO4:BO18)) -> 10 | AX7: =SUMPRODUCT((A4:E18=AP7)*(BP4:BP18))+SUMPRODUCT((H4:L18=AP7)*(BQ4:BQ18))+SUMPRODUCT((M4:Q18=AP7)*(BR4:BR18))+SUMPRODUCT((T4:X18=AP7)*(BS4:BS18)) -> 6 | AY7: =SUMPRODUCT((A4:E18=AP7)*(BT4:BT18))+SUMPRODUCT((H4:L18=AP7)*(BU4:BU18))+SUMPRODUCT((M4:Q18=AP7)*(BV4:BV18))+SUMPRODUCT((T4:X18=AP7)*(BW4:BW18)) -> 1 | AZ7: =SUMPRODUCT((A4:E18=AP7)*(BX4:BX18))+SUMPRODUCT((H4:L18=AP7)*(BY4:BY18))+SUMPRODUCT((M4:Q18=AP7)*(BZ4:BZ18))+SUMPRODUCT((T4:X18=AP7)*(CA4:CA18)) -> 3 | BA7: =SUMPRODUCT((A4:E18=AP7)*(CB4:CB18))+SUMPRODUCT((H4:L18=AP7)*(CC4:CC18))+SUMPRODUCT((M4:Q18=AP7)*(CD4:CD18))+SUMPRODUCT((T4:X18=AP7)*(CE4:CE18)) -> 21 | BB7: =SUMPRODUCT((A4:E18=AP7)*(CH4:CH18))+SUMPRODUCT((H4:L18=AP7)*(CI4:CI18))+SUMPRODUCT((M4:Q18=AP7)*(CJ4:CJ18))+SUMPRODUCT((T4:X18=AP7)*(CK4:CK18)) -> 12 | BC7: 9 | BF7: 3 | BG7: 0 | BH7: 1 | BI7: 1 | BJ7: 4 | BK7: 1 | BL7: 1 | BM7: 1 | BN7: 1 | BO7: 1 | BP7: 1 | BQ7: FALSE | BR7: FALSE | BS7: FALSE | BT7: FALSE | BU7: FALSE | BV7: 1 | BW7: 1 | BX7: FALSE | BY7: 1 | BZ7: FALSE | CA7: FALSE | CB7: 2 | CC7: 1 | CD7: 0 | CE7: 0 | CF7: 2 | CG7: 1 | CH7: 1 | CI7: 2 | CJ7: 0 | CK7: 0 | CL7: 1 | CM7: 2 | CN7: =IF(AU4=1,IF(AU7=1,SUM(AV4*1000+(BC4)/10+(BA4)/100+(BJ6)/1000+((F6+S6)-(G6+R6))/10000+(F6+S6)/100000+(S6)/1000000))) -> FALSE | CO7: =IF(AU5=1,IF(AU7=1,SUM(AV5*1000+(BC5)/10+(BA5)/100+(BJ10)/1000+((F10+S10)-(G10+R10))/10000+(F10+S10)/100000+(S10)/1000000))) -> FALSE | CP7: =IF(AU6=1,IF(AU7=1,SUM(AV6*1000+(BC6)/10+(BA6)/100+(BJ13)/1000+((F13+S13)-(G13+R13))/10000+(F13+S13)/100000+(S13)/1000000))) -> FALSE | CQ7: =IF(AU7=1,IF(AU6=1,SUM(AV7*1000+(BC7)/10+(BA7)/100+(BK13)/1000+((G13+R13)-(F13+S13))/10000+(G13+R13)/100000+(G13)/1000000))) -> FALSE | CR7: =IF(AU8=1,IF(AU6=1,SUM(AV8*1000+(BC8)/10+(BA8)/100+(BK14)/1000+((G14+R14)-(F14+S14))/10000+(G14+R14)/100000+(G14)/1000000))) -> FALSE | CS7: =IF(AU9=1,IF(AU6=1,SUM(AV9*1000+(BC9)/10+(BA9)/100+(BK15)/1000+((G15+R15)-(F15+S15))/10000+(G15+R15)/100000+(G15)/1000000))) -> FALSE | CU7: =IF(AU4=2,IF(AU7=2,SUM(AV4*1000+(BC4)/10+(BA4)/100+(BJ6)/1000+((F6+S6)-(G6+R6))/10000+(F6+S6)/100000+(S6)/1000000))) -> FALSE | CV7: =IF(AU5=2,IF(AU7=2,SUM(AV5*1000+(BC5)/10+(BA5)/100+(BJ10)/1000+((F10+S10)-(G10+R10))/10000+(F10+S10)/100000+(S10)/1000000))) -> 19001.96081 | CW7: =IF(AU6=2,IF(AU7=2,SUM(AV6*1000+(BC6)/10+(BA6)/100+(BJ13)/1000+((F13+S13)-(G13+R13))/10000+(F13+S13)/100000+(S13)/1000000))) -> FALSE | CX7: =IF(AU7=2,IF(AU6=2,SUM(AV7*1000+(BC7)/10+(BA7)/100+(BK13)/1000+((G13+R13)-(F13+S13))/10000+(G13+R13)/100000+(G13)/1000000))) -> FALSE | CY7: =IF(AU8=2,IF(AU6=2,SUM(AV8*1000+(BC8)/10+(BA8)/100+(BK14)/1000+((G14+R14)-(F14+S14))/10000+(G14+R14)/100000+(G14)/1000000))) -> FALSE | CZ7: =IF(AU9=2,IF(AU6=2,SUM(AV9*1000+(BC9)/10+(BA9)/100+(BK15)/1000+((G15+R15)-(F15+S15))/10000+(G15+R15)/100000+(G15)/1000000))) -> FALSE | DA7: =IF(AU4=3,IF(AU7=3,SUM(AV4*1000+(BC4)/10+(BA4)/100+(BJ6)/1000+((F6+S6)-(G6+R6))/10000+(F6+S6)/100000+(S6)/1000000))) -> FALSE | DB7: =IF(AU5=3,IF(AU7=3,SUM(AV5*1000+(BC5)/10+(BA5)/100+(BJ10)/1000+((F10+S10)-(G10+R10))/10000+(F10+S10)/100000+(S10)/1000000))) -> FALSE | DC7: =IF(AU6=3,IF(AU7=3,SUM(AV6*1000+(BC6)/10+(BA6)/100+(BJ13)/1000+((F13+S13)-(G13+R13))/10000+(F13+S13)/100000+(S13)/1000000))) -> FALSE | DD7: =IF(AU7=3,IF(AU6=3,SUM(AV7*1000+(BC7)/10+(BA7)/100+(BK13)/1000+((G13+R13)-(F13+S13))/10000+(G13+R13)/100000+(G13)/1000000))) -> FALSE | DE7: =IF(AU8=3,IF(AU6=3,SUM(AV8*1000+(BC8)/10+(BA8)/100+(BK14)/1000+((G14+R14)-(F14+S14))/10000+(G14+R14)/100000+(G14)/1000000))) -> FALSE | DF7: =IF(AU9=3,IF(AU6=3,SUM(AV9*1000+(BC9)/10+(BA9)/100+(BK15)/1000+((G15+R15)-(F15+S15))/10000+(G15+R15)/100000+(G15)/1000000))) -> FALSE | DG7: =IF(AU4=4,IF(AU7=4,SUM(AV4*1000+(BC4)/10+(BA4)/100+(BJ6)/1000+((F6+S6)-(G6+R6))/10000+(F6+S6)/100000+(S6)/1000000))) -> FALSE | DH7: =IF(AU5=4,IF(AU7=4,SUM(AV5*1000+(BC5)/10+(BA5)/100+(BJ10)/1000+((F10+S10)-(G10+R10))/10000+(F10+S10)/100000+(S10)/1000000))) -> FALSE | DI7: =IF(AU6=4,IF(AU7=4,SUM(AV6*1000+(BC6)/10+(BA6)/100+(BJ13)/1000+((F13+S13)-(G13+R13))/10000+(F13+S13)/100000+(S13)/1000000))) -> FALSE | DJ7: =IF(AU7=4,IF(AU6=4,SUM(AV7*1000+(BC7)/10+(BA7)/100+(BK13)/1000+((G13+R13)-(F13+S13))/10000+(G13+R13)/100000+(G13)/1000000))) -> FALSE | DK7: =IF(AU8=4,IF(AU6=4,SUM(AV8*1000+(BC8)/10+(BA8)/100+(BK14)/1000+((G14+R14)-(F14+S14))/10000+(G14+R14)/100000+(G14)/1000000))) -> FALSE | DL7: =IF(AU9=4,IF(AU6=4,SUM(AV9*1000+(BC9)/10+(BA9)/100+(BK15)/1000+((G15+R15)-(F15+S15))/10000+(G15+R15)/100000+(G15)/1000000))) -> FALSE | DM7: =IF(AU4=5,IF(AU7=5,SUM(AV4*1000+(BC4)/10+(BA4)/100+(BJ6)/1000+((F6+S6)-(G6+R6))/10000+(F6+S6)/100000+(S6)/1000000))) -> FALSE | DN7: =IF(AU5=5,IF(AU7=5,SUM(AV5*1000+(BC5)/10+(BA5)/100+(BJ10)/1000+((F10+S10)-(G10+R10))/10000+(F10+S10)/100000+(S10)/1000000))) -> FALSE | DO7: =IF(AU6=5,IF(AU7=5,SUM(AV6*1000+(BC6)/10+(BA6)/100+(BJ13)/1000+((F13+S13)-(G13+R13))/10000+(F13+S13)/100000+(S13)/1000000))) -> FALSE | DP7: =IF(AU7=5,IF(AU6=5,SUM(AV7*1000+(BC7)/10+(BA7)/100+(BK13)/1000+((G13+R13)-(F13+S13))/10000+(G13+R13)/100000+(G13)/1000000))) -> FALSE | DQ7: =IF(AU8=5,IF(AU6=5,SUM(AV8*1000+(BC8)/10+(BA8)/100+(BK14)/1000+((G14+R14)-(F14+S14))/10000+(G14+R14)/100000+(G14)/1000000))) -> FALSE | DR7: =IF(AU9=5,IF(AU6=5,SUM(AV9*1000+(BC9)/10+(BA9)/100+(BK15)/1000+((G15+R15)-(F15+S15))/10000+(G15+R15)/100000+(G15)/1000000))) -> FALSE | DS7: =IF(AU4=6,IF(AU7=6,SUM(AV4*1000+(BC4)/10+(BA4)/100+(BJ6)/1000+((F6+S6)-(G6+R6))/10000+(F6+S6)/100000+(S6)/1000000))) -> FALSE | DT7: =IF(AU5=6,IF(AU7=6,SUM(AV5*1000+(BC5)/10+(BA5)/100+(BJ10)/1000+((F10+S10)-(G10+R10))/10000+(F10+S10)/100000+(S10)/1000000))) -> FALSE | DU7: =IF(AU6=6,IF(AU7=6,SUM(AV6*1000+(BC6)/10+(BA6)/100+(BJ13)/1000+((F13+S13)-(G13+R13))/10000+(F13+S13)/100000+(S13)/1000000))) -> FALSE | DV7: =IF(AU7=6,IF(AU6=6,SUM(AV7*1000+(BC7)/10+(BA7)/100+(BK13)/1000+((G13+R13)-(F13+S13))/10000+(G13+R13)/100000+(G13)/1000000))) -> FALSE | DW7: =IF(AU8=6,IF(AU6=6,SUM(AV8*1000+(BC8)/10+(BA8)/100+(BK14)/1000+((G14+R14)-(F14+S14))/10000+(G14+R14)/100000+(G14)/1000000))) -> FALSE | DX7: =IF(AU9=6,IF(AU6=6,SUM(AV9*1000+(BC9)/10+(BA9)/100+(BK15)/1000+((G15+R15)-(F15+S15))/10000+(G15+R15)/100000+(G15)/1000000))) -> FALSE
A8: =AP4 -> FRANCE | F8: 0 | G8: 0 | H8: =AP9 -> LUXEMBOURG | M8: LUXEMBOURG | R8: 1 | S8: 3 | T8: FRANCE | Z8: =VLOOKUP(AN15,AO11:AT16,2,0) -> LUXEMBOURG | AE8: 5 | AF8: =VLOOKUP(Z8,AP4:BC9,7,0) -> 6 | AG8: =VLOOKUP(Z8,AP4:BC9,8,0) -> 10 | AH8: =VLOOKUP(Z8,AP4:BC9,9,0) -> 1 | AI8: =VLOOKUP(Z8,AP4:BC9,10,0) -> 3 | AJ8: =VLOOKUP(Z8,AP4:BC9,11,0) -> 6 | AK8: =VLOOKUP(Z8,AP4:BC9,12,0) -> 8 | AL8: =VLOOKUP(Z8,AP4:BC9,13,0) -> 26 | AM8: =VLOOKUP(Z8,AP4:BC9,14,0) -> -18 | AP8: BIELORUSSIE | AU8: =RANK(AV8,AV4:AV9) -> 6 | AV8: =SUMPRODUCT((A4:E18=AP8)*(BF4:BF18))+SUMPRODUCT((H4:L18=AP8)*(BG4:BG18))+SUMPRODUCT((M4:Q18=AP8)*(BH4:BH18))+SUMPRODUCT((T4:X18=AP8)*(BI4:BI18)) -> 5 | AW8: =SUMPRODUCT((A4:E18=AP8)*(BL4:BL18))+SUMPRODUCT((H4:L18=AP8)*(BM4:BM18))+SUMPRODUCT((M4:Q18=AP8)*(BN4:BN18))+SUMPRODUCT((T4:X18=AP8)*(BO4:BO18)) -> 10 | AX8: =SUMPRODUCT((A4:E18=AP8)*(BP4:BP18))+SUMPRODUCT((H4:L18=AP8)*(BQ4:BQ18))+SUMPRODUCT((M4:Q18=AP8)*(BR4:BR18))+SUMPRODUCT((T4:X18=AP8)*(BS4:BS18)) -> 1 | AY8: =SUMPRODUCT((A4:E18=AP8)*(BT4:BT18))+SUMPRODUCT((H4:L18=AP8)*(BU4:BU18))+SUMPRODUCT((M4:Q18=AP8)*(BV4:BV18))+SUMPRODUCT((T4:X18=AP8)*(BW4:BW18)) -> 2 | AZ8: =SUMPRODUCT((A4:E18=AP8)*(BX4:BX18))+SUMPRODUCT((H4:L18=AP8)*(BY4:BY18))+SUMPRODUCT((M4:Q18=AP8)*(BZ4:BZ18))+SUMPRODUCT((T4:X18=AP8)*(CA4:CA18)) -> 7 | BA8: =SUMPRODUCT((A4:E18=AP8)*(CB4:CB18))+SUMPRODUCT((H4:L18=AP8)*(CC4:CC18))+SUMPRODUCT((M4:Q18=AP8)*(CD4:CD18))+SUMPRODUCT((T4:X18=AP8)*(CE4:CE18)) -> 6 | BB8: =SUMPRODUCT((A4:E18=AP8)*(CH4:CH18))+SUMPRODUCT((H4:L18=AP8)*(CI4:CI18))+SUMPRODUCT((M4:Q18=AP8)*(CJ4:CJ18))+SUMPRODUCT((T4:X18=AP8)*(CK4:CK18)) -> 21 | BC8: -15 | BF8: 1 | BG8: 1 | BH8: 0 | BI8: 3 | BJ8: 4 | BK8: 1 | BL8: 1 | BM8: 1 | BN8: 1 | BO8: 1 | BP8: FALSE | BQ8: FALSE | BR8: FALSE | BS8: 1 | BT8: 1 | BU8: 1 | BV8: FALSE | BW8: FALSE | BX8: FALSE | BY8: FALSE | BZ8: 1 | CA8: FALSE | CB8: 0 | CC8: 0 | CD8: 1 | CE8: 3 | CF8: 3 | CG8: 1 | CH8: 0 | CI8: 0 | CJ8: 3 | CK8: 1 | CL8: 1 | CM8: 3 | CN8: =IF(AU4=1,IF(AU8=1,SUM(AV4*1000+(BC4)/10+(BA4)/100+(BJ7)/1000+((F7+S7)-(G7+R7))/10000+(F7+S7)/100000+(S7)/1000000))) -> FALSE | CO8: =IF(AU5=1,IF(AU8=1,SUM(AV5*1000+(BC5)/10+(BA5)/100+(BJ11)/1000+((F11+S11)-(G11+R11))/10000+(F11+S11)/100000+(S11)/1000000))) -> FALSE | CP8: =IF(AU6=1,IF(AU8=1,SUM(AV6*1000+(BC6)/10+(BA6)/100+(BJ14)/1000+((F14+S14)-(G14+R14))/10000+(F14+S14)/100000+(S14)/1000000))) -> FALSE | CQ8: =IF(AU7=1,IF(AU8=1,SUM(AV7*1000+(BC7)/10+(BA7)/100+(BJ16)/1000+((F16+S16)-(G16+R16))/10000+(F16+S16)/100000+(S16)/1000000))) -> FALSE | CR8: =IF(AU8=1,IF(AU7=1,SUM(AV8*1000+(BC8)/10+(BA8)/100+(BK16)/1000+((G16+R16)-(F16+S16))/10000+(G16+R16)/100000+(G16)/1000000))) -> FALSE | CS8: =IF(AU9=1,IF(AU7=1,SUM(AV9*1000+(BC9)/10+(BA9)/100+(BK17)/1000+((G17+R17)-(F17+S17))/10000+(G17+R17)/100000+(G17)/1000000))) -> FALSE | CU8: =IF(AU4=2,IF(AU8=2,SUM(AV4*1000+(BC4)/10+(BA4)/100+(BJ7)/1000+((F7+S7)-(G7+R7))/10000+(F7+S7)/100000+(S7)/1000000))) -> FALSE | CV8: =IF(AU5=2,IF(AU8=2,SUM(AV5*1000+(BC5)/10+(BA5)/100+(BJ11)/1000+((F11+S11)-(G11+R11))/10000+(F11+S11)/100000+(S11)/1000000))) -> FALSE | CW8: =IF(AU6=2,IF(AU8=2,SUM(AV6*1000+(BC6)/10+(BA6)/100+(BJ14)/1000+((F14+S14)-(G14+R14))/10000+(F14+S14)/100000+(S14)/1000000))) -> FALSE | CX8: =IF(AU7=2,IF(AU8=2,SUM(AV7*1000+(BC7)/10+(BA7)/100+(BJ16)/1000+((F16+S16)-(G16+R16))/10000+(F16+S16)/100000+(S16)/1000000))) -> FALSE | CY8: =IF(AU8=2,IF(AU7=2,SUM(AV8*1000+(BC8)/10+(BA8)/100+(BK16)/1000+((G16+R16)-(F16+S16))/10000+(G16+R16)/100000+(G16)/1000000))) -> FALSE | CZ8: =IF(AU9=2,IF(AU7=2,SUM(AV9*1000+(BC9)/10+(BA9)/100+(BK17)/1000+((G17+R17)-(F17+S17))/10000+(G17+R17)/100000+(G17)/1000000))) -> FALSE | DA8: =IF(AU4=3,IF(AU8=3,SUM(AV4*1000+(BC4)/10+(BA4)/100+(BJ7)/1000+((F7+S7)-(G7+R7))/10000+(F7+S7)/100000+(S7)/1000000))) -> FALSE | DB8: =IF(AU5=3,IF(AU8=3,SUM(AV5*1000+(BC5)/10+(BA5)/100+(BJ11)/1000+((F11+S11)-(G11+R11))/10000+(F11+S11)/100000+(S11)/1000000))) -> FALSE | DC8: =IF(AU6=3,IF(AU8=3,SUM(AV6*1000+(BC6)/10+(BA6)/100+(BJ14)/1000+((F14+S14)-(G14+R14))/10000+(F14+S14)/100000+(S14)/1000000))) -> FALSE | DD8: =IF(AU7=3,IF(AU8=3,SUM(AV7*1000+(BC7)/10+(BA7)/100+(BJ16)/1000+((F16+S16)-(G16+R16))/10000+(F16+S16)/100000+(S16)/1000000))) -> FALSE | DE8: =IF(AU8=3,IF(AU7=3,SUM(AV8*1000+(BC8)/10+(BA8)/100+(BK16)/1000+((G16+R16)-(F16+S16))/10000+(G16+R16)/100000+(G16)/1000000))) -> FALSE | DF8: =IF(AU9=3,IF(AU7=3,SUM(AV9*1000+(BC9)/10+(BA9)/100+(BK17)/1000+((G17+R17)-(F17+S17))/10000+(G17+R17)/100000+(G17)/1000000))) -> FALSE | DG8: =IF(AU4=4,IF(AU8=4,SUM(AV4*1000+(BC4)/10+(BA4)/100+(BJ7)/1000+((F7+S7)-(G7+R7))/10000+(F7+S7)/100000+(S7)/1000000))) -> FALSE | DH8: =IF(AU5=4,IF(AU8=4,SUM(AV5*1000+(BC5)/10+(BA5)/100+(BJ11)/1000+((F11+S11)-(G11+R11))/10000+(F11+S11)/100000+(S11)/1000000))) -> FALSE | DI8: =IF(AU6=4,IF(AU8=4,SUM(AV6*1000+(BC6)/10+(BA6)/100+(BJ14)/1000+((F14+S14)-(G14+R14))/10000+(F14+S14)/100000+(S14)/1000000))) -> FALSE | DJ8: =IF(AU7=4,IF(AU8=4,SUM(AV7*1000+(BC7)/10+(BA7)/100+(BJ16)/1000+((F16+S16)-(G16+R16))/10000+(F16+S16)/100000+(S16)/1000000))) -> FALSE | DK8: =IF(AU8=4,IF(AU7=4,SUM(AV8*1000+(BC8)/10+(BA8)/100+(BK16)/1000+((G16+R16)-(F16+S16))/10000+(G16+R16)/100000+(G16)/1000000))) -> FALSE | DL8: =IF(AU9=4,IF(AU7=4,SUM(AV9*1000+(BC9)/10+(BA9)/100+(BK17)/1000+((G17+R17)-(F17+S17))/10000+(G17+R17)/100000+(G17)/1000000))) -> FALSE | DM8: =IF(AU4=5,IF(AU8=5,SUM(AV4*1000+(BC4)/10+(BA4)/100+(BJ7)/1000+((F7+S7)-(G7+R7))/10000+(F7+S7)/100000+(S7)/1000000))) -> FALSE | DN8: =IF(AU5=5,IF(AU8=5,SUM(AV5*1000+(BC5)/10+(BA5)/100+(BJ11)/1000+((F11+S11)-(G11+R11))/10000+(F11+S11)/100000+(S11)/1000000))) -> FALSE | DO8: =IF(AU6=5,IF(AU8=5,SUM(AV6*1000+(BC6)/10+(BA6)/100+(BJ14)/1000+((F14+S14)-(G14+R14))/10000+(F14+S14)/100000+(S14)/1000000))) -> FALSE | DP8: =IF(AU7=5,IF(AU8=5,SUM(AV7*1000+(BC7)/10+(BA7)/100+(BJ16)/1000+((F16+S16)-(G16+R16))/10000+(F16+S16)/100000+(S16)/1000000))) -> FALSE | DQ8: =IF(AU8=5,IF(AU7=5,SUM(AV8*1000+(BC8)/10+(BA8)/100+(BK16)/1000+((G16+R16)-(F16+S16))/10000+(G16+R16)/100000+(G16)/1000000))) -> FALSE | DR8: =IF(AU9=5,IF(AU7=5,SUM(AV9*1000+(BC9)/10+(BA9)/100+(BK17)/1000+((G17+R17)-(F17+S17))/10000+(G17+R17)/100000+(G17)/1000000))) -> FALSE | DS8: =IF(AU4=6,IF(AU8=6,SUM(AV4*1000+(BC4)/10+(BA4)/100+(BJ7)/1000+((F7+S7)-(G7+R7))/10000+(F7+S7)/100000+(S7)/1000000))) -> FALSE | DT8: =IF(AU5=6,IF(AU8=6,SUM(AV5*1000+(BC5)/10+(BA5)/100+(BJ11)/1000+((F11+S11)-(G11+R11))/10000+(F11+S11)/100000+(S11)/1000000))) -> FALSE | DU8: =IF(AU6=6,IF(AU8=6,SUM(AV6*1000+(BC6)/10+(BA6)/100+(BJ14)/1000+((F14+S14)-(G14+R14))/10000+(F14+S14)/100000+(S14)/1000000))) -> FALSE | DV8: =IF(AU7=6,IF(AU8=6,SUM(AV7*1000+(BC7)/10+(BA7)/100+(BJ16)/1000+((F16+S16)-(G16+R16))/10000+(F16+S16)/100000+(S16)/1000000))) -> FALSE | DW8: =IF(AU8=6,IF(AU7=6,SUM(AV8*1000+(BC8)/10+(BA8)/100+(BK16)/1000+((G16+R16)-(F16+S16))/10000+(G16+R16)/100000+(G16)/1000000))) -> FALSE | DX8: =IF(AU9=6,IF(AU7=6,SUM(AV9*1000+(BC9)/10+(BA9)/100+(BK17)/1000+((G17+R17)-(F17+S17))/10000+(G17+R17)/100000+(G17)/1000000))) -> FALSE
A9: =AP5 -> SUÈDE | F9: 3 | G9: 0 | H9: =AP6 -> BULGARIE | M9: BULGARIE | R9: 3 | S9: 2 | T9: SUÈDE | Z9: =VLOOKUP(AN16,AO11:AT16,2,0) -> BIELORUSSIE | AE9: 6 | AF9: =VLOOKUP(Z9,AP4:BC9,7,0) -> 5 | AG9: =VLOOKUP(Z9,AP4:BC9,8,0) -> 10 | AH9: =VLOOKUP(Z9,AP4:BC9,9,0) -> 1 | AI9: =VLOOKUP(Z9,AP4:BC9,10,0) -> 2 | AJ9: =VLOOKUP(Z9,AP4:BC9,11,0) -> 7 | AK9: =VLOOKUP(Z9,AP4:BC9,12,0) -> 6 | AL9: =VLOOKUP(Z9,AP4:BC9,13,0) -> 21 | AM9: =VLOOKUP(Z9,AP4:BC9,14,0) -> -15 | AP9: LUXEMBOURG | AU9: =RANK(AV9,AV4:AV9) -> 5 | AV9: =SUMPRODUCT((A4:E18=AP9)*(BF4:BF18))+SUMPRODUCT((H4:L18=AP9)*(BG4:BG18))+SUMPRODUCT((M4:Q18=AP9)*(BH4:BH18))+SUMPRODUCT((T4:X18=AP9)*(BI4:BI18)) -> 6 | AW9: =SUMPRODUCT((A4:E18=AP9)*(BL4:BL18))+SUMPRODUCT((H4:L18=AP9)*(BM4:BM18))+SUMPRODUCT((M4:Q18=AP9)*(BN4:BN18))+SUMPRODUCT((T4:X18=AP9)*(BO4:BO18)) -> 10 | AX9: =SUMPRODUCT((A4:E18=AP9)*(BP4:BP18))+SUMPRODUCT((H4:L18=AP9)*(BQ4:BQ18))+SUMPRODUCT((M4:Q18=AP9)*(BR4:BR18))+SUMPRODUCT((T4:X18=AP9)*(BS4:BS18)) -> 1 | AY9: =SUMPRODUCT((A4:E18=AP9)*(BT4:BT18))+SUMPRODUCT((H4:L18=AP9)*(BU4:BU18))+SUMPRODUCT((M4:Q18=AP9)*(BV4:BV18))+SUMPRODUCT((T4:X18=AP9)*(BW4:BW18)) -> 3 | AZ9: =SUMPRODUCT((A4:E18=AP9)*(BX4:BX18))+SUMPRODUCT((H4:L18=AP9)*(BY4:BY18))+SUMPRODUCT((M4:Q18=AP9)*(BZ4:BZ18))+SUMPRODUCT((T4:X18=AP9)*(CA4:CA18)) -> 6 | BA9: =SUMPRODUCT((A4:E18=AP9)*(CB4:CB18))+SUMPRODUCT((H4:L18=AP9)*(CC4:CC18))+SUMPRODUCT((M4:Q18=AP9)*(CD4:CD18))+SUMPRODUCT((T4:X18=AP9)*(CE4:CE18)) -> 8 | BB9: =SUMPRODUCT((A4:E18=AP9)*(CH4:CH18))+SUMPRODUCT((H4:L18=AP9)*(CI4:CI18))+SUMPRODUCT((M4:Q18=AP9)*(CJ4:CJ18))+SUMPRODUCT((T4:X18=AP9)*(CK4:CK18)) -> 26 | BC9: -18 | BF9: 3 | BG9: 0 | BH9: 3 | BI9: 0 | BJ9: 3 | BK9: 3 | BL9: 1 | BM9: 1 | BN9: 1 | BO9: 1 | BP9: 1 | BQ9: FALSE | BR9: 1 | BS9: FALSE | BT9: FALSE | BU9: FALSE | BV9: FALSE | BW9: FALSE | BX9: FALSE | BY9: 1 | BZ9: FALSE | CA9: 1 | CB9: 3 | CC9: 0 | CD9: 3 | CE9: 2 | CF9: 5 | CG9: 3 | CH9: 0 | CI9: 3 | CJ9: 2 | CK9: 3 | CL9: 3 | CM9: 5 | CN9: =IF(AU4=1,IF(AU9=1,SUM(AV4*1000+(BC4)/10+(BA4)/100+(BJ8)/1000+((F8+S8)-(G8+R8))/10000+(F8+S8)/100000+(S8)/1000000))) -> FALSE | CO9: =IF(AU5=1,IF(AU9=1,SUM(AV5*1000+(BC5)/10+(BA5)/100+(BJ12)/1000+((F12+S12)-(G12+R12))/10000+(F12+S12)/100000+(S12)/1000000))) -> FALSE | CP9: =IF(AU6=1,IF(AU9=1,SUM(AV6*1000+(BC6)/10+(BA6)/100+(BJ15)/1000+((F15+S15)-(G15+R15))/10000+(F15+S15)/100000+(S15)/1000000))) -> FALSE | CQ9: =IF(AU7=1,IF(AU9=1,SUM(AV7*1000+(BC7)/10+(BA7)/100+(BJ17)/1000+((F17+S17)-(G17+R17))/10000+(F17+S17)/100000+(S17)/1000000))) -> FALSE | CR9: =IF(AU8=1,IF(AU9=1,SUM(AV8*1000+(BC8)/10+(BA8)/100+(BJ18)/1000+((F18+S18)-(G18+R18))/10000+(F18+S18)/100000+(S18)/1000000))) -> FALSE | CS9: =IF(AU9=1,IF(AU8=1,SUM(AV9*1000+(BC9)/10+(BA9)/100+(BK18)/1000+((G18+R18)-(F18+S18))/10000+(G18+R18)/100000+(G18)/1000000))) -> FALSE | CU9: =IF(AU4=2,IF(AU9=2,SUM(AV4*1000+(BC4)/10+(BA4)/100+(BJ8)/1000+((F8+S8)-(G8+R8))/10000+(F8+S8)/100000+(S8)/1000000))) -> FALSE | CV9: =IF(AU5=2,IF(AU9=2,SUM(AV5*1000+(BC5)/10+(BA5)/100+(BJ12)/1000+((F12+S12)-(G12+R12))/10000+(F12+S12)/100000+(S12)/1000000))) -> FALSE | CW9: =IF(AU6=2,IF(AU9=2,SUM(AV6*1000+(BC6)/10+(BA6)/100+(BJ15)/1000+((F15+S15)-(G15+R15))/10000+(F15+S15)/100000+(S15)/1000000))) -> FALSE | CX9: =IF(AU7=2,IF(AU9=2,SUM(AV7*1000+(BC7)/10+(BA7)/100+(BJ17)/1000+((F17+S17)-(G17+R17))/10000+(F17+S17)/100000+(S17)/1000000))) -> FALSE | CY9: =IF(AU8=2,IF(AU9=2,SUM(AV8*1000+(BC8)/10+(BA8)/100+(BJ18)/1000+((F18+S18)-(G18+R18))/10000+(F18+S18)/100000+(S18)/1000000))) -> FALSE | CZ9: =IF(AU9=2,IF(AU8=2,SUM(AV9*1000+(BC9)/10+(BA9)/100+(BK18)/1000+((G18+R18)-(F18+S18))/10000+(G18+R18)/100000+(G18)/1000000))) -> FALSE | DA9: =IF(AU4=3,IF(AU9=3,SUM(AV4*1000+(BC4)/10+(BA4)/100+(BJ8)/1000+((F8+S8)-(G8+R8))/10000+(F8+S8)/100000+(S8)/1000000))) -> FALSE | DB9: =IF(AU5=3,IF(AU9=3,SUM(AV5*1000+(BC5)/10+(BA5)/100+(BJ12)/1000+((F12+S12)-(G12+R12))/10000+(F12+S12)/100000+(S12)/1000000))) -> FALSE | DC9: =IF(AU6=3,IF(AU9=3,SUM(AV6*1000+(BC6)/10+(BA6)/100+(BJ15)/1000+((F15+S15)-(G15+R15))/10000+(F15+S15)/100000+(S15)/1000000))) -> FALSE | DD9: =IF(AU7=3,IF(AU9=3,SUM(AV7*1000+(BC7)/10+(BA7)/100+(BJ17)/1000+((F17+S17)-(G17+R17))/10000+(F17+S17)/100000+(S17)/1000000))) -> FALSE | DE9: =IF(AU8=3,IF(AU9=3,SUM(AV8*1000+(BC8)/10+(BA8)/100+(BJ18)/1000+((F18+S18)-(G18+R18))/10000+(F18+S18)/100000+(S18)/1000000))) -> FALSE | DF9: =IF(AU9=3,IF(AU8=3,SUM(AV9*1000+(BC9)/10+(BA9)/100+(BK18)/1000+((G18+R18)-(F18+S18))/10000+(G18+R18)/100000+(G18)/1000000))) -> FALSE | DG9: =IF(AU4=4,IF(AU9=4,SUM(AV4*1000+(BC4)/10+(BA4)/100+(BJ8)/1000+((F8+S8)-(G8+R8))/10000+(F8+S8)/100000+(S8)/1000000))) -> FALSE | DH9: =IF(AU5=4,IF(AU9=4,SUM(AV5*1000+(BC5)/10+(BA5)/100+(BJ12)/1000+((F12+S12)-(G12+R12))/10000+(F12+S12)/100000+(S12)/1000000))) -> FALSE | DI9: =IF(AU6=4,IF(AU9=4,SUM(AV6*1000+(BC6)/10+(BA6)/100+(BJ15)/1000+((F15+S15)-(G15+R15))/10000+(F15+S15)/100000+(S15)/1000000))) -> FALSE | DJ9: =IF(AU7=4,IF(AU9=4,SUM(AV7*1000+(BC7)/10+(BA7)/100+(BJ17)/1000+((F17+S17)-(G17+R17))/10000+(F17+S17)/100000+(S17)/1000000))) -> FALSE | DK9: =IF(AU8=4,IF(AU9=4,SUM(AV8*1000+(BC8)/10+(BA8)/100+(BJ18)/1000+((F18+S18)-(G18+R18))/10000+(F18+S18)/100000+(S18)/1000000))) -> FALSE | DL9: =IF(AU9=4,IF(AU8=4,SUM(AV9*1000+(BC9)/10+(BA9)/100+(BK18)/1000+((G18+R18)-(F18+S18))/10000+(G18+R18)/100000+(G18)/1000000))) -> FALSE | DM9: =IF(AU4=5,IF(AU9=5,SUM(AV4*1000+(BC4)/10+(BA4)/100+(BJ8)/1000+((F8+S8)-(G8+R8))/10000+(F8+S8)/100000+(S8)/1000000))) -> FALSE | DN9: =IF(AU5=5,IF(AU9=5,SUM(AV5*1000+(BC5)/10+(BA5)/100+(BJ12)/1000+((F12+S12)-(G12+R12))/10000+(F12+S12)/100000+(S12)/1000000))) -> FALSE | DO9: =IF(AU6=5,IF(AU9=5,SUM(AV6*1000+(BC6)/10+(BA6)/100+(BJ15)/1000+((F15+S15)-(G15+R15))/10000+(F15+S15)/100000+(S15)/1000000))) -> FALSE | DP9: =IF(AU7=5,IF(AU9=5,SUM(AV7*1000+(BC7)/10+(BA7)/100+(BJ17)/1000+((F17+S17)-(G17+R17))/10000+(F17+S17)/100000+(S17)/1000000))) -> FALSE | DQ9: =IF(AU8=5,IF(AU9=5,SUM(AV8*1000+(BC8)/10+(BA8)/100+(BJ18)/1000+((F18+S18)-(G18+R18))/10000+(F18+S18)/100000+(S18)/1000000))) -> FALSE | DR9: =IF(AU9=5,IF(AU8=5,SUM(AV9*1000+(BC9)/10+(BA9)/100+(BK18)/1000+((G18+R18)-(F18+S18))/10000+(G18+R18)/100000+(G18)/1000000))) -> FALSE | DS9: =IF(AU4=6,IF(AU9=6,SUM(AV4*1000+(BC4)/10+(BA4)/100+(BJ8)/1000+((F8+S8)-(G8+R8))/10000+(F8+S8)/100000+(S8)/1000000))) -> FALSE | DT9: =IF(AU5=6,IF(AU9=6,SUM(AV5*1000+(BC5)/10+(BA5)/100+(BJ12)/1000+((F12+S12)-(G12+R12))/10000+(F12+S12)/100000+(S12)/1000000))) -> FALSE | DU9: =IF(AU6=6,IF(AU9=6,SUM(AV6*1000+(BC6)/10+(BA6)/100+(BJ15)/1000+((F15+S15)-(G15+R15))/10000+(F15+S15)/100000+(S15)/1000000))) -> FALSE | DV9: =IF(AU7=6,IF(AU9=6,SUM(AV7*1000+(BC7)/10+(BA7)/100+(BJ17)/1000+((F17+S17)-(G17+R17))/10000+(F17+S17)/100000+(S17)/1000000))) -> FALSE | DW9: =IF(AU8=6,IF(AU9=6,SUM(AV8*1000+(BC8)/10+(BA8)/100+(BJ18)/1000+((F18+S18)-(G18+R18))/10000+(F18+S18)/100000+(S18)/1000000))) -> FALSE | DX9: =IF(AU9=6,IF(AU8=6,SUM(AV9*1000+(BC9)/10+(BA9)/100+(BK18)/1000+((G18+R18)-(F18+S18))/10000+(G18+R18)/100000+(G18)/1000000))) -> FALSE
A10: =AP5 -> SUÈDE | F10: 1 | G10: 1 | H10: =AP7 -> PAYS-BAS | M10: PAYS-BAS | R10: 2 | S10: 0 | T10: SUÈDE | BF10: 1 | BG10: 1 | BH10: 3 | BI10: 0 | BJ10: 1 | BK10: 4 | BL10: 1 | BM10: 1 | BN10: 1 | BO10: 1 | BP10: FALSE | BQ10: FALSE | BR10: 1 | BS10: FALSE | BT10: 1 | BU10: 1 | BV10: FALSE | BW10: FALSE | BX10: FALSE | BY10: FALSE | BZ10: FALSE | CA10: 1 | CB10: 1 | CC10: 1 | CD10: 2 | CE10: 0 | CF10: 1 | CG10: 3 | CH10: 1 | CI10: 1 | CJ10: 0 | CK10: 2 | CL10: 3 | CM10: 1 | CN10: =SUM(CN4:CN9) -> 1000000 | CO10: 0 | CP10: 0 | CQ10: 0 | CR10: 0 | CS10: 0 | CU10: =SUM(CU4:CU9) -> 0 | CV10: 819001.9608 | CW10: 0 | CX10: 819001.1142 | CY10: 0 | CZ10: 0 | DA10: =SUM(DA4:DA9) -> 0 | DB10: 0 | DC10: 0 | DD10: 0 | DE10: 0 | DF10: 0 | DG10: =SUM(DG4:DG9) -> 0 | DH10: 0 | DI10: 400000 | DJ10: 0 | DK10: 0 | DL10: 0 | DM10: =SUM(DM4:DM9) -> 0 | DN10: 0 | DO10: 0 | DP10: 0 | DQ10: 0 | DR10: 200000 | DS10: =SUM(DS4:DS9) -> 0 | DT10: 0 | DU10: 0 | DV10: 0 | DW10: 100000 | DX10: 0
A11: =AP5 -> SUÈDE | F11: 4 | G11: 0 | H11: =AP8 -> BIELORUSSIE | M11: BIELORUSSIE | R11: 0 | S11: 4 | T11: SUÈDE | AN11: 1 | AO11: =BA11 -> 1 | AP11: =AP4 -> FRANCE | AU11: =SUM(CN10,CU10,DA10,DG10,DM10,DS10) -> 1000000 | AX11: =AU11+0.00000006 -> 1000000 | BA11: =RANK(AX11,AX11:AZ16) -> 1 | BB11: =RANK(AU11,AU11:AW16) -> 1 | BF11: 3 | BG11: 0 | BH11: 0 | BI11: 3 | BJ11: 6 | BK11: 0 | BL11: 1 | BM11: 1 | BN11: 1 | BO11: 1 | BP11: 1 | BQ11: FALSE | BR11: FALSE | BS11: 1 | BT11: FALSE | BU11: FALSE | BV11: FALSE | BW11: FALSE | BX11: FALSE | BY11: 1 | BZ11: 1 | CA11: FALSE | CB11: 4 | CC11: 0 | CD11: 0 | CE11: 4 | CF11: 8 | CG11: 0 | CH11: 0 | CI11: 4 | CJ11: 4 | CK11: 0 | CL11: 0 | CM11: 8
A12: =AP5 -> SUÈDE | F12: 8 | G12: 0 | H12: =AP9 -> LUXEMBOURG | M12: LUXEMBOURG | R12: 0 | S12: 1 | T12: SUÈDE | AN12: 2 | AO12: =BA12 -> 2 | AP12: =AP5 -> SUÈDE | AU12: =SUM(CO10,CV10,DB10,DH10,DN10,DT10) -> 819001.9608 | AX12: =AU12+0.00000005 -> 819001.9608 | BA12: =RANK(AX12,AX11:AZ16) -> 2 | BB12: =RANK(AU12,AU11:AW16) -> 2 | BF12: 3 | BG12: 0 | BH12: 0 | BI12: 3 | BJ12: 6 | BK12: 0 | BL12: 1 | BM12: 1 | BN12: 1 | BO12: 1 | BP12: 1 | BQ12: FALSE | BR12: FALSE | BS12: 1 | BT12: FALSE | BU12: FALSE | BV12: FALSE | BW12: FALSE | BX12: FALSE | BY12: 1 | BZ12: 1 | CA12: FALSE | CB12: 8 | CC12: 0 | CD12: 0 | CE12: 1 | CF12: 9 | CG12: 0 | CH12: 0 | CI12: 8 | CJ12: 1 | CK12: 0 | CL12: 0 | CM12: 9 | CN12: =VLOOKUP(AN11,AO11:AT16,2,0) -> FRANCE | CT12: =VLOOKUP(CN12,AP11:AW16,6,0) -> 1000000 | CW12: =RANK(CT12,CT12:CV17) -> 1
A13: =AP6 -> BULGARIE | F13: 2 | G13: 0 | H13: =AP7 -> PAYS-BAS | M13: PAYS-BAS | R13: 3 | S13: 1 | T13: BULGARIE | Z13: ÉQUIPE QUALIFIÉE | AD13: =Z4 -> FRANCE | AN13: 3 | AO13: 4 | AP13: BULGARIE | AU13: =SUM(CP10,CW10,DC10,DI10,DO10,DU10) -> 400000 | AX13: =AU13+0.00000004 -> 400000 | BA13: =RANK(AX13,AX11:AZ16) -> 4 | BB13: =RANK(AU13,AU11:AW16) -> 4 | BF13: 3 | BG13: 0 | BH13: 3 | BI13: 0 | BJ13: 3 | BK13: 3 | BL13: 1 | BM13: 1 | BN13: 1 | BO13: 1 | BP13: 1 | BQ13: FALSE | BR13: 1 | BS13: FALSE | BT13: FALSE | BU13: FALSE | BV13: FALSE | BW13: FALSE | BX13: FALSE | BY13: 1 | BZ13: FALSE | CA13: 1 | CB13: 2 | CC13: 0 | CD13: 3 | CE13: 1 | CF13: 3 | CG13: 3 | CH13: 0 | CI13: 2 | CJ13: 1 | CK13: 3 | CL13: 3 | CM13: 3 | CN13: =VLOOKUP(AN12,AO11:AT16,2,0) -> SUÈDE | CT13: =VLOOKUP(CN13,AP11:AW16,6,0) -> 819001.9608 | CW13: =RANK(CT13,CT12:CV17) -> 2
A14: =AP6 -> BULGARIE | F14: 1 | G14: 0 | H14: =AP8 -> BIELORUSSIE | M14: BIELORUSSIE | R14: 2 | S14: 1 | T14: BULGARIE | AN14: 4 | AO14: 3 | AP14: PAYS-BAS | AU14: =SUM(CQ10,CX10,DD10,DJ10,DP10,DV10) -> 819001.1142 | AX14: =AU14+0.00000003 -> 819001.1142 | BA14: =RANK(AX14,AX11:AZ16) -> 3 | BB14: =RANK(AU14,AU11:AW16) -> 3 | BF14: 3 | BG14: 0 | BH14: 3 | BI14: 0 | BJ14: 3 | BK14: 3 | BL14: 1 | BM14: 1 | BN14: 1 | BO14: 1 | BP14: 1 | BQ14: FALSE | BR14: 1 | BS14: FALSE | BT14: FALSE | BU14: FALSE | BV14: FALSE | BW14: FALSE | BX14: FALSE | BY14: 1 | BZ14: FALSE | CA14: 1 | CB14: 1 | CC14: 0 | CD14: 2 | CE14: 1 | CF14: 2 | CG14: 2 | CH14: 0 | CI14: 1 | CJ14: 1 | CK14: 2 | CL14: 2 | CM14: 2 | CN14: =VLOOKUP(AN13,AO11:AT16,2,0) -> PAYS-BAS | CT14: =VLOOKUP(CN14,AP11:AW16,6,0) -> 819001.1142 | CW14: =RANK(CT14,CT12:CV17) -> 3
A15: =AP6 -> BULGARIE | F15: 4 | G15: 3 | H15: =AP9 -> LUXEMBOURG | M15: LUXEMBOURG | R15: 1 | S15: 1 | T15: BULGARIE | AN15: 5 | AO15: 6 | AP15: BIELORUSSIE | AU15: =SUM(CR10,CY10,DE10,DK10,DQ10,DW10) -> 100000 | AX15: =AU15+0.00000002 -> 100000 | BA15: =RANK(AX15,AX11:AZ16) -> 6 | BB15: =RANK(AU15,AU11:AW16) -> 6 | BF15: 3 | BG15: 0 | BH15: 1 | BI15: 1 | BJ15: 4 | BK15: 1 | BL15: 1 | BM15: 1 | BN15: 1 | BO15: 1 | BP15: 1 | BQ15: FALSE | BR15: FALSE | BS15: FALSE | BT15: FALSE | BU15: FALSE | BV15: 1 | BW15: 1 | BX15: FALSE | BY15: 1 | BZ15: FALSE | CA15: FALSE | CB15: 4 | CC15: 3 | CD15: 1 | CE15: 1 | CF15: 5 | CG15: 4 | CH15: 3 | CI15: 4 | CJ15: 1 | CK15: 1 | CL15: 4 | CM15: 5 | CN15: =VLOOKUP(AN14,AO11:AT16,2,0) -> BULGARIE | CT15: =VLOOKUP(CN15,AP11:AW16,6,0) -> 400000 | CW15: =RANK(CT15,CT12:CV17) -> 4
A16: =AP7 -> PAYS-BAS | F16: 4 | G16: 1 | H16: =AP8 -> BIELORUSSIE | M16: BIELORUSSIE | R16: 1 | S16: 3 | T16: PAYS-BAS | Z16: BARRAGE | AD16: =IF(M182=9,"",D182) -> SUÈDE | AN16: 6 | AO16: 5 | AP16: LUXEMBOURG | AU16: =SUM(CS10,CZ10,DF10,DL10,DR10,DX10) -> 200000 | AX16: =AU16+0.00000001 -> 200000 | BA16: =RANK(AX16,AX11:AZ16) -> 5 | BB16: =RANK(AU16,AU11:AW16) -> 5 | BF16: 3 | BG16: 0 | BH16: 0 | BI16: 3 | BJ16: 6 | BK16: 0 | BL16: 1 | BM16: 1 | BN16: 1 | BO16: 1 | BP16: 1 | BQ16: FALSE | BR16: FALSE | BS16: 1 | BT16: FALSE | BU16: FALSE | BV16: FALSE | BW16: FALSE | BX16: FALSE | BY16: 1 | BZ16: 1 | CA16: FALSE | CB16: 4 | CC16: 1 | CD16: 1 | CE16: 3 | CF16: 7 | CG16: 2 | CH16: 1 | CI16: 4 | CJ16: 3 | CK16: 1 | CL16: 2 | CM16: 7 | CN16: =VLOOKUP(AN15,AO11:AT16,2,0) -> LUXEMBOURG | CT16: =VLOOKUP(CN16,AP11:AW16,6,0) -> 200000 | CW16: =RANK(CT16,CT12:CV17) -> 5
A17: =AP7 -> PAYS-BAS | F17: 5 | G17: 0 | H17: =AP9 -> LUXEMBOURG | M17: LUXEMBOURG | R17: 1 | S17: 3 | T17: PAYS-BAS | BF17: 3 | BG17: 0 | BH17: 0 | BI17: 3 | BJ17: 6 | BK17: 0 | BL17: 1 | BM17: 1 | BN17: 1 | BO17: 1 | BP17: 1 | BQ17: FALSE | BR17: FALSE | BS17: 1 | BT17: FALSE | BU17: FALSE | BV17: FALSE | BW17: FALSE | BX17: FALSE | BY17: 1 | BZ17: 1 | CA17: FALSE | CB17: 5 | CC17: 0 | CD17: 1 | CE17: 3 | CF17: 8 | CG17: 1 | CH17: 0 | CI17: 5 | CJ17: 3 | CK17: 1 | CL17: 1 | CM17: 8 | CN17: =VLOOKUP(AN16,AO11:AT16,2,0) -> BIELORUSSIE | CT17: =VLOOKUP(CN17,AP11:AW16,6,0) -> 100000 | CW17: =RANK(CT17,CT12:CV17) -> 6
A18: =AP8 -> BIELORUSSIE | F18: 1 | G18: 1 | H18: =AP9 -> LUXEMBOURG | M18: LUXEMBOURG | R18: 1 | S18: 0 | T18: BIELORUSSIE | BF18: 1 | BG18: 1 | BH18: 3 | BI18: 0 | BJ18: 1 | BK18: 4 | BL18: 1 | BM18: 1 | BN18: 1 | BO18: 1 | BP18: FALSE | BQ18: FALSE | BR18: 1 | BS18: FALSE | BT18: 1 | BU18: 1 | BV18: FALSE | BW18: FALSE | BX18: FALSE | BY18: FALSE | BZ18: FALSE | CA18: 1 | CB18: 1 | CC18: 1 | CD18: 1 | CE18: 0 | CF18: 1 | CG18: 2 | CH18: 1 | CI18: 1 | CJ18: 0 | CK18: 1 | CL18: 2 | CM18: 1
A21: MATCHS ALLER | J21: GROUPE B | P21: MATCHS RETOUR | Y21: GROUPE B | Z21: CLASSEMENT | AP21: CLASSEMENT
A23: Équipes | F23: Bts | G23: Bts | H23: Équipes | M23: Équipes | R23: Bts | S23: Bts | T23: Équipes | Z23: Équipes | AE23: R | AF23: Pts | AG23: J | AH23: G | AI23: N | AJ23: P | AK23: B + | AL23: B - | AM23: Diff | AP23: Équipes | AU23: R | AV23: Pts | AW23: J | AX23: G | AY23: N | AZ23: P | BA23: B + | BB23: B - | BC23: Diff | BF23: pts | BG23: pts | BH23: pts | BI23: pts | BJ23: t pts | BK23: t pts | BL23: j | BM23: j | BN23: j | BO23: j | BP23: g | BQ23: g | BR23: g | BS23: g | BT23: n | BU23: n | BV23: n | BW23: n | BX23: p | BY23: p | BZ23: p | CA23: p | CB23: b+ | CC23: b+ | CD23: b+ | CE23: b+ | CF23: b+ | CG23: b+ | CH23: b- | CI23: b- | CJ23: b- | CK23: b- | CL23: b- | CM23: b- | CN23: =AP24 -> SUISSE | CO23: =AP25 -> PORTUGAL | CP23: =AP26 -> HONGRIE | CQ23: =AP27 -> ILES FEROE | CR23: =AP28 -> LETTONIE | CS23: =AP29 -> ANDORRE | CU23: =CN23 -> SUISSE | CV23: =CO23 -> PORTUGAL | CW23: =CP23 -> HONGRIE | CX23: =CQ23 -> ILES FEROE | CY23: =CR23 -> LETTONIE | CZ23: =CS23 -> ANDORRE | DA23: =CN23 -> SUISSE | DB23: =CO23 -> PORTUGAL | DC23: =CP23 -> HONGRIE | DD23: =CQ23 -> ILES FEROE | DE23: =CR23 -> LETTONIE | DF23: =CS23 -> ANDORRE | DG23: =CN23 -> SUISSE | DH23: =CO23 -> PORTUGAL | DI23: =CP23 -> HONGRIE | DJ23: =CQ23 -> ILES FEROE | DK23: =CR23 -> LETTONIE | DL23: =CS23 -> ANDORRE | DM23: =CN23 -> SUISSE | DN23: =CO23 -> PORTUGAL | DO23: =CP23 -> HONGRIE | DP23: =CQ23 -> ILES FEROE | DQ23: =CR23 -> LETTONIE | DR23: =CS23 -> ANDORRE | DS23: =CN23 -> SUISSE | DT23: =CO23 -> PORTUGAL | DU23: =CP23 -> HONGRIE | DV23: =CQ23 -> ILES FEROE | DW23: =CR23 -> LETTONIE | DX23: =CS23 -> ANDORRE
A24: =AP24 -> SUISSE | F24: 2 | G24: 0 | H24: =AP25 -> PORTUGAL | M24: =H24 -> PORTUGAL | R24: 2 | S24: 0 | T24: =A24 -> SUISSE | Z24: =VLOOKUP(AN31,AO31:AT36,2,0) -> PORTUGAL | AE24: 1 | AF24: =VLOOKUP(Z24,AP24:BC29,7,0) -> 27 | AG24: =VLOOKUP(Z24,AP24:BC29,8,0) -> 10 | AH24: =VLOOKUP(Z24,AP24:BC29,9,0) -> 9 | AI24: =VLOOKUP(Z24,AP24:BC29,10,0) -> 0 | AJ24: =VLOOKUP(Z24,AP24:BC29,11,0) -> 1 | AK24: =VLOOKUP(Z24,AP24:BC29,12,0) -> 32 | AL24: =VLOOKUP(Z24,AP24:BC29,13,0) -> 4 | AM24: =VLOOKUP(Z24,AP24:BC29,14,0) -> 28 | AP24: SUISSE | AU24: =RANK(AV24,AV24:AV29) -> 1 | AV24: =SUMPRODUCT((A24:E38=AP24)*(BF24:BF38))+SUMPRODUCT((H24:L38=AP24)*(BG24:BG38))+SUMPRODUCT((M24:Q38=AP24)*(BH24:BH38))+SUMPRODUCT((T24:X38=AP24)*(BI24:BI38)) -> 27 | AW24: =SUMPRODUCT((A24:E38=AP24)*(BL24:BL38))+SUMPRODUCT((H24:L38=AP24)*(BM24:BM38))+SUMPRODUCT((M24:Q38=AP24)*(BN24:BN38))+SUMPRODUCT((T24:X38=AP24)*(BO24:BO38)) -> 10 | AX24: =SUMPRODUCT((A24:E38=AP24)*(BP24:BP38))+SUMPRODUCT((H24:L38=AP24)*(BQ24:BQ38))+SUMPRODUCT((M24:Q38=AP24)*(BR24:BR38))+SUMPRODUCT((T24:X38=AP24)*(BS24:BS38)) -> 9 | AY24: =SUMPRODUCT((A24:E38=AP24)*(BT24:BT38))+SUMPRODUCT((H24:L38=AP24)*(BU24:BU38))+SUMPRODUCT((M24:Q38=AP24)*(BV24:BV38))+SUMPRODUCT((T24:X38=AP24)*(BW24:BW38)) -> 0 | AZ24: =SUMPRODUCT((A24:E38=AP24)*(BX24:BX38))+SUMPRODUCT((H24:L38=AP24)*(BY24:BY38))+SUMPRODUCT((M24:Q38=AP24)*(BZ24:BZ38))+SUMPRODUCT((T24:X38=AP24)*(CA24:CA38)) -> 1 | BA24: =SUMPRODUCT((A24:E38=AP24)*(CB24:CB38))+SUMPRODUCT((H24:L38=AP24)*(CC24:CC38))+SUMPRODUCT((M24:Q38=AP24)*(CD24:CD38))+SUMPRODUCT((T24:X38=AP24)*(CE24:CE38)) -> 23 | BB24: =SUMPRODUCT((A24:E38=AP24)*(CH24:CH38))+SUMPRODUCT((H24:L38=AP24)*(CI24:CI38))+SUMPRODUCT((M24:Q38=AP24)*(CJ24:CJ38))+SUMPRODUCT((T24:X38=AP24)*(CK24:CK38)) -> 7 | BC24: =BA24-BB24 -> 16 | BF24: =IF(F24="",0,IF(F24>G24,3,IF(F24=G24,1,IF(F24<G24,0)))) -> 3 | BG24: =IF(G24="",0,IF(G24>F24,3,IF(G24=F24,1,IF(G24<F24,0)))) -> 0 | BH24: =IF(R24="",0,IF(R24>S24,3,IF(R24=S24,1,IF(R24<S24,0)))) -> 3 | BI24: =IF(S24="",0,IF(S24>R24,3,IF(S24=R24,1,IF(S24<R24,0)))) -> 0 | BJ24: =BF24+BI24 -> 3 | BK24: =BG24+BH24 -> 3 | BL24: =IF(F24="",0,1) -> 1 | BM24: =IF(G24="",0,1) -> 1 | BN24: =IF(R24="",0,1) -> 1 | BO24: =IF(S24="",0,1) -> 1 | BP24: =IF(F24<>"",IF(F24>G24,1)) -> 1 | BQ24: =IF(G24<>"",IF(G24>F24,1)) -> FALSE | BR24: =IF(R24<>"",IF(R24>S24,1)) -> 1 | BS24: =IF(S24<>"",IF(S24>R24,1)) -> FALSE | BT24: =IF(F24<>"",IF(F24=G24,1)) -> FALSE | BU24: =IF(G24<>"",IF(G24=F24,1)) -> FALSE | BV24: =IF(R24<>"",IF(R24=S24,1)) -> FALSE | BW24: =IF(S24<>"",IF(S24=R24,1)) -> FALSE | BX24: =IF(F24<>"",IF(F24<G24,1)) -> FALSE | BY24: =IF(G24<>"",IF(G24<F24,1)) -> 1 | BZ24: =IF(R24<>"",IF(R24<S24,1)) -> FALSE | CA24: =IF(S24<>"",IF(S24<R24,1)) -> 1 | CB24: =F24 -> 2 | CC24: =G24 -> 0 | CD24: =R24 -> 2 | CE24: =S24 -> 0 | CF24: =CB24+CE24 -> 2 | CG24: =CC24+CD24 -> 2 | CH24: =G24 -> 0 | CI24: =F24 -> 2 | CJ24: =S24 -> 0 | CK24: =R24 -> 2 | CL24: =CH24+CK24 -> 2 | CM24: =CI24+CJ24 -> 2 | CN24: =IF(AU24=1,1000000) -> 1000000 | CO24: =IF(AU25=1,1000000) -> 1000000 | CP24: =IF(AU26=1,1000000) -> FALSE | CQ24: =IF(AU27=1,1000000) -> FALSE | CR24: =IF(AU28=1,1000000) -> FALSE | CS24: =IF(AU29=1,1000000) -> FALSE | CU24: =IF(AU24=2,800000) -> FALSE | CV24: =IF(AU25=2,800000) -> FALSE | CW24: =IF(AU26=2,800000) -> FALSE | CX24: =IF(AU27=2,800000) -> FALSE | CY24: =IF(AU28=2,800000) -> FALSE | CZ24: =IF(AU29=2,800000) -> FALSE | DA24: =IF(AU24=3,600000) -> FALSE | DB24: =IF(AU25=3,600000) -> FALSE | DC24: =IF(AU26=3,600000) -> 600000 | DD24: =IF(AU27=3,600000) -> FALSE | DE24: =IF(AU28=3,600000) -> FALSE | DF24: =IF(AU29=3,600000) -> FALSE | DG24: =IF(AU24=4,400000) -> FALSE | DH24: =IF(AU25=4,400000) -> FALSE | DI24: =IF(AU26=4,400000) -> FALSE | DJ24: =IF(AU27=4,400000) -> 400000 | DK24: =IF(AU28=4,400000) -> FALSE | DL24: =IF(AU29=4,400000) -> FALSE | DM24: =IF(AU24=5,200000) -> FALSE | DN24: =IF(AU25=5,200000) -> FALSE | DO24: =IF(AU26=5,200000) -> FALSE | DP24: =IF(AU27=5,200000) -> FALSE | DQ24: =IF(AU28=5,200000) -> 200000 | DR24: =IF(AU29=5,200000) -> FALSE | DS24: =IF(AU24=6,100000) -> FALSE | DT24: =IF(AU25=6,100000) -> FALSE | DU24: =IF(AU26=6,100000) -> FALSE | DV24: =IF(AU27=6,100000) -> FALSE | DW24: =IF(AU28=6,100000) -> FALSE | DX24: =IF(AU29=6,100000) -> 100000
A25: =AP24 -> SUISSE | F25: 5 | G25: 2 | H25: =AP26 -> HONGRIE | M25: =H25 -> HONGRIE | R25: 2 | S25: 3 | T25: =A25 -> SUISSE | Z25: =VLOOKUP(AN32,AO31:AT36,2,0) -> SUISSE | AE25: =IF(CT33=CT32,CW32,CW33) -> 2 | AF25: =VLOOKUP(Z25,AP24:BC29,7,0) -> 27 | AG25: =VLOOKUP(Z25,AP24:BC29,8,0) -> 10 | AH25: =VLOOKUP(Z25,AP24:BC29,9,0) -> 9 | AI25: =VLOOKUP(Z25,AP24:BC29,10,0) -> 0 | AJ25: =VLOOKUP(Z25,AP24:BC29,11,0) -> 1 | AK25: =VLOOKUP(Z25,AP24:BC29,12,0) -> 23 | AL25: =VLOOKUP(Z25,AP24:BC29,13,0) -> 7 | AM25: =VLOOKUP(Z25,AP24:BC29,14,0) -> 16 | AP25: PORTUGAL | AU25: =RANK(AV25,AV24:AV29) -> 1 | AV25: =SUMPRODUCT((A24:E38=AP25)*(BF24:BF38))+SUMPRODUCT((H24:L38=AP25)*(BG24:BG38))+SUMPRODUCT((M24:Q38=AP25)*(BH24:BH38))+SUMPRODUCT((T24:X38=AP25)*(BI24:BI38)) -> 27 | AW25: =SUMPRODUCT((A24:E38=AP25)*(BL24:BL38))+SUMPRODUCT((H24:L38=AP25)*(BM24:BM38))+SUMPRODUCT((M24:Q38=AP25)*(BN24:BN38))+SUMPRODUCT((T24:X38=AP25)*(BO24:BO38)) -> 10 | AX25: =SUMPRODUCT((A24:E38=AP25)*(BP24:BP38))+SUMPRODUCT((H24:L38=AP25)*(BQ24:BQ38))+SUMPRODUCT((M24:Q38=AP25)*(BR24:BR38))+SUMPRODUCT((T24:X38=AP25)*(BS24:BS38)) -> 9 | AY25: =SUMPRODUCT((A24:E38=AP25)*(BT24:BT38))+SUMPRODUCT((H24:L38=AP25)*(BU24:BU38))+SUMPRODUCT((M24:Q38=AP25)*(BV24:BV38))+SUMPRODUCT((T24:X38=AP25)*(BW24:BW38)) -> 0 | AZ25: =SUMPRODUCT((A24:E38=AP25)*(BX24:BX38))+SUMPRODUCT((H24:L38=AP25)*(BY24:BY38))+SUMPRODUCT((M24:Q38=AP25)*(BZ24:BZ38))+SUMPRODUCT((T24:X38=AP25)*(CA24:CA38)) -> 1 | BA25: =SUMPRODUCT((A24:E38=AP25)*(CB24:CB38))+SUMPRODUCT((H24:L38=AP25)*(CC24:CC38))+SUMPRODUCT((M24:Q38=AP25)*(CD24:CD38))+SUMPRODUCT((T24:X38=AP25)*(CE24:CE38)) -> 32 | BB25: =SUMPRODUCT((A24:E38=AP25)*(CH24:CH38))+SUMPRODUCT((H24:L38=AP25)*(CI24:CI38))+SUMPRODUCT((M24:Q38=AP25)*(CJ24:CJ38))+SUMPRODUCT((T24:X38=AP25)*(CK24:CK38)) -> 4 | BC25: =BA25-BB25 -> 28 | BF25: =IF(F25="",0,IF(F25>G25,3,IF(F25=G25,1,IF(F25<G25,0)))) -> 3 | BG25: =IF(G25="",0,IF(G25>F25,3,IF(G25=F25,1,IF(G25<F25,0)))) -> 0 | BH25: =IF(R25="",0,IF(R25>S25,3,IF(R25=S25,1,IF(R25<S25,0)))) -> 0 | BI25: =IF(S25="",0,IF(S25>R25,3,IF(S25=R25,1,IF(S25<R25,0)))) -> 3 | BJ25: =BF25+BI25 -> 6 | BK25: =BG25+BH25 -> 0 | BL25: =IF(F25="",0,1) -> 1 | BM25: =IF(G25="",0,1) -> 1 | BN25: =IF(R25="",0,1) -> 1 | BO25: =IF(S25="",0,1) -> 1 | BP25: =IF(F25<>"",IF(F25>G25,1)) -> 1 | BQ25: =IF(G25<>"",IF(G25>F25,1)) -> FALSE | BR25: =IF(R25<>"",IF(R25>S25,1)) -> FALSE | BS25: =IF(S25<>"",IF(S25>R25,1)) -> 1 | BT25: =IF(F25<>"",IF(F25=G25,1)) -> FALSE | BU25: =IF(G25<>"",IF(G25=F25,1)) -> FALSE | BV25: =IF(R25<>"",IF(R25=S25,1)) -> FALSE | BW25: =IF(S25<>"",IF(S25=R25,1)) -> FALSE | BX25: =IF(F25<>"",IF(F25<G25,1)) -> FALSE | BY25: =IF(G25<>"",IF(G25<F25,1)) -> 1 | BZ25: =IF(R25<>"",IF(R25<S25,1)) -> 1 | CA25: =IF(S25<>"",IF(S25<R25,1)) -> FALSE | CB25: =F25 -> 5 | CC25: =G25 -> 2 | CD25: =R25 -> 2 | CE25: =S25 -> 3 | CF25: =CB25+CE25 -> 8 | CG25: =CC25+CD25 -> 4 | CH25: =G25 -> 2 | CI25: =F25 -> 5 | CJ25: =S25 -> 3 | CK25: =R25 -> 2 | CL25: =CH25+CK25 -> 4 | CM25: =CI25+CJ25 -> 8 | CN25: =IF(AU24=1,IF(AU25=1,SUM(AV24*1000+(BC24)/10+(BA24)/100+(BJ24)/1000+((F24+S24)-(G24+R24))/10000+(F24+S24)/100000+(S24)/1000000))) -> 27001.83302 | CO25: =IF(AU25=1,IF(AU24=1,SUM(AV25*1000+(BC25)/10+(BA25)/100+(BK24)/1000+((G24+R24)-(F24+S24))/10000+(G24+R24)/100000+(G24)/1000000))) -> 27003.12302 | CP25: =IF(AU26=1,IF(AU24=1,SUM(AV26*1000+(BC26)/10+(BA26)/100+(BK25)/1000+((G25+R25)-(F25+S25))/10000+(G25+R25)/100000+(G25)/1000000))) -> FALSE | CQ25: =IF(AU27=1,IF(AU24=1,SUM(AV27*1000+(BC27)/10+(BA27)/100+(BK26)/1000+((G26+R26)-(F26+S26))/10000+(G26+R26)/100000+(G26)/1000000))) -> FALSE | CR25: =IF(AU28=1,IF(AU24=1,SUM(AV28*1000+(BC28)/10+(BA28)/100+(BK27)/1000+((G27+R27)-(F27+S27))/10000+(G27+R27)/100000+(G27)/1000000))) -> FALSE | CS25: =IF(AU29=1,IF(AU24=1,SUM(AV29*1000+(BC29)/10+(BA29)/100+(BK28)/1000+((G28+R28)-(F28+S28))/10000+(G28+R28)/100000+(G28)/1000000))) -> FALSE | CU25: =IF(AU24=2,IF(AU25=2,SUM(AV24*1000+(BC24)/10+(BA24)/100+(BJ24)/1000+((F24+S24)-(G24+R24))/10000+(F24+S24)/100000+(S24)/1000000))) -> FALSE | CV25: =IF(AU25=2,IF(AU24=2,SUM(AV25*1000+(BC25)/10+(BA25)/100+(BK24)/1000+((G24+R24)-(F24+S24))/10000+(G24+R24)/100000+(G24)/1000000))) -> FALSE | CW25: =IF(AU26=2,IF(AU24=2,SUM(AV26*1000+(BC26)/10+(BA26)/100+(BK25)/1000+((G25+R25)-(F25+S25))/10000+(G25+R25)/100000+(G25)/1000000))) -> FALSE | CX25: =IF(AU27=2,IF(AU24=2,SUM(AV27*1000+(BC27)/10+(BA27)/100+(BK26)/1000+((G26+R26)-(F26+S26))/10000+(G26+R26)/100000+(G26)/1000000))) -> FALSE | CY25: =IF(AU28=2,IF(AU24=2,SUM(AV28*1000+(BC28)/10+(BA28)/100+(BK27)/1000+((G27+R27)-(F27+S27))/10000+(G27+R27)/100000+(G27)/1000000))) -> FALSE | CZ25: =IF(AU29=2,IF(AU24=2,SUM(AV29*1000+(BC29)/10+(BA29)/100+(BK28)/1000+((G28+R28)-(F28+S28))/10000+(G28+R28)/100000+(G28)/1000000))) -> FALSE | DA25: =IF(AU24=3,IF(AU25=3,SUM(AV24*1000+(BC24)/10+(BA24)/100+(BJ24)/1000+((F24+S24)-(G24+R24))/10000+(F24+S24)/100000+(S24)/1000000))) -> FALSE | DB25: =IF(AU25=3,IF(AU24=3,SUM(AV25*1000+(BC25)/10+(BA25)/100+(BK24)/1000+((G24+R24)-(F24+S24))/10000+(G24+R24)/100000+(G24)/1000000))) -> FALSE | DC25: =IF(AU26=3,IF(AU24=3,SUM(AV26*1000+(BC26)/10+(BA26)/100+(BK25)/1000+((G25+R25)-(F25+S25))/10000+(G25+R25)/100000+(G25)/1000000))) -> FALSE | DD25: =IF(AU27=3,IF(AU24=3,SUM(AV27*1000+(BC27)/10+(BA27)/100+(BK26)/1000+((G26+R26)-(F26+S26))/10000+(G26+R26)/100000+(G26)/1000000))) -> FALSE | DE25: =IF(AU28=3,IF(AU24=3,SUM(AV28*1000+(BC28)/10+(BA28)/100+(BK27)/1000+((G27+R27)-(F27+S27))/10000+(G27+R27)/100000+(G27)/1000000))) -> FALSE | DF25: =IF(AU29=3,IF(AU24=3,SUM(AV29*1000+(BC29)/10+(BA29)/100+(BK28)/1000+((G28+R28)-(F28+S28))/10000+(G28+R28)/100000+(G28)/1000000))) -> FALSE | DG25: =IF(AU24=4,IF(AU25=4,SUM(AV24*1000+(BC24)/10+(BA24)/100+(BJ24)/1000+((F24+S24)-(G24+R24))/10000+(F24+S24)/100000+(S24)/1000000))) -> FALSE | DH25: =IF(AU25=4,IF(AU24=4,SUM(AV25*1000+(BC25)/10+(BA25)/100+(BK24)/1000+((G24+R24)-(F24+S24))/10000+(G24+R24)/100000+(G24)/1000000))) -> FALSE | DI25: =IF(AU26=4,IF(AU24=4,SUM(AV26*1000+(BC26)/10+(BA26)/100+(BK25)/1000+((G25+R25)-(F25+S25))/10000+(G25+R25)/100000+(G25)/1000000))) -> FALSE | DJ25: =IF(AU27=4,IF(AU24=4,SUM(AV27*1000+(BC27)/10+(BA27)/100+(BK26)/1000+((G26+R26)-(F26+S26))/10000+(G26+R26)/100000+(G26)/1000000))) -> FALSE | DK25: =IF(AU28=4,IF(AU24=4,SUM(AV28*1000+(BC28)/10+(BA28)/100+(BK27)/1000+((G27+R27)-(F27+S27))/10000+(G27+R27)/100000+(G27)/1000000))) -> FALSE | DL25: =IF(AU29=4,IF(AU24=4,SUM(AV29*1000+(BC29)/10+(BA29)/100+(BK28)/1000+((G28+R28)-(F28+S28))/10000+(G28+R28)/100000+(G28)/1000000))) -> FALSE | DM25: =IF(AU24=5,IF(AU25=5,SUM(AV24*1000+(BC24)/10+(BA24)/100+(BJ24)/1000+((F24+S24)-(G24+R24))/10000+(F24+S24)/100000+(S24)/1000000))) -> FALSE | DN25: =IF(AU25=5,IF(AU24=5,SUM(AV25*1000+(BC25)/10+(BA25)/100+(BK24)/1000+((G24+R24)-(F24+S24))/10000+(G24+R24)/100000+(G24)/1000000))) -> FALSE | DO25: =IF(AU26=5,IF(AU24=5,SUM(AV26*1000+(BC26)/10+(BA26)/100+(BK25)/1000+((G25+R25)-(F25+S25))/10000+(G25+R25)/100000+(G25)/1000000))) -> FALSE | DP25: =IF(AU27=5,IF(AU24=5,SUM(AV27*1000+(BC27)/10+(BA27)/100+(BK26)/1000+((G26+R26)-(F26+S26))/10000+(G26+R26)/100000+(G26)/1000000))) -> FALSE | DQ25: =IF(AU28=5,IF(AU24=5,SUM(AV28*1000+(BC28)/10+(BA28)/100+(BK27)/1000+((G27+R27)-(F27+S27))/10000+(G27+R27)/100000+(G27)/1000000))) -> FALSE | DR25: =IF(AU29=5,IF(AU24=5,SUM(AV29*1000+(BC29)/10+(BA29)/100+(BK28)/1000+((G28+R28)-(F28+S28))/10000+(G28+R28)/100000+(G28)/1000000))) -> FALSE | DS25: =IF(AU24=6,IF(AU25=6,SUM(AV24*1000+(BC24)/10+(BA24)/100+(BJ24)/1000+((F24+S24)-(G24+R24))/10000+(F24+S24)/100000+(S24)/1000000))) -> FALSE | DT25: =IF(AU25=6,IF(AU24=6,SUM(AV25*1000+(BC25)/10+(BA25)/100+(BK24)/1000+((G24+R24)-(F24+S24))/10000+(G24+R24)/100000+(G24)/1000000))) -> FALSE | DU25: =IF(AU26=6,IF(AU24=6,SUM(AV26*1000+(BC26)/10+(BA26)/100+(BK25)/1000+((G25+R25)-(F25+S25))/10000+(G25+R25)/100000+(G25)/1000000))) -> FALSE | DV25: =IF(AU27=6,IF(AU24=6,SUM(AV27*1000+(BC27)/10+(BA27)/100+(BK26)/1000+((G26+R26)-(F26+S26))/10000+(G26+R26)/100000+(G26)/1000000))) -> FALSE | DW25: =IF(AU28=6,IF(AU24=6,SUM(AV28*1000+(BC28)/10+(BA28)/100+(BK27)/1000+((G27+R27)-(F27+S27))/10000+(G27+R27)/100000+(G27)/1000000))) -> FALSE | DX25: =IF(AU29=6,IF(AU24=6,SUM(AV29*1000+(BC29)/10+(BA29)/100+(BK28)/1000+((G28+R28)-(F28+S28))/10000+(G28+R28)/100000+(G28)/1000000))) -> FALSE
A26: =AP24 -> SUISSE | F26: 2 | G26: 0 | H26: =AP27 -> ILES FEROE | M26: ILES FEROE | R26: 0 | S26: 2 | T26: SUISSE | Z26: =VLOOKUP(AN33,AO31:AT36,2,0) -> HONGRIE | AE26: =IF(CT34=CT33,CW33,CW34) -> 3 | AF26: =VLOOKUP(Z26,AP24:BC29,7,0) -> 13 | AG26: =VLOOKUP(Z26,AP24:BC29,8,0) -> 10 | AH26: =VLOOKUP(Z26,AP24:BC29,9,0) -> 4 | AI26: =VLOOKUP(Z26,AP24:BC29,10,0) -> 1 | AJ26: =VLOOKUP(Z26,AP24:BC29,11,0) -> 5 | AK26: =VLOOKUP(Z26,AP24:BC29,12,0) -> 14 | AL26: =VLOOKUP(Z26,AP24:BC29,13,0) -> 14 | AM26: =VLOOKUP(Z26,AP24:BC29,14,0) -> 0 | AP26: HONGRIE | AU26: =RANK(AV26,AV24:AV29) -> 3 | AV26: =SUMPRODUCT((A24:E38=AP26)*(BF24:BF38))+SUMPRODUCT((H24:L38=AP26)*(BG24:BG38))+SUMPRODUCT((M24:Q38=AP26)*(BH24:BH38))+SUMPRODUCT((T24:X38=AP26)*(BI24:BI38)) -> 13 | AW26: =SUMPRODUCT((A24:E38=AP26)*(BL24:BL38))+SUMPRODUCT((H24:L38=AP26)*(BM24:BM38))+SUMPRODUCT((M24:Q38=AP26)*(BN24:BN38))+SUMPRODUCT((T24:X38=AP26)*(BO24:BO38)) -> 10 | AX26: =SUMPRODUCT((A24:E38=AP26)*(BP24:BP38))+SUMPRODUCT((H24:L38=AP26)*(BQ24:BQ38))+SUMPRODUCT((M24:Q38=AP26)*(BR24:BR38))+SUMPRODUCT((T24:X38=AP26)*(BS24:BS38)) -> 4 | AY26: =SUMPRODUCT((A24:E38=AP26)*(BT24:BT38))+SUMPRODUCT((H24:L38=AP26)*(BU24:BU38))+SUMPRODUCT((M24:Q38=AP26)*(BV24:BV38))+SUMPRODUCT((T24:X38=AP26)*(BW24:BW38)) -> 1 | AZ26: =SUMPRODUCT((A24:E38=AP26)*(BX24:BX38))+SUMPRODUCT((H24:L38=AP26)*(BY24:BY38))+SUMPRODUCT((M24:Q38=AP26)*(BZ24:BZ38))+SUMPRODUCT((T24:X38=AP26)*(CA24:CA38)) -> 5 | BA26: =SUMPRODUCT((A24:E38=AP26)*(CB24:CB38))+SUMPRODUCT((H24:L38=AP26)*(CC24:CC38))+SUMPRODUCT((M24:Q38=AP26)*(CD24:CD38))+SUMPRODUCT((T24:X38=AP26)*(CE24:CE38)) -> 14 | BB26: =SUMPRODUCT((A24:E38=AP26)*(CH24:CH38))+SUMPRODUCT((H24:L38=AP26)*(CI24:CI38))+SUMPRODUCT((M24:Q38=AP26)*(CJ24:CJ38))+SUMPRODUCT((T24:X38=AP26)*(CK24:CK38)) -> 14 | BC26: 0 | BF26: 3 | BG26: 0 | BH26: 0 | BI26: 3 | BJ26: 6 | BK26: 0 | BL26: 1 | BM26: 1 | BN26: 1 | BO26: 1 | BP26: 1 | BQ26: FALSE | BR26: FALSE | BS26: 1 | BT26: FALSE | BU26: FALSE | BV26: FALSE | BW26: FALSE | BX26: FALSE | BY26: 1 | BZ26: 1 | CA26: FALSE | CB26: 2 | CC26: 0 | CD26: 0 | CE26: 2 | CF26: 4 | CG26: 0 | CH26: 0 | CI26: 2 | CJ26: 2 | CK26: 0 | CL26: 0 | CM26: 4 | CN26: =IF(AU24=1,IF(AU26=1,SUM(AV24*1000+(BC24)/10+(BA24)/100+(BJ25)/1000+((F25+S25)-(G25+R25))/10000+(F25+S25)/100000+(S25)/1000000))) -> FALSE | CO26: =IF(AU25=1,IF(AU26=1,SUM(AV25*1000+(BC25)/10+(BA25)/100+(BJ29)/1000+((F29+S29)-(G29+R29))/10000+(F29+S29)/100000+(S29)/1000000))) -> FALSE | CP26: =IF(AU26=1,IF(AU25=1,SUM(AV26*1000+(BC26)/10+(BA26)/100+(BK29)/1000+((G29+R29)-(F29+S29))/10000+(G29+R29)/1000000+(G29)/1000000))) -> FALSE | CQ26: =IF(AU27=1,IF(AU25=1,SUM(AV27*1000+(BC27)/10+(BA27)/100+(BK30)/1000+((G30+R30)-(F30+S30))/10000+(G30+R30)/100000+(G30)/1000000))) -> FALSE | CR26: =IF(AU28=1,IF(AU25=1,SUM(AV28*1000+(BC28)/10+(BA28)/100+(BK31)/1000+((G31+R31)-(F31+S31))/10000+(G31+R31)/100000+(G31)/1000000))) -> FALSE | CS26: =IF(AU29=1,IF(AU25=1,SUM(AV29*1000+(BC29)/10+(BA29)/100+(BK32)/1000+((G32+R32)-(F32+S32))/10000+(G32+R32)/100000+(G32)/1000000))) -> FALSE | CU26: =IF(AU24=2,IF(AU26=2,SUM(AV24*1000+(BC24)/10+(BA24)/100+(BJ25)/1000+((F25+S25)-(G25+R25))/10000+(F25+S25)/100000+(S25)/1000000))) -> FALSE | CV26: =IF(AU25=2,IF(AU26=2,SUM(AV25*1000+(BC25)/10+(BA25)/100+(BJ29)/1000+((F29+S29)-(G29+R29))/10000+(F29+S29)/100000+(S29)/1000000))) -> FALSE | CW26: =IF(AU26=2,IF(AU25=2,SUM(AV26*1000+(BC26)/10+(BA26)/100+(BK29)/1000+((G29+R29)-(F29+S29))/10000+(G29+R29)/1000000+(G29)/1000000))) -> FALSE | CX26: =IF(AU27=2,IF(AU25=2,SUM(AV27*1000+(BC27)/10+(BA27)/100+(BK30)/1000+((G30+R30)-(F30+S30))/10000+(G30+R30)/100000+(G30)/1000000))) -> FALSE | CY26: =IF(AU28=2,IF(AU25=2,SUM(AV28*1000+(BC28)/10+(BA28)/100+(BK31)/1000+((G31+R31)-(F31+S31))/10000+(G31+R31)/100000+(G31)/1000000))) -> FALSE | CZ26: =IF(AU29=2,IF(AU25=2,SUM(AV29*1000+(BC29)/10+(BA29)/100+(BK32)/1000+((G32+R32)-(F32+S32))/10000+(G32+R32)/100000+(G32)/1000000))) -> FALSE | DA26: =IF(AU24=3,IF(AU26=3,SUM(AV24*1000+(BC24)/10+(BA24)/100+(BJ25)/1000+((F25+S25)-(G25+R25))/10000+(F25+S25)/100000+(S25)/1000000))) -> FALSE | DB26: =IF(AU25=3,IF(AU26=3,SUM(AV25*1000+(BC25)/10+(BA25)/100+(BJ29)/1000+((F29+S29)-(G29+R29))/10000+(F29+S29)/100000+(S29)/1000000))) -> FALSE | DC26: =IF(AU26=3,IF(AU25=3,SUM(AV26*1000+(BC26)/10+(BA26)/100+(BK29)/1000+((G29+R29)-(F29+S29))/10000+(G29+R29)/1000000+(G29)/1000000))) -> FALSE | DD26: =IF(AU27=3,IF(AU25=3,SUM(AV27*1000+(BC27)/10+(BA27)/100+(BK30)/1000+((G30+R30)-(F30+S30))/10000+(G30+R30)/100000+(G30)/1000000))) -> FALSE | DE26: =IF(AU28=3,IF(AU25=3,SUM(AV28*1000+(BC28)/10+(BA28)/100+(BK31)/1000+((G31+R31)-(F31+S31))/10000+(G31+R31)/100000+(G31)/1000000))) -> FALSE | DF26: =IF(AU29=3,IF(AU25=3,SUM(AV29*1000+(BC29)/10+(BA29)/100+(BK32)/1000+((G32+R32)-(F32+S32))/10000+(G32+R32)/100000+(G32)/1000000))) -> FALSE | DG26: =IF(AU24=4,IF(AU26=4,SUM(AV24*1000+(BC24)/10+(BA24)/100+(BJ25)/1000+((F25+S25)-(G25+R25))/10000+(F25+S25)/100000+(S25)/1000000))) -> FALSE | DH26: =IF(AU25=4,IF(AU26=4,SUM(AV25*1000+(BC25)/10+(BA25)/100+(BJ29)/1000+((F29+S29)-(G29+R29))/10000+(F29+S29)/100000+(S29)/1000000))) -> FALSE | DI26: =IF(AU26=4,IF(AU25=4,SUM(AV26*1000+(BC26)/10+(BA26)/100+(BK29)/1000+((G29+R29)-(F29+S29))/10000+(G29+R29)/1000000+(G29)/1000000))) -> FALSE | DJ26: =IF(AU27=4,IF(AU25=4,SUM(AV27*1000+(BC27)/10+(BA27)/100+(BK30)/1000+((G30+R30)-(F30+S30))/10000+(G30+R30)/100000+(G30)/1000000))) -> FALSE | DK26: =IF(AU28=4,IF(AU25=4,SUM(AV28*1000+(BC28)/10+(BA28)/100+(BK31)/1000+((G31+R31)-(F31+S31))/10000+(G31+R31)/100000+(G31)/1000000))) -> FALSE | DL26: =IF(AU29=4,IF(AU25=4,SUM(AV29*1000+(BC29)/10+(BA29)/100+(BK32)/1000+((G32+R32)-(F32+S32))/10000+(G32+R32)/100000+(G32)/1000000))) -> FALSE | DM26: =IF(AU24=5,IF(AU26=5,SUM(AV24*1000+(BC24)/10+(BA24)/100+(BJ25)/1000+((F25+S25)-(G25+R25))/10000+(F25+S25)/100000+(S25)/1000000))) -> FALSE | DN26: =IF(AU25=5,IF(AU26=5,SUM(AV25*1000+(BC25)/10+(BA25)/100+(BJ29)/1000+((F29+S29)-(G29+R29))/10000+(F29+S29)/100000+(S29)/1000000))) -> FALSE | DO26: =IF(AU26=5,IF(AU25=5,SUM(AV26*1000+(BC26)/10+(BA26)/100+(BK29)/1000+((G29+R29)-(F29+S29))/10000+(G29+R29)/1000000+(G29)/1000000))) -> FALSE | DP26: =IF(AU27=5,IF(AU25=5,SUM(AV27*1000+(BC27)/10+(BA27)/100+(BK30)/1000+((G30+R30)-(F30+S30))/10000+(G30+R30)/100000+(G30)/1000000))) -> FALSE | DQ26: =IF(AU28=5,IF(AU25=5,SUM(AV28*1000+(BC28)/10+(BA28)/100+(BK31)/1000+((G31+R31)-(F31+S31))/10000+(G31+R31)/100000+(G31)/1000000))) -> FALSE | DR26: =IF(AU29=5,IF(AU25=5,SUM(AV29*1000+(BC29)/10+(BA29)/100+(BK32)/1000+((G32+R32)-(F32+S32))/10000+(G32+R32)/100000+(G32)/1000000))) -> FALSE | DS26: =IF(AU24=6,IF(AU26=6,SUM(AV24*1000+(BC24)/10+(BA24)/100+(BJ25)/1000+((F25+S25)-(G25+R25))/10000+(F25+S25)/100000+(S25)/1000000))) -> FALSE | DT26: =IF(AU25=6,IF(AU26=6,SUM(AV25*1000+(BC25)/10+(BA25)/100+(BJ29)/1000+((F29+S29)-(G29+R29))/10000+(F29+S29)/100000+(S29)/1000000))) -> FALSE | DU26: =IF(AU26=6,IF(AU25=6,SUM(AV26*1000+(BC26)/10+(BA26)/100+(BK29)/1000+((G29+R29)-(F29+S29))/10000+(G29+R29)/1000000+(G29)/1000000))) -> FALSE | DV26: =IF(AU27=6,IF(AU25=6,SUM(AV27*1000+(BC27)/10+(BA27)/100+(BK30)/1000+((G30+R30)-(F30+S30))/10000+(G30+R30)/100000+(G30)/1000000))) -> FALSE | DW26: =IF(AU28=6,IF(AU25=6,SUM(AV28*1000+(BC28)/10+(BA28)/100+(BK31)/1000+((G31+R31)-(F31+S31))/10000+(G31+R31)/100000+(G31)/1000000))) -> FALSE | DX26: =IF(AU29=6,IF(AU25=6,SUM(AV29*1000+(BC29)/10+(BA29)/100+(BK32)/1000+((G32+R32)-(F32+S32))/10000+(G32+R32)/100000+(G32)/1000000))) -> FALSE
A27: =AP24 -> SUISSE | F27: 1 | G27: 0 | H27: =AP28 -> LETTONIE | M27: LETTONIE | R27: 0 | S27: 3 | T27: SUISSE | Z27: =VLOOKUP(AN34,AO31:AT36,2,0) -> ILES FEROE | AE27: 4 | AF27: =VLOOKUP(Z27,AP24:BC29,7,0) -> 9 | AG27: =VLOOKUP(Z27,AP24:BC29,8,0) -> 10 | AH27: =VLOOKUP(Z27,AP24:BC29,9,0) -> 2 | AI27: =VLOOKUP(Z27,AP24:BC29,10,0) -> 3 | AJ27: =VLOOKUP(Z27,AP24:BC29,11,0) -> 5 | AK27: =VLOOKUP(Z27,AP24:BC29,12,0) -> 4 | AL27: =VLOOKUP(Z27,AP24:BC29,13,0) -> 16 | AM27: =VLOOKUP(Z27,AP24:BC29,14,0) -> -12 | AP27: ILES FEROE | AU27: =RANK(AV27,AV24:AV29) -> 4 | AV27: =SUMPRODUCT((A24:E38=AP27)*(BF24:BF38))+SUMPRODUCT((H24:L38=AP27)*(BG24:BG38))+SUMPRODUCT((M24:Q38=AP27)*(BH24:BH38))+SUMPRODUCT((T24:X38=AP27)*(BI24:BI38)) -> 9 | AW27: =SUMPRODUCT((A24:E38=AP27)*(BL24:BL38))+SUMPRODUCT((H24:L38=AP27)*(BM24:BM38))+SUMPRODUCT((M24:Q38=AP27)*(BN24:BN38))+SUMPRODUCT((T24:X38=AP27)*(BO24:BO38)) -> 10 | AX27: =SUMPRODUCT((A24:E38=AP27)*(BP24:BP38))+SUMPRODUCT((H24:L38=AP27)*(BQ24:BQ38))+SUMPRODUCT((M24:Q38=AP27)*(BR24:BR38))+SUMPRODUCT((T24:X38=AP27)*(BS24:BS38)) -> 2 | AY27: =SUMPRODUCT((A24:E38=AP27)*(BT24:BT38))+SUMPRODUCT((H24:L38=AP27)*(BU24:BU38))+SUMPRODUCT((M24:Q38=AP27)*(BV24:BV38))+SUMPRODUCT((T24:X38=AP27)*(BW24:BW38)) -> 3 | AZ27: =SUMPRODUCT((A24:E38=AP27)*(BX24:BX38))+SUMPRODUCT((H24:L38=AP27)*(BY24:BY38))+SUMPRODUCT((M24:Q38=AP27)*(BZ24:BZ38))+SUMPRODUCT((T24:X38=AP27)*(CA24:CA38)) -> 5 | BA27: =SUMPRODUCT((A24:E38=AP27)*(CB24:CB38))+SUMPRODUCT((H24:L38=AP27)*(CC24:CC38))+SUMPRODUCT((M24:Q38=AP27)*(CD24:CD38))+SUMPRODUCT((T24:X38=AP27)*(CE24:CE38)) -> 4 | BB27: =SUMPRODUCT((A24:E38=AP27)*(CH24:CH38))+SUMPRODUCT((H24:L38=AP27)*(CI24:CI38))+SUMPRODUCT((M24:Q38=AP27)*(CJ24:CJ38))+SUMPRODUCT((T24:X38=AP27)*(CK24:CK38)) -> 16 | BC27: -12 | BF27: 3 | BG27: 0 | BH27: 0 | BI27: 3 | BJ27: 6 | BK27: 0 | BL27: 1 | BM27: 1 | BN27: 1 | BO27: 1 | BP27: 1 | BQ27: FALSE | BR27: FALSE | BS27: 1 | BT27: FALSE | BU27: FALSE | BV27: FALSE | BW27: FALSE | BX27: FALSE | BY27: 1 | BZ27: 1 | CA27: FALSE | CB27: 1 | CC27: 0 | CD27: 0 | CE27: 3 | CF27: 4 | CG27: 0 | CH27: 0 | CI27: 1 | CJ27: 3 | CK27: 0 | CL27: 0 | CM27: 4 | CN27: =IF(AU24=1,IF(AU27=1,SUM(AV24*1000+(BC24)/10+(BA24)/100+(BJ26)/1000+((F26+S26)-(G26+R26))/10000+(F26+S26)/100000+(S26)/1000000))) -> FALSE | CO27: =IF(AU25=1,IF(AU27=1,SUM(AV25*1000+(BC25)/10+(BA25)/100+(BJ30)/1000+((F30+S30)-(G30+R30))/10000+(F30+S30)/100000+(S30)/1000000))) -> FALSE | CP27: =IF(AU26=1,IF(AU27=1,SUM(AV26*1000+(BC26)/10+(BA26)/100+(BJ33)/1000+((F33+S33)-(G33+R33))/10000+(F33+S33)/100000+(S33)/1000000))) -> FALSE | CQ27: =IF(AU27=1,IF(AU26=1,SUM(AV27*1000+(BC27)/10+(BA27)/100+(BK33)/1000+((G33+R33)-(F33+S33))/10000+(G33+R33)/100000+(G33)/1000000))) -> FALSE | CR27: =IF(AU28=1,IF(AU26=1,SUM(AV28*1000+(BC28)/10+(BA28)/100+(BK34)/1000+((G34+R34)-(F34+S34))/10000+(G34+R34)/100000+(G34)/1000000))) -> FALSE | CS27: =IF(AU29=1,IF(AU26=1,SUM(AV29*1000+(BC29)/10+(BA29)/100+(BK35)/1000+((G35+R35)-(F35+S35))/10000+(G35+R35)/100000+(G35)/1000000))) -> FALSE | CU27: =IF(AU24=2,IF(AU27=2,SUM(AV24*1000+(BC24)/10+(BA24)/100+(BJ26)/1000+((F26+S26)-(G26+R26))/10000+(F26+S26)/100000+(S26)/1000000))) -> FALSE | CV27: =IF(AU25=2,IF(AU27=2,SUM(AV25*1000+(BC25)/10+(BA25)/100+(BJ30)/1000+((F30+S30)-(G30+R30))/10000+(F30+S30)/100000+(S30)/1000000))) -> FALSE | CW27: =IF(AU26=2,IF(AU27=2,SUM(AV26*1000+(BC26)/10+(BA26)/100+(BJ33)/1000+((F33+S33)-(G33+R33))/10000+(F33+S33)/100000+(S33)/1000000))) -> FALSE | CX27: =IF(AU27=2,IF(AU26=2,SUM(AV27*1000+(BC27)/10+(BA27)/100+(BK33)/1000+((G33+R33)-(F33+S33))/10000+(G33+R33)/100000+(G33)/1000000))) -> FALSE | CY27: =IF(AU28=2,IF(AU26=2,SUM(AV28*1000+(BC28)/10+(BA28)/100+(BK34)/1000+((G34+R34)-(F34+S34))/10000+(G34+R34)/100000+(G34)/1000000))) -> FALSE | CZ27: =IF(AU29=2,IF(AU26=2,SUM(AV29*1000+(BC29)/10+(BA29)/100+(BK35)/1000+((G35+R35)-(F35+S35))/10000+(G35+R35)/100000+(G35)/1000000))) -> FALSE | DA27: =IF(AU24=3,IF(AU27=3,SUM(AV24*1000+(BC24)/10+(BA24)/100+(BJ26)/1000+((F26+S26)-(G26+R26))/10000+(F26+S26)/100000+(S26)/1000000))) -> FALSE | DB27: =IF(AU25=3,IF(AU27=3,SUM(AV25*1000+(BC25)/10+(BA25)/100+(BJ30)/1000+((F30+S30)-(G30+R30))/10000+(F30+S30)/100000+(S30)/1000000))) -> FALSE | DC27: =IF(AU26=3,IF(AU27=3,SUM(AV26*1000+(BC26)/10+(BA26)/100+(BJ33)/1000+((F33+S33)-(G33+R33))/10000+(F33+S33)/100000+(S33)/1000000))) -> FALSE | DD27: =IF(AU27=3,IF(AU26=3,SUM(AV27*1000+(BC27)/10+(BA27)/100+(BK33)/1000+((G33+R33)-(F33+S33))/10000+(G33+R33)/100000+(G33)/1000000))) -> FALSE | DE27: =IF(AU28=3,IF(AU26=3,SUM(AV28*1000+(BC28)/10+(BA28)/100+(BK34)/1000+((G34+R34)-(F34+S34))/10000+(G34+R34)/100000+(G34)/1000000))) -> FALSE | DF27: =IF(AU29=3,IF(AU26=3,SUM(AV29*1000+(BC29)/10+(BA29)/100+(BK35)/1000+((G35+R35)-(F35+S35))/10000+(G35+R35)/100000+(G35)/1000000))) -> FALSE | DG27: =IF(AU24=4,IF(AU27=4,SUM(AV24*1000+(BC24)/10+(BA24)/100+(BJ26)/1000+((F26+S26)-(G26+R26))/10000+(F26+S26)/100000+(S26)/1000000))) -> FALSE | DH27: =IF(AU25=4,IF(AU27=4,SUM(AV25*1000+(BC25)/10+(BA25)/100+(BJ30)/1000+((F30+S30)-(G30+R30))/10000+(F30+S30)/100000+(S30)/1000000))) -> FALSE | DI27: =IF(AU26=4,IF(AU27=4,SUM(AV26*1000+(BC26)/10+(BA26)/100+(BJ33)/1000+((F33+S33)-(G33+R33))/10000+(F33+S33)/100000+(S33)/1000000))) -> FALSE | DJ27: =IF(AU27=4,IF(AU26=4,SUM(AV27*1000+(BC27)/10+(BA27)/100+(BK33)/1000+((G33+R33)-(F33+S33))/10000+(G33+R33)/100000+(G33)/1000000))) -> FALSE | DK27: =IF(AU28=4,IF(AU26=4,SUM(AV28*1000+(BC28)/10+(BA28)/100+(BK34)/1000+((G34+R34)-(F34+S34))/10000+(G34+R34)/100000+(G34)/1000000))) -> FALSE | DL27: =IF(AU29=4,IF(AU26=4,SUM(AV29*1000+(BC29)/10+(BA29)/100+(BK35)/1000+((G35+R35)-(F35+S35))/10000+(G35+R35)/100000+(G35)/1000000))) -> FALSE | DM27: =IF(AU24=5,IF(AU27=5,SUM(AV24*1000+(BC24)/10+(BA24)/100+(BJ26)/1000+((F26+S26)-(G26+R26))/10000+(F26+S26)/100000+(S26)/1000000))) -> FALSE | DN27: =IF(AU25=5,IF(AU27=5,SUM(AV25*1000+(BC25)/10+(BA25)/100+(BJ30)/1000+((F30+S30)-(G30+R30))/10000+(F30+S30)/100000+(S30)/1000000))) -> FALSE | DO27: =IF(AU26=5,IF(AU27=5,SUM(AV26*1000+(BC26)/10+(BA26)/100+(BJ33)/1000+((F33+S33)-(G33+R33))/10000+(F33+S33)/100000+(S33)/1000000))) -> FALSE | DP27: =IF(AU27=5,IF(AU26=5,SUM(AV27*1000+(BC27)/10+(BA27)/100+(BK33)/1000+((G33+R33)-(F33+S33))/10000+(G33+R33)/100000+(G33)/1000000))) -> FALSE | DQ27: =IF(AU28=5,IF(AU26=5,SUM(AV28*1000+(BC28)/10+(BA28)/100+(BK34)/1000+((G34+R34)-(F34+S34))/10000+(G34+R34)/100000+(G34)/1000000))) -> FALSE | DR27: =IF(AU29=5,IF(AU26=5,SUM(AV29*1000+(BC29)/10+(BA29)/100+(BK35)/1000+((G35+R35)-(F35+S35))/10000+(G35+R35)/100000+(G35)/1000000))) -> FALSE | DS27: =IF(AU24=6,IF(AU27=6,SUM(AV24*1000+(BC24)/10+(BA24)/100+(BJ26)/1000+((F26+S26)-(G26+R26))/10000+(F26+S26)/100000+(S26)/1000000))) -> FALSE | DT27: =IF(AU25=6,IF(AU27=6,SUM(AV25*1000+(BC25)/10+(BA25)/100+(BJ30)/1000+((F30+S30)-(G30+R30))/10000+(F30+S30)/100000+(S30)/1000000))) -> FALSE | DU27: =IF(AU26=6,IF(AU27=6,SUM(AV26*1000+(BC26)/10+(BA26)/100+(BJ33)/1000+((F33+S33)-(G33+R33))/10000+(F33+S33)/100000+(S33)/1000000))) -> FALSE | DV27: =IF(AU27=6,IF(AU26=6,SUM(AV27*1000+(BC27)/10+(BA27)/100+(BK33)/1000+((G33+R33)-(F33+S33))/10000+(G33+R33)/100000+(G33)/1000000))) -> FALSE | DW27: =IF(AU28=6,IF(AU26=6,SUM(AV28*1000+(BC28)/10+(BA28)/100+(BK34)/1000+((G34+R34)-(F34+S34))/10000+(G34+R34)/100000+(G34)/1000000))) -> FALSE | DX27: =IF(AU29=6,IF(AU26=6,SUM(AV29*1000+(BC29)/10+(BA29)/100+(BK35)/1000+((G35+R35)-(F35+S35))/10000+(G35+R35)/100000+(G35)/1000000))) -> FALSE
A28: =AP24 -> SUISSE | F28: 3 | G28: 0 | H28: =AP29 -> ANDORRE | M28: ANDORRE | R28: 1 | S28: 2 | T28: SUISSE | Z28: =VLOOKUP(AN35,AO31:AT36,2,0) -> LETTONIE | AE28: 5 | AF28: =VLOOKUP(Z28,AP24:BC29,7,0) -> 7 | AG28: =VLOOKUP(Z28,AP24:BC29,8,0) -> 10 | AH28: =VLOOKUP(Z28,AP24:BC29,9,0) -> 2 | AI28: =VLOOKUP(Z28,AP24:BC29,10,0) -> 1 | AJ28: =VLOOKUP(Z28,AP24:BC29,11,0) -> 7 | AK28: =VLOOKUP(Z28,AP24:BC29,12,0) -> 7 | AL28: =VLOOKUP(Z28,AP24:BC29,13,0) -> 18 | AM28: =VLOOKUP(Z28,AP24:BC29,14,0) -> -11 | AP28: LETTONIE | AU28: =RANK(AV28,AV24:AV29) -> 5 | AV28: =SUMPRODUCT((A24:E38=AP28)*(BF24:BF38))+SUMPRODUCT((H24:L38=AP28)*(BG24:BG38))+SUMPRODUCT((M24:Q38=AP28)*(BH24:BH38))+SUMPRODUCT((T24:X38=AP28)*(BI24:BI38)) -> 7 | AW28: =SUMPRODUCT((A24:E38=AP28)*(BL24:BL38))+SUMPRODUCT((H24:L38=AP28)*(BM24:BM38))+SUMPRODUCT((M24:Q38=AP28)*(BN24:BN38))+SUMPRODUCT((T24:X38=AP28)*(BO24:BO38)) -> 10 | AX28: =SUMPRODUCT((A24:E38=AP28)*(BP24:BP38))+SUMPRODUCT((H24:L38=AP28)*(BQ24:BQ38))+SUMPRODUCT((M24:Q38=AP28)*(BR24:BR38))+SUMPRODUCT((T24:X38=AP28)*(BS24:BS38)) -> 2 | AY28: =SUMPRODUCT((A24:E38=AP28)*(BT24:BT38))+SUMPRODUCT((H24:L38=AP28)*(BU24:BU38))+SUMPRODUCT((M24:Q38=AP28)*(BV24:BV38))+SUMPRODUCT((T24:X38=AP28)*(BW24:BW38)) -> 1 | AZ28: =SUMPRODUCT((A24:E38=AP28)*(BX24:BX38))+SUMPRODUCT((H24:L38=AP28)*(BY24:BY38))+SUMPRODUCT((M24:Q38=AP28)*(BZ24:BZ38))+SUMPRODUCT((T24:X38=AP28)*(CA24:CA38)) -> 7 | BA28: =SUMPRODUCT((A24:E38=AP28)*(CB24:CB38))+SUMPRODUCT((H24:L38=AP28)*(CC24:CC38))+SUMPRODUCT((M24:Q38=AP28)*(CD24:CD38))+SUMPRODUCT((T24:X38=AP28)*(CE24:CE38)) -> 7 | BB28: =SUMPRODUCT((A24:E38=AP28)*(CH24:CH38))+SUMPRODUCT((H24:L38=AP28)*(CI24:CI38))+SUMPRODUCT((M24:Q38=AP28)*(CJ24:CJ38))+SUMPRODUCT((T24:X38=AP28)*(CK24:CK38)) -> 18 | BC28: -11 | BF28: 3 | BG28: 0 | BH28: 0 | BI28: 3 | BJ28: 6 | BK28: 0 | BL28: 1 | BM28: 1 | BN28: 1 | BO28: 1 | BP28: 1 | BQ28: FALSE | BR28: FALSE | BS28: 1 | BT28: FALSE | BU28: FALSE | BV28: FALSE | BW28: FALSE | BX28: FALSE | BY28: 1 | BZ28: 1 | CA28: FALSE | CB28: 3 | CC28: 0 | CD28: 1 | CE28: 2 | CF28: 5 | CG28: 1 | CH28: 0 | CI28: 3 | CJ28: 2 | CK28: 1 | CL28: 1 | CM28: 5 | CN28: =IF(AU24=1,IF(AU28=1,SUM(AV24*1000+(BC24)/10+(BA24)/100+(BJ27)/1000+((F27+S27)-(G27+R27))/10000+(F27+S27)/100000+(S27)/1000000))) -> FALSE | CO28: =IF(AU25=1,IF(AU28=1,SUM(AV25*1000+(BC25)/10+(BA25)/100+(BJ31)/1000+((F31+S31)-(G31+R31))/10000+(F31+S31)/100000+(S31)/1000000))) -> FALSE | CP28: =IF(AU26=1,IF(AU28=1,SUM(AV26*1000+(BC26)/10+(BA26)/100+(BJ34)/1000+((F34+S34)-(G34+R34))/10000+(F34+S34)/100000+(S34)/1000000))) -> FALSE | CQ28: =IF(AU27=1,IF(AU28=1,SUM(AV27*1000+(BC27)/10+(BA27)/100+(BJ36)/1000+((F36+S36)-(G36+R36))/10000+(F36+S36)/100000+(S36)/1000000))) -> FALSE | CR28: =IF(AU28=1,IF(AU27=1,SUM(AV28*1000+(BC28)/10+(BA28)/100+(BK36)/1000+((G36+R36)-(F36+S36))/10000+(G36+R36)/100000+(G36)/1000000))) -> FALSE | CS28: =IF(AU29=1,IF(AU27=1,SUM(AV29*1000+(BC29)/10+(BA29)/100+(BK37)/1000+((G37+R37)-(F37+S37))/10000+(G37+R37)/100000+(G37)/1000000))) -> FALSE | CU28: =IF(AU24=2,IF(AU28=2,SUM(AV24*1000+(BC24)/10+(BA24)/100+(BJ27)/1000+((F27+S27)-(G27+R27))/10000+(F27+S27)/100000+(S27)/1000000))) -> FALSE | CV28: =IF(AU25=2,IF(AU28=2,SUM(AV25*1000+(BC25)/10+(BA25)/100+(BJ31)/1000+((F31+S31)-(G31+R31))/10000+(F31+S31)/100000+(S31)/1000000))) -> FALSE | CW28: =IF(AU26=2,IF(AU28=2,SUM(AV26*1000+(BC26)/10+(BA26)/100+(BJ34)/1000+((F34+S34)-(G34+R34))/10000+(F34+S34)/100000+(S34)/1000000))) -> FALSE | CX28: =IF(AU27=2,IF(AU28=2,SUM(AV27*1000+(BC27)/10+(BA27)/100+(BJ36)/1000+((F36+S36)-(G36+R36))/10000+(F36+S36)/100000+(S36)/1000000))) -> FALSE | CY28: =IF(AU28=2,IF(AU27=2,SUM(AV28*1000+(BC28)/10+(BA28)/100+(BK36)/1000+((G36+R36)-(F36+S36))/10000+(G36+R36)/100000+(G36)/1000000))) -> FALSE | CZ28: =IF(AU29=2,IF(AU27=2,SUM(AV29*1000+(BC29)/10+(BA29)/100+(BK37)/1000+((G37+R37)-(F37+S37))/10000+(G37+R37)/100000+(G37)/1000000))) -> FALSE | DA28: =IF(AU24=3,IF(AU28=3,SUM(AV24*1000+(BC24)/10+(BA24)/100+(BJ27)/1000+((F27+S27)-(G27+R27))/10000+(F27+S27)/100000+(S27)/1000000))) -> FALSE | DB28: =IF(AU25=3,IF(AU28=3,SUM(AV25*1000+(BC25)/10+(BA25)/100+(BJ31)/1000+((F31+S31)-(G31+R31))/10000+(F31+S31)/100000+(S31)/1000000))) -> FALSE | DC28: =IF(AU26=3,IF(AU28=3,SUM(AV26*1000+(BC26)/10+(BA26)/100+(BJ34)/1000+((F34+S34)-(G34+R34))/10000+(F34+S34)/100000+(S34)/1000000))) -> FALSE | DD28: =IF(AU27=3,IF(AU28=3,SUM(AV27*1000+(BC27)/10+(BA27)/100+(BJ36)/1000+((F36+S36)-(G36+R36))/10000+(F36+S36)/100000+(S36)/1000000))) -> FALSE | DE28: =IF(AU28=3,IF(AU27=3,SUM(AV28*1000+(BC28)/10+(BA28)/100+(BK36)/1000+((G36+R36)-(F36+S36))/10000+(G36+R36)/100000+(G36)/1000000))) -> FALSE | DF28: =IF(AU29=3,IF(AU27=3,SUM(AV29*1000+(BC29)/10+(BA29)/100+(BK37)/1000+((G37+R37)-(F37+S37))/10000+(G37+R37)/100000+(G37)/1000000))) -> FALSE | DG28: =IF(AU24=4,IF(AU28=4,SUM(AV24*1000+(BC24)/10+(BA24)/100+(BJ27)/1000+((F27+S27)-(G27+R27))/10000+(F27+S27)/100000+(S27)/1000000))) -> FALSE | DH28: =IF(AU25=4,IF(AU28=4,SUM(AV25*1000+(BC25)/10+(BA25)/100+(BJ31)/1000+((F31+S31)-(G31+R31))/10000+(F31+S31)/100000+(S31)/1000000))) -> FALSE | DI28: =IF(AU26=4,IF(AU28=4,SUM(AV26*1000+(BC26)/10+(BA26)/100+(BJ34)/1000+((F34+S34)-(G34+R34))/10000+(F34+S34)/100000+(S34)/1000000))) -> FALSE | DJ28: =IF(AU27=4,IF(AU28=4,SUM(AV27*1000+(BC27)/10+(BA27)/100+(BJ36)/1000+((F36+S36)-(G36+R36))/10000+(F36+S36)/100000+(S36)/1000000))) -> FALSE | DK28: =IF(AU28=4,IF(AU27=4,SUM(AV28*1000+(BC28)/10+(BA28)/100+(BK36)/1000+((G36+R36)-(F36+S36))/10000+(G36+R36)/100000+(G36)/1000000))) -> FALSE | DL28: =IF(AU29=4,IF(AU27=4,SUM(AV29*1000+(BC29)/10+(BA29)/100+(BK37)/1000+((G37+R37)-(F37+S37))/10000+(G37+R37)/100000+(G37)/1000000))) -> FALSE | DM28: =IF(AU24=5,IF(AU28=5,SUM(AV24*1000+(BC24)/10+(BA24)/100+(BJ27)/1000+((F27+S27)-(G27+R27))/10000+(F27+S27)/100000+(S27)/1000000))) -> FALSE | DN28: =IF(AU25=5,IF(AU28=5,SUM(AV25*1000+(BC25)/10+(BA25)/100+(BJ31)/1000+((F31+S31)-(G31+R31))/10000+(F31+S31)/100000+(S31)/1000000))) -> FALSE | DO28: =IF(AU26=5,IF(AU28=5,SUM(AV26*1000+(BC26)/10+(BA26)/100+(BJ34)/1000+((F34+S34)-(G34+R34))/10000+(F34+S34)/100000+(S34)/1000000))) -> FALSE | DP28: =IF(AU27=5,IF(AU28=5,SUM(AV27*1000+(BC27)/10+(BA27)/100+(BJ36)/1000+((F36+S36)-(G36+R36))/10000+(F36+S36)/100000+(S36)/1000000))) -> FALSE | DQ28: =IF(AU28=5,IF(AU27=5,SUM(AV28*1000+(BC28)/10+(BA28)/100+(BK36)/1000+((G36+R36)-(F36+S36))/10000+(G36+R36)/100000+(G36)/1000000))) -> FALSE | DR28: =IF(AU29=5,IF(AU27=5,SUM(AV29*1000+(BC29)/10+(BA29)/100+(BK37)/1000+((G37+R37)-(F37+S37))/10000+(G37+R37)/100000+(G37)/1000000))) -> FALSE | DS28: =IF(AU24=6,IF(AU28=6,SUM(AV24*1000+(BC24)/10+(BA24)/100+(BJ27)/1000+((F27+S27)-(G27+R27))/10000+(F27+S27)/100000+(S27)/1000000))) -> FALSE | DT28: =IF(AU25=6,IF(AU28=6,SUM(AV25*1000+(BC25)/10+(BA25)/100+(BJ31)/1000+((F31+S31)-(G31+R31))/10000+(F31+S31)/100000+(S31)/1000000))) -> FALSE | DU28: =IF(AU26=6,IF(AU28=6,SUM(AV26*1000+(BC26)/10+(BA26)/100+(BJ34)/1000+((F34+S34)-(G34+R34))/10000+(F34+S34)/100000+(S34)/1000000))) -> FALSE | DV28: =IF(AU27=6,IF(AU28=6,SUM(AV27*1000+(BC27)/10+(BA27)/100+(BJ36)/1000+((F36+S36)-(G36+R36))/10000+(F36+S36)/100000+(S36)/1000000))) -> FALSE | DW28: =IF(AU28=6,IF(AU27=6,SUM(AV28*1000+(BC28)/10+(BA28)/100+(BK36)/1000+((G36+R36)-(F36+S36))/10000+(G36+R36)/100000+(G36)/1000000))) -> FALSE | DX28: =IF(AU29=6,IF(AU27=6,SUM(AV29*1000+(BC29)/10+(BA29)/100+(BK37)/1000+((G37+R37)-(F37+S37))/10000+(G37+R37)/100000+(G37)/1000000))) -> FALSE
A29: =AP25 -> PORTUGAL | F29: 3 | G29: 0 | H29: =AP26 -> HONGRIE | M29: HONGRIE | R29: 0 | S29: 1 | T29: PORTUGAL | Z29: =VLOOKUP(AN36,AO31:AT36,2,0) -> ANDORRE | AE29: 6 | AF29: =VLOOKUP(Z29,AP24:BC29,7,0) -> 4 | AG29: =VLOOKUP(Z29,AP24:BC29,8,0) -> 10 | AH29: =VLOOKUP(Z29,AP24:BC29,9,0) -> 1 | AI29: =VLOOKUP(Z29,AP24:BC29,10,0) -> 1 | AJ29: =VLOOKUP(Z29,AP24:BC29,11,0) -> 8 | AK29: =VLOOKUP(Z29,AP24:BC29,12,0) -> 2 | AL29: =VLOOKUP(Z29,AP24:BC29,13,0) -> 23 | AM29: =VLOOKUP(Z29,AP24:BC29,14,0) -> -21 | AP29: ANDORRE | AU29: =RANK(AV29,AV24:AV29) -> 6 | AV29: =SUMPRODUCT((A24:E38=AP29)*(BF24:BF38))+SUMPRODUCT((H24:L38=AP29)*(BG24:BG38))+SUMPRODUCT((M24:Q38=AP29)*(BH24:BH38))+SUMPRODUCT((T24:X38=AP29)*(BI24:BI38)) -> 4 | AW29: =SUMPRODUCT((A24:E38=AP29)*(BL24:BL38))+SUMPRODUCT((H24:L38=AP29)*(BM24:BM38))+SUMPRODUCT((M24:Q38=AP29)*(BN24:BN38))+SUMPRODUCT((T24:X38=AP29)*(BO24:BO38)) -> 10 | AX29: =SUMPRODUCT((A24:E38=AP29)*(BP24:BP38))+SUMPRODUCT((H24:L38=AP29)*(BQ24:BQ38))+SUMPRODUCT((M24:Q38=AP29)*(BR24:BR38))+SUMPRODUCT((T24:X38=AP29)*(BS24:BS38)) -> 1 | AY29: =SUMPRODUCT((A24:E38=AP29)*(BT24:BT38))+SUMPRODUCT((H24:L38=AP29)*(BU24:BU38))+SUMPRODUCT((M24:Q38=AP29)*(BV24:BV38))+SUMPRODUCT((T24:X38=AP29)*(BW24:BW38)) -> 1 | AZ29: =SUMPRODUCT((A24:E38=AP29)*(BX24:BX38))+SUMPRODUCT((H24:L38=AP29)*(BY24:BY38))+SUMPRODUCT((M24:Q38=AP29)*(BZ24:BZ38))+SUMPRODUCT((T24:X38=AP29)*(CA24:CA38)) -> 8 | BA29: =SUMPRODUCT((A24:E38=AP29)*(CB24:CB38))+SUMPRODUCT((H24:L38=AP29)*(CC24:CC38))+SUMPRODUCT((M24:Q38=AP29)*(CD24:CD38))+SUMPRODUCT((T24:X38=AP29)*(CE24:CE38)) -> 2 | BB29: =SUMPRODUCT((A24:E38=AP29)*(CH24:CH38))+SUMPRODUCT((H24:L38=AP29)*(CI24:CI38))+SUMPRODUCT((M24:Q38=AP29)*(CJ24:CJ38))+SUMPRODUCT((T24:X38=AP29)*(CK24:CK38)) -> 23 | BC29: -21 | BF29: 3 | BG29: 0 | BH29: 0 | BI29: 3 | BJ29: 6 | BK29: 0 | BL29: 1 | BM29: 1 | BN29: 1 | BO29: 1 | BP29: 1 | BQ29: FALSE | BR29: FALSE | BS29: 1 | BT29: FALSE | BU29: FALSE | BV29: FALSE | BW29: FALSE | BX29: FALSE | BY29: 1 | BZ29: 1 | CA29: FALSE | CB29: 3 | CC29: 0 | CD29: 0 | CE29: 1 | CF29: 4 | CG29: 0 | CH29: 0 | CI29: 3 | CJ29: 1 | CK29: 0 | CL29: 0 | CM29: 4 | CN29: =IF(AU24=1,IF(AU29=1,SUM(AV24*1000+(BC24)/10+(BA24)/100+(BJ28)/1000+((F28+S28)-(G28+R28))/10000+(F28+S28)/100000+(S28)/1000000))) -> FALSE | CO29: =IF(AU25=1,IF(AU29=1,SUM(AV25*1000+(BC25)/10+(BA25)/100+(BJ32)/1000+((F32+S32)-(G32+R32))/10000+(F32+S32)/100000+(S32)/1000000))) -> FALSE | CP29: =IF(AU26=1,IF(AU29=1,SUM(AV26*1000+(BC26)/10+(BA26)/100+(BJ35)/1000+((F35+S35)-(G35+R35))/10000+(F35+S35)/100000+(S35)/1000000))) -> FALSE | CQ29: =IF(AU27=1,IF(AU29=1,SUM(AV27*1000+(BC27)/10+(BA27)/100+(BJ37)/1000+((F37+S37)-(G37+R37))/10000+(F37+S37)/100000+(S37)/1000000))) -> FALSE | CR29: =IF(AU28=1,IF(AU29=1,SUM(AV28*1000+(BC28)/10+(BA28)/100+(BJ38)/1000+((F38+S38)-(G38+R38))/10000+(F38+S38)/100000+(S38)/1000000))) -> FALSE | CS29: =IF(AU29=1,IF(AU28=1,SUM(AV29*1000+(BC29)/10+(BA29)/100+(BK38)/1000+((G38+R38)-(F38+S38))/10000+(G38+R38)/100000+(G38)/1000000))) -> FALSE | CU29: =IF(AU24=2,IF(AU29=2,SUM(AV24*1000+(BC24)/10+(BA24)/100+(BJ28)/1000+((F28+S28)-(G28+R28))/10000+(F28+S28)/100000+(S28)/1000000))) -> FALSE | CV29: =IF(AU25=2,IF(AU29=2,SUM(AV25*1000+(BC25)/10+(BA25)/100+(BJ32)/1000+((F32+S32)-(G32+R32))/10000+(F32+S32)/100000+(S32)/1000000))) -> FALSE | CW29: =IF(AU26=2,IF(AU29=2,SUM(AV26*1000+(BC26)/10+(BA26)/100+(BJ35)/1000+((F35+S35)-(G35+R35))/10000+(F35+S35)/100000+(S35)/1000000))) -> FALSE | CX29: =IF(AU27=2,IF(AU29=2,SUM(AV27*1000+(BC27)/10+(BA27)/100+(BJ37)/1000+((F37+S37)-(G37+R37))/10000+(F37+S37)/100000+(S37)/1000000))) -> FALSE | CY29: =IF(AU28=2,IF(AU29=2,SUM(AV28*1000+(BC28)/10+(BA28)/100+(BJ38)/1000+((F38+S38)-(G38+R38))/10000+(F38+S38)/100000+(S38)/1000000))) -> FALSE | CZ29: =IF(AU29=2,IF(AU28=2,SUM(AV29*1000+(BC29)/10+(BA29)/100+(BK38)/1000+((G38+R38)-(F38+S38))/10000+(G38+R38)/100000+(G38)/1000000))) -> FALSE | DA29: =IF(AU24=3,IF(AU29=3,SUM(AV24*1000+(BC24)/10+(BA24)/100+(BJ28)/1000+((F28+S28)-(G28+R28))/10000+(F28+S28)/100000+(S28)/1000000))) -> FALSE | DB29: =IF(AU25=3,IF(AU29=3,SUM(AV25*1000+(BC25)/10+(BA25)/100+(BJ32)/1000+((F32+S32)-(G32+R32))/10000+(F32+S32)/100000+(S32)/1000000))) -> FALSE | DC29: =IF(AU26=3,IF(AU29=3,SUM(AV26*1000+(BC26)/10+(BA26)/100+(BJ35)/1000+((F35+S35)-(G35+R35))/10000+(F35+S35)/100000+(S35)/1000000))) -> FALSE | DD29: =IF(AU27=3,IF(AU29=3,SUM(AV27*1000+(BC27)/10+(BA27)/100+(BJ37)/1000+((F37+S37)-(G37+R37))/10000+(F37+S37)/100000+(S37)/1000000))) -> FALSE | DE29: =IF(AU28=3,IF(AU29=3,SUM(AV28*1000+(BC28)/10+(BA28)/100+(BJ38)/1000+((F38+S38)-(G38+R38))/10000+(F38+S38)/100000+(S38)/1000000))) -> FALSE | DF29: =IF(AU29=3,IF(AU28=3,SUM(AV29*1000+(BC29)/10+(BA29)/100+(BK38)/1000+((G38+R38)-(F38+S38))/10000+(G38+R38)/100000+(G38)/1000000))) -> FALSE | DG29: =IF(AU24=4,IF(AU29=4,SUM(AV24*1000+(BC24)/10+(BA24)/100+(BJ28)/1000+((F28+S28)-(G28+R28))/10000+(F28+S28)/100000+(S28)/1000000))) -> FALSE | DH29: =IF(AU25=4,IF(AU29=4,SUM(AV25*1000+(BC25)/10+(BA25)/100+(BJ32)/1000+((F32+S32)-(G32+R32))/10000+(F32+S32)/100000+(S32)/1000000))) -> FALSE | DI29: =IF(AU26=4,IF(AU29=4,SUM(AV26*1000+(BC26)/10+(BA26)/100+(BJ35)/1000+((F35+S35)-(G35+R35))/10000+(F35+S35)/100000+(S35)/1000000))) -> FALSE | DJ29: =IF(AU27=4,IF(AU29=4,SUM(AV27*1000+(BC27)/10+(BA27)/100+(BJ37)/1000+((F37+S37)-(G37+R37))/10000+(F37+S37)/100000+(S37)/1000000))) -> FALSE | DK29: =IF(AU28=4,IF(AU29=4,SUM(AV28*1000+(BC28)/10+(BA28)/100+(BJ38)/1000+((F38+S38)-(G38+R38))/10000+(F38+S38)/100000+(S38)/1000000))) -> FALSE | DL29: =IF(AU29=4,IF(AU28=4,SUM(AV29*1000+(BC29)/10+(BA29)/100+(BK38)/1000+((G38+R38)-(F38+S38))/10000+(G38+R38)/100000+(G38)/1000000))) -> FALSE | DM29: =IF(AU24=5,IF(AU29=5,SUM(AV24*1000+(BC24)/10+(BA24)/100+(BJ28)/1000+((F28+S28)-(G28+R28))/10000+(F28+S28)/100000+(S28)/1000000))) -> FALSE | DN29: =IF(AU25=5,IF(AU29=5,SUM(AV25*1000+(BC25)/10+(BA25)/100+(BJ32)/1000+((F32+S32)-(G32+R32))/10000+(F32+S32)/100000+(S32)/1000000))) -> FALSE | DO29: =IF(AU26=5,IF(AU29=5,SUM(AV26*1000+(BC26)/10+(BA26)/100+(BJ35)/1000+((F35+S35)-(G35+R35))/10000+(F35+S35)/100000+(S35)/1000000))) -> FALSE | DP29: =IF(AU27=5,IF(AU29=5,SUM(AV27*1000+(BC27)/10+(BA27)/100+(BJ37)/1000+((F37+S37)-(G37+R37))/10000+(F37+S37)/100000+(S37)/1000000))) -> FALSE | DQ29: =IF(AU28=5,IF(AU29=5,SUM(AV28*1000+(BC28)/10+(BA28)/100+(BJ38)/1000+((F38+S38)-(G38+R38))/10000+(F38+S38)/100000+(S38)/1000000))) -> FALSE | DR29: =IF(AU29=5,IF(AU28=5,SUM(AV29*1000+(BC29)/10+(BA29)/100+(BK38)/1000+((G38+R38)-(F38+S38))/10000+(G38+R38)/100000+(G38)/1000000))) -> FALSE | DS29: =IF(AU24=6,IF(AU29=6,SUM(AV24*1000+(BC24)/10+(BA24)/100+(BJ28)/1000+((F28+S28)-(G28+R28))/10000+(F28+S28)/100000+(S28)/1000000))) -> FALSE | DT29: =IF(AU25=6,IF(AU29=6,SUM(AV25*1000+(BC25)/10+(BA25)/100+(BJ32)/1000+((F32+S32)-(G32+R32))/10000+(F32+S32)/100000+(S32)/1000000))) -> FALSE | DU29: =IF(AU26=6,IF(AU29=6,SUM(AV26*1000+(BC26)/10+(BA26)/100+(BJ35)/1000+((F35+S35)-(G35+R35))/10000+(F35+S35)/100000+(S35)/1000000))) -> FALSE | DV29: =IF(AU27=6,IF(AU29=6,SUM(AV27*1000+(BC27)/10+(BA27)/100+(BJ37)/1000+((F37+S37)-(G37+R37))/10000+(F37+S37)/100000+(S37)/1000000))) -> FALSE | DW29: =IF(AU28=6,IF(AU29=6,SUM(AV28*1000+(BC28)/10+(BA28)/100+(BJ38)/1000+((F38+S38)-(G38+R38))/10000+(F38+S38)/100000+(S38)/1000000))) -> FALSE | DX29: =IF(AU29=6,IF(AU28=6,SUM(AV29*1000+(BC29)/10+(BA29)/100+(BK38)/1000+((G38+R38)-(F38+S38))/10000+(G38+R38)/100000+(G38)/1000000))) -> FALSE
A30: =AP25 -> PORTUGAL | F30: 5 | G30: 1 | H30: =AP27 -> ILES FEROE | M30: ILES FEROE | R30: 0 | S30: 6 | T30: PORTUGAL | BF30: 3 | BG30: 0 | BH30: 0 | BI30: 3 | BJ30: 6 | BK30: 0 | BL30: 1 | BM30: 1 | BN30: 1 | BO30: 1 | BP30: 1 | BQ30: FALSE | BR30: FALSE | BS30: 1 | BT30: FALSE | BU30: FALSE | BV30: FALSE | BW30: FALSE | BX30: FALSE | BY30: 1 | BZ30: 1 | CA30: FALSE | CB30: 5 | CC30: 1 | CD30: 0 | CE30: 6 | CF30: 11 | CG30: 1 | CH30: 1 | CI30: 5 | CJ30: 6 | CK30: 0 | CL30: 1 | CM30: 11 | CN30: =SUM(CN24:CN29) -> 1027001.833 | CO30: 1027003.123 | CP30: 0 | CQ30: 0 | CR30: 0 | CS30: 0 | CU30: =SUM(CU24:CU29) -> 0 | CV30: 0 | CW30: 0 | CX30: 0 | CY30: 0 | CZ30: 0 | DA30: 0 | DB30: 0 | DC30: 600000 | DD30: 0 | DE30: 0 | DF30: 0 | DG30: 0 | DH30: 0 | DI30: 0 | DJ30: 400000 | DK30: 0 | DL30: 0 | DM30: 0 | DN30: 0 | DO30: 0 | DP30: 0 | DQ30: 200000 | DR30: 0 | DS30: 0 | DT30: 0 | DU30: 0 | DV30: 0 | DW30: 0 | DX30: 100000
A31: =AP25 -> PORTUGAL | F31: 4 | G31: 1 | H31: =AP28 -> LETTONIE | M31: LETTONIE | R31: 0 | S31: 3 | T31: PORTUGAL | AN31: 1 | AO31: =BA31 -> 2 | AP31: =AP24 -> SUISSE | AU31: =SUM(CN30,CU30,DA30,DG30,DM30,DS30) -> 1027001.833 | AX31: =AU31+0.00000006 -> 1027001.833 | BA31: =RANK(AX31,AX31:AZ36) -> 2 | BB31: =RANK(AU31,AU31:AW36) -> 2 | BF31: 3 | BG31: 0 | BH31: 0 | BI31: 3 | BJ31: 6 | BK31: 0 | BL31: 1 | BM31: 1 | BN31: 1 | BO31: 1 | BP31: 1 | BQ31: FALSE | BR31: FALSE | BS31: 1 | BT31: FALSE | BU31: FALSE | BV31: FALSE | BW31: FALSE | BX31: FALSE | BY31: 1 | BZ31: 1 | CA31: FALSE | CB31: 4 | CC31: 1 | CD31: 0 | CE31: 3 | CF31: 7 | CG31: 1 | CH31: 1 | CI31: 4 | CJ31: 3 | CK31: 0 | CL31: 1 | CM31: 7
